Workbook

Sheet ProjectInformation
A1: CPN DATA
A2: INFORMATION ADDED BY DESIGNER
A3: Section Engineer | B3: Flattery
A4: Design Team | B4: Bell
A6: County | B6: BENTON
A7: Project Number | B7: NHSX-030-6(231)--3H-06
A8: English or Metric | B8: English
A9: Revised
A10: Project Path
A11: Bridge Block
A12: File No.

Sheet DataInput
B1: Cut and Fill | T1: Topsoil Stripping | V1: Existing Pavement Cut | X1: Plowing and Shaping | AL1: ="Topsoil Placement"&CHAR(10)&"Undercut" -> Topsoil Placement Undercut | AO1: ="Subgrade Treatment"&CHAR(10)&"Undercut " -> Subgrade Treatment Undercut
B2: Column 1 | C2: Column 2 | D2: Column 3 | E2: Column 4 | F2: Column 5 | G2: Column 6 | H2: Column 7 | I2: Column 8 | J2: Column 9 | K2: Column 10 | L2: Column 11 | M2: Column 12 | N2: Column 13 | O2: Column 14 | P2: Column 15 | Q2: Column 16 | R2: Column 17 | S2: Column 18 | T2: Column 1 | U2: Column 2 | V2: Column 1 | W2: Column 2 | X2: Column 1 | Y2: Column 2 | Z2: Column 3 | AA2: Column 4 | AB2: Column 5 | AC2: Column 6 | AD2: Column 7 | AE2: Column 8 | AF2: Column 9 | AG2: Column 10 | AH2: Column 11 | AI2: Column 12 | AJ2: Column 13 | AK2: Column 14 | AL2: Column 1 | AM2: Column 2 | AN2: Column 3 | AO2: Column 1 | AP2: Column 2 | AQ2: Column 3
A3: ="Station" -> Station | B3: ="Total Cut"&CHAR(10)&"End Area" -> Total Cut End Area | C3: ="Template Cut"&CHAR(10)&"Volume" -> Template Cut Volume | D3: ="Template"&CHAR(10)&"Class 10"&CHAR(10)&"Volume" -> Template Class 10 Volume | E3: ="Template"&CHAR(10)&"Topsoil Cut"&CHAR(10)&"Volume" -> Template Topsoil Cut Volume | F3: ="Template"&CHAR(10)&"Unsuitable"&CHAR(10)&"Type A"&CHAR(10)&"Volume" -> Template Unsuitable Type A Volume | G3: ="Template"&CHAR(10)&"Unsuitable"&CHAR(10)&"Type B"&CHAR(10)&"Volume" -> Template Unsuitable Type B Volume | H3: ="Template"&CHAR(10)&"Unsuitable"&CHAR(10)&"Type C"&CHAR(10)&"Volume" -> Template Unsuitable Type C Volume | I3: ="Template"&CHAR(10)&"Pavement"&CHAR(10)&"Removal"&CHAR(10)&"Volume" -> Template Pavement Removal Volume | J3: ="Template"&CHAR(10)&"Select Loam"&CHAR(10)&"Volume" -> Template Select Loam Volume | K3: ="Template"&CHAR(10)&"Select Sand"&CHAR(10)&"Volume" -> Template Select Sand Volume | L3: ="Template"&CHAR(10)&"Rock"&CHAR(10)&"Volume" -> Template Rock Volume | M3: ="Template"&CHAR(10)&"B & W"&CHAR(10)&"Rock"&CHAR(10)&"Volume" -> Template B & W Rock Volume | N3: ="Template"&CHAR(10)&"Waste"&CHAR(10)&"Volume" -> Template Waste Volume | O3: ="Template"&CHAR(10)&"Shale"&CHAR(10)&"Volume" -> Template Shale Volume | P3: ="Template"&CHAR(10)&"Rock Undercut"&CHAR(10)&"Volume" -> Template Rock Undercut Volume | Q3: ="Template Fill"&CHAR(10)&"End Area" -> Template Fill End Area | R3: ="Total Fill"&CHAR(10)&"Unadjusted"&CHAR(10)&CHAR(10)&"Volume" -> Total Fill Unadjusted Volume | S3: ="Topsoil"&CHAR(10)&"Placement"&CHAR(10)&"Undercut"&CHAR(10)&"Volume" -> Topsoil Placement Undercut Volume | T3: ="Topsoil"&CHAR(10)&"Stripping Undercut" -> Topsoil Stripping Undercut | V3: ="Total Existing"&CHAR(10)&"Pavement Cut" -> Total Existing Pavement Cut | X3: ="Plowing &"&CHAR(10)&"Shaping"&CHAR(10)&"End Area" -> Plowing & Shaping End Area | Y3: ="Plowing &"&CHAR(10)&"Shaping"&CHAR(10)&"Undercut"&CHAR(10)&"(+ Fill)" -> Plowing & Shaping Undercut (+ Fill) | Z3: ="Plowing &"&CHAR(10)&"Shaping"&CHAR(10)&"Class 10"&CHAR(10)&"Volume" -> Plowing & Shaping Class 10 Volume | AA3: ="Template"&CHAR(10)&"Topsoil Cut"&CHAR(10)&"Volume" -> Template Topsoil Cut Volume | AB3: ="Plowing &"&CHAR(10)&"Shaping"&CHAR(10)&"Unsuitable"&CHAR(10)&"Type A"&CHAR(10)&"Volume" -> Plowing & Shaping Unsuitable Type A Volume | AC3: ="Plowing &"&CHAR(10)&"Shaping"&CHAR(10)&"Unsuitable"&CHAR(10)&"Type B"&CHAR(10)&"Volume" -> Plowing & Shaping Unsuitable Type B Volume | AD3: ="Plowing &"&CHAR(10)&"Shaping"&CHAR(10)&"Unsuitable"&CHAR(10)&"Type C"&CHAR(10)&"Volume" -> Plowing & Shaping Unsuitable Type C Volume | AE3: ="Plowing &"&CHAR(10)&"Shaping"&CHAR(10)&"Existing"&CHAR(10)&"Pavement"&CHAR(10)&"Volume" -> Plowing & Shaping Existing Pavement Volume | AF3: ="Plowing &"&CHAR(10)&"Shaping"&CHAR(10)&"Select Loam"&CHAR(10)&"Volume" -> Plowing & Shaping Select Loam Volume | AG3: ="Plowing &"&CHAR(10)&"Shaping"&CHAR(10)&"Select Sand"&CHAR(10)&"Volume" -> Plowing & Shaping Select Sand Volume | AH3: ="Plowing &"&CHAR(10)&"Shaping"&CHAR(10)&"Rock"&CHAR(10)&"Volume" -> Plowing & Shaping Rock Volume | AI3: ="Plowing &"&CHAR(10)&"Shaping"&CHAR(10)&"Broken &"&CHAR(10)&"Weathered"&CHAR(10)&"Rock"&CHAR(10)&"Volume" -> Plowing & Shaping Broken & Weathered Rock Volume | AJ3: ="Plowing &"&CHAR(10)&"Shaping"&CHAR(10)&"Waste"&CHAR(10)&"Volume" -> Plowing & Shaping Waste Volume | AK3: ="Plowing &"&CHAR(10)&"Shaping"&CHAR(10)&"Shale"&CHAR(10)&"Volume" -> Plowing & Shaping Shale Volume | AL3: ="Topsoil Placement"&CHAR(10)&"Undercut" -> Topsoil Placement Undercut | AO3: ="Subgrade Treatment"&CHAR(10)&"Undercut" -> Subgrade Treatment Undercut
AL9: End Area | AM9: ="+C"&CHAR(10)&"Volume" -> +C Volume | AN9: ="-F"&CHAR(10)&"Volume" -> -F Volume | AO9: End Area | AP9: ="+C"&CHAR(10)&"Volume" -> +C Volume | AQ9: ="-F"&CHAR(10)&"Volume" -> -F Volume
T10: ="End Area" -> End Area | U10: Volume | V10: ="End Area" -> End Area | W10: Volume
A11: STAGE 1
A13: XOver2
A14: 153905 | B14: 29 | C14: 21 | D14: 15 | E14: 5 | F14: 0 | G14: 0 | H14: 0 | I14: 0 | J14: 0 | K14: 0 | L14: 0 | M14: 0 | N14: 0 | O14: 0 | P14: 0 | Q14: 0 | R14: 1 | S14: 3 | T14: 14 | U14: 16 | AL14: 2 | AM14: 1 | AN14: 2
A15: 153925 | B15: 27 | C15: 24 | D15: 18 | E15: 5 | F15: 0 | G15: 0 | H15: 0 | I15: 0 | J15: 0 | K15: 0 | L15: 0 | M15: 0 | N15: 0 | O15: 0 | P15: 0 | Q15: 1 | R15: 2 | S15: 7 | T15: 27 | U15: 26 | AL15: 8 | AM15: 2 | AN15: 6
A16: 153950 | B16: 24 | C16: 23 | D16: 18 | E16: 5 | F16: 0 | G16: 0 | H16: 0 | I16: 0 | J16: 0 | K16: 0 | L16: 0 | M16: 0 | N16: 0 | O16: 0 | P16: 0 | Q16: 2 | R16: 3 | S16: 8 | T16: 29 | U16: 27 | AL16: 8 | AM16: 2 | AN16: 6
A17: 153975 | B17: 26 | C17: 24 | D17: 18 | E17: 6 | F17: 0 | G17: 0 | H17: 0 | I17: 0 | J17: 0 | K17: 0 | L17: 0 | M17: 0 | N17: 0 | O17: 0 | P17: 0 | Q17: 4 | R17: 4 | S17: 8 | T17: 30 | U17: 29 | AL17: 9 | AM17: 2 | AN17: 6
A18: 154000 | B18: 26 | C18: 24 | D18: 18 | E18: 6 | F18: 0 | G18: 0 | H18: 0 | I18: 0 | J18: 0 | K18: 0 | L18: 0 | M18: 0 | N18: 0 | O18: 0 | P18: 0 | Q18: 4 | R18: 4 | S18: 9 | T18: 31 | U18: 29 | AL18: 9 | AM18: 2 | AN18: 6
A19: 154025 | B19: 25 | C19: 23 | D19: 17 | E19: 5 | F19: 0 | G19: 0 | H19: 0 | I19: 0 | J19: 0 | K19: 0 | L19: 0 | M19: 0 | N19: 0 | O19: 0 | P19: 0 | Q19: 4 | R19: 3 | S19: 8 | T19: 31 | U19: 28 | AL19: 9 | AM19: 2 | AN19: 6
A20: 154050 | B20: 24 | C20: 22 | D20: 17 | E20: 5 | F20: 0 | G20: 0 | H20: 0 | I20: 0 | J20: 0 | K20: 0 | L20: 0 | M20: 0 | N20: 0 | O20: 0 | P20: 0 | Q20: 3 | R20: 3 | S20: 8 | T20: 31 | U20: 28 | AL20: 9 | AM20: 2 | AN20: 6
A21: 154075 | B21: 23 | C21: 21 | D21: 17 | E21: 5 | F21: 0 | G21: 0 | H21: 0 | I21: 0 | J21: 0 | K21: 0 | L21: 0 | M21: 0 | N21: 0 | O21: 0 | P21: 0 | Q21: 3 | R21: 3 | S21: 8 | T21: 31 | U21: 28 | AL21: 9 | AM21: 2 | AN21: 7
A22: 154100 | B22: 23 | C22: 21 | D22: 17 | E22: 4 | F22: 0 | G22: 0 | H22: 0 | I22: 0 | J22: 0 | K22: 0 | L22: 0 | M22: 0 | N22: 0 | O22: 0 | P22: 0 | Q22: 3 | R22: 3 | S22: 8 | T22: 30 | U22: 27 | AL22: 9 | AM22: 1 | AN22: 6
A23: 154125 | B23: 22 | C23: 21 | D23: 17 | E23: 4 | F23: 0 | G23: 0 | H23: 0 | I23: 0 | J23: 0 | K23: 0 | L23: 0 | M23: 0 | N23: 0 | O23: 0 | P23: 0 | Q23: 4 | R23: 4 | S23: 6 | T23: 29 | U23: 26 | AL23: 7 | AM23: 1 | AN23: 5
A24: 154150 | B24: 23 | C24: 22 | D24: 18 | E24: 5 | F24: 0 | G24: 0 | H24: 0 | I24: 0 | J24: 0 | K24: 0 | L24: 0 | M24: 0 | N24: 0 | O24: 0 | P24: 0 | Q24: 5 | R24: 4 | S24: 4 | T24: 27 | U24: 24 | AL24: 6 | AM24: 1 | AN24: 4
A25: 154175 | B25: 25 | C25: 23 | D25: 18 | E25: 5 | F25: 0 | G25: 0 | H25: 0 | I25: 0 | J25: 0 | K25: 0 | L25: 0 | M25: 0 | N25: 0 | O25: 0 | P25: 0 | Q25: 4 | R25: 4 | S25: 3 | T25: 26 | U25: 24 | AL25: 4 | AM25: 1 | AN25: 2
A26: 154200 | B26: 25 | C26: 23 | D26: 18 | E26: 5 | F26: 0 | G26: 0 | H26: 0 | I26: 0 | J26: 0 | K26: 0 | L26: 0 | M26: 0 | N26: 0 | O26: 0 | P26: 0 | Q26: 5 | R26: 6 | S26: 2 | T26: 25 | U26: 26 | AL26: 2 | AM26: 1 | AN26: 2
A27: 154225 | B27: 25 | C27: 23 | D27: 18 | E27: 5 | F27: 0 | G27: 0 | H27: 0 | I27: 0 | J27: 0 | K27: 0 | L27: 0 | M27: 0 | N27: 0 | O27: 0 | P27: 0 | Q27: 9 | R27: 16 | S27: 4 | T27: 31 | U27: 33 | AL27: 3 | AM27: 1 | AN27: 3
A28: 154250 | B28: 24 | C28: 22 | D28: 18 | E28: 4 | F28: 0 | G28: 0 | H28: 0 | I28: 0 | J28: 0 | K28: 0 | L28: 0 | M28: 0 | N28: 0 | O28: 0 | P28: 0 | Q28: 25 | R28: 40 | S28: 4 | T28: 40 | U28: 38 | AL28: 5 | AM28: 0 | AN28: 4
A29: 154275 | B29: 22 | C29: 20 | D29: 17 | E29: 3 | F29: 0 | G29: 0 | H29: 0 | I29: 0 | J29: 0 | K29: 0 | L29: 0 | M29: 0 | N29: 0 | O29: 0 | P29: 0 | Q29: 61 | R29: 66 | S29: 2 | T29: 42 | U29: 39 | AL29: 3 | AM29: 0 | AN29: 2
A30: 154300 | B30: 21 | C30: 18 | D30: 16 | E30: 2 | F30: 0 | G30: 0 | H30: 0 | I30: 0 | J30: 0 | K30: 0 | L30: 0 | M30: 0 | N30: 0 | O30: 0 | P30: 0 | Q30: 81 | R30: 79 | S30: 0 | T30: 42 | U30: 39 | AL30: 1 | AM30: 0 | AN30: 0
A31: 154325 | B31: 19 | C31: 18 | D31: 16 | E31: 2 | F31: 0 | G31: 0 | H31: 0 | I31: 0 | J31: 0 | K31: 0 | L31: 0 | M31: 0 | N31: 0 | O31: 0 | P31: 0 | Q31: 89 | R31: 81 | S31: 0 | T31: 43 | U31: 40 | AL31: 0 | AM31: 0 | AN31: 0
A32: 154350 | B32: 21 | C32: 19 | D32: 17 | E32: 3 | F32: 0 | G32: 0 | H32: 0 | I32: 0 | J32: 0 | K32: 0 | L32: 0 | M32: 0 | N32: 0 | O32: 0 | P32: 0 | Q32: 87 | R32: 82 | S32: 0 | T32: 44 | U32: 41 | AL32: 0 | AM32: 0 | AN32: 0
A33: 154375 | B33: 21 | C33: 20 | D33: 17 | E33: 3 | F33: 0 | G33: 0 | H33: 0 | I33: 0 | J33: 0 | K33: 0 | L33: 0 | M33: 0 | N33: 0 | O33: 0 | P33: 0 | Q33: 90 | R33: 81 | S33: 0 | T33: 44 | U33: 41 | AL33: 0 | AM33: 0 | AN33: 0
A34: 154400 | B34: 22 | C34: 21 | D34: 18 | E34: 3 | F34: 0 | G34: 0 | H34: 0 | I34: 0 | J34: 0 | K34: 0 | L34: 0 | M34: 0 | N34: 0 | O34: 0 | P34: 0 | Q34: 84 | R34: 76 | S34: 0 | T34: 45 | U34: 41 | AL34: 0 | AM34: 0 | AN34: 0
A35: 154425 | B35: 23 | C35: 22 | D35: 18 | E35: 4 | F35: 0 | G35: 0 | H35: 0 | I35: 0 | J35: 0 | K35: 0 | L35: 0 | M35: 0 | N35: 0 | O35: 0 | P35: 0 | Q35: 80 | R35: 74 | S35: 0 | T35: 45 | U35: 42 | AL35: 0 | AM35: 0 | AN35: 0
A36: 154450 | B36: 23 | C36: 21 | D36: 18 | E36: 3 | F36: 0 | G36: 0 | H36: 0 | I36: 0 | J36: 0 | K36: 0 | L36: 0 | M36: 0 | N36: 0 | O36: 0 | P36: 0 | Q36: 80 | R36: 75 | S36: 0 | T36: 45 | U36: 42 | AL36: 0 | AM36: 0 | AN36: 0
A37: 154475 | B37: 23 | C37: 21 | D37: 18 | E37: 3 | F37: 0 | G37: 0 | H37: 0 | I37: 0 | J37: 0 | K37: 0 | L37: 0 | M37: 0 | N37: 0 | O37: 0 | P37: 0 | Q37: 81 | R37: 74 | S37: 0 | T37: 46 | U37: 42 | AL37: 0 | AM37: 0 | AN37: 0
A38: 154500 | B38: 23 | C38: 21 | D38: 18 | E38: 3 | F38: 0 | G38: 0 | H38: 0 | I38: 0 | J38: 0 | K38: 0 | L38: 0 | M38: 0 | N38: 0 | O38: 0 | P38: 0 | Q38: 79 | R38: 72 | S38: 0 | T38: 46 | U38: 43 | AL38: 0 | AM38: 0 | AN38: 0
A39: 154525 | B39: 23 | C39: 21 | D39: 18 | E39: 3 | F39: 0 | G39: 0 | H39: 0 | I39: 0 | J39: 0 | K39: 0 | L39: 0 | M39: 0 | N39: 0 | O39: 0 | P39: 0 | Q39: 76 | R39: 70 | S39: 0 | T39: 46 | U39: 43 | AL39: 0 | AM39: 0 | AN39: 0
A40: 154550 | B40: 22 | C40: 21 | D40: 18 | E40: 3 | F40: 0 | G40: 0 | H40: 0 | I40: 0 | J40: 0 | K40: 0 | L40: 0 | M40: 0 | N40: 0 | O40: 0 | P40: 0 | Q40: 75 | R40: 69 | S40: 0 | T40: 46 | U40: 43 | AL40: 0 | AM40: 0 | AN40: 0
A41: 154575 | B41: 22 | C41: 21 | D41: 18 | E41: 3 | F41: 0 | G41: 0 | H41: 0 | I41: 0 | J41: 0 | K41: 0 | L41: 0 | M41: 0 | N41: 0 | O41: 0 | P41: 0 | Q41: 73 | R41: 65 | S41: 1 | T41: 47 | U41: 43 | AL41: 0 | AM41: 0 | AN41: 1
A42: 154600 | B42: 22 | C42: 22 | D42: 19 | E42: 4 | F42: 0 | G42: 0 | H42: 0 | I42: 0 | J42: 0 | K42: 0 | L42: 0 | M42: 0 | N42: 0 | O42: 0 | P42: 0 | Q42: 67 | R42: 51 | S42: 4 | T42: 47 | U42: 42 | AL42: 3 | AM42: 0 | AN42: 3
A43: 154625 | B43: 25 | C43: 25 | D43: 20 | E43: 5 | F43: 0 | G43: 0 | H43: 0 | I43: 0 | J43: 0 | K43: 0 | L43: 0 | M43: 0 | N43: 0 | O43: 0 | P43: 0 | Q43: 43 | R43: 34 | S43: 4 | T43: 44 | U43: 39 | AL43: 5 | AM43: 0 | AN43: 4
A44: 154650 | B44: 28 | C44: 26 | D44: 20 | E44: 6 | F44: 0 | G44: 0 | H44: 0 | I44: 0 | J44: 0 | K44: 0 | L44: 0 | M44: 0 | N44: 0 | O44: 0 | P44: 0 | Q44: 30 | R44: 23 | S44: 4 | T44: 40 | U44: 35 | AL44: 4 | AM44: 0 | AN44: 4
A45: 154675 | B45: 28 | C45: 26 | D45: 20 | E45: 6 | F45: 0 | G45: 0 | H45: 0 | I45: 0 | J45: 0 | K45: 0 | L45: 0 | M45: 0 | N45: 0 | O45: 0 | P45: 0 | Q45: 20 | R45: 15 | S45: 4 | T45: 36 | U45: 31 | AL45: 4 | AM45: 0 | AN45: 4
A46: 154700 | B46: 28 | C46: 26 | D46: 20 | E46: 6 | F46: 0 | G46: 0 | H46: 0 | I46: 0 | J46: 0 | K46: 0 | L46: 0 | M46: 0 | N46: 0 | O46: 0 | P46: 0 | Q46: 11 | R46: 8 | S46: 4 | T46: 32 | U46: 28 | AL46: 4 | AM46: 1 | AN46: 3
A47: 154725 | B47: 28 | C47: 26 | D47: 20 | E47: 6 | F47: 0 | G47: 0 | H47: 0 | I47: 0 | J47: 0 | K47: 0 | L47: 0 | M47: 0 | N47: 0 | O47: 0 | P47: 0 | Q47: 6 | R47: 4 | S47: 3 | T47: 28 | U47: 24 | AL47: 4 | AM47: 1 | AN47: 3
A48: 154750 | B48: 27 | C48: 25 | D48: 19 | E48: 6 | F48: 0 | G48: 0 | H48: 0 | I48: 0 | J48: 0 | K48: 0 | L48: 0 | M48: 0 | N48: 0 | O48: 0 | P48: 0 | Q48: 3 | R48: 2 | S48: 3 | T48: 24 | U48: 20 | AL48: 4 | AM48: 1 | AN48: 2
A49: 154775 | B49: 27 | C49: 24 | D49: 19 | E49: 5 | F49: 0 | G49: 0 | H49: 0 | I49: 0 | J49: 0 | K49: 0 | L49: 0 | M49: 0 | N49: 0 | O49: 0 | P49: 0 | Q49: 1 | R49: 0 | S49: 2 | T49: 20 | U49: 16 | AL49: 3 | AM49: 1 | AN49: 1
A50: 154800 | B50: 26 | C50: 24 | D50: 19 | E50: 5 | F50: 0 | G50: 0 | H50: 0 | I50: 0 | J50: 0 | K50: 0 | L50: 0 | M50: 0 | N50: 0 | O50: 0 | P50: 0 | Q50: 0 | R50: 0 | S50: 2 | T50: 15 | U50: 12 | AL50: 2 | AM50: 1 | AN50: 1
A51: 154825 | B51: 25 | C51: 23 | D51: 19 | E51: 4 | F51: 0 | G51: 0 | H51: 0 | I51: 0 | J51: 0 | K51: 0 | L51: 0 | M51: 0 | N51: 0 | O51: 0 | P51: 0 | Q51: 0 | R51: 0 | S51: 2 | T51: 12 | U51: 11 | AL51: 2 | AM51: 1 | AN51: 0
A52: 154850 | B52: 25 | C52: 23 | D52: 18 | E52: 5 | F52: 0 | G52: 0 | H52: 0 | I52: 0 | J52: 0 | K52: 0 | L52: 0 | M52: 0 | N52: 0 | O52: 0 | P52: 0 | Q52: 0 | R52: 0 | S52: 3 | T52: 12 | U52: 14 | AL52: 2 | AM52: 2 | AN52: 1
A53: 154875 | B53: 24 | C53: 23 | D53: 18 | E53: 5 | F53: 0 | G53: 0 | H53: 0 | I53: 0 | J53: 0 | K53: 0 | L53: 0 | M53: 0 | N53: 0 | O53: 0 | P53: 0 | Q53: 0 | R53: 0 | S53: 5 | T53: 19 | U53: 18 | AL53: 5 | AM53: 2 | AN53: 2
A54: 154900 | B54: 25 | C54: 23 | D54: 18 | E54: 5 | F54: 0 | G54: 0 | H54: 0 | I54: 0 | J54: 0 | K54: 0 | L54: 0 | M54: 0 | N54: 0 | O54: 0 | P54: 0 | Q54: 0 | R54: 0 | S54: 5 | T54: 21 | U54: 20 | AL54: 5 | AM54: 3 | AN54: 3
A55: 154925 | B55: 26 | C55: 24 | D55: 18 | E55: 6 | F55: 0 | G55: 0 | H55: 0 | I55: 0 | J55: 0 | K55: 0 | L55: 0 | M55: 0 | N55: 0 | O55: 0 | P55: 0 | Q55: 0 | R55: 0 | S55: 6 | T55: 22 | U55: 21 | AL55: 6 | AM55: 3 | AN55: 3
A56: 154950 | B56: 26 | C56: 23 | D56: 17 | E56: 6 | F56: 0 | G56: 0 | H56: 0 | I56: 0 | J56: 0 | K56: 0 | L56: 0 | M56: 0 | N56: 0 | O56: 0 | P56: 0 | Q56: 0 | R56: 0 | S56: 6 | T56: 23 | U56: 22 | AL56: 6 | AM56: 3 | AN56: 3
A57: 154975 | B57: 25 | C57: 23 | D57: 17 | E57: 5 | F57: 0 | G57: 0 | H57: 0 | I57: 0 | J57: 0 | K57: 0 | L57: 0 | M57: 0 | N57: 0 | O57: 0 | P57: 0 | Q57: 0 | R57: 0 | S57: 7 | T57: 25 | U57: 24 | AL57: 7 | AM57: 3 | AN57: 5
A58: 155000 | B58: 24 | C58: 22 | D58: 17 | E58: 4 | F58: 0 | G58: 0 | H58: 0 | I58: 0 | J58: 0 | K58: 0 | L58: 0 | M58: 0 | N58: 0 | O58: 0 | P58: 0 | Q58: 1 | R58: 1 | S58: 8 | T58: 27 | U58: 26 | AL58: 9 | AM58: 2 | AN58: 6
A59: 155025 | B59: 23 | C59: 16 | D59: 13 | E59: 3 | F59: 0 | G59: 0 | H59: 0 | I59: 0 | J59: 0 | K59: 0 | L59: 0 | M59: 0 | N59: 0 | O59: 0 | P59: 0 | Q59: 1 | R59: 4 | S59: 7 | T59: 29 | U59: 21 | AL59: 9 | AM59: 1 | AN59: 6
A60: 155050 | B60: 12 | C60: 11 | D60: 9 | E60: 2 | F60: 0 | G60: 0 | H60: 0 | I60: 0 | J60: 0 | K60: 0 | L60: 0 | M60: 0 | N60: 0 | O60: 0 | P60: 0 | Q60: 7 | R60: 4 | S60: 4 | T60: 17 | U60: 14 | AL60: 6 | AM60: 0 | AN60: 4
A61: 155075 | B61: 12 | C61: 12 | D61: 9 | E61: 3 | F61: 0 | G61: 0 | H61: 0 | I61: 0 | J61: 0 | K61: 0 | L61: 0 | M61: 0 | N61: 0 | O61: 0 | P61: 0 | Q61: 2 | R61: 1 | S61: 2 | T61: 13 | U61: 10 | AL61: 4 | AM61: 1 | AN61: 2
A62: 155100 | B62: 14 | C62: 5 | D62: 4 | E62: 1 | F62: 0 | G62: 0 | H62: 0 | I62: 0 | J62: 0 | K62: 0 | L62: 0 | M62: 0 | N62: 0 | O62: 0 | P62: 0 | Q62: 0 | R62: 0 | S62: 1 | T62: 9 | U62: 3 | AL62: 2 | AM62: 0 | AN62: 0
A63: 155110 | B63: 14 | Q63: 0 | T63: 8 | AL63: 1
A65: STAGE 2
A67: 23rd_Ave_South
A68: 23141675 | B68: 15 | C68: 21 | D68: 11 | E68: 10 | F68: 0 | G68: 0 | H68: 0 | I68: 0 | J68: 0 | K68: 0 | L68: 0 | M68: 0 | N68: 0 | O68: 0 | P68: 0 | Q68: 1 | R68: 0 | S68: 14 | T68: 9 | U68: 11 | AL68: 14 | AM68: 14 | AN68: 0
A69: 23141700 | B69: 31 | C69: 33 | D69: 20 | E69: 13 | F69: 0 | G69: 0 | H69: 0 | I69: 0 | J69: 0 | K69: 0 | L69: 0 | M69: 0 | N69: 0 | O69: 0 | P69: 0 | Q69: 0 | R69: 0 | S69: 17 | T69: 14 | U69: 14 | AL69: 18 | AM69: 17 | AN69: 0
A70: 23141725 | B70: 39 | C70: 37 | D70: 23 | E70: 14 | F70: 0 | G70: 0 | H70: 0 | I70: 0 | J70: 0 | K70: 0 | L70: 0 | M70: 0 | N70: 0 | O70: 0 | P70: 0 | Q70: 1 | R70: 3 | S70: 19 | T70: 16 | U70: 16 | AL70: 20 | AM70: 18 | AN70: 1
A71: 23141750 | B71: 40 | C71: 39 | D71: 24 | E71: 15 | F71: 0 | G71: 0 | H71: 0 | I71: 0 | J71: 0 | K71: 0 | L71: 0 | M71: 0 | N71: 0 | O71: 0 | P71: 0 | Q71: 5 | R71: 8 | S71: 21 | T71: 19 | U71: 18 | AL71: 22 | AM71: 18 | AN71: 3
A72: 23141775 | B72: 43 | C72: 42 | D72: 28 | E72: 14 | F72: 0 | G72: 0 | H72: 0 | I72: 0 | J72: 0 | K72: 0 | L72: 0 | M72: 0 | N72: 0 | O72: 0 | P72: 0 | Q72: 12 | R72: 15 | S72: 24 | T72: 19 | U72: 19 | AL72: 24 | AM72: 18 | AN72: 6
A73: 23141800 | B73: 48 | C73: 49 | D73: 35 | E73: 13 | F73: 0 | G73: 0 | H73: 0 | I73: 0 | J73: 0 | K73: 0 | L73: 0 | M73: 0 | N73: 0 | O73: 0 | P73: 0 | Q73: 22 | R73: 27 | S73: 27 | T73: 21 | U73: 21 | AL73: 27 | AM73: 17 | AN73: 9
A74: 23141825 | B74: 57 | C74: 59 | D74: 45 | E74: 14 | F74: 0 | G74: 0 | H74: 0 | I74: 0 | J74: 0 | K74: 0 | L74: 0 | M74: 0 | N74: 0 | O74: 0 | P74: 0 | Q74: 37 | R74: 44 | S74: 30 | T74: 24 | U74: 23 | AL74: 31 | AM74: 19 | AN74: 11
A75: 23141850 | B75: 70 | C75: 71 | D75: 55 | E75: 16 | F75: 0 | G75: 0 | H75: 0 | I75: 0 | J75: 0 | K75: 0 | L75: 0 | M75: 0 | N75: 0 | O75: 0 | P75: 0 | Q75: 58 | R75: 65 | S75: 33 | T75: 27 | U75: 27 | AL75: 34 | AM75: 21 | AN75: 12
A76: 23141875 | B76: 83 | C76: 83 | D76: 65 | E76: 18 | F76: 0 | G76: 0 | H76: 0 | I76: 0 | J76: 0 | K76: 0 | L76: 0 | M76: 0 | N76: 0 | O76: 0 | P76: 0 | Q76: 82 | R76: 91 | S76: 38 | T76: 32 | U76: 31 | AL76: 38 | AM76: 23 | AN76: 14
A77: 23141900 | B77: 97 | C77: 96 | D77: 77 | E77: 20 | F77: 0 | G77: 0 | H77: 0 | I77: 0 | J77: 0 | K77: 0 | L77: 0 | M77: 0 | N77: 0 | O77: 0 | P77: 0 | Q77: 114 | R77: 122 | S77: 42 | T77: 35 | U77: 34 | AL77: 43 | AM77: 26 | AN77: 16
A78: 23141925 | B78: 111 | C78: 110 | D78: 88 | E78: 21 | F78: 0 | G78: 0 | H78: 0 | I78: 0 | J78: 0 | K78: 0 | L78: 0 | M78: 0 | N78: 0 | O78: 0 | P78: 0 | Q78: 149 | R78: 155 | S78: 46 | T78: 39 | U78: 37 | AL78: 47 | AM78: 28 | AN78: 18
A79: 23141950 | B79: 126 | C79: 124 | D79: 101 | E79: 23 | F79: 0 | G79: 0 | H79: 0 | I79: 0 | J79: 0 | K79: 0 | L79: 0 | M79: 0 | N79: 0 | O79: 0 | P79: 0 | Q79: 186 | R79: 192 | S79: 51 | T79: 41 | U79: 40 | AL79: 52 | AM79: 31 | AN79: 20
A80: 23141975 | B80: 142 | C80: 139 | D80: 113 | E80: 26 | F80: 0 | G80: 0 | H80: 0 | I80: 0 | J80: 0 | K80: 0 | L80: 0 | M80: 0 | N80: 0 | O80: 0 | P80: 0 | Q80: 230 | R80: 236 | S80: 56 | T80: 44 | U80: 43 | AL80: 57 | AM80: 34 | AN80: 22
A81: 23142000 | B81: 158 | C81: 155 | D81: 128 | E81: 27 | F81: 0 | G81: 0 | H81: 0 | I81: 0 | J81: 0 | K81: 0 | L81: 0 | M81: 0 | N81: 0 | O81: 0 | P81: 0 | Q81: 281 | R81: 289 | S81: 61 | T81: 49 | U81: 47 | AL81: 63 | AM81: 36 | AN81: 25
A82: 23142025 | B82: 177 | C82: 182 | D82: 153 | E82: 29 | F82: 0 | G82: 0 | H82: 0 | I82: 0 | J82: 0 | K82: 0 | L82: 0 | M82: 0 | N82: 0 | O82: 0 | P82: 0 | Q82: 343 | R82: 348 | S82: 67 | T82: 53 | U82: 51 | AL82: 69 | AM82: 39 | AN82: 28
A83: 23142050 | B83: 216 | C83: 204 | D83: 173 | E83: 31 | F83: 0 | G83: 0 | H83: 0 | I83: 0 | J83: 0 | K83: 0 | L83: 0 | M83: 0 | N83: 0 | O83: 0 | P83: 0 | Q83: 409 | R83: 424 | S83: 73 | T83: 58 | U83: 56 | AL83: 76 | AM83: 42 | AN83: 32
A84: 23142075 | B84: 225 | C84: 165 | D84: 138 | E84: 26 | F84: 0 | G84: 0 | H84: 0 | I84: 0 | J84: 0 | K84: 0 | L84: 0 | M84: 0 | N84: 0 | O84: 0 | P84: 0 | Q84: 507 | R84: 513 | S84: 74 | T84: 62 | U84: 56 | AL84: 83 | AM84: 35 | AN84: 39
A85: 23142100 | B85: 131 | C85: 79 | D85: 63 | E85: 16 | F85: 0 | G85: 0 | H85: 0 | I85: 0 | J85: 0 | K85: 0 | L85: 0 | M85: 0 | N85: 0 | O85: 0 | P85: 0 | Q85: 600 | R85: 574 | S85: 65 | T85: 58 | U85: 50 | AL85: 77 | AM85: 21 | AN85: 44
A86: 23142125 | B86: 40 | C86: 18 | D86: 13 | E86: 6 | F86: 0 | G86: 0 | H86: 0 | I86: 0 | J86: 0 | K86: 0 | L86: 0 | M86: 0 | N86: 0 | O86: 0 | P86: 0 | Q86: 640 | R86: 672 | S86: 54 | T86: 50 | U86: 42 | AL86: 64 | AM86: 7 | AN86: 47
A87: 23142150 | B87: 0 | C87: 0 | D87: 0 | E87: 0 | F87: 0 | G87: 0 | H87: 0 | I87: 0 | J87: 0 | K87: 0 | L87: 0 | M87: 0 | N87: 0 | O87: 0 | P87: 0 | Q87: 813 | R87: 818 | S87: 47 | T87: 42 | U87: 39 | AL87: 53 | AM87: 0 | AN87: 47
A88: 23142175 | B88: 0 | C88: 0 | D88: 0 | E88: 0 | F88: 0 | G88: 0 | H88: 0 | I88: 0 | J88: 0 | K88: 0 | L88: 0 | M88: 0 | N88: 0 | O88: 0 | P88: 0 | Q88: 955 | R88: 1029 | S88: 40 | T88: 42 | U88: 41 | AL88: 49 | AM88: 0 | AN88: 40
A89: 23142200 | B89: 0 | Q89: 1268 | T89: 47 | AL89: 38
A91: US_218_North
A92: 24147650 | B92: 6 | C92: 24 | D92: 15 | E92: 10 | F92: 0 | G92: 0 | H92: 0 | I92: 7 | J92: 0 | K92: 0 | L92: 0 | M92: 0 | N92: 0 | O92: 0 | P92: 0 | Q92: 172 | R92: 877 | S92: 136 | V92: 87 | W92: 146
A93: 24147675 | B93: 47 | C93: 48 | D93: 25 | E93: 23 | F93: 0 | G93: 0 | H93: 0 | I93: 4 | J93: 0 | K93: 0 | L93: 0 | M93: 0 | N93: 0 | O93: 0 | P93: 0 | Q93: 1723 | R93: 2407 | S93: 183 | T93: 99 | U93: 142 | V93: 228 | W93: 164
A94: 24147700 | B94: 57 | C94: 53 | D94: 23 | E94: 30 | F94: 0 | G94: 0 | H94: 0 | I94: 0 | J94: 0 | K94: 0 | L94: 0 | M94: 0 | N94: 0 | O94: 0 | P94: 0 | Q94: 3476 | R94: 3438 | S94: 173 | T94: 207 | U94: 199 | V94: 126 | W94: 100
A95: 24147725 | B95: 58 | C95: 52 | D95: 19 | E95: 33 | F95: 0 | G95: 0 | H95: 0 | I95: 0 | J95: 0 | K95: 0 | L95: 0 | M95: 0 | N95: 0 | O95: 0 | P95: 0 | Q95: 3949 | R95: 3702 | S95: 147 | T95: 224 | U95: 209 | V95: 90 | W95: 78 | AL95: 4 | AM95: 1 | AN95: 13
A96: 24147750 | B96: 54 | C96: 54 | D96: 20 | E96: 34 | F96: 0 | G96: 0 | H96: 0 | I96: 0 | J96: 0 | K96: 0 | L96: 0 | M96: 0 | N96: 0 | O96: 0 | P96: 0 | Q96: 4047 | R96: 3648 | S96: 141 | T96: 228 | U96: 214 | V96: 78 | W96: 63 | AL96: 26 | AM96: 1 | AN96: 27
A97: 24147775 | B97: 63 | C97: 63 | D97: 26 | E97: 37 | F97: 0 | G97: 0 | H97: 0 | I97: 0 | J97: 0 | K97: 0 | L97: 0 | M97: 0 | N97: 0 | O97: 0 | P97: 0 | Q97: 3832 | R97: 3499 | S97: 140 | T97: 235 | U97: 211 | V97: 59 | W97: 54 | AL97: 33 | AM97: 1 | AN97: 33
A98: 24147800 | B98: 73 | C98: 64 | D98: 28 | E98: 35 | F98: 0 | G98: 0 | H98: 0 | I98: 0 | J98: 0 | K98: 0 | L98: 0 | M98: 0 | N98: 0 | O98: 0 | P98: 0 | Q98: 3725 | R98: 3404 | S98: 138 | T98: 221 | U98: 202 | V98: 58 | W98: 54 | AL98: 38 | AM98: 1 | AN98: 34
A99: 24147825 | B99: 65 | C99: 60 | D99: 27 | E99: 33 | F99: 0 | G99: 0 | H99: 0 | I99: 0 | J99: 0 | K99: 0 | L99: 0 | M99: 0 | N99: 0 | O99: 0 | P99: 0 | Q99: 3627 | R99: 3335 | S99: 135 | T99: 215 | U99: 204 | V99: 58 | W99: 54 | AL99: 38 | AM99: 3 | AN99: 33
A100: 24147850 | B100: 65 | C100: 59 | D100: 27 | E100: 32 | F100: 0 | G100: 0 | H100: 0 | I100: 0 | J100: 0 | K100: 0 | L100: 0 | M100: 0 | N100: 0 | O100: 0 | P100: 0 | Q100: 3577 | R100: 3244 | S100: 133 | T100: 225 | U100: 198 | V100: 58 | W100: 53 | AL100: 41 | AM100: 6 | AN100: 31
A101: 24147875 | B101: 63 | C101: 79 | D101: 46 | E101: 33 | F101: 0 | G101: 0 | H101: 0 | I101: 0 | J101: 0 | K101: 0 | L101: 0 | M101: 0 | N101: 0 | O101: 0 | P101: 0 | Q101: 3431 | R101: 3146 | S101: 132 | T101: 202 | U101: 188 | V101: 57 | W101: 52 | AL101: 39 | AM101: 7 | AN101: 29
A102: 24147900 | B102: 109 | C102: 113 | D102: 76 | E102: 37 | F102: 0 | G102: 0 | H102: 0 | I102: 0 | J102: 0 | K102: 0 | L102: 0 | M102: 0 | N102: 0 | O102: 0 | P102: 0 | Q102: 3364 | R102: 3071 | S102: 131 | T102: 205 | U102: 179 | V102: 56 | W102: 51 | AL102: 37 | AM102: 8 | AN102: 26
A103: 24147925 | B103: 136 | C103: 119 | D103: 78 | E103: 41 | F103: 0 | G103: 0 | H103: 0 | I103: 0 | J103: 0 | K103: 0 | L103: 0 | M103: 0 | N103: 0 | O103: 0 | P103: 0 | Q103: 3269 | R103: 2965 | S103: 130 | T103: 181 | U103: 178 | V103: 54 | W103: 48 | AL103: 35 | AM103: 9 | AN103: 23
A104: 24147950 | B104: 122 | C104: 103 | D104: 63 | E104: 40 | F104: 0 | G104: 0 | H104: 0 | I104: 0 | J104: 0 | K104: 0 | L104: 0 | M104: 0 | N104: 0 | O104: 0 | P104: 0 | Q104: 3135 | R104: 2857 | S104: 128 | T104: 204 | U104: 190 | V104: 50 | W104: 44 | AL104: 34 | AM104: 12 | AN104: 19
A105: 24147975 | B105: 102 | C105: 92 | D105: 54 | E105: 39 | F105: 0 | G105: 0 | H105: 0 | I105: 0 | J105: 0 | K105: 0 | L105: 0 | M105: 0 | N105: 0 | O105: 0 | P105: 0 | Q105: 3035 | R105: 2760 | S105: 127 | T105: 206 | U105: 192 | V105: 45 | W105: 40 | AL105: 32 | AM105: 14 | AN105: 15
A106: 24148000 | B106: 98 | C106: 90 | D106: 51 | E106: 39 | F106: 0 | G106: 0 | H106: 0 | I106: 0 | J106: 0 | K106: 0 | L106: 0 | M106: 0 | N106: 0 | O106: 0 | P106: 0 | Q106: 2927 | R106: 2669 | S106: 126 | T106: 209 | U106: 194 | V106: 41 | W106: 35 | AL106: 31 | AM106: 18 | AN106: 12
A107: 24148025 | B107: 97 | C107: 64 | D107: 36 | E107: 28 | F107: 0 | G107: 0 | H107: 0 | I107: 0 | J107: 0 | K107: 0 | L107: 0 | M107: 0 | N107: 0 | O107: 0 | P107: 0 | Q107: 2838 | R107: 2008 | S107: 90 | T107: 210 | U107: 145 | V107: 34 | W107: 26 | AL107: 34 | AM107: 22 | AN107: 10
A108: 24148050 | B108: 42 | C108: 37 | D108: 21 | E108: 16 | F108: 0 | G108: 0 | H108: 0 | I108: 0 | J108: 0 | K108: 0 | L108: 0 | M108: 0 | N108: 0 | O108: 0 | P108: 0 | Q108: 1499 | R108: 1369 | S108: 54 | T108: 102 | U108: 95 | V108: 22 | W108: 20 | AL108: 35 | AM108: 23 | AN108: 9
A109: 24148075 | B109: 38 | C109: 35 | D109: 19 | E109: 16 | F109: 0 | G109: 0 | H109: 0 | I109: 0 | J109: 0 | K109: 0 | L109: 0 | M109: 0 | N109: 0 | O109: 0 | P109: 0 | Q109: 1458 | R109: 1333 | S109: 54 | T109: 102 | U109: 95 | V109: 22 | W109: 21 | AL109: 35 | AM109: 19 | AN109: 21
A110: 24148100 | B110: 38 | C110: 39 | D110: 20 | E110: 19 | F110: 0 | G110: 0 | H110: 0 | I110: 0 | J110: 0 | K110: 0 | L110: 0 | M110: 0 | N110: 0 | O110: 0 | P110: 0 | Q110: 1420 | R110: 1300 | S110: 55 | T110: 102 | U110: 97 | V110: 22 | W110: 21 | AL110: 51 | AM110: 17 | AN110: 21
A111: 24148125 | B111: 46 | C111: 41 | D111: 20 | E111: 21 | F111: 0 | G111: 0 | H111: 0 | I111: 0 | J111: 0 | K111: 0 | L111: 0 | M111: 0 | N111: 0 | O111: 0 | P111: 0 | Q111: 1387 | R111: 1267 | S111: 56 | T111: 108 | U111: 99 | V111: 23 | W111: 21 | AL111: 32 | AM111: 19 | AN111: 10
A112: 24148150 | B112: 42 | C112: 39 | D112: 19 | E112: 20 | F112: 0 | G112: 0 | H112: 0 | I112: 0 | J112: 0 | K112: 0 | L112: 0 | M112: 0 | N112: 0 | O112: 0 | P112: 0 | Q112: 1350 | R112: 1229 | S112: 55 | T112: 107 | U112: 99 | V112: 23 | W112: 21 | AL112: 30 | AM112: 19 | AN112: 8
A113: 24148175 | B113: 41 | C113: 40 | D113: 20 | E113: 20 | F113: 0 | G113: 0 | H113: 0 | I113: 0 | J113: 0 | K113: 0 | L113: 0 | M113: 0 | N113: 0 | O113: 0 | P113: 0 | Q113: 1304 | R113: 1180 | S113: 54 | T113: 106 | U113: 98 | V113: 23 | W113: 21 | AL113: 28 | AM113: 18 | AN113: 8
A114: 24148200 | B114: 45 | C114: 36 | D114: 17 | E114: 19 | F114: 0 | G114: 0 | H114: 0 | I114: 0 | J114: 0 | K114: 0 | L114: 0 | M114: 0 | N114: 0 | O114: 0 | P114: 0 | Q114: 1244 | R114: 1123 | S114: 52 | T114: 105 | U114: 96 | V114: 23 | W114: 21 | AL114: 28 | AM114: 18 | AN114: 8
A115: 24148225 | B115: 32 | C115: 28 | D115: 11 | E115: 17 | F115: 0 | G115: 0 | H115: 0 | I115: 0 | J115: 0 | K115: 0 | L115: 0 | M115: 0 | N115: 0 | O115: 0 | P115: 0 | Q115: 1181 | R115: 1057 | S115: 50 | T115: 101 | U115: 94 | V115: 23 | W115: 21 | AL115: 27 | AM115: 18 | AN115: 7
A116: 24148250 | B116: 28 | C116: 26 | D116: 9 | E116: 16 | F116: 0 | G116: 0 | H116: 0 | I116: 0 | J116: 0 | K116: 0 | L116: 0 | M116: 0 | N116: 0 | O116: 0 | P116: 0 | Q116: 1102 | R116: 987 | S116: 48 | T116: 101 | U116: 91 | V116: 23 | W116: 22 | AL116: 28 | AM116: 19 | AN116: 7
A117: 24148275 | B117: 27 | C117: 21 | D117: 6 | E117: 15 | F117: 0 | G117: 0 | H117: 0 | I117: 0 | J117: 0 | K117: 0 | L117: 0 | M117: 0 | N117: 0 | O117: 0 | P117: 0 | Q117: 1031 | R117: 918 | S117: 46 | T117: 96 | U117: 88 | V117: 23 | W117: 22 | AL117: 29 | AM117: 16 | AN117: 7
A118: 24148300 | B118: 19 | C118: 45 | D118: 19 | E118: 26 | F118: 0 | G118: 0 | H118: 0 | I118: 0 | J118: 0 | K118: 0 | L118: 0 | M118: 0 | N118: 0 | O118: 0 | P118: 0 | Q118: 953 | R118: 1086 | S118: 65 | T118: 94 | U118: 125 | V118: 24 | W118: 26 | AL118: 22 | AM118: 11 | AN118: 7
A119: 24148325 | B119: 78 | C119: 81 | D119: 42 | E119: 39 | F119: 0 | G119: 0 | H119: 0 | I119: 0 | J119: 0 | K119: 0 | L119: 0 | M119: 0 | N119: 0 | O119: 0 | P119: 0 | Q119: 1392 | R119: 1224 | S119: 84 | T119: 176 | U119: 163 | V119: 32 | W119: 29 | AL119: 16 | AM119: 8 | AN119: 6
A120: 24148350 | B120: 98 | C120: 100 | D120: 58 | E120: 43 | F120: 0 | G120: 0 | H120: 0 | I120: 0 | J120: 0 | K120: 0 | L120: 0 | M120: 0 | N120: 0 | O120: 0 | P120: 0 | Q120: 1253 | R120: 1105 | S120: 83 | T120: 175 | U120: 161 | V120: 32 | W120: 30 | AL120: 14 | AM120: 9 | AN120: 4
A121: 24148375 | B121: 119 | C121: 120 | D121: 73 | E121: 46 | F121: 0 | G121: 0 | H121: 0 | I121: 0 | J121: 0 | K121: 0 | L121: 0 | M121: 0 | N121: 0 | O121: 0 | P121: 0 | Q121: 1135 | R121: 997 | S121: 81 | T121: 174 | U121: 160 | V121: 32 | W121: 30 | AL121: 14 | AM121: 10 | AN121: 3
A122: 24148400 | B122: 139 | C122: 139 | D122: 90 | E122: 50 | F122: 0 | G122: 0 | H122: 0 | I122: 0 | J122: 0 | K122: 0 | L122: 0 | M122: 0 | N122: 0 | O122: 0 | P122: 0 | Q122: 1019 | R122: 891 | S122: 80 | T122: 172 | U122: 159 | V122: 32 | W122: 30 | AL122: 15 | AM122: 12 | AN122: 2
A123: 24148425 | B123: 162 | C123: 160 | D123: 106 | E123: 54 | F123: 0 | G123: 0 | H123: 0 | I123: 0 | J123: 0 | K123: 0 | L123: 0 | M123: 0 | N123: 0 | O123: 0 | P123: 0 | Q123: 904 | R123: 788 | S123: 79 | T123: 171 | U123: 158 | V123: 32 | W123: 30 | AL123: 15 | AM123: 14 | AN123: 1
A124: 24148450 | B124: 183 | C124: 179 | D124: 122 | E124: 58 | F124: 0 | G124: 0 | H124: 0 | I124: 0 | J124: 0 | K124: 0 | L124: 0 | M124: 0 | N124: 0 | O124: 0 | P124: 0 | Q124: 797 | R124: 687 | S124: 78 | T124: 170 | U124: 157 | V124: 32 | W124: 30 | AL124: 16 | AM124: 15 | AN124: 0
A125: 24148475 | B125: 204 | C125: 201 | D125: 139 | E125: 61 | F125: 0 | G125: 0 | H125: 0 | I125: 0 | J125: 0 | K125: 0 | L125: 0 | M125: 0 | N125: 0 | O125: 0 | P125: 0 | Q125: 688 | R125: 586 | S125: 77 | T125: 168 | U125: 155 | V125: 32 | W125: 29 | AL125: 18 | AM125: 16 | AN125: 0
A126: 24148500 | B126: 230 | C126: 224 | D126: 159 | E126: 65 | F126: 0 | G126: 0 | H126: 0 | I126: 0 | J126: 0 | K126: 0 | L126: 0 | M126: 0 | N126: 0 | O126: 0 | P126: 0 | Q126: 577 | R126: 482 | S126: 76 | T126: 166 | U126: 153 | V126: 32 | W126: 29 | AL126: 18 | AM126: 17 | AN126: 0
A127: 24148525 | B127: 255 | C127: 247 | D127: 177 | E127: 70 | F127: 0 | G127: 0 | H127: 0 | I127: 0 | J127: 0 | K127: 0 | L127: 0 | M127: 0 | N127: 0 | O127: 0 | P127: 0 | Q127: 463 | R127: 376 | S127: 74 | T127: 164 | U127: 151 | V127: 32 | W127: 29 | AL127: 18 | AM127: 17 | AN127: 0
A128: 24148550 | B128: 279 | C128: 280 | D128: 204 | E128: 77 | F128: 0 | G128: 0 | H128: 0 | I128: 0 | J128: 0 | K128: 0 | L128: 0 | M128: 0 | N128: 0 | O128: 0 | P128: 0 | Q128: 349 | R128: 276 | S128: 73 | T128: 162 | U128: 149 | V128: 32 | W128: 29 | AL128: 19 | AM128: 17 | AN128: 0
A129: 24148575 | B129: 326 | C129: 319 | D129: 235 | E129: 84 | F129: 0 | G129: 0 | H129: 0 | I129: 0 | J129: 0 | K129: 0 | L129: 0 | M129: 0 | N129: 0 | O129: 0 | P129: 0 | Q129: 247 | R129: 189 | S129: 72 | T129: 160 | U129: 147 | V129: 32 | W129: 29 | AL129: 18 | AM129: 16 | AN129: 0
A130: 24148600 | B130: 364 | C130: 367 | D130: 273 | E130: 95 | F130: 0 | G130: 0 | H130: 0 | I130: 0 | J130: 0 | K130: 0 | L130: 0 | M130: 0 | N130: 0 | O130: 0 | P130: 0 | Q130: 162 | R130: 118 | S130: 71 | T130: 157 | U130: 146 | V130: 32 | W130: 29 | AL130: 18 | AM130: 16 | AN130: 1
A131: 24148625 | B131: 429 | C131: 433 | D131: 324 | E131: 109 | F131: 0 | G131: 0 | H131: 0 | I131: 0 | J131: 0 | K131: 0 | L131: 0 | M131: 0 | N131: 0 | O131: 0 | P131: 0 | Q131: 92 | R131: 62 | S131: 71 | T131: 157 | U131: 146 | V131: 32 | W131: 29 | AL131: 17 | AM131: 15 | AN131: 1
A132: 24148650 | B132: 506 | C132: 499 | D132: 379 | E132: 120 | F132: 0 | G132: 0 | H132: 0 | I132: 7 | J132: 0 | K132: 0 | L132: 0 | M132: 0 | N132: 0 | O132: 0 | P132: 0 | Q132: 42 | R132: 30 | S132: 71 | T132: 158 | U132: 146 | V132: 32 | W132: 30 | AL132: 17 | AM132: 14 | AN132: 1
A133: 24148675 | B133: 572 | C133: 551 | D133: 427 | E133: 124 | F133: 0 | G133: 0 | H133: 0 | I133: 20 | J133: 0 | K133: 0 | L133: 0 | M133: 0 | N133: 0 | O133: 0 | P133: 0 | Q133: 22 | R133: 15 | S133: 70 | T133: 158 | U133: 145 | V133: 32 | W133: 30 | AL133: 16 | AM133: 14 | AN133: 2
A134: 24148700 | B134: 619 | C134: 591 | D134: 463 | E134: 128 | F134: 0 | G134: 0 | H134: 0 | I134: 29 | J134: 0 | K134: 0 | L134: 0 | M134: 0 | N134: 0 | O134: 0 | P134: 0 | Q134: 10 | R134: 5 | S134: 69 | T134: 156 | U134: 143 | V134: 32 | W134: 30 | AL134: 18 | AM134: 15 | AN134: 2
A135: 24148725 | B135: 657 | C135: 623 | D135: 490 | E135: 132 | F135: 0 | G135: 0 | H135: 0 | I135: 30 | J135: 0 | K135: 0 | L135: 0 | M135: 0 | N135: 0 | O135: 0 | P135: 0 | Q135: 2 | R135: 1 | S135: 67 | T135: 154 | U135: 141 | V135: 32 | W135: 30 | AL135: 18 | AM135: 14 | AN135: 3
A136: 24148750 | B136: 688 | C136: 642 | D136: 507 | E136: 135 | F136: 0 | G136: 0 | H136: 0 | I136: 30 | J136: 0 | K136: 0 | L136: 0 | M136: 0 | N136: 0 | O136: 0 | P136: 0 | Q136: 0 | R136: 0 | S136: 65 | T136: 150 | U136: 138 | V136: 32 | W136: 30 | AL136: 18 | AM136: 13 | AN136: 4
A137: 24148775 | B137: 699 | C137: 645 | D137: 512 | E137: 134 | F137: 0 | G137: 0 | H137: 0 | I137: 30 | J137: 0 | K137: 0 | L137: 0 | M137: 0 | N137: 0 | O137: 0 | P137: 0 | Q137: 0 | R137: 0 | S137: 63 | T137: 147 | U137: 134 | V137: 32 | W137: 30 | AL137: 19 | AM137: 12 | AN137: 6
A138: 24148800 | B138: 695 | C138: 644 | D138: 514 | E138: 130 | F138: 0 | G138: 0 | H138: 0 | I138: 30 | J138: 0 | K138: 0 | L138: 0 | M138: 0 | N138: 0 | O138: 0 | P138: 0 | Q138: 0 | R138: 0 | S138: 61 | T138: 143 | U138: 130 | V138: 32 | W138: 30 | AL138: 20 | AM138: 4 | AN138: 3
A139: 24148825 | B139: 696 | C139: 648 | D139: 522 | E139: 127 | F139: 0 | G139: 0 | H139: 0 | I139: 30 | J139: 0 | K139: 0 | L139: 0 | M139: 0 | N139: 0 | O139: 0 | P139: 0 | Q139: 0 | R139: 0 | S139: 60 | T139: 139 | U139: 127 | V139: 32 | W139: 30 | AL139: 20 | AM139: 8 | AN139: 4
A140: 24148850 | B140: 704 | C140: 658 | D140: 534 | E140: 123 | F140: 0 | G140: 0 | H140: 0 | I140: 30 | J140: 0 | K140: 0 | L140: 0 | M140: 0 | N140: 0 | O140: 0 | P140: 0 | Q140: 0 | R140: 0 | S140: 59 | T140: 135 | U140: 123 | V140: 32 | W140: 30 | AL140: 23 | AM140: 17 | AN140: 1
A141: 24148875 | B141: 716 | C141: 676 | D141: 555 | E141: 120 | F141: 0 | G141: 0 | H141: 0 | I141: 30 | J141: 0 | K141: 0 | L141: 0 | M141: 0 | N141: 0 | O141: 0 | P141: 0 | Q141: 0 | R141: 0 | S141: 58 | T141: 132 | U141: 121 | V141: 32 | W141: 30 | AL141: 16 | AM141: 5 | AN141: 0
A142: 24148900 | B142: 743 | C142: 700 | D142: 583 | E142: 118 | F142: 0 | G142: 0 | H142: 0 | I142: 30 | J142: 0 | K142: 0 | L142: 0 | M142: 0 | N142: 0 | O142: 0 | P142: 0 | Q142: 0 | R142: 0 | S142: 57 | T142: 129 | U142: 118 | V142: 32 | W142: 30 | AL142: 10
A143: 24148925 | B143: 769 | C143: 722 | D143: 609 | E143: 112 | F143: 0 | G143: 0 | H143: 0 | I143: 30 | J143: 0 | K143: 0 | L143: 0 | M143: 0 | N143: 0 | O143: 0 | P143: 0 | Q143: 0 | R143: 0 | S143: 56 | T143: 125 | U143: 113 | V143: 32 | W143: 30
A144: 24148950 | B144: 789 | C144: 747 | D144: 636 | E144: 111 | F144: 0 | G144: 0 | H144: 0 | I144: 30 | J144: 0 | K144: 0 | L144: 0 | M144: 0 | N144: 0 | O144: 0 | P144: 0 | Q144: 0 | R144: 0 | S144: 55 | T144: 118 | U144: 111 | V144: 32 | W144: 30
A145: 24148975 | B145: 824 | C145: 781 | D145: 668 | E145: 112 | F145: 0 | G145: 0 | H145: 0 | I145: 30 | J145: 0 | K145: 0 | L145: 0 | M145: 0 | N145: 0 | O145: 0 | P145: 0 | Q145: 0 | R145: 0 | S145: 55 | T145: 123 | U145: 113 | V145: 32 | W145: 30 | AL145: 107 | AM145: 13 | AN145: 122
A146: 24149000 | B146: 862 | C146: 820 | D146: 709 | E146: 111 | F146: 0 | G146: 0 | H146: 0 | I146: 30 | J146: 0 | K146: 0 | L146: 0 | M146: 0 | N146: 0 | O146: 0 | P146: 0 | Q146: 0 | R146: 0 | S146: 54 | T146: 121 | U146: 111 | V146: 32 | W146: 30 | AL146: 186 | AM146: 19 | AN146: 164
A147: 24149025 | B147: 908 | C147: 861 | D147: 751 | E147: 110 | F147: 0 | G147: 0 | H147: 0 | I147: 30 | J147: 0 | K147: 0 | L147: 0 | M147: 0 | N147: 0 | O147: 0 | P147: 0 | Q147: 0 | R147: 0 | S147: 53 | T147: 120 | U147: 110 | V147: 32 | W147: 30 | AL147: 209 | AM147: 21 | AN147: 151
A148: 24149050 | B148: 951 | C148: 916 | D148: 806 | E148: 111 | F148: 0 | G148: 0 | H148: 0 | I148: 30 | J148: 0 | K148: 0 | L148: 0 | M148: 0 | N148: 0 | O148: 0 | P148: 0 | Q148: 0 | R148: 0 | S148: 54 | T148: 119 | U148: 111 | V148: 32 | W148: 30 | AL148: 164 | AM148: 23 | AN148: 123
A149: 24149075 | B149: 1028 | C149: 989 | D149: 875 | E149: 114 | F149: 0 | G149: 0 | H149: 0 | I149: 29 | J149: 0 | K149: 0 | L149: 0 | M149: 0 | N149: 0 | O149: 0 | P149: 0 | Q149: 0 | R149: 0 | S149: 56 | T149: 121 | U149: 114 | V149: 32 | W149: 29 | AL149: 153 | AM149: 24 | AN149: 118
A150: 24149100 | B150: 1107 | C150: 1057 | D150: 940 | E150: 117 | F150: 0 | G150: 0 | H150: 0 | I150: 29 | J150: 0 | K150: 0 | L150: 0 | M150: 0 | N150: 0 | O150: 0 | P150: 0 | Q150: 0 | R150: 0 | S150: 58 | T150: 125 | U150: 117 | V150: 32 | W150: 29 | AL150: 152 | AM150: 25 | AN150: 115
A151: 24149125 | B151: 1176 | C151: 1124 | D151: 1006 | E151: 118 | F151: 0 | G151: 0 | H151: 0 | I151: 29 | J151: 0 | K151: 0 | L151: 0 | M151: 0 | N151: 0 | O151: 0 | P151: 0 | Q151: 0 | R151: 0 | S151: 60 | T151: 128 | U151: 119 | V151: 32 | W151: 29 | AL151: 151 | AM151: 25 | AN151: 114
A152: 24149150 | B152: 1251 | C152: 1193 | D152: 1072 | E152: 121 | F152: 0 | G152: 0 | H152: 0 | I152: 29 | J152: 0 | K152: 0 | L152: 0 | M152: 0 | N152: 0 | O152: 0 | P152: 0 | Q152: 0 | R152: 0 | S152: 62 | T152: 129 | U152: 122 | V152: 32 | W152: 29 | AL152: 147 | AM152: 23 | AN152: 113
A153: 24149175 | B153: 1326 | C153: 1256 | D153: 1131 | E153: 125 | F153: 0 | G153: 0 | H153: 0 | I153: 29 | J153: 0 | K153: 0 | L153: 0 | M153: 0 | N153: 0 | O153: 0 | P153: 0 | Q153: 0 | R153: 0 | S153: 64 | T153: 134 | U153: 125 | V153: 32 | W153: 29 | AL153: 145 | AM153: 22 | AN153: 111
A154: 24149200 | B154: 1387 | C154: 1309 | D154: 1183 | E154: 126 | F154: 0 | G154: 0 | H154: 0 | I154: 29 | J154: 0 | K154: 0 | L154: 0 | M154: 0 | N154: 0 | O154: 0 | P154: 0 | Q154: 0 | R154: 0 | S154: 65 | T154: 136 | U154: 126 | V154: 32 | W154: 29 | AL154: 143 | AM154: 23 | AN154: 109
A155: 24149225 | B155: 1441 | C155: 1354 | D155: 1227 | E155: 127 | F155: 0 | G155: 0 | H155: 0 | I155: 29 | J155: 0 | K155: 0 | L155: 0 | M155: 0 | N155: 0 | O155: 0 | P155: 0 | Q155: 0 | R155: 0 | S155: 66 | T155: 137 | U155: 127 | V155: 32 | W155: 29 | AL155: 143 | AM155: 26 | AN155: 106
A156: 24149250 | B156: 1483 | C156: 1395 | D156: 1265 | E156: 130 | F156: 0 | G156: 0 | H156: 0 | I156: 29 | J156: 0 | K156: 0 | L156: 0 | M156: 0 | N156: 0 | O156: 0 | P156: 0 | Q156: 0 | R156: 0 | S156: 68 | T156: 138 | U156: 131 | V156: 32 | W156: 29 | AL156: 141 | AM156: 28 | AN156: 101
A157: 24149275 | B157: 1529 | C157: 1426 | D157: 1295 | E157: 132 | F157: 0 | G157: 0 | H157: 0 | I157: 29 | J157: 0 | K157: 0 | L157: 0 | M157: 0 | N157: 0 | O157: 0 | P157: 0 | Q157: 0 | R157: 0 | S157: 69 | T157: 144 | U157: 132 | V157: 32 | W157: 29 | AL157: 139 | AM157: 28 | AN157: 101
A158: 24149300 | B158: 1551 | C158: 1426 | D158: 1295 | E158: 130 | F158: 0 | G158: 0 | H158: 0 | I158: 30 | J158: 0 | K158: 0 | L158: 0 | M158: 0 | N158: 0 | O158: 0 | P158: 0 | Q158: 0 | R158: 0 | S158: 69 | T158: 141 | U158: 131 | V158: 32 | W158: 30 | AL158: 138 | AM158: 27 | AN158: 100
A159: 24149325 | B159: 1528 | C159: 1399 | D159: 1268 | E159: 130 | F159: 0 | G159: 0 | H159: 0 | I159: 30 | J159: 0 | K159: 0 | L159: 0 | M159: 0 | N159: 0 | O159: 0 | P159: 0 | Q159: 0 | R159: 0 | S159: 68 | T159: 141 | U159: 131 | V159: 32 | W159: 30 | AL159: 136 | AM159: 27 | AN159: 99
A160: 24149350 | B160: 1493 | C160: 1368 | D160: 1238 | E160: 130 | F160: 0 | G160: 0 | H160: 0 | I160: 30 | J160: 0 | K160: 0 | L160: 0 | M160: 0 | N160: 0 | O160: 0 | P160: 0 | Q160: 0 | R160: 0 | S160: 67 | T160: 141 | U160: 130 | V160: 32 | W160: 30 | AL160: 135 | AM160: 19 | AN160: 71
A161: 24149375 | B161: 1462 | C161: 1344 | D161: 1214 | E161: 129 | F161: 0 | G161: 0 | H161: 0 | I161: 30 | J161: 0 | K161: 0 | L161: 0 | M161: 0 | N161: 0 | O161: 0 | P161: 0 | Q161: 0 | R161: 0 | S161: 66 | T161: 140 | U161: 130 | V161: 32 | W161: 30 | AL161: 59 | AM161: 11 | AN161: 43
A162: 24149400 | B162: 1440 | C162: 1315 | D162: 1187 | E162: 128 | F162: 0 | G162: 0 | H162: 0 | I162: 29 | J162: 0 | K162: 0 | L162: 0 | M162: 0 | N162: 0 | O162: 0 | P162: 0 | Q162: 0 | R162: 0 | S162: 65 | T162: 140 | U162: 129 | V162: 32 | W162: 29 | AL162: 58 | AM162: 11 | AN162: 43
A163: 24149425 | B163: 1400 | C163: 1282 | D163: 1156 | E163: 126 | F163: 0 | G163: 0 | H163: 0 | I163: 29 | J163: 0 | K163: 0 | L163: 0 | M163: 0 | N163: 0 | O163: 0 | P163: 0 | Q163: 0 | R163: 0 | S163: 64 | T163: 137 | U163: 126 | V163: 32 | W163: 29 | AL163: 57 | AM163: 13 | AN163: 42
A164: 24149450 | B164: 1369 | C164: 1245 | D164: 1121 | E164: 124 | F164: 0 | G164: 0 | H164: 0 | I164: 29 | J164: 0 | K164: 0 | L164: 0 | M164: 0 | N164: 0 | O164: 0 | P164: 0 | Q164: 0 | R164: 0 | S164: 62 | T164: 135 | U164: 124 | V164: 32 | W164: 29 | AL164: 61 | AM164: 14 | AN164: 41
A165: 24149475 | B165: 1321 | C165: 1200 | D165: 1079 | E165: 121 | F165: 0 | G165: 0 | H165: 0 | I165: 29 | J165: 0 | K165: 0 | L165: 0 | M165: 0 | N165: 0 | O165: 0 | P165: 0 | Q165: 0 | R165: 0 | S165: 61 | T165: 133 | U165: 121 | V165: 32 | W165: 29 | AL165: 60 | AM165: 14 | AN165: 41
A166: 24149500 | B166: 1271 | C166: 1153 | D166: 1034 | E166: 119 | F166: 0 | G166: 0 | H166: 0 | I166: 29 | J166: 0 | K166: 0 | L166: 0 | M166: 0 | N166: 0 | O166: 0 | P166: 0 | Q166: 0 | R166: 0 | S166: 59 | T166: 130 | U166: 119 | V166: 32 | W166: 29 | AL166: 59 | AM166: 14 | AN166: 40
A167: 24149525 | B167: 1220 | C167: 1101 | D167: 984 | E167: 117 | F167: 0 | G167: 0 | H167: 0 | I167: 29 | J167: 0 | K167: 0 | L167: 0 | M167: 0 | N167: 0 | O167: 0 | P167: 0 | Q167: 0 | R167: 0 | S167: 58 | T167: 128 | U167: 117 | V167: 32 | W167: 29 | AL167: 58 | AM167: 13 | AN167: 39
A168: 24149550 | B168: 1159 | C168: 1036 | D168: 922 | E168: 114 | F168: 0 | G168: 0 | H168: 0 | I168: 29 | J168: 0 | K168: 0 | L168: 0 | M168: 0 | N168: 0 | O168: 0 | P168: 0 | Q168: 0 | R168: 0 | S168: 56 | T168: 125 | U168: 115 | V168: 32 | W168: 29 | AL168: 55 | AM168: 12 | AN168: 38
A169: 24149575 | B169: 1079 | C169: 959 | D169: 848 | E169: 111 | F169: 0 | G169: 0 | H169: 0 | I169: 29 | J169: 0 | K169: 0 | L169: 0 | M169: 0 | N169: 0 | O169: 0 | P169: 0 | Q169: 0 | R169: 0 | S169: 54 | T169: 122 | U169: 112 | V169: 32 | W169: 29 | AL169: 53 | AM169: 11 | AN169: 37
A170: 24149600 | B170: 993 | C170: 878 | D170: 770 | E170: 108 | F170: 0 | G170: 0 | H170: 0 | I170: 29 | J170: 0 | K170: 0 | L170: 0 | M170: 0 | N170: 0 | O170: 0 | P170: 0 | Q170: 0 | R170: 0 | S170: 51 | T170: 119 | U170: 108 | V170: 32 | W170: 29 | AL170: 51 | AM170: 10 | AN170: 36
A171: 24149625 | B171: 903 | C171: 793 | D171: 689 | E171: 104 | F171: 0 | G171: 0 | H171: 0 | I171: 29 | J171: 0 | K171: 0 | L171: 0 | M171: 0 | N171: 0 | O171: 0 | P171: 0 | Q171: 0 | R171: 0 | S171: 49 | T171: 115 | U171: 104 | V171: 32 | W171: 29 | AL171: 49 | AM171: 18 | AN171: 47
A172: 24149650 | B172: 809 | C172: 698 | D172: 600 | E172: 99 | F172: 0 | G172: 0 | H172: 0 | I172: 29 | J172: 0 | K172: 0 | L172: 0 | M172: 0 | N172: 0 | O172: 0 | P172: 0 | Q172: 0 | R172: 0 | S172: 46 | T172: 110 | U172: 99 | V172: 32 | W172: 29 | AL172: 91 | AM172: 27 | AN172: 57
A173: 24149675 | B173: 700 | C173: 601 | D173: 508 | E173: 94 | F173: 0 | G173: 0 | H173: 0 | I173: 29 | J173: 0 | K173: 0 | L173: 0 | M173: 0 | N173: 0 | O173: 0 | P173: 0 | Q173: 0 | R173: 0 | S173: 42 | T173: 104 | U173: 94 | V173: 32 | W173: 29 | AL173: 90 | AM173: 30 | AN173: 53
A174: 24149700 | B174: 599 | C174: 515 | D174: 426 | E174: 89 | F174: 0 | G174: 0 | H174: 0 | I174: 29 | J174: 0 | K174: 0 | L174: 0 | M174: 0 | N174: 0 | O174: 0 | P174: 0 | Q174: 0 | R174: 0 | S174: 39 | T174: 99 | U174: 89 | V174: 32 | W174: 29 | AL174: 89 | AM174: 32 | AN174: 50
A175: 24149725 | B175: 513 | C175: 442 | D175: 357 | E175: 84 | F175: 0 | G175: 0 | H175: 0 | I175: 29 | J175: 0 | K175: 0 | L175: 0 | M175: 0 | N175: 0 | O175: 0 | P175: 0 | Q175: 0 | R175: 0 | S175: 36 | T175: 94 | U175: 85 | V175: 32 | W175: 29 | AL175: 87 | AM175: 34 | AN175: 46
A176: 24149750 | B176: 442 | C176: 380 | D176: 299 | E176: 82 | F176: 0 | G176: 0 | H176: 0 | I176: 29 | J176: 0 | K176: 0 | L176: 0 | M176: 0 | N176: 0 | O176: 0 | P176: 0 | Q176: 0 | R176: 0 | S176: 34 | T176: 89 | U176: 82 | V176: 32 | W176: 29 | AL176: 86 | AM176: 37 | AN176: 42
A177: 24149775 | B177: 379 | C177: 328 | D177: 248 | E177: 80 | F177: 0 | G177: 0 | H177: 0 | I177: 29 | J177: 0 | K177: 0 | L177: 0 | M177: 0 | N177: 0 | O177: 0 | P177: 0 | Q177: 0 | R177: 0 | S177: 33 | T177: 87 | U177: 80 | V177: 32 | W177: 29 | AL177: 85 | AM177: 39 | AN177: 39
A178: 24149800 | B178: 328 | C178: 291 | D178: 213 | E178: 78 | F178: 0 | G178: 0 | H178: 0 | I178: 29 | J178: 0 | K178: 0 | L178: 0 | M178: 0 | N178: 0 | O178: 0 | P178: 0 | Q178: 0 | R178: 0 | S178: 32 | T178: 85 | U178: 78 | V178: 32 | W178: 29 | AL178: 84 | AM178: 42 | AN178: 35
A179: 24149825 | B179: 300 | C179: 253 | D179: 192 | E179: 62 | F179: 0 | G179: 0 | H179: 0 | I179: 29 | J179: 0 | K179: 0 | L179: 0 | M179: 0 | N179: 0 | O179: 0 | P179: 0 | Q179: 0 | R179: 0 | S179: 31 | T179: 84 | U179: 77 | V179: 32 | W179: 29 | AL179: 82 | AM179: 45 | AN179: 31
A180: 24149850 | B180: 248 | C180: 237 | D180: 176 | E180: 61 | F180: 0 | G180: 0 | H180: 0 | I180: 29 | J180: 0 | K180: 0 | L180: 0 | M180: 0 | N180: 0 | O180: 0 | P180: 0 | Q180: 0 | R180: 0 | S180: 31 | T180: 83 | U180: 77 | V180: 32 | W180: 29 | AL180: 81 | AM180: 48 | AN180: 26
A181: 24149875 | B181: 264 | C181: 238 | D181: 163 | E181: 75 | F181: 0 | G181: 0 | H181: 0 | I181: 29 | J181: 0 | K181: 0 | L181: 0 | M181: 0 | N181: 0 | O181: 0 | P181: 0 | Q181: 0 | R181: 0 | S181: 30 | T181: 83 | U181: 77 | V181: 32 | W181: 29 | AL181: 79 | AM181: 52 | AN181: 21
A182: 24149900 | B182: 250 | C182: 225 | D182: 150 | E182: 75 | F182: 0 | G182: 0 | H182: 0 | I182: 29 | J182: 0 | K182: 0 | L182: 0 | M182: 0 | N182: 0 | O182: 0 | P182: 0 | Q182: 0 | R182: 0 | S182: 31 | T182: 83 | U182: 78 | V182: 32 | W182: 29 | AL182: 78 | AM182: 57 | AN182: 14
A183: 24149925 | B183: 236 | C183: 214 | D183: 140 | E183: 74 | F183: 0 | G183: 0 | H183: 0 | I183: 29 | J183: 0 | K183: 0 | L183: 0 | M183: 0 | N183: 0 | O183: 0 | P183: 0 | Q183: 0 | R183: 0 | S183: 31 | T183: 85 | U183: 78 | V183: 32 | W183: 29 | AL183: 77 | AM183: 64 | AN183: 7
A184: 24149950 | B184: 226 | C184: 208 | D184: 136 | E184: 71 | F184: 0 | G184: 0 | H184: 0 | I184: 29 | J184: 0 | K184: 0 | L184: 0 | M184: 0 | N184: 0 | O184: 0 | P184: 0 | Q184: 0 | R184: 0 | S184: 31 | T184: 83 | U184: 78 | V184: 32 | W184: 29 | AL184: 77 | AM184: 69 | AN184: 2
A185: 24149975 | B185: 223 | C185: 207 | D185: 137 | E185: 70 | F185: 0 | G185: 0 | H185: 0 | I185: 29 | J185: 0 | K185: 0 | L185: 0 | M185: 0 | N185: 0 | O185: 0 | P185: 0 | Q185: 0 | R185: 0 | S185: 31 | T185: 84 | U185: 78 | V185: 32 | W185: 29 | AL185: 77 | AM185: 71 | AN185: 0
A186: 24150000 | B186: 224 | C186: 207 | D186: 139 | E186: 68 | F186: 0 | G186: 0 | H186: 0 | I186: 29 | J186: 0 | K186: 0 | L186: 0 | M186: 0 | N186: 0 | O186: 0 | P186: 0 | Q186: 0 | R186: 1 | S186: 32 | T186: 84 | U186: 78 | V186: 32 | W186: 29 | AL186: 77 | AM186: 70 | AN186: 0
A187: 24150025 | B187: 223 | C187: 204 | D187: 136 | E187: 68 | F187: 0 | G187: 0 | H187: 0 | I187: 30 | J187: 0 | K187: 0 | L187: 0 | M187: 0 | N187: 0 | O187: 0 | P187: 0 | Q187: 1 | R187: 1 | S187: 32 | T187: 86 | U187: 80 | V187: 32 | W187: 30 | AL187: 75 | AM187: 69 | AN187: 0
A188: 24150050 | B188: 218 | C188: 196 | D188: 130 | E188: 67 | F188: 0 | G188: 0 | H188: 0 | I188: 30 | J188: 0 | K188: 0 | L188: 0 | M188: 0 | N188: 0 | O188: 0 | P188: 0 | Q188: 1 | R188: 2 | S188: 32 | T188: 87 | U188: 80 | V188: 32 | W188: 30 | AL188: 74 | AM188: 67 | AN188: 0
A189: 24150075 | B189: 206 | C189: 182 | D189: 117 | E189: 64 | F189: 0 | G189: 0 | H189: 0 | I189: 30 | J189: 0 | K189: 0 | L189: 0 | M189: 0 | N189: 0 | O189: 0 | P189: 0 | Q189: 3 | R189: 4 | S189: 32 | T189: 86 | U189: 79 | V189: 32 | W189: 30 | AL189: 72 | AM189: 65 | AN189: 0
A190: 24150100 | B190: 186 | C190: 153 | D190: 104 | E190: 50 | F190: 0 | G190: 0 | H190: 0 | I190: 29 | J190: 0 | K190: 0 | L190: 0 | M190: 0 | N190: 0 | O190: 0 | P190: 0 | Q190: 5 | R190: 6 | S190: 31 | T190: 86 | U190: 79 | V190: 32 | W190: 29 | AL190: 69 | AM190: 63 | AN190: 0
A191: 24150125 | B191: 145 | C191: 138 | D191: 91 | E191: 47 | F191: 0 | G191: 0 | H191: 0 | I191: 29 | J191: 0 | K191: 0 | L191: 0 | M191: 0 | N191: 0 | O191: 0 | P191: 0 | Q191: 8 | R191: 9 | S191: 31 | T191: 86 | U191: 79 | V191: 32 | W191: 29 | AL191: 67 | AM191: 61 | AN191: 0
A192: 24150150 | B192: 153 | C192: 132 | D192: 76 | E192: 55 | F192: 0 | G192: 0 | H192: 0 | I192: 29 | J192: 0 | K192: 0 | L192: 0 | M192: 0 | N192: 0 | O192: 0 | P192: 0 | Q192: 11 | R192: 12 | S192: 31 | T192: 85 | U192: 79 | V192: 32 | W192: 29 | AL192: 65 | AM192: 60 | AN192: 0
A193: 24150175 | B193: 131 | C193: 114 | D193: 64 | E193: 50 | F193: 0 | G193: 0 | H193: 0 | I193: 29 | J193: 0 | K193: 0 | L193: 0 | M193: 0 | N193: 0 | O193: 0 | P193: 0 | Q193: 16 | R193: 18 | S193: 32 | T193: 85 | U193: 80 | V193: 32 | W193: 29 | AL193: 64 | AM193: 59 | AN193: 0
A194: 24150200 | B194: 116 | C194: 104 | D194: 57 | E194: 47 | F194: 0 | G194: 0 | H194: 0 | I194: 29 | J194: 0 | K194: 0 | L194: 0 | M194: 0 | N194: 0 | O194: 0 | P194: 0 | Q194: 23 | R194: 23 | S194: 32 | T194: 87 | U194: 81 | V194: 32 | W194: 29 | AL194: 63 | AM194: 58 | AN194: 0
A195: 24150225 | B195: 108 | C195: 96 | D195: 50 | E195: 46 | F195: 0 | G195: 0 | H195: 0 | I195: 29 | J195: 0 | K195: 0 | L195: 0 | M195: 0 | N195: 0 | O195: 0 | P195: 0 | Q195: 26 | R195: 25 | S195: 33 | T195: 88 | U195: 82 | V195: 31 | W195: 29 | AL195: 62 | AM195: 57 | AN195: 0
A196: 24150250 | B196: 99 | C196: 62 | D196: 32 | E196: 30 | F196: 0 | G196: 0 | H196: 0 | I196: 20 | J196: 0 | K196: 0 | L196: 0 | M196: 0 | N196: 0 | O196: 0 | P196: 0 | Q196: 28 | R196: 26 | S196: 23 | T196: 89 | U196: 59 | V196: 31 | W196: 20 | AL196: 61 | AM196: 56 | AN196: 0
A197: 24150267 | B197: 97 | C197: 27 | D197: 14 | E197: 13 | F197: 0 | G197: 0 | H197: 0 | I197: 9 | J197: 0 | K197: 0 | L197: 0 | M197: 0 | N197: 0 | O197: 0 | P197: 0 | Q197: 54 | R197: 14 | S197: 11 | T197: 97 | U197: 27 | V197: 31 | W197: 9 | AL197: 60 | AM197: 55 | AN197: 0
A198: 24150275 | B198: 87 | C198: 76 | D198: 38 | E198: 38 | F198: 0 | G198: 0 | H198: 0 | I198: 29 | J198: 0 | K198: 0 | L198: 0 | M198: 0 | N198: 0 | O198: 0 | P198: 0 | Q198: 40 | R198: 34 | S198: 31 | T198: 88 | U198: 79 | V198: 31 | W198: 29 | AL198: 59 | AM198: 55 | AN198: 0
A199: 24150300 | B199: 77 | Q199: 33 | T199: 83 | V199: 31 | AL199: 59 | AM199: 54 | AN199: 0
AL200: 58 | AM200: 53 | AN200: 0
A201: US_218_Ramp_A | AL201: 57 | AM201: 54 | AN201: 0
A202: 1147915 | B202: 276 | C202: 102 | D202: 79 | E202: 24 | F202: 0 | G202: 0 | H202: 0 | I202: 0 | J202: 0 | K202: 0 | L202: 0 | M202: 0 | N202: 0 | O202: 0 | P202: 0 | Q202: 22 | R202: 8 | S202: 11 | T202: 91 | U202: 34 | AL202: 59 | AM202: 56 | AN202: 0
A203: 1147925 | B203: 276 | C203: 253 | D203: 193 | E203: 60 | F203: 0 | G203: 0 | H203: 0 | I203: 0 | J203: 0 | K203: 0 | L203: 0 | M203: 0 | N203: 0 | O203: 0 | P203: 0 | Q203: 21 | R203: 20 | S203: 27 | T203: 91 | U203: 85 | AL203: 62 | AM203: 58 | AN203: 0
A204: 1147950 | B204: 271 | C204: 245 | D204: 183 | E204: 61 | F204: 0 | G204: 0 | H204: 0 | I204: 0 | J204: 0 | K204: 0 | L204: 0 | M204: 0 | N204: 0 | O204: 0 | P204: 0 | Q204: 23 | R204: 23 | S204: 26 | T204: 93 | U204: 87 | AL204: 64 | AM204: 60 | AN204: 0
A205: 1147975 | B205: 258 | C205: 227 | D205: 162 | E205: 65 | F205: 0 | G205: 0 | H205: 0 | I205: 0 | J205: 0 | K205: 0 | L205: 0 | M205: 0 | N205: 0 | O205: 0 | P205: 0 | Q205: 27 | R205: 25 | S205: 26 | T205: 95 | U205: 90 | AL205: 66 | AM205: 62 | AN205: 0
A206: 1148000 | B206: 232 | C206: 194 | D206: 129 | E206: 66 | F206: 0 | G206: 0 | H206: 0 | I206: 0 | J206: 0 | K206: 0 | L206: 0 | M206: 0 | N206: 0 | O206: 0 | P206: 0 | Q206: 26 | R206: 18 | S206: 28 | T206: 99 | U206: 94 | AL206: 68 | AM206: 64 | AN206: 0
A207: 1148025 | B207: 188 | C207: 157 | D207: 97 | E207: 60 | F207: 0 | G207: 0 | H207: 0 | I207: 0 | J207: 0 | K207: 0 | L207: 0 | M207: 0 | N207: 0 | O207: 0 | P207: 0 | Q207: 12 | R207: 13 | S207: 30 | T207: 104 | U207: 98 | AL207: 70 | AM207: 65 | AN207: 0
A208: 1148050 | B208: 151 | C208: 134 | D208: 80 | E208: 54 | F208: 0 | G208: 0 | H208: 0 | I208: 0 | J208: 0 | K208: 0 | L208: 0 | M208: 0 | N208: 0 | O208: 0 | P208: 0 | Q208: 16 | R208: 36 | S208: 35 | T208: 107 | U208: 105 | AL208: 71 | AM208: 66 | AN208: 0
A209: 1148075 | B209: 138 | C209: 114 | D209: 63 | E209: 51 | F209: 0 | G209: 0 | H209: 0 | I209: 0 | J209: 0 | K209: 0 | L209: 0 | M209: 0 | N209: 0 | O209: 0 | P209: 0 | Q209: 62 | R209: 75 | S209: 40 | T209: 120 | U209: 112 | AL209: 72 | AM209: 68 | AN209: 0
... 1650 more rows

Sheet DataInformation
B1: Total Cut and Fill Adjustment | Z1: Unsuitable Placement Check | AE1: Topsoil
B2: Unadjusted Total Cut | P2: Add Quantity | Q2: Combined Material to be Placed as Fill | R2: Unadjusted Total Fill | V2: Add Quantity | X2: Weighted Average Shrink Factor | Z2: Refer to Standard Road Plan EW-102 | AE2: Typical thickness is 12" | AF2: Typical Thickness is 8" | AG2: Topsoil Replacement Shrink Factor
C4: Shrink Factor | D4: Shrink Factor | E4: Shrink Factor | F4: Shrink Factor | G4: Shrink Factor | I4: Shrink Factor | J4: Shrink Factor | K4: Swell Factor | O4: Swell Factor | P4: Shrink Factor
C5: 1.3 | D5: 1.4 | E5: 1.3 | F5: 1.3 | G5: 1.3 | I5: 1.3 | J5: 1.2 | K5: 1.1 | O5: 0 | P5: 1.3 | X5: =IF(ISERROR(ROUNDUP(SUM((C6*C5),(E6*E5),(F6*F5),(G6*G5),(I6*I5),(J6*J5),(K6*(-K5)),(O6*(-O5)),(P6*P5))/SUM(C6,E6,F6,G6,I6,J6,K6,O6,P6),2)),"",ROUNDUP(SUM((C6*C5),(E6*E5),(F6*F5),(G6*G5),(I6*I5),(J6*J5),(K6*(-K5)),(O6*O5),(P6*P5))/SUM(C6,E6,F6,G6,I6,J6,K6,O6,P6),2)) -> 1.3 | AG5: 1.4
B6: =SUM(B11:B1860) -> 361534 | C6: 227272 | D6: 133787 | E6: 0 | F6: 0 | G6: 0 | H6: 23152 | I6: 0 | J6: 0 | K6: 0 | L6: 0 | M6: 442 | N6: 0 | O6: 0 | P6: 3531 | Q6: 230803 | R6: 630609 | S6: 11368 | T6: 77050 | U6: 9248 | V6: 14610 | W6: 742885 | X6: 965750.5 | Y6: -734947.5 | Z6: ="5' Minimum"&CHAR(10)&"Class 10"&CHAR(10)&"End Area"&CHAR(10)&"Sq. Ft." -> 5' Minimum Class 10 End Area Sq. Ft. | AA6: ="20' Maximum"&CHAR(10)&"End Area"&CHAR(10)&CHAR(10)&"Sq. Ft." -> 20' Maximum End Area Sq. Ft. | AB6: =SUM(AB11:AB1860) -> 378521 | AC6: ="3' Minimum"&CHAR(10)&"Class 10"&CHAR(10)&"End Area"&CHAR(10)&"Sq. Ft." -> 3' Minimum Class 10 End Area Sq. Ft. | AD6: =SUM(AD11:AD1860) -> 556047.7 | AE6: =SUM(AE11:AE1860) -> 133787 | AF6: =SUM(AF11:AF1860) -> 82095 | AG6: =SUM(AG11:AG1860) -> 114933 | AH6: =SUM(AH11:AH1860) -> 18854.6
A7: Station | B7: ="Total Cut Unadjusted"&CHAR(10)&CHAR(10)&"Volume" -> Total Cut Unadjusted Volume | C7: Total Class 10 Unadjusted Volume | D7: Topsoil Cut Volume | E7: =DataInput!F3 -> Template Unsuitable Type A Volume | F7: =DataInput!G3 -> Template Unsuitable Type B Volume | G7: =DataInput!H3 -> Template Unsuitable Type C Volume | H7: =DataInput!I3 -> Template Pavement Removal Volume | I7: =DataInput!J3 -> Template Select Loam Volume | J7: =DataInput!K3 -> Template Select Sand Volume | K7: =DataInput!L3 -> Template Rock Volume | L7: =DataInput!M3 -> Template B & W Rock Volume | M7: =DataInput!N3 -> Template Waste Volume | N7: =DataInput!O3 -> Template Shale Volume | O7: =DataInput!P3 -> Template Rock Undercut Volume | P7: ="Manually"&CHAR(10)&"Calculated Cut"&CHAR(10)&"Adjustments"&CHAR(10)&"(+/- Cut)" -> Manually Calculated Cut Adjustments (+/- Cut) | Q7: ="Total"&CHAR(10)&"Cut"&CHAR(10)&"Adjusted" -> Total Cut Adjusted | R7: =DataInput!R3 -> Total Fill Unadjusted Volume | S7: =DataInput!Y3 -> Plowing & Shaping Undercut (+ Fill) | T7: ="Existing Topsoil"&CHAR(10)&"Stripping"&CHAR(10)&"Undercut"&CHAR(10)&"(+ Fill)" -> Existing Topsoil Stripping Undercut (+ Fill) | U7: ="Existing"&CHAR(10)&"Pavement"&CHAR(10)&"Undercut"&CHAR(10)&"(+Fill)" -> Existing Pavement Undercut (+Fill) | V7: ="Manual"&CHAR(10)&"Calculated Fill"&CHAR(10)&"Adjustments"&CHAR(10)&"(+/- Fill)" -> Manual Calculated Fill Adjustments (+/- Fill) | W7: ="Total"&CHAR(10)&"Fill"&CHAR(10)&"Adjusted" -> Total Fill Adjusted | X7: ="Total Fill"&CHAR(10)&" Adjusted w/"&CHAR(10)&"Weighted Average"&CHAR(10)&X5&" Shrink Factor" -> Total Fill Adjusted w/ Weighted Average 1.3 Shrink Factor | Y7: ="Total Cut Adjusted"&CHAR(10)&"Minus Fill w/ Shrink" -> Total Cut Adjusted Minus Fill w/ Shrink | AB7: ="Approx. Fill Vol."&CHAR(10)&"Below 5' & Above"&CHAR(10)&"20' w/ Shrink" -> Approx. Fill Vol. Below 5' & Above 20' w/ Shrink | AD7: ="Approx. Fill"&CHAR(10)&"Volume Below 3'"&CHAR(10)&"w/ Shrink" -> Approx. Fill Volume Below 3' w/ Shrink | AE7: =DataInput!T3&CHAR(10)&"Volume" -> Topsoil Stripping Undercut Volume | AF7: =DataInput!S3 -> Topsoil Placement Undercut Volume | AG7: ="Topsoil Placement"&CHAR(10)&"With "&$AG$5&" Shrink"&CHAR(10)&"Factor" -> Topsoil Placement With 1.4 Shrink Factor | AH7: ="Topsoil Stripping"&CHAR(10)&"Minus Topsoil"&CHAR(10)&"Placement"&CHAR(10)&"w/Shrink" -> Topsoil Stripping Minus Topsoil Placement w/Shrink
A11: Stage 1
A13: =IF(DataInput!A13<>"",DataInput!A13,"") -> XOver2
A14: =IF(DataInput!A14<>"",DataInput!A14,"") -> 153905 | B14: =SUM(DataInput!C14,DataInput!Y14)+(DataInput!U14-DataInput!E14) -> 32 | C14: =SUM(DataInput!D14,DataInput!Z14) -> 15 | D14: =DataInput!U14 -> 16 | E14: =SUM(DataInput!F14,DataInput!AB14) -> 0 | F14: =SUM(DataInput!G14,DataInput!AC14) -> 0 | G14: =SUM(DataInput!H14,DataInput!AD14) -> 0 | H14: =DataInput!I14 -> 0 | I14: =SUM(DataInput!J14,DataInput!AF14) -> 0 | J14: =SUM(DataInput!K14,DataInput!AG14) -> 0 | K14: =SUM(DataInput!L14,DataInput!AH14) -> 0 | L14: =SUM(DataInput!M14,DataInput!AI14) -> 0 | M14: =SUM(DataInput!N14,DataInput!AJ14) -> 0 | N14: =SUM(DataInput!O14,DataInput!AK14) -> 0 | O14: =DataInput!P14 -> 0 | Q14: =SUM(C14,E14:G14,I14:L14,N14:P14) -> 15 | R14: =DataInput!R14 -> 1 | S14: =DataInput!Y14 -> 0 | T14: =IF(DataInput!U14-DataInput!E14>0,DataInput!U14-DataInput!E14,"") -> 11 | U14: =IF(DataInput!W14-DataInput!I14>0,DataInput!W14-DataInput!I14,"") ->  | W14: =SUM(R14:V14) -> 12 | X14: =ROUNDUP(($W14*$X$5),1) -> 15.6 | Y14: =ROUNDUP(SUM(Q14-X14),1) -> -0.6 | AB14: =ROUNDDOWN((IF(AA15>0,IFERROR(IF(AVERAGE(DataInput!Q14:Q15)>AVERAGE(AA15,AA14),ROUNDDOWN(((((AA14-Z14)+(AA15-Z15))/2)*(A15-A14))/27+S12+T12,0),IF(((((DataInput!Q15-Z15)+(DataInput!Q14-Z14))/2)*(A15-A14))/27+S12+T12>0,ROUNDDOWN(((((DataInput!Q15-Z14)+(DataInput!Q14-Z14))/2)*(A15-A14))/27+S12+T12,0),0)),0),0)*$X$5),1) -> 0 | AD14: =ROUNDDOWN((IF(AC15>0,IFERROR(IF(((((DataInput!Q14-AC14)+(DataInput!Q15-AC15))/2)*(A15-A14))/27+S12+T12>0,ROUNDDOWN(((((DataInput!Q14-AC14)+(DataInput!Q15-AC15))/2)*(A15-A14))/27+S12+T12,0),0),0),0)*$X$5),1) -> 0 | AE14: =DataInput!U14 -> 16 | AF14: =DataInput!S14 -> 3 | AG14: =ROUNDUP((AF14*$AG$5),1) -> 4.2 | AH14: =ROUNDUP((AE14-AG14),1) -> 11.8
A15: =IF(DataInput!A15<>"",DataInput!A15,"") -> 153925 | B15: =SUM(DataInput!C15,DataInput!Y15)+(DataInput!U15-DataInput!E15) -> 45 | C15: =SUM(DataInput!D15,DataInput!Z15) -> 18 | D15: =DataInput!U15 -> 26 | E15: =SUM(DataInput!F15,DataInput!AB15) -> 0 | F15: =SUM(DataInput!G15,DataInput!AC15) -> 0 | G15: =SUM(DataInput!H15,DataInput!AD15) -> 0 | H15: =DataInput!I15 -> 0 | I15: =SUM(DataInput!J15,DataInput!AF15) -> 0 | J15: =SUM(DataInput!K15,DataInput!AG15) -> 0 | K15: =SUM(DataInput!L15,DataInput!AH15) -> 0 | L15: =SUM(DataInput!M15,DataInput!AI15) -> 0 | M15: =SUM(DataInput!N15,DataInput!AJ15) -> 0 | N15: =SUM(DataInput!O15,DataInput!AK15) -> 0 | O15: =DataInput!P15 -> 0 | Q15: =SUM(C15,E15:G15,I15:L15,N15:P15) -> 18 | R15: =DataInput!R15 -> 2 | S15: =DataInput!Y15 -> 0 | T15: =IF(DataInput!U15-DataInput!E15>0,DataInput!U15-DataInput!E15,"") -> 21 | U15: =IF(DataInput!W15-DataInput!I15>0,DataInput!W15-DataInput!I15,"") ->  | W15: =SUM(R15:V15) -> 23 | X15: =ROUNDUP(($W15*$X$5),1) -> 29.9 | Y15: =ROUNDUP(SUM(Q15-X15),1) -> -11.9 | Z15: =Z14 -> 0 | AA15: =AA14 -> 0 | AB15: =ROUNDDOWN((IF(AA16>0,IFERROR(IF(AVERAGE(DataInput!Q15:Q16)>AVERAGE(AA16,AA15),ROUNDDOWN(((((AA15-Z15)+(AA16-Z16))/2)*(A16-A15))/27+S13+T13,0),IF(((((DataInput!Q16-Z16)+(DataInput!Q15-Z15))/2)*(A16-A15))/27+S13+T13>0,ROUNDDOWN(((((DataInput!Q16-Z15)+(DataInput!Q15-Z15))/2)*(A16-A15))/27+S13+T13,0),0)),0),0)*$X$5),1) -> 0 | AC15: =AC14 -> 0 | AD15: =ROUNDDOWN((IF(AC16>0,IFERROR(IF(((((DataInput!Q15-AC15)+(DataInput!Q16-AC16))/2)*(A16-A15))/27+S13+T13>0,ROUNDDOWN(((((DataInput!Q15-AC15)+(DataInput!Q16-AC16))/2)*(A16-A15))/27+S13+T13,0),0),0),0)*$X$5),1) -> 0 | AE15: =DataInput!U15 -> 26 | AF15: =DataInput!S15 -> 7 | AG15: =ROUNDUP((AF15*$AG$5),1) -> 9.8 | AH15: =ROUNDUP((AE15-AG15),1) -> 16.2
A16: =IF(DataInput!A16<>"",DataInput!A16,"") -> 153950 | B16: =SUM(DataInput!C16,DataInput!Y16)+(DataInput!U16-DataInput!E16) -> 45 | C16: =SUM(DataInput!D16,DataInput!Z16) -> 18 | D16: =DataInput!U16 -> 27 | E16: =SUM(DataInput!F16,DataInput!AB16) -> 0 | F16: =SUM(DataInput!G16,DataInput!AC16) -> 0 | G16: =SUM(DataInput!H16,DataInput!AD16) -> 0 | H16: =DataInput!I16 -> 0 | I16: =SUM(DataInput!J16,DataInput!AF16) -> 0 | J16: =SUM(DataInput!K16,DataInput!AG16) -> 0 | K16: =SUM(DataInput!L16,DataInput!AH16) -> 0 | L16: =SUM(DataInput!M16,DataInput!AI16) -> 0 | M16: =SUM(DataInput!N16,DataInput!AJ16) -> 0 | N16: =SUM(DataInput!O16,DataInput!AK16) -> 0 | O16: =DataInput!P16 -> 0 | Q16: 18 | R16: =DataInput!R16 -> 3 | S16: =DataInput!Y16 -> 0 | T16: =IF(DataInput!U16-DataInput!E16>0,DataInput!U16-DataInput!E16,"") -> 22 | U16: =IF(DataInput!W16-DataInput!I16>0,DataInput!W16-DataInput!I16,"") ->  | W16: 25 | X16: 32.5 | Y16: -14.5 | Z16: =Z15 -> 0 | AA16: =AA15 -> 0 | AB16: =ROUNDDOWN((IF(AA17>0,IFERROR(IF(AVERAGE(DataInput!Q16:Q17)>AVERAGE(AA17,AA16),ROUNDDOWN(((((AA16-Z16)+(AA17-Z17))/2)*(A17-A16))/27+S14+T14,0),IF(((((DataInput!Q17-Z17)+(DataInput!Q16-Z16))/2)*(A17-A16))/27+S14+T14>0,ROUNDDOWN(((((DataInput!Q17-Z16)+(DataInput!Q16-Z16))/2)*(A17-A16))/27+S14+T14,0),0)),0),0)*$X$5),1) -> 0 | AC16: =AC15 -> 0 | AD16: =ROUNDDOWN((IF(AC17>0,IFERROR(IF(((((DataInput!Q16-AC16)+(DataInput!Q17-AC17))/2)*(A17-A16))/27+S14+T14>0,ROUNDDOWN(((((DataInput!Q16-AC16)+(DataInput!Q17-AC17))/2)*(A17-A16))/27+S14+T14,0),0),0),0)*$X$5),1) -> 0 | AE16: =DataInput!U16 -> 27 | AF16: =DataInput!S16 -> 8 | AG16: 11.2 | AH16: 15.8
A17: =IF(DataInput!A17<>"",DataInput!A17,"") -> 153975 | B17: =SUM(DataInput!C17,DataInput!Y17)+(DataInput!U17-DataInput!E17) -> 47 | C17: =SUM(DataInput!D17,DataInput!Z17) -> 18 | D17: =DataInput!U17 -> 29 | E17: =SUM(DataInput!F17,DataInput!AB17) -> 0 | F17: =SUM(DataInput!G17,DataInput!AC17) -> 0 | G17: =SUM(DataInput!H17,DataInput!AD17) -> 0 | H17: =DataInput!I17 -> 0 | I17: =SUM(DataInput!J17,DataInput!AF17) -> 0 | J17: =SUM(DataInput!K17,DataInput!AG17) -> 0 | K17: =SUM(DataInput!L17,DataInput!AH17) -> 0 | L17: =SUM(DataInput!M17,DataInput!AI17) -> 0 | M17: =SUM(DataInput!N17,DataInput!AJ17) -> 0 | N17: =SUM(DataInput!O17,DataInput!AK17) -> 0 | O17: =DataInput!P17 -> 0 | Q17: 18 | R17: =DataInput!R17 -> 4 | S17: =DataInput!Y17 -> 0 | T17: =IF(DataInput!U17-DataInput!E17>0,DataInput!U17-DataInput!E17,"") -> 23 | U17: =IF(DataInput!W17-DataInput!I17>0,DataInput!W17-DataInput!I17,"") ->  | W17: 27 | X17: 35.1 | Y17: -17.1 | Z17: 0 | AA17: 0 | AB17: =ROUNDDOWN((IF(AA18>0,IFERROR(IF(AVERAGE(DataInput!Q17:Q18)>AVERAGE(AA18,AA17),ROUNDDOWN(((((AA17-Z17)+(AA18-Z18))/2)*(A18-A17))/27+S15+T15,0),IF(((((DataInput!Q18-Z18)+(DataInput!Q17-Z17))/2)*(A18-A17))/27+S15+T15>0,ROUNDDOWN(((((DataInput!Q18-Z17)+(DataInput!Q17-Z17))/2)*(A18-A17))/27+S15+T15,0),0)),0),0)*$X$5),1) -> 0 | AC17: 0 | AD17: =ROUNDDOWN((IF(AC18>0,IFERROR(IF(((((DataInput!Q17-AC17)+(DataInput!Q18-AC18))/2)*(A18-A17))/27+S15+T15>0,ROUNDDOWN(((((DataInput!Q17-AC17)+(DataInput!Q18-AC18))/2)*(A18-A17))/27+S15+T15,0),0),0),0)*$X$5),1) -> 0 | AE17: =DataInput!U17 -> 29 | AF17: =DataInput!S17 -> 8 | AG17: 11.2 | AH17: 17.8
A18: =IF(DataInput!A18<>"",DataInput!A18,"") -> 154000 | B18: =SUM(DataInput!C18,DataInput!Y18)+(DataInput!U18-DataInput!E18) -> 47 | C18: =SUM(DataInput!D18,DataInput!Z18) -> 18 | D18: =DataInput!U18 -> 29 | E18: =SUM(DataInput!F18,DataInput!AB18) -> 0 | F18: =SUM(DataInput!G18,DataInput!AC18) -> 0 | G18: =SUM(DataInput!H18,DataInput!AD18) -> 0 | H18: =DataInput!I18 -> 0 | I18: =SUM(DataInput!J18,DataInput!AF18) -> 0 | J18: =SUM(DataInput!K18,DataInput!AG18) -> 0 | K18: =SUM(DataInput!L18,DataInput!AH18) -> 0 | L18: =SUM(DataInput!M18,DataInput!AI18) -> 0 | M18: =SUM(DataInput!N18,DataInput!AJ18) -> 0 | N18: =SUM(DataInput!O18,DataInput!AK18) -> 0 | O18: =DataInput!P18 -> 0 | Q18: 18 | R18: =DataInput!R18 -> 4 | S18: =DataInput!Y18 -> 0 | T18: =IF(DataInput!U18-DataInput!E18>0,DataInput!U18-DataInput!E18,"") -> 23 | U18: =IF(DataInput!W18-DataInput!I18>0,DataInput!W18-DataInput!I18,"") ->  | W18: 27 | X18: 35.1 | Y18: -17.1 | Z18: 0 | AA18: 0 | AB18: =ROUNDDOWN((IF(AA19>0,IFERROR(IF(AVERAGE(DataInput!Q18:Q19)>AVERAGE(AA19,AA18),ROUNDDOWN(((((AA18-Z18)+(AA19-Z19))/2)*(A19-A18))/27+S16+T16,0),IF(((((DataInput!Q19-Z19)+(DataInput!Q18-Z18))/2)*(A19-A18))/27+S16+T16>0,ROUNDDOWN(((((DataInput!Q19-Z18)+(DataInput!Q18-Z18))/2)*(A19-A18))/27+S16+T16,0),0)),0),0)*$X$5),1) -> 0 | AC18: 0 | AD18: =ROUNDDOWN((IF(AC19>0,IFERROR(IF(((((DataInput!Q18-AC18)+(DataInput!Q19-AC19))/2)*(A19-A18))/27+S16+T16>0,ROUNDDOWN(((((DataInput!Q18-AC18)+(DataInput!Q19-AC19))/2)*(A19-A18))/27+S16+T16,0),0),0),0)*$X$5),1) -> 0 | AE18: =DataInput!U18 -> 29 | AF18: =DataInput!S18 -> 9 | AG18: 12.6 | AH18: 16.4
A19: =IF(DataInput!A19<>"",DataInput!A19,"") -> 154025 | B19: =SUM(DataInput!C19,DataInput!Y19)+(DataInput!U19-DataInput!E19) -> 46 | C19: =SUM(DataInput!D19,DataInput!Z19) -> 17 | D19: =DataInput!U19 -> 28 | E19: =SUM(DataInput!F19,DataInput!AB19) -> 0 | F19: =SUM(DataInput!G19,DataInput!AC19) -> 0 | G19: =SUM(DataInput!H19,DataInput!AD19) -> 0 | H19: =DataInput!I19 -> 0 | I19: =SUM(DataInput!J19,DataInput!AF19) -> 0 | J19: =SUM(DataInput!K19,DataInput!AG19) -> 0 | K19: =SUM(DataInput!L19,DataInput!AH19) -> 0 | L19: =SUM(DataInput!M19,DataInput!AI19) -> 0 | M19: =SUM(DataInput!N19,DataInput!AJ19) -> 0 | N19: =SUM(DataInput!O19,DataInput!AK19) -> 0 | O19: =DataInput!P19 -> 0 | Q19: 17 | R19: =DataInput!R19 -> 3 | S19: =DataInput!Y19 -> 0 | T19: =IF(DataInput!U19-DataInput!E19>0,DataInput!U19-DataInput!E19,"") -> 23 | U19: =IF(DataInput!W19-DataInput!I19>0,DataInput!W19-DataInput!I19,"") ->  | W19: 26 | X19: 33.8 | Y19: -16.8 | Z19: 0 | AA19: 0 | AB19: =ROUNDDOWN((IF(AA20>0,IFERROR(IF(AVERAGE(DataInput!Q19:Q20)>AVERAGE(AA20,AA19),ROUNDDOWN(((((AA19-Z19)+(AA20-Z20))/2)*(A20-A19))/27+S17+T17,0),IF(((((DataInput!Q20-Z20)+(DataInput!Q19-Z19))/2)*(A20-A19))/27+S17+T17>0,ROUNDDOWN(((((DataInput!Q20-Z19)+(DataInput!Q19-Z19))/2)*(A20-A19))/27+S17+T17,0),0)),0),0)*$X$5),1) -> 0 | AC19: 0 | AD19: =ROUNDDOWN((IF(AC20>0,IFERROR(IF(((((DataInput!Q19-AC19)+(DataInput!Q20-AC20))/2)*(A20-A19))/27+S17+T17>0,ROUNDDOWN(((((DataInput!Q19-AC19)+(DataInput!Q20-AC20))/2)*(A20-A19))/27+S17+T17,0),0),0),0)*$X$5),1) -> 0 | AE19: =DataInput!U19 -> 28 | AF19: =DataInput!S19 -> 8 | AG19: 11.2 | AH19: 16.8
A20: =IF(DataInput!A20<>"",DataInput!A20,"") -> 154050 | B20: =SUM(DataInput!C20,DataInput!Y20)+(DataInput!U20-DataInput!E20) -> 45 | C20: =SUM(DataInput!D20,DataInput!Z20) -> 17 | D20: =DataInput!U20 -> 28 | E20: =SUM(DataInput!F20,DataInput!AB20) -> 0 | F20: =SUM(DataInput!G20,DataInput!AC20) -> 0 | G20: =SUM(DataInput!H20,DataInput!AD20) -> 0 | H20: =DataInput!I20 -> 0 | I20: =SUM(DataInput!J20,DataInput!AF20) -> 0 | J20: =SUM(DataInput!K20,DataInput!AG20) -> 0 | K20: =SUM(DataInput!L20,DataInput!AH20) -> 0 | L20: =SUM(DataInput!M20,DataInput!AI20) -> 0 | M20: =SUM(DataInput!N20,DataInput!AJ20) -> 0 | N20: =SUM(DataInput!O20,DataInput!AK20) -> 0 | O20: =DataInput!P20 -> 0 | Q20: 17 | R20: =DataInput!R20 -> 3 | S20: =DataInput!Y20 -> 0 | T20: =IF(DataInput!U20-DataInput!E20>0,DataInput!U20-DataInput!E20,"") -> 23 | U20: =IF(DataInput!W20-DataInput!I20>0,DataInput!W20-DataInput!I20,"") ->  | W20: 26 | X20: 33.8 | Y20: -16.8 | Z20: 0 | AA20: 0 | AB20: =ROUNDDOWN((IF(AA21>0,IFERROR(IF(AVERAGE(DataInput!Q20:Q21)>AVERAGE(AA21,AA20),ROUNDDOWN(((((AA20-Z20)+(AA21-Z21))/2)*(A21-A20))/27+S18+T18,0),IF(((((DataInput!Q21-Z21)+(DataInput!Q20-Z20))/2)*(A21-A20))/27+S18+T18>0,ROUNDDOWN(((((DataInput!Q21-Z20)+(DataInput!Q20-Z20))/2)*(A21-A20))/27+S18+T18,0),0)),0),0)*$X$5),1) -> 0 | AC20: 0 | AD20: =ROUNDDOWN((IF(AC21>0,IFERROR(IF(((((DataInput!Q20-AC20)+(DataInput!Q21-AC21))/2)*(A21-A20))/27+S18+T18>0,ROUNDDOWN(((((DataInput!Q20-AC20)+(DataInput!Q21-AC21))/2)*(A21-A20))/27+S18+T18,0),0),0),0)*$X$5),1) -> 0 | AE20: =DataInput!U20 -> 28 | AF20: =DataInput!S20 -> 8 | AG20: 11.2 | AH20: 16.8
A21: =IF(DataInput!A21<>"",DataInput!A21,"") -> 154075 | B21: =SUM(DataInput!C21,DataInput!Y21)+(DataInput!U21-DataInput!E21) -> 44 | C21: =SUM(DataInput!D21,DataInput!Z21) -> 17 | D21: =DataInput!U21 -> 28 | E21: =SUM(DataInput!F21,DataInput!AB21) -> 0 | F21: =SUM(DataInput!G21,DataInput!AC21) -> 0 | G21: =SUM(DataInput!H21,DataInput!AD21) -> 0 | H21: =DataInput!I21 -> 0 | I21: =SUM(DataInput!J21,DataInput!AF21) -> 0 | J21: =SUM(DataInput!K21,DataInput!AG21) -> 0 | K21: =SUM(DataInput!L21,DataInput!AH21) -> 0 | L21: =SUM(DataInput!M21,DataInput!AI21) -> 0 | M21: =SUM(DataInput!N21,DataInput!AJ21) -> 0 | N21: =SUM(DataInput!O21,DataInput!AK21) -> 0 | O21: =DataInput!P21 -> 0 | Q21: 17 | R21: =DataInput!R21 -> 3 | S21: =DataInput!Y21 -> 0 | T21: =IF(DataInput!U21-DataInput!E21>0,DataInput!U21-DataInput!E21,"") -> 23 | U21: =IF(DataInput!W21-DataInput!I21>0,DataInput!W21-DataInput!I21,"") ->  | W21: 26 | X21: 33.8 | Y21: -16.8 | Z21: 0 | AA21: 0 | AB21: =ROUNDDOWN((IF(AA22>0,IFERROR(IF(AVERAGE(DataInput!Q21:Q22)>AVERAGE(AA22,AA21),ROUNDDOWN(((((AA21-Z21)+(AA22-Z22))/2)*(A22-A21))/27+S19+T19,0),IF(((((DataInput!Q22-Z22)+(DataInput!Q21-Z21))/2)*(A22-A21))/27+S19+T19>0,ROUNDDOWN(((((DataInput!Q22-Z21)+(DataInput!Q21-Z21))/2)*(A22-A21))/27+S19+T19,0),0)),0),0)*$X$5),1) -> 0 | AC21: 0 | AD21: =ROUNDDOWN((IF(AC22>0,IFERROR(IF(((((DataInput!Q21-AC21)+(DataInput!Q22-AC22))/2)*(A22-A21))/27+S19+T19>0,ROUNDDOWN(((((DataInput!Q21-AC21)+(DataInput!Q22-AC22))/2)*(A22-A21))/27+S19+T19,0),0),0),0)*$X$5),1) -> 0 | AE21: =DataInput!U21 -> 28 | AF21: =DataInput!S21 -> 8 | AG21: 11.2 | AH21: 16.8
A22: =IF(DataInput!A22<>"",DataInput!A22,"") -> 154100 | B22: =SUM(DataInput!C22,DataInput!Y22)+(DataInput!U22-DataInput!E22) -> 44 | C22: =SUM(DataInput!D22,DataInput!Z22) -> 17 | D22: =DataInput!U22 -> 27 | E22: =SUM(DataInput!F22,DataInput!AB22) -> 0 | F22: =SUM(DataInput!G22,DataInput!AC22) -> 0 | G22: =SUM(DataInput!H22,DataInput!AD22) -> 0 | H22: =DataInput!I22 -> 0 | I22: =SUM(DataInput!J22,DataInput!AF22) -> 0 | J22: =SUM(DataInput!K22,DataInput!AG22) -> 0 | K22: =SUM(DataInput!L22,DataInput!AH22) -> 0 | L22: =SUM(DataInput!M22,DataInput!AI22) -> 0 | M22: =SUM(DataInput!N22,DataInput!AJ22) -> 0 | N22: =SUM(DataInput!O22,DataInput!AK22) -> 0 | O22: =DataInput!P22 -> 0 | Q22: 17 | R22: =DataInput!R22 -> 3 | S22: =DataInput!Y22 -> 0 | T22: =IF(DataInput!U22-DataInput!E22>0,DataInput!U22-DataInput!E22,"") -> 23 | U22: =IF(DataInput!W22-DataInput!I22>0,DataInput!W22-DataInput!I22,"") ->  | W22: 26 | X22: 33.8 | Y22: -16.8 | Z22: 0 | AA22: 0 | AB22: =ROUNDDOWN((IF(AA23>0,IFERROR(IF(AVERAGE(DataInput!Q22:Q23)>AVERAGE(AA23,AA22),ROUNDDOWN(((((AA22-Z22)+(AA23-Z23))/2)*(A23-A22))/27+S20+T20,0),IF(((((DataInput!Q23-Z23)+(DataInput!Q22-Z22))/2)*(A23-A22))/27+S20+T20>0,ROUNDDOWN(((((DataInput!Q23-Z22)+(DataInput!Q22-Z22))/2)*(A23-A22))/27+S20+T20,0),0)),0),0)*$X$5),1) -> 0 | AC22: 0 | AD22: =ROUNDDOWN((IF(AC23>0,IFERROR(IF(((((DataInput!Q22-AC22)+(DataInput!Q23-AC23))/2)*(A23-A22))/27+S20+T20>0,ROUNDDOWN(((((DataInput!Q22-AC22)+(DataInput!Q23-AC23))/2)*(A23-A22))/27+S20+T20,0),0),0),0)*$X$5),1) -> 0 | AE22: =DataInput!U22 -> 27 | AF22: =DataInput!S22 -> 8 | AG22: 11.2 | AH22: 15.8
A23: =IF(DataInput!A23<>"",DataInput!A23,"") -> 154125 | B23: =SUM(DataInput!C23,DataInput!Y23)+(DataInput!U23-DataInput!E23) -> 43 | C23: =SUM(DataInput!D23,DataInput!Z23) -> 17 | D23: =DataInput!U23 -> 26 | E23: =SUM(DataInput!F23,DataInput!AB23) -> 0 | F23: =SUM(DataInput!G23,DataInput!AC23) -> 0 | G23: =SUM(DataInput!H23,DataInput!AD23) -> 0 | H23: =DataInput!I23 -> 0 | I23: =SUM(DataInput!J23,DataInput!AF23) -> 0 | J23: =SUM(DataInput!K23,DataInput!AG23) -> 0 | K23: =SUM(DataInput!L23,DataInput!AH23) -> 0 | L23: =SUM(DataInput!M23,DataInput!AI23) -> 0 | M23: =SUM(DataInput!N23,DataInput!AJ23) -> 0 | N23: =SUM(DataInput!O23,DataInput!AK23) -> 0 | O23: =DataInput!P23 -> 0 | Q23: 17 | R23: =DataInput!R23 -> 4 | S23: =DataInput!Y23 -> 0 | T23: =IF(DataInput!U23-DataInput!E23>0,DataInput!U23-DataInput!E23,"") -> 22 | U23: =IF(DataInput!W23-DataInput!I23>0,DataInput!W23-DataInput!I23,"") ->  | W23: 26 | X23: 33.8 | Y23: -16.8 | Z23: 0 | AA23: 0 | AB23: =ROUNDDOWN((IF(AA24>0,IFERROR(IF(AVERAGE(DataInput!Q23:Q24)>AVERAGE(AA24,AA23),ROUNDDOWN(((((AA23-Z23)+(AA24-Z24))/2)*(A24-A23))/27+S21+T21,0),IF(((((DataInput!Q24-Z24)+(DataInput!Q23-Z23))/2)*(A24-A23))/27+S21+T21>0,ROUNDDOWN(((((DataInput!Q24-Z23)+(DataInput!Q23-Z23))/2)*(A24-A23))/27+S21+T21,0),0)),0),0)*$X$5),1) -> 0 | AC23: 0 | AD23: =ROUNDDOWN((IF(AC24>0,IFERROR(IF(((((DataInput!Q23-AC23)+(DataInput!Q24-AC24))/2)*(A24-A23))/27+S21+T21>0,ROUNDDOWN(((((DataInput!Q23-AC23)+(DataInput!Q24-AC24))/2)*(A24-A23))/27+S21+T21,0),0),0),0)*$X$5),1) -> 0 | AE23: =DataInput!U23 -> 26 | AF23: =DataInput!S23 -> 6 | AG23: 8.4 | AH23: 17.6
A24: =IF(DataInput!A24<>"",DataInput!A24,"") -> 154150 | B24: =SUM(DataInput!C24,DataInput!Y24)+(DataInput!U24-DataInput!E24) -> 41 | C24: =SUM(DataInput!D24,DataInput!Z24) -> 18 | D24: =DataInput!U24 -> 24 | E24: =SUM(DataInput!F24,DataInput!AB24) -> 0 | F24: =SUM(DataInput!G24,DataInput!AC24) -> 0 | G24: =SUM(DataInput!H24,DataInput!AD24) -> 0 | H24: =DataInput!I24 -> 0 | I24: =SUM(DataInput!J24,DataInput!AF24) -> 0 | J24: =SUM(DataInput!K24,DataInput!AG24) -> 0 | K24: =SUM(DataInput!L24,DataInput!AH24) -> 0 | L24: =SUM(DataInput!M24,DataInput!AI24) -> 0 | M24: =SUM(DataInput!N24,DataInput!AJ24) -> 0 | N24: =SUM(DataInput!O24,DataInput!AK24) -> 0 | O24: =DataInput!P24 -> 0 | Q24: 18 | R24: =DataInput!R24 -> 4 | S24: =DataInput!Y24 -> 0 | T24: =IF(DataInput!U24-DataInput!E24>0,DataInput!U24-DataInput!E24,"") -> 19 | U24: =IF(DataInput!W24-DataInput!I24>0,DataInput!W24-DataInput!I24,"") ->  | W24: 23 | X24: 29.9 | Y24: -11.9 | Z24: 0 | AA24: 0 | AB24: =ROUNDDOWN((IF(AA25>0,IFERROR(IF(AVERAGE(DataInput!Q24:Q25)>AVERAGE(AA25,AA24),ROUNDDOWN(((((AA24-Z24)+(AA25-Z25))/2)*(A25-A24))/27+S22+T22,0),IF(((((DataInput!Q25-Z25)+(DataInput!Q24-Z24))/2)*(A25-A24))/27+S22+T22>0,ROUNDDOWN(((((DataInput!Q25-Z24)+(DataInput!Q24-Z24))/2)*(A25-A24))/27+S22+T22,0),0)),0),0)*$X$5),1) -> 0 | AC24: 0 | AD24: =ROUNDDOWN((IF(AC25>0,IFERROR(IF(((((DataInput!Q24-AC24)+(DataInput!Q25-AC25))/2)*(A25-A24))/27+S22+T22>0,ROUNDDOWN(((((DataInput!Q24-AC24)+(DataInput!Q25-AC25))/2)*(A25-A24))/27+S22+T22,0),0),0),0)*$X$5),1) -> 0 | AE24: =DataInput!U24 -> 24 | AF24: =DataInput!S24 -> 4 | AG24: 5.6 | AH24: 18.4
A25: =IF(DataInput!A25<>"",DataInput!A25,"") -> 154175 | B25: =SUM(DataInput!C25,DataInput!Y25)+(DataInput!U25-DataInput!E25) -> 42 | C25: =SUM(DataInput!D25,DataInput!Z25) -> 18 | D25: =DataInput!U25 -> 24 | E25: =SUM(DataInput!F25,DataInput!AB25) -> 0 | F25: =SUM(DataInput!G25,DataInput!AC25) -> 0 | G25: =SUM(DataInput!H25,DataInput!AD25) -> 0 | H25: =DataInput!I25 -> 0 | I25: =SUM(DataInput!J25,DataInput!AF25) -> 0 | J25: =SUM(DataInput!K25,DataInput!AG25) -> 0 | K25: =SUM(DataInput!L25,DataInput!AH25) -> 0 | L25: =SUM(DataInput!M25,DataInput!AI25) -> 0 | M25: =SUM(DataInput!N25,DataInput!AJ25) -> 0 | N25: =SUM(DataInput!O25,DataInput!AK25) -> 0 | O25: =DataInput!P25 -> 0 | Q25: 18 | R25: =DataInput!R25 -> 4 | S25: =DataInput!Y25 -> 0 | T25: =IF(DataInput!U25-DataInput!E25>0,DataInput!U25-DataInput!E25,"") -> 19 | U25: =IF(DataInput!W25-DataInput!I25>0,DataInput!W25-DataInput!I25,"") ->  | W25: 23 | X25: 29.9 | Y25: -11.9 | Z25: 0 | AA25: 0 | AB25: =ROUNDDOWN((IF(AA26>0,IFERROR(IF(AVERAGE(DataInput!Q25:Q26)>AVERAGE(AA26,AA25),ROUNDDOWN(((((AA25-Z25)+(AA26-Z26))/2)*(A26-A25))/27+S23+T23,0),IF(((((DataInput!Q26-Z26)+(DataInput!Q25-Z25))/2)*(A26-A25))/27+S23+T23>0,ROUNDDOWN(((((DataInput!Q26-Z25)+(DataInput!Q25-Z25))/2)*(A26-A25))/27+S23+T23,0),0)),0),0)*$X$5),1) -> 0 | AC25: 0 | AD25: =ROUNDDOWN((IF(AC26>0,IFERROR(IF(((((DataInput!Q25-AC25)+(DataInput!Q26-AC26))/2)*(A26-A25))/27+S23+T23>0,ROUNDDOWN(((((DataInput!Q25-AC25)+(DataInput!Q26-AC26))/2)*(A26-A25))/27+S23+T23,0),0),0),0)*$X$5),1) -> 0 | AE25: =DataInput!U25 -> 24 | AF25: =DataInput!S25 -> 3 | AG25: 4.2 | AH25: 19.8
A26: =IF(DataInput!A26<>"",DataInput!A26,"") -> 154200 | B26: =SUM(DataInput!C26,DataInput!Y26)+(DataInput!U26-DataInput!E26) -> 44 | C26: =SUM(DataInput!D26,DataInput!Z26) -> 18 | D26: =DataInput!U26 -> 26 | E26: =SUM(DataInput!F26,DataInput!AB26) -> 0 | F26: =SUM(DataInput!G26,DataInput!AC26) -> 0 | G26: =SUM(DataInput!H26,DataInput!AD26) -> 0 | H26: =DataInput!I26 -> 0 | I26: =SUM(DataInput!J26,DataInput!AF26) -> 0 | J26: =SUM(DataInput!K26,DataInput!AG26) -> 0 | K26: =SUM(DataInput!L26,DataInput!AH26) -> 0 | L26: =SUM(DataInput!M26,DataInput!AI26) -> 0 | M26: =SUM(DataInput!N26,DataInput!AJ26) -> 0 | N26: =SUM(DataInput!O26,DataInput!AK26) -> 0 | O26: =DataInput!P26 -> 0 | Q26: 18 | R26: =DataInput!R26 -> 6 | S26: =DataInput!Y26 -> 0 | T26: =IF(DataInput!U26-DataInput!E26>0,DataInput!U26-DataInput!E26,"") -> 21 | U26: =IF(DataInput!W26-DataInput!I26>0,DataInput!W26-DataInput!I26,"") ->  | W26: 27 | X26: 35.1 | Y26: -17.1 | Z26: 0 | AA26: 0 | AB26: =ROUNDDOWN((IF(AA27>0,IFERROR(IF(AVERAGE(DataInput!Q26:Q27)>AVERAGE(AA27,AA26),ROUNDDOWN(((((AA26-Z26)+(AA27-Z27))/2)*(A27-A26))/27+S24+T24,0),IF(((((DataInput!Q27-Z27)+(DataInput!Q26-Z26))/2)*(A27-A26))/27+S24+T24>0,ROUNDDOWN(((((DataInput!Q27-Z26)+(DataInput!Q26-Z26))/2)*(A27-A26))/27+S24+T24,0),0)),0),0)*$X$5),1) -> 0 | AC26: 0 | AD26: =ROUNDDOWN((IF(AC27>0,IFERROR(IF(((((DataInput!Q26-AC26)+(DataInput!Q27-AC27))/2)*(A27-A26))/27+S24+T24>0,ROUNDDOWN(((((DataInput!Q26-AC26)+(DataInput!Q27-AC27))/2)*(A27-A26))/27+S24+T24,0),0),0),0)*$X$5),1) -> 0 | AE26: =DataInput!U26 -> 26 | AF26: =DataInput!S26 -> 2 | AG26: 2.8 | AH26: 23.2
A27: =IF(DataInput!A27<>"",DataInput!A27,"") -> 154225 | B27: =SUM(DataInput!C27,DataInput!Y27)+(DataInput!U27-DataInput!E27) -> 51 | C27: =SUM(DataInput!D27,DataInput!Z27) -> 18 | D27: =DataInput!U27 -> 33 | E27: =SUM(DataInput!F27,DataInput!AB27) -> 0 | F27: =SUM(DataInput!G27,DataInput!AC27) -> 0 | G27: =SUM(DataInput!H27,DataInput!AD27) -> 0 | H27: =DataInput!I27 -> 0 | I27: =SUM(DataInput!J27,DataInput!AF27) -> 0 | J27: =SUM(DataInput!K27,DataInput!AG27) -> 0 | K27: =SUM(DataInput!L27,DataInput!AH27) -> 0 | L27: =SUM(DataInput!M27,DataInput!AI27) -> 0 | M27: =SUM(DataInput!N27,DataInput!AJ27) -> 0 | N27: =SUM(DataInput!O27,DataInput!AK27) -> 0 | O27: =DataInput!P27 -> 0 | Q27: 18 | R27: =DataInput!R27 -> 16 | S27: =DataInput!Y27 -> 0 | T27: =IF(DataInput!U27-DataInput!E27>0,DataInput!U27-DataInput!E27,"") -> 28 | U27: =IF(DataInput!W27-DataInput!I27>0,DataInput!W27-DataInput!I27,"") ->  | W27: 44 | X27: 57.2 | Y27: -39.2 | Z27: 0 | AA27: 0 | AB27: =ROUNDDOWN((IF(AA28>0,IFERROR(IF(AVERAGE(DataInput!Q27:Q28)>AVERAGE(AA28,AA27),ROUNDDOWN(((((AA27-Z27)+(AA28-Z28))/2)*(A28-A27))/27+S25+T25,0),IF(((((DataInput!Q28-Z28)+(DataInput!Q27-Z27))/2)*(A28-A27))/27+S25+T25>0,ROUNDDOWN(((((DataInput!Q28-Z27)+(DataInput!Q27-Z27))/2)*(A28-A27))/27+S25+T25,0),0)),0),0)*$X$5),1) -> 0 | AC27: 0 | AD27: =ROUNDDOWN((IF(AC28>0,IFERROR(IF(((((DataInput!Q27-AC27)+(DataInput!Q28-AC28))/2)*(A28-A27))/27+S25+T25>0,ROUNDDOWN(((((DataInput!Q27-AC27)+(DataInput!Q28-AC28))/2)*(A28-A27))/27+S25+T25,0),0),0),0)*$X$5),1) -> 0 | AE27: =DataInput!U27 -> 33 | AF27: =DataInput!S27 -> 4 | AG27: 5.6 | AH27: 27.4
A28: =IF(DataInput!A28<>"",DataInput!A28,"") -> 154250 | B28: =SUM(DataInput!C28,DataInput!Y28)+(DataInput!U28-DataInput!E28) -> 56 | C28: =SUM(DataInput!D28,DataInput!Z28) -> 18 | D28: =DataInput!U28 -> 38 | E28: =SUM(DataInput!F28,DataInput!AB28) -> 0 | F28: =SUM(DataInput!G28,DataInput!AC28) -> 0 | G28: =SUM(DataInput!H28,DataInput!AD28) -> 0 | H28: =DataInput!I28 -> 0 | I28: =SUM(DataInput!J28,DataInput!AF28) -> 0 | J28: =SUM(DataInput!K28,DataInput!AG28) -> 0 | K28: =SUM(DataInput!L28,DataInput!AH28) -> 0 | L28: =SUM(DataInput!M28,DataInput!AI28) -> 0 | M28: =SUM(DataInput!N28,DataInput!AJ28) -> 0 | N28: =SUM(DataInput!O28,DataInput!AK28) -> 0 | O28: =DataInput!P28 -> 0 | Q28: 18 | R28: =DataInput!R28 -> 40 | S28: =DataInput!Y28 -> 0 | T28: =IF(DataInput!U28-DataInput!E28>0,DataInput!U28-DataInput!E28,"") -> 34 | U28: =IF(DataInput!W28-DataInput!I28>0,DataInput!W28-DataInput!I28,"") ->  | W28: 74 | X28: 96.2 | Y28: -78.2 | Z28: 0 | AA28: 0 | AB28: =ROUNDDOWN((IF(AA29>0,IFERROR(IF(AVERAGE(DataInput!Q28:Q29)>AVERAGE(AA29,AA28),ROUNDDOWN(((((AA28-Z28)+(AA29-Z29))/2)*(A29-A28))/27+S26+T26,0),IF(((((DataInput!Q29-Z29)+(DataInput!Q28-Z28))/2)*(A29-A28))/27+S26+T26>0,ROUNDDOWN(((((DataInput!Q29-Z28)+(DataInput!Q28-Z28))/2)*(A29-A28))/27+S26+T26,0),0)),0),0)*$X$5),1) -> 0 | AC28: 0 | AD28: =ROUNDDOWN((IF(AC29>0,IFERROR(IF(((((DataInput!Q28-AC28)+(DataInput!Q29-AC29))/2)*(A29-A28))/27+S26+T26>0,ROUNDDOWN(((((DataInput!Q28-AC28)+(DataInput!Q29-AC29))/2)*(A29-A28))/27+S26+T26,0),0),0),0)*$X$5),1) -> 0 | AE28: =DataInput!U28 -> 38 | AF28: =DataInput!S28 -> 4 | AG28: 5.6 | AH28: 32.4
A29: =IF(DataInput!A29<>"",DataInput!A29,"") -> 154275 | B29: =SUM(DataInput!C29,DataInput!Y29)+(DataInput!U29-DataInput!E29) -> 56 | C29: =SUM(DataInput!D29,DataInput!Z29) -> 17 | D29: =DataInput!U29 -> 39 | E29: =SUM(DataInput!F29,DataInput!AB29) -> 0 | F29: =SUM(DataInput!G29,DataInput!AC29) -> 0 | G29: =SUM(DataInput!H29,DataInput!AD29) -> 0 | H29: =DataInput!I29 -> 0 | I29: =SUM(DataInput!J29,DataInput!AF29) -> 0 | J29: =SUM(DataInput!K29,DataInput!AG29) -> 0 | K29: =SUM(DataInput!L29,DataInput!AH29) -> 0 | L29: =SUM(DataInput!M29,DataInput!AI29) -> 0 | M29: =SUM(DataInput!N29,DataInput!AJ29) -> 0 | N29: =SUM(DataInput!O29,DataInput!AK29) -> 0 | O29: =DataInput!P29 -> 0 | Q29: 17 | R29: =DataInput!R29 -> 66 | S29: =DataInput!Y29 -> 0 | T29: =IF(DataInput!U29-DataInput!E29>0,DataInput!U29-DataInput!E29,"") -> 36 | U29: =IF(DataInput!W29-DataInput!I29>0,DataInput!W29-DataInput!I29,"") ->  | W29: 102 | X29: 132.6 | Y29: -115.6 | Z29: 0 | AA29: 0 | AB29: =ROUNDDOWN((IF(AA30>0,IFERROR(IF(AVERAGE(DataInput!Q29:Q30)>AVERAGE(AA30,AA29),ROUNDDOWN(((((AA29-Z29)+(AA30-Z30))/2)*(A30-A29))/27+S27+T27,0),IF(((((DataInput!Q30-Z30)+(DataInput!Q29-Z29))/2)*(A30-A29))/27+S27+T27>0,ROUNDDOWN(((((DataInput!Q30-Z29)+(DataInput!Q29-Z29))/2)*(A30-A29))/27+S27+T27,0),0)),0),0)*$X$5),1) -> 0 | AC29: 0 | AD29: =ROUNDDOWN((IF(AC30>0,IFERROR(IF(((((DataInput!Q29-AC29)+(DataInput!Q30-AC30))/2)*(A30-A29))/27+S27+T27>0,ROUNDDOWN(((((DataInput!Q29-AC29)+(DataInput!Q30-AC30))/2)*(A30-A29))/27+S27+T27,0),0),0),0)*$X$5),1) -> 0 | AE29: =DataInput!U29 -> 39 | AF29: =DataInput!S29 -> 2 | AG29: 2.8 | AH29: 36.2
A30: =IF(DataInput!A30<>"",DataInput!A30,"") -> 154300 | B30: =SUM(DataInput!C30,DataInput!Y30)+(DataInput!U30-DataInput!E30) -> 55 | C30: =SUM(DataInput!D30,DataInput!Z30) -> 16 | D30: =DataInput!U30 -> 39 | E30: =SUM(DataInput!F30,DataInput!AB30) -> 0 | F30: =SUM(DataInput!G30,DataInput!AC30) -> 0 | G30: =SUM(DataInput!H30,DataInput!AD30) -> 0 | H30: =DataInput!I30 -> 0 | I30: =SUM(DataInput!J30,DataInput!AF30) -> 0 | J30: =SUM(DataInput!K30,DataInput!AG30) -> 0 | K30: =SUM(DataInput!L30,DataInput!AH30) -> 0 | L30: =SUM(DataInput!M30,DataInput!AI30) -> 0 | M30: =SUM(DataInput!N30,DataInput!AJ30) -> 0 | N30: =SUM(DataInput!O30,DataInput!AK30) -> 0 | O30: =DataInput!P30 -> 0 | Q30: 16 | R30: =DataInput!R30 -> 79 | S30: =DataInput!Y30 -> 0 | T30: =IF(DataInput!U30-DataInput!E30>0,DataInput!U30-DataInput!E30,"") -> 37 | U30: =IF(DataInput!W30-DataInput!I30>0,DataInput!W30-DataInput!I30,"") ->  | W30: 116 | X30: 150.8 | Y30: -134.8 | Z30: 0 | AA30: 0 | AB30: =ROUNDDOWN((IF(AA31>0,IFERROR(IF(AVERAGE(DataInput!Q30:Q31)>AVERAGE(AA31,AA30),ROUNDDOWN(((((AA30-Z30)+(AA31-Z31))/2)*(A31-A30))/27+S28+T28,0),IF(((((DataInput!Q31-Z31)+(DataInput!Q30-Z30))/2)*(A31-A30))/27+S28+T28>0,ROUNDDOWN(((((DataInput!Q31-Z30)+(DataInput!Q30-Z30))/2)*(A31-A30))/27+S28+T28,0),0)),0),0)*$X$5),1) -> 0 | AC30: 0 | AD30: =ROUNDDOWN((IF(AC31>0,IFERROR(IF(((((DataInput!Q30-AC30)+(DataInput!Q31-AC31))/2)*(A31-A30))/27+S28+T28>0,ROUNDDOWN(((((DataInput!Q30-AC30)+(DataInput!Q31-AC31))/2)*(A31-A30))/27+S28+T28,0),0),0),0)*$X$5),1) -> 0 | AE30: =DataInput!U30 -> 39 | AF30: =DataInput!S30 -> 0 | AG30: 0 | AH30: 39
A31: =IF(DataInput!A31<>"",DataInput!A31,"") -> 154325 | B31: =SUM(DataInput!C31,DataInput!Y31)+(DataInput!U31-DataInput!E31) -> 56 | C31: =SUM(DataInput!D31,DataInput!Z31) -> 16 | D31: =DataInput!U31 -> 40 | E31: =SUM(DataInput!F31,DataInput!AB31) -> 0 | F31: =SUM(DataInput!G31,DataInput!AC31) -> 0 | G31: =SUM(DataInput!H31,DataInput!AD31) -> 0 | H31: =DataInput!I31 -> 0 | I31: =SUM(DataInput!J31,DataInput!AF31) -> 0 | J31: =SUM(DataInput!K31,DataInput!AG31) -> 0 | K31: =SUM(DataInput!L31,DataInput!AH31) -> 0 | L31: =SUM(DataInput!M31,DataInput!AI31) -> 0 | M31: =SUM(DataInput!N31,DataInput!AJ31) -> 0 | N31: =SUM(DataInput!O31,DataInput!AK31) -> 0 | O31: =DataInput!P31 -> 0 | Q31: 16 | R31: =DataInput!R31 -> 81 | S31: =DataInput!Y31 -> 0 | T31: =IF(DataInput!U31-DataInput!E31>0,DataInput!U31-DataInput!E31,"") -> 38 | U31: =IF(DataInput!W31-DataInput!I31>0,DataInput!W31-DataInput!I31,"") ->  | W31: 119 | X31: 154.7 | Y31: -138.7 | Z31: 0 | AA31: 0 | AB31: =ROUNDDOWN((IF(AA32>0,IFERROR(IF(AVERAGE(DataInput!Q31:Q32)>AVERAGE(AA32,AA31),ROUNDDOWN(((((AA31-Z31)+(AA32-Z32))/2)*(A32-A31))/27+S29+T29,0),IF(((((DataInput!Q32-Z32)+(DataInput!Q31-Z31))/2)*(A32-A31))/27+S29+T29>0,ROUNDDOWN(((((DataInput!Q32-Z31)+(DataInput!Q31-Z31))/2)*(A32-A31))/27+S29+T29,0),0)),0),0)*$X$5),1) -> 0 | AC31: 0 | AD31: =ROUNDDOWN((IF(AC32>0,IFERROR(IF(((((DataInput!Q31-AC31)+(DataInput!Q32-AC32))/2)*(A32-A31))/27+S29+T29>0,ROUNDDOWN(((((DataInput!Q31-AC31)+(DataInput!Q32-AC32))/2)*(A32-A31))/27+S29+T29,0),0),0),0)*$X$5),1) -> 0 | AE31: =DataInput!U31 -> 40 | AF31: =DataInput!S31 -> 0 | AG31: 0 | AH31: 40
A32: =IF(DataInput!A32<>"",DataInput!A32,"") -> 154350 | B32: =SUM(DataInput!C32,DataInput!Y32)+(DataInput!U32-DataInput!E32) -> 57 | C32: =SUM(DataInput!D32,DataInput!Z32) -> 17 | D32: =DataInput!U32 -> 41 | E32: =SUM(DataInput!F32,DataInput!AB32) -> 0 | F32: =SUM(DataInput!G32,DataInput!AC32) -> 0 | G32: =SUM(DataInput!H32,DataInput!AD32) -> 0 | H32: =DataInput!I32 -> 0 | I32: =SUM(DataInput!J32,DataInput!AF32) -> 0 | J32: =SUM(DataInput!K32,DataInput!AG32) -> 0 | K32: =SUM(DataInput!L32,DataInput!AH32) -> 0 | L32: =SUM(DataInput!M32,DataInput!AI32) -> 0 | M32: =SUM(DataInput!N32,DataInput!AJ32) -> 0 | N32: =SUM(DataInput!O32,DataInput!AK32) -> 0 | O32: =DataInput!P32 -> 0 | Q32: 17 | R32: =DataInput!R32 -> 82 | S32: =DataInput!Y32 -> 0 | T32: =IF(DataInput!U32-DataInput!E32>0,DataInput!U32-DataInput!E32,"") -> 38 | U32: =IF(DataInput!W32-DataInput!I32>0,DataInput!W32-DataInput!I32,"") ->  | W32: 120 | X32: 156 | Y32: -139 | Z32: 0 | AA32: 0 | AB32: =ROUNDDOWN((IF(AA33>0,IFERROR(IF(AVERAGE(DataInput!Q32:Q33)>AVERAGE(AA33,AA32),ROUNDDOWN(((((AA32-Z32)+(AA33-Z33))/2)*(A33-A32))/27+S30+T30,0),IF(((((DataInput!Q33-Z33)+(DataInput!Q32-Z32))/2)*(A33-A32))/27+S30+T30>0,ROUNDDOWN(((((DataInput!Q33-Z32)+(DataInput!Q32-Z32))/2)*(A33-A32))/27+S30+T30,0),0)),0),0)*$X$5),1) -> 0 | AC32: 0 | AD32: =ROUNDDOWN((IF(AC33>0,IFERROR(IF(((((DataInput!Q32-AC32)+(DataInput!Q33-AC33))/2)*(A33-A32))/27+S30+T30>0,ROUNDDOWN(((((DataInput!Q32-AC32)+(DataInput!Q33-AC33))/2)*(A33-A32))/27+S30+T30,0),0),0),0)*$X$5),1) -> 0 | AE32: =DataInput!U32 -> 41 | AF32: =DataInput!S32 -> 0 | AG32: 0 | AH32: 41
A33: =IF(DataInput!A33<>"",DataInput!A33,"") -> 154375 | B33: =SUM(DataInput!C33,DataInput!Y33)+(DataInput!U33-DataInput!E33) -> 58 | C33: =SUM(DataInput!D33,DataInput!Z33) -> 17 | D33: =DataInput!U33 -> 41 | E33: =SUM(DataInput!F33,DataInput!AB33) -> 0 | F33: =SUM(DataInput!G33,DataInput!AC33) -> 0 | G33: =SUM(DataInput!H33,DataInput!AD33) -> 0 | H33: =DataInput!I33 -> 0 | I33: =SUM(DataInput!J33,DataInput!AF33) -> 0 | J33: =SUM(DataInput!K33,DataInput!AG33) -> 0 | K33: =SUM(DataInput!L33,DataInput!AH33) -> 0 | L33: =SUM(DataInput!M33,DataInput!AI33) -> 0 | M33: =SUM(DataInput!N33,DataInput!AJ33) -> 0 | N33: =SUM(DataInput!O33,DataInput!AK33) -> 0 | O33: =DataInput!P33 -> 0 | Q33: 17 | R33: =DataInput!R33 -> 81 | S33: =DataInput!Y33 -> 0 | T33: =IF(DataInput!U33-DataInput!E33>0,DataInput!U33-DataInput!E33,"") -> 38 | U33: =IF(DataInput!W33-DataInput!I33>0,DataInput!W33-DataInput!I33,"") ->  | W33: 119 | X33: 154.7 | Y33: -137.7 | Z33: 0 | AA33: 0 | AB33: =ROUNDDOWN((IF(AA34>0,IFERROR(IF(AVERAGE(DataInput!Q33:Q34)>AVERAGE(AA34,AA33),ROUNDDOWN(((((AA33-Z33)+(AA34-Z34))/2)*(A34-A33))/27+S31+T31,0),IF(((((DataInput!Q34-Z34)+(DataInput!Q33-Z33))/2)*(A34-A33))/27+S31+T31>0,ROUNDDOWN(((((DataInput!Q34-Z33)+(DataInput!Q33-Z33))/2)*(A34-A33))/27+S31+T31,0),0)),0),0)*$X$5),1) -> 0 | AC33: 0 | AD33: =ROUNDDOWN((IF(AC34>0,IFERROR(IF(((((DataInput!Q33-AC33)+(DataInput!Q34-AC34))/2)*(A34-A33))/27+S31+T31>0,ROUNDDOWN(((((DataInput!Q33-AC33)+(DataInput!Q34-AC34))/2)*(A34-A33))/27+S31+T31,0),0),0),0)*$X$5),1) -> 0 | AE33: =DataInput!U33 -> 41 | AF33: =DataInput!S33 -> 0 | AG33: 0 | AH33: 41
A34: =IF(DataInput!A34<>"",DataInput!A34,"") -> 154400 | B34: =SUM(DataInput!C34,DataInput!Y34)+(DataInput!U34-DataInput!E34) -> 59 | C34: =SUM(DataInput!D34,DataInput!Z34) -> 18 | D34: =DataInput!U34 -> 41 | E34: =SUM(DataInput!F34,DataInput!AB34) -> 0 | F34: =SUM(DataInput!G34,DataInput!AC34) -> 0 | G34: =SUM(DataInput!H34,DataInput!AD34) -> 0 | H34: =DataInput!I34 -> 0 | I34: =SUM(DataInput!J34,DataInput!AF34) -> 0 | J34: =SUM(DataInput!K34,DataInput!AG34) -> 0 | K34: =SUM(DataInput!L34,DataInput!AH34) -> 0 | L34: =SUM(DataInput!M34,DataInput!AI34) -> 0 | M34: =SUM(DataInput!N34,DataInput!AJ34) -> 0 | N34: =SUM(DataInput!O34,DataInput!AK34) -> 0 | O34: =DataInput!P34 -> 0 | Q34: 18 | R34: =DataInput!R34 -> 76 | S34: =DataInput!Y34 -> 0 | T34: =IF(DataInput!U34-DataInput!E34>0,DataInput!U34-DataInput!E34,"") -> 38 | U34: =IF(DataInput!W34-DataInput!I34>0,DataInput!W34-DataInput!I34,"") ->  | W34: 114 | X34: 148.2 | Y34: -130.2 | Z34: 0 | AA34: 0 | AB34: =ROUNDDOWN((IF(AA35>0,IFERROR(IF(AVERAGE(DataInput!Q34:Q35)>AVERAGE(AA35,AA34),ROUNDDOWN(((((AA34-Z34)+(AA35-Z35))/2)*(A35-A34))/27+S32+T32,0),IF(((((DataInput!Q35-Z35)+(DataInput!Q34-Z34))/2)*(A35-A34))/27+S32+T32>0,ROUNDDOWN(((((DataInput!Q35-Z34)+(DataInput!Q34-Z34))/2)*(A35-A34))/27+S32+T32,0),0)),0),0)*$X$5),1) -> 0 | AC34: 0 | AD34: =ROUNDDOWN((IF(AC35>0,IFERROR(IF(((((DataInput!Q34-AC34)+(DataInput!Q35-AC35))/2)*(A35-A34))/27+S32+T32>0,ROUNDDOWN(((((DataInput!Q34-AC34)+(DataInput!Q35-AC35))/2)*(A35-A34))/27+S32+T32,0),0),0),0)*$X$5),1) -> 0 | AE34: =DataInput!U34 -> 41 | AF34: =DataInput!S34 -> 0 | AG34: 0 | AH34: 41
A35: =IF(DataInput!A35<>"",DataInput!A35,"") -> 154425 | B35: =SUM(DataInput!C35,DataInput!Y35)+(DataInput!U35-DataInput!E35) -> 60 | C35: =SUM(DataInput!D35,DataInput!Z35) -> 18 | D35: =DataInput!U35 -> 42 | E35: =SUM(DataInput!F35,DataInput!AB35) -> 0 | F35: =SUM(DataInput!G35,DataInput!AC35) -> 0 | G35: =SUM(DataInput!H35,DataInput!AD35) -> 0 | H35: =DataInput!I35 -> 0 | I35: =SUM(DataInput!J35,DataInput!AF35) -> 0 | J35: =SUM(DataInput!K35,DataInput!AG35) -> 0 | K35: =SUM(DataInput!L35,DataInput!AH35) -> 0 | L35: =SUM(DataInput!M35,DataInput!AI35) -> 0 | M35: =SUM(DataInput!N35,DataInput!AJ35) -> 0 | N35: =SUM(DataInput!O35,DataInput!AK35) -> 0 | O35: =DataInput!P35 -> 0 | Q35: 18 | R35: =DataInput!R35 -> 74 | S35: =DataInput!Y35 -> 0 | T35: =IF(DataInput!U35-DataInput!E35>0,DataInput!U35-DataInput!E35,"") -> 38 | U35: =IF(DataInput!W35-DataInput!I35>0,DataInput!W35-DataInput!I35,"") ->  | W35: 112 | X35: 145.6 | Y35: -127.6 | Z35: 0 | AA35: 0 | AB35: =ROUNDDOWN((IF(AA36>0,IFERROR(IF(AVERAGE(DataInput!Q35:Q36)>AVERAGE(AA36,AA35),ROUNDDOWN(((((AA35-Z35)+(AA36-Z36))/2)*(A36-A35))/27+S33+T33,0),IF(((((DataInput!Q36-Z36)+(DataInput!Q35-Z35))/2)*(A36-A35))/27+S33+T33>0,ROUNDDOWN(((((DataInput!Q36-Z35)+(DataInput!Q35-Z35))/2)*(A36-A35))/27+S33+T33,0),0)),0),0)*$X$5),1) -> 0 | AC35: 0 | AD35: =ROUNDDOWN((IF(AC36>0,IFERROR(IF(((((DataInput!Q35-AC35)+(DataInput!Q36-AC36))/2)*(A36-A35))/27+S33+T33>0,ROUNDDOWN(((((DataInput!Q35-AC35)+(DataInput!Q36-AC36))/2)*(A36-A35))/27+S33+T33,0),0),0),0)*$X$5),1) -> 0 | AE35: =DataInput!U35 -> 42 | AF35: =DataInput!S35 -> 0 | AG35: 0 | AH35: 42
A36: =IF(DataInput!A36<>"",DataInput!A36,"") -> 154450 | B36: =SUM(DataInput!C36,DataInput!Y36)+(DataInput!U36-DataInput!E36) -> 60 | C36: =SUM(DataInput!D36,DataInput!Z36) -> 18 | D36: =DataInput!U36 -> 42 | E36: =SUM(DataInput!F36,DataInput!AB36) -> 0 | F36: =SUM(DataInput!G36,DataInput!AC36) -> 0 | G36: =SUM(DataInput!H36,DataInput!AD36) -> 0 | H36: =DataInput!I36 -> 0 | I36: =SUM(DataInput!J36,DataInput!AF36) -> 0 | J36: =SUM(DataInput!K36,DataInput!AG36) -> 0 | K36: =SUM(DataInput!L36,DataInput!AH36) -> 0 | L36: =SUM(DataInput!M36,DataInput!AI36) -> 0 | M36: =SUM(DataInput!N36,DataInput!AJ36) -> 0 | N36: =SUM(DataInput!O36,DataInput!AK36) -> 0 | O36: =DataInput!P36 -> 0 | Q36: 18 | R36: =DataInput!R36 -> 75 | S36: =DataInput!Y36 -> 0 | T36: =IF(DataInput!U36-DataInput!E36>0,DataInput!U36-DataInput!E36,"") -> 39 | U36: =IF(DataInput!W36-DataInput!I36>0,DataInput!W36-DataInput!I36,"") ->  | W36: 114 | X36: 148.2 | Y36: -130.2 | Z36: 0 | AA36: 0 | AB36: =ROUNDDOWN((IF(AA37>0,IFERROR(IF(AVERAGE(DataInput!Q36:Q37)>AVERAGE(AA37,AA36),ROUNDDOWN(((((AA36-Z36)+(AA37-Z37))/2)*(A37-A36))/27+S34+T34,0),IF(((((DataInput!Q37-Z37)+(DataInput!Q36-Z36))/2)*(A37-A36))/27+S34+T34>0,ROUNDDOWN(((((DataInput!Q37-Z36)+(DataInput!Q36-Z36))/2)*(A37-A36))/27+S34+T34,0),0)),0),0)*$X$5),1) -> 0 | AC36: 0 | AD36: =ROUNDDOWN((IF(AC37>0,IFERROR(IF(((((DataInput!Q36-AC36)+(DataInput!Q37-AC37))/2)*(A37-A36))/27+S34+T34>0,ROUNDDOWN(((((DataInput!Q36-AC36)+(DataInput!Q37-AC37))/2)*(A37-A36))/27+S34+T34,0),0),0),0)*$X$5),1) -> 0 | AE36: =DataInput!U36 -> 42 | AF36: =DataInput!S36 -> 0 | AG36: 0 | AH36: 42
A37: =IF(DataInput!A37<>"",DataInput!A37,"") -> 154475 | B37: =SUM(DataInput!C37,DataInput!Y37)+(DataInput!U37-DataInput!E37) -> 60 | C37: =SUM(DataInput!D37,DataInput!Z37) -> 18 | D37: =DataInput!U37 -> 42 | E37: =SUM(DataInput!F37,DataInput!AB37) -> 0 | F37: =SUM(DataInput!G37,DataInput!AC37) -> 0 | G37: =SUM(DataInput!H37,DataInput!AD37) -> 0 | H37: =DataInput!I37 -> 0 | I37: =SUM(DataInput!J37,DataInput!AF37) -> 0 | J37: =SUM(DataInput!K37,DataInput!AG37) -> 0 | K37: =SUM(DataInput!L37,DataInput!AH37) -> 0 | L37: =SUM(DataInput!M37,DataInput!AI37) -> 0 | M37: =SUM(DataInput!N37,DataInput!AJ37) -> 0 | N37: =SUM(DataInput!O37,DataInput!AK37) -> 0 | O37: =DataInput!P37 -> 0 | Q37: 18 | R37: =DataInput!R37 -> 74 | S37: =DataInput!Y37 -> 0 | T37: =IF(DataInput!U37-DataInput!E37>0,DataInput!U37-DataInput!E37,"") -> 39 | U37: =IF(DataInput!W37-DataInput!I37>0,DataInput!W37-DataInput!I37,"") ->  | W37: 113 | X37: 146.9 | Y37: -128.9 | Z37: 0 | AA37: 0 | AB37: =ROUNDDOWN((IF(AA38>0,IFERROR(IF(AVERAGE(DataInput!Q37:Q38)>AVERAGE(AA38,AA37),ROUNDDOWN(((((AA37-Z37)+(AA38-Z38))/2)*(A38-A37))/27+S35+T35,0),IF(((((DataInput!Q38-Z38)+(DataInput!Q37-Z37))/2)*(A38-A37))/27+S35+T35>0,ROUNDDOWN(((((DataInput!Q38-Z37)+(DataInput!Q37-Z37))/2)*(A38-A37))/27+S35+T35,0),0)),0),0)*$X$5),1) -> 0 | AC37: 0 | AD37: =ROUNDDOWN((IF(AC38>0,IFERROR(IF(((((DataInput!Q37-AC37)+(DataInput!Q38-AC38))/2)*(A38-A37))/27+S35+T35>0,ROUNDDOWN(((((DataInput!Q37-AC37)+(DataInput!Q38-AC38))/2)*(A38-A37))/27+S35+T35,0),0),0),0)*$X$5),1) -> 0 | AE37: =DataInput!U37 -> 42 | AF37: =DataInput!S37 -> 0 | AG37: 0 | AH37: 42
A38: =IF(DataInput!A38<>"",DataInput!A38,"") -> 154500 | B38: =SUM(DataInput!C38,DataInput!Y38)+(DataInput!U38-DataInput!E38) -> 61 | C38: =SUM(DataInput!D38,DataInput!Z38) -> 18 | D38: =DataInput!U38 -> 43 | E38: =SUM(DataInput!F38,DataInput!AB38) -> 0 | F38: =SUM(DataInput!G38,DataInput!AC38) -> 0 | G38: =SUM(DataInput!H38,DataInput!AD38) -> 0 | H38: =DataInput!I38 -> 0 | I38: =SUM(DataInput!J38,DataInput!AF38) -> 0 | J38: =SUM(DataInput!K38,DataInput!AG38) -> 0 | K38: =SUM(DataInput!L38,DataInput!AH38) -> 0 | L38: =SUM(DataInput!M38,DataInput!AI38) -> 0 | M38: =SUM(DataInput!N38,DataInput!AJ38) -> 0 | N38: =SUM(DataInput!O38,DataInput!AK38) -> 0 | O38: =DataInput!P38 -> 0 | Q38: 18 | R38: =DataInput!R38 -> 72 | S38: =DataInput!Y38 -> 0 | T38: =IF(DataInput!U38-DataInput!E38>0,DataInput!U38-DataInput!E38,"") -> 40 | U38: =IF(DataInput!W38-DataInput!I38>0,DataInput!W38-DataInput!I38,"") ->  | W38: 112 | X38: 145.6 | Y38: -127.6 | Z38: 0 | AA38: 0 | AB38: =ROUNDDOWN((IF(AA39>0,IFERROR(IF(AVERAGE(DataInput!Q38:Q39)>AVERAGE(AA39,AA38),ROUNDDOWN(((((AA38-Z38)+(AA39-Z39))/2)*(A39-A38))/27+S36+T36,0),IF(((((DataInput!Q39-Z39)+(DataInput!Q38-Z38))/2)*(A39-A38))/27+S36+T36>0,ROUNDDOWN(((((DataInput!Q39-Z38)+(DataInput!Q38-Z38))/2)*(A39-A38))/27+S36+T36,0),0)),0),0)*$X$5),1) -> 0 | AC38: 0 | AD38: =ROUNDDOWN((IF(AC39>0,IFERROR(IF(((((DataInput!Q38-AC38)+(DataInput!Q39-AC39))/2)*(A39-A38))/27+S36+T36>0,ROUNDDOWN(((((DataInput!Q38-AC38)+(DataInput!Q39-AC39))/2)*(A39-A38))/27+S36+T36,0),0),0),0)*$X$5),1) -> 0 | AE38: =DataInput!U38 -> 43 | AF38: =DataInput!S38 -> 0 | AG38: 0 | AH38: 43
A39: =IF(DataInput!A39<>"",DataInput!A39,"") -> 154525 | B39: =SUM(DataInput!C39,DataInput!Y39)+(DataInput!U39-DataInput!E39) -> 61 | C39: =SUM(DataInput!D39,DataInput!Z39) -> 18 | D39: =DataInput!U39 -> 43 | E39: =SUM(DataInput!F39,DataInput!AB39) -> 0 | F39: =SUM(DataInput!G39,DataInput!AC39) -> 0 | G39: =SUM(DataInput!H39,DataInput!AD39) -> 0 | H39: =DataInput!I39 -> 0 | I39: =SUM(DataInput!J39,DataInput!AF39) -> 0 | J39: =SUM(DataInput!K39,DataInput!AG39) -> 0 | K39: =SUM(DataInput!L39,DataInput!AH39) -> 0 | L39: =SUM(DataInput!M39,DataInput!AI39) -> 0 | M39: =SUM(DataInput!N39,DataInput!AJ39) -> 0 | N39: =SUM(DataInput!O39,DataInput!AK39) -> 0 | O39: =DataInput!P39 -> 0 | Q39: 18 | R39: =DataInput!R39 -> 70 | S39: =DataInput!Y39 -> 0 | T39: =IF(DataInput!U39-DataInput!E39>0,DataInput!U39-DataInput!E39,"") -> 40 | U39: =IF(DataInput!W39-DataInput!I39>0,DataInput!W39-DataInput!I39,"") ->  | W39: 110 | X39: 143 | Y39: -125 | Z39: 0 | AA39: 0 | AB39: =ROUNDDOWN((IF(AA40>0,IFERROR(IF(AVERAGE(DataInput!Q39:Q40)>AVERAGE(AA40,AA39),ROUNDDOWN(((((AA39-Z39)+(AA40-Z40))/2)*(A40-A39))/27+S37+T37,0),IF(((((DataInput!Q40-Z40)+(DataInput!Q39-Z39))/2)*(A40-A39))/27+S37+T37>0,ROUNDDOWN(((((DataInput!Q40-Z39)+(DataInput!Q39-Z39))/2)*(A40-A39))/27+S37+T37,0),0)),0),0)*$X$5),1) -> 0 | AC39: 0 | AD39: =ROUNDDOWN((IF(AC40>0,IFERROR(IF(((((DataInput!Q39-AC39)+(DataInput!Q40-AC40))/2)*(A40-A39))/27+S37+T37>0,ROUNDDOWN(((((DataInput!Q39-AC39)+(DataInput!Q40-AC40))/2)*(A40-A39))/27+S37+T37,0),0),0),0)*$X$5),1) -> 0 | AE39: =DataInput!U39 -> 43 | AF39: =DataInput!S39 -> 0 | AG39: 0 | AH39: 43
A40: =IF(DataInput!A40<>"",DataInput!A40,"") -> 154550 | B40: =SUM(DataInput!C40,DataInput!Y40)+(DataInput!U40-DataInput!E40) -> 61 | C40: =SUM(DataInput!D40,DataInput!Z40) -> 18 | D40: =DataInput!U40 -> 43 | E40: =SUM(DataInput!F40,DataInput!AB40) -> 0 | F40: =SUM(DataInput!G40,DataInput!AC40) -> 0 | G40: =SUM(DataInput!H40,DataInput!AD40) -> 0 | H40: =DataInput!I40 -> 0 | I40: =SUM(DataInput!J40,DataInput!AF40) -> 0 | J40: =SUM(DataInput!K40,DataInput!AG40) -> 0 | K40: =SUM(DataInput!L40,DataInput!AH40) -> 0 | L40: =SUM(DataInput!M40,DataInput!AI40) -> 0 | M40: =SUM(DataInput!N40,DataInput!AJ40) -> 0 | N40: =SUM(DataInput!O40,DataInput!AK40) -> 0 | O40: =DataInput!P40 -> 0 | Q40: 18 | R40: =DataInput!R40 -> 69 | S40: =DataInput!Y40 -> 0 | T40: =IF(DataInput!U40-DataInput!E40>0,DataInput!U40-DataInput!E40,"") -> 40 | U40: =IF(DataInput!W40-DataInput!I40>0,DataInput!W40-DataInput!I40,"") ->  | W40: 109 | X40: 141.7 | Y40: -123.7 | Z40: 0 | AA40: 0 | AB40: =ROUNDDOWN((IF(AA41>0,IFERROR(IF(AVERAGE(DataInput!Q40:Q41)>AVERAGE(AA41,AA40),ROUNDDOWN(((((AA40-Z40)+(AA41-Z41))/2)*(A41-A40))/27+S38+T38,0),IF(((((DataInput!Q41-Z41)+(DataInput!Q40-Z40))/2)*(A41-A40))/27+S38+T38>0,ROUNDDOWN(((((DataInput!Q41-Z40)+(DataInput!Q40-Z40))/2)*(A41-A40))/27+S38+T38,0),0)),0),0)*$X$5),1) -> 0 | AC40: 0 | AD40: =ROUNDDOWN((IF(AC41>0,IFERROR(IF(((((DataInput!Q40-AC40)+(DataInput!Q41-AC41))/2)*(A41-A40))/27+S38+T38>0,ROUNDDOWN(((((DataInput!Q40-AC40)+(DataInput!Q41-AC41))/2)*(A41-A40))/27+S38+T38,0),0),0),0)*$X$5),1) -> 0 | AE40: =DataInput!U40 -> 43 | AF40: =DataInput!S40 -> 0 | AG40: 0 | AH40: 43
A41: =IF(DataInput!A41<>"",DataInput!A41,"") -> 154575 | B41: =SUM(DataInput!C41,DataInput!Y41)+(DataInput!U41-DataInput!E41) -> 61 | C41: =SUM(DataInput!D41,DataInput!Z41) -> 18 | D41: =DataInput!U41 -> 43 | E41: =SUM(DataInput!F41,DataInput!AB41) -> 0 | F41: =SUM(DataInput!G41,DataInput!AC41) -> 0 | G41: =SUM(DataInput!H41,DataInput!AD41) -> 0 | H41: =DataInput!I41 -> 0 | I41: =SUM(DataInput!J41,DataInput!AF41) -> 0 | J41: =SUM(DataInput!K41,DataInput!AG41) -> 0 | K41: =SUM(DataInput!L41,DataInput!AH41) -> 0 | L41: =SUM(DataInput!M41,DataInput!AI41) -> 0 | M41: =SUM(DataInput!N41,DataInput!AJ41) -> 0 | N41: =SUM(DataInput!O41,DataInput!AK41) -> 0 | O41: =DataInput!P41 -> 0 | Q41: 18 | R41: =DataInput!R41 -> 65 | S41: =DataInput!Y41 -> 0 | T41: =IF(DataInput!U41-DataInput!E41>0,DataInput!U41-DataInput!E41,"") -> 40 | U41: =IF(DataInput!W41-DataInput!I41>0,DataInput!W41-DataInput!I41,"") ->  | W41: 105 | X41: 136.5 | Y41: -118.5 | Z41: 0 | AA41: 0 | AB41: =ROUNDDOWN((IF(AA42>0,IFERROR(IF(AVERAGE(DataInput!Q41:Q42)>AVERAGE(AA42,AA41),ROUNDDOWN(((((AA41-Z41)+(AA42-Z42))/2)*(A42-A41))/27+S39+T39,0),IF(((((DataInput!Q42-Z42)+(DataInput!Q41-Z41))/2)*(A42-A41))/27+S39+T39>0,ROUNDDOWN(((((DataInput!Q42-Z41)+(DataInput!Q41-Z41))/2)*(A42-A41))/27+S39+T39,0),0)),0),0)*$X$5),1) -> 0 | AC41: 0 | AD41: =ROUNDDOWN((IF(AC42>0,IFERROR(IF(((((DataInput!Q41-AC41)+(DataInput!Q42-AC42))/2)*(A42-A41))/27+S39+T39>0,ROUNDDOWN(((((DataInput!Q41-AC41)+(DataInput!Q42-AC42))/2)*(A42-A41))/27+S39+T39,0),0),0),0)*$X$5),1) -> 0 | AE41: =DataInput!U41 -> 43 | AF41: =DataInput!S41 -> 1 | AG41: 1.4 | AH41: 41.6
A42: =IF(DataInput!A42<>"",DataInput!A42,"") -> 154600 | B42: =SUM(DataInput!C42,DataInput!Y42)+(DataInput!U42-DataInput!E42) -> 60 | C42: =SUM(DataInput!D42,DataInput!Z42) -> 19 | D42: =DataInput!U42 -> 42 | E42: =SUM(DataInput!F42,DataInput!AB42) -> 0 | F42: =SUM(DataInput!G42,DataInput!AC42) -> 0 | G42: =SUM(DataInput!H42,DataInput!AD42) -> 0 | H42: =DataInput!I42 -> 0 | I42: =SUM(DataInput!J42,DataInput!AF42) -> 0 | J42: =SUM(DataInput!K42,DataInput!AG42) -> 0 | K42: =SUM(DataInput!L42,DataInput!AH42) -> 0 | L42: =SUM(DataInput!M42,DataInput!AI42) -> 0 | M42: =SUM(DataInput!N42,DataInput!AJ42) -> 0 | N42: =SUM(DataInput!O42,DataInput!AK42) -> 0 | O42: =DataInput!P42 -> 0 | Q42: 19 | R42: =DataInput!R42 -> 51 | S42: =DataInput!Y42 -> 0 | T42: =IF(DataInput!U42-DataInput!E42>0,DataInput!U42-DataInput!E42,"") -> 38 | U42: =IF(DataInput!W42-DataInput!I42>0,DataInput!W42-DataInput!I42,"") ->  | W42: 89 | X42: 115.7 | Y42: -96.7 | Z42: 0 | AA42: 0 | AB42: =ROUNDDOWN((IF(AA43>0,IFERROR(IF(AVERAGE(DataInput!Q42:Q43)>AVERAGE(AA43,AA42),ROUNDDOWN(((((AA42-Z42)+(AA43-Z43))/2)*(A43-A42))/27+S40+T40,0),IF(((((DataInput!Q43-Z43)+(DataInput!Q42-Z42))/2)*(A43-A42))/27+S40+T40>0,ROUNDDOWN(((((DataInput!Q43-Z42)+(DataInput!Q42-Z42))/2)*(A43-A42))/27+S40+T40,0),0)),0),0)*$X$5),1) -> 0 | AC42: 0 | AD42: =ROUNDDOWN((IF(AC43>0,IFERROR(IF(((((DataInput!Q42-AC42)+(DataInput!Q43-AC43))/2)*(A43-A42))/27+S40+T40>0,ROUNDDOWN(((((DataInput!Q42-AC42)+(DataInput!Q43-AC43))/2)*(A43-A42))/27+S40+T40,0),0),0),0)*$X$5),1) -> 0 | AE42: =DataInput!U42 -> 42 | AF42: =DataInput!S42 -> 4 | AG42: 5.6 | AH42: 36.4
A43: =IF(DataInput!A43<>"",DataInput!A43,"") -> 154625 | B43: =SUM(DataInput!C43,DataInput!Y43)+(DataInput!U43-DataInput!E43) -> 59 | C43: =SUM(DataInput!D43,DataInput!Z43) -> 20 | D43: =DataInput!U43 -> 39 | E43: =SUM(DataInput!F43,DataInput!AB43) -> 0 | F43: =SUM(DataInput!G43,DataInput!AC43) -> 0 | G43: =SUM(DataInput!H43,DataInput!AD43) -> 0 | H43: =DataInput!I43 -> 0 | I43: =SUM(DataInput!J43,DataInput!AF43) -> 0 | J43: =SUM(DataInput!K43,DataInput!AG43) -> 0 | K43: =SUM(DataInput!L43,DataInput!AH43) -> 0 | L43: =SUM(DataInput!M43,DataInput!AI43) -> 0 | M43: =SUM(DataInput!N43,DataInput!AJ43) -> 0 | N43: =SUM(DataInput!O43,DataInput!AK43) -> 0 | O43: =DataInput!P43 -> 0 | Q43: 20 | R43: =DataInput!R43 -> 34 | S43: =DataInput!Y43 -> 0 | T43: =IF(DataInput!U43-DataInput!E43>0,DataInput!U43-DataInput!E43,"") -> 34 | U43: =IF(DataInput!W43-DataInput!I43>0,DataInput!W43-DataInput!I43,"") ->  | W43: 68 | X43: 88.4 | Y43: -68.4 | Z43: 0 | AA43: 0 | AB43: =ROUNDDOWN((IF(AA44>0,IFERROR(IF(AVERAGE(DataInput!Q43:Q44)>AVERAGE(AA44,AA43),ROUNDDOWN(((((AA43-Z43)+(AA44-Z44))/2)*(A44-A43))/27+S41+T41,0),IF(((((DataInput!Q44-Z44)+(DataInput!Q43-Z43))/2)*(A44-A43))/27+S41+T41>0,ROUNDDOWN(((((DataInput!Q44-Z43)+(DataInput!Q43-Z43))/2)*(A44-A43))/27+S41+T41,0),0)),0),0)*$X$5),1) -> 0 | AC43: 0 | AD43: =ROUNDDOWN((IF(AC44>0,IFERROR(IF(((((DataInput!Q43-AC43)+(DataInput!Q44-AC44))/2)*(A44-A43))/27+S41+T41>0,ROUNDDOWN(((((DataInput!Q43-AC43)+(DataInput!Q44-AC44))/2)*(A44-A43))/27+S41+T41,0),0),0),0)*$X$5),1) -> 0 | AE43: =DataInput!U43 -> 39 | AF43: =DataInput!S43 -> 4 | AG43: 5.6 | AH43: 33.4
A44: =IF(DataInput!A44<>"",DataInput!A44,"") -> 154650 | B44: =SUM(DataInput!C44,DataInput!Y44)+(DataInput!U44-DataInput!E44) -> 55 | C44: =SUM(DataInput!D44,DataInput!Z44) -> 20 | D44: =DataInput!U44 -> 35 | E44: =SUM(DataInput!F44,DataInput!AB44) -> 0 | F44: =SUM(DataInput!G44,DataInput!AC44) -> 0 | G44: =SUM(DataInput!H44,DataInput!AD44) -> 0 | H44: =DataInput!I44 -> 0 | I44: =SUM(DataInput!J44,DataInput!AF44) -> 0 | J44: =SUM(DataInput!K44,DataInput!AG44) -> 0 | K44: =SUM(DataInput!L44,DataInput!AH44) -> 0 | L44: =SUM(DataInput!M44,DataInput!AI44) -> 0 | M44: =SUM(DataInput!N44,DataInput!AJ44) -> 0 | N44: =SUM(DataInput!O44,DataInput!AK44) -> 0 | O44: =DataInput!P44 -> 0 | Q44: 20 | R44: =DataInput!R44 -> 23 | S44: =DataInput!Y44 -> 0 | T44: =IF(DataInput!U44-DataInput!E44>0,DataInput!U44-DataInput!E44,"") -> 29 | U44: =IF(DataInput!W44-DataInput!I44>0,DataInput!W44-DataInput!I44,"") ->  | W44: 52 | X44: 67.6 | Y44: -47.6 | Z44: 0 | AA44: 0 | AB44: =ROUNDDOWN((IF(AA45>0,IFERROR(IF(AVERAGE(DataInput!Q44:Q45)>AVERAGE(AA45,AA44),ROUNDDOWN(((((AA44-Z44)+(AA45-Z45))/2)*(A45-A44))/27+S42+T42,0),IF(((((DataInput!Q45-Z45)+(DataInput!Q44-Z44))/2)*(A45-A44))/27+S42+T42>0,ROUNDDOWN(((((DataInput!Q45-Z44)+(DataInput!Q44-Z44))/2)*(A45-A44))/27+S42+T42,0),0)),0),0)*$X$5),1) -> 0 | AC44: 0 | AD44: =ROUNDDOWN((IF(AC45>0,IFERROR(IF(((((DataInput!Q44-AC44)+(DataInput!Q45-AC45))/2)*(A45-A44))/27+S42+T42>0,ROUNDDOWN(((((DataInput!Q44-AC44)+(DataInput!Q45-AC45))/2)*(A45-A44))/27+S42+T42,0),0),0),0)*$X$5),1) -> 0 | AE44: =DataInput!U44 -> 35 | AF44: =DataInput!S44 -> 4 | AG44: 5.6 | AH44: 29.4
A45: =IF(DataInput!A45<>"",DataInput!A45,"") -> 154675 | B45: =SUM(DataInput!C45,DataInput!Y45)+(DataInput!U45-DataInput!E45) -> 51 | C45: =SUM(DataInput!D45,DataInput!Z45) -> 20 | D45: =DataInput!U45 -> 31 | E45: =SUM(DataInput!F45,DataInput!AB45) -> 0 | F45: =SUM(DataInput!G45,DataInput!AC45) -> 0 | G45: =SUM(DataInput!H45,DataInput!AD45) -> 0 | H45: =DataInput!I45 -> 0 | I45: =SUM(DataInput!J45,DataInput!AF45) -> 0 | J45: =SUM(DataInput!K45,DataInput!AG45) -> 0 | K45: =SUM(DataInput!L45,DataInput!AH45) -> 0 | L45: =SUM(DataInput!M45,DataInput!AI45) -> 0 | M45: =SUM(DataInput!N45,DataInput!AJ45) -> 0 | N45: =SUM(DataInput!O45,DataInput!AK45) -> 0 | O45: =DataInput!P45 -> 0 | Q45: 20 | R45: =DataInput!R45 -> 15 | S45: =DataInput!Y45 -> 0 | T45: =IF(DataInput!U45-DataInput!E45>0,DataInput!U45-DataInput!E45,"") -> 25 | U45: =IF(DataInput!W45-DataInput!I45>0,DataInput!W45-DataInput!I45,"") ->  | W45: 40 | X45: 52 | Y45: -32 | Z45: 0 | AA45: 0 | AB45: =ROUNDDOWN((IF(AA46>0,IFERROR(IF(AVERAGE(DataInput!Q45:Q46)>AVERAGE(AA46,AA45),ROUNDDOWN(((((AA45-Z45)+(AA46-Z46))/2)*(A46-A45))/27+S43+T43,0),IF(((((DataInput!Q46-Z46)+(DataInput!Q45-Z45))/2)*(A46-A45))/27+S43+T43>0,ROUNDDOWN(((((DataInput!Q46-Z45)+(DataInput!Q45-Z45))/2)*(A46-A45))/27+S43+T43,0),0)),0),0)*$X$5),1) -> 0 | AC45: 0 | AD45: =ROUNDDOWN((IF(AC46>0,IFERROR(IF(((((DataInput!Q45-AC45)+(DataInput!Q46-AC46))/2)*(A46-A45))/27+S43+T43>0,ROUNDDOWN(((((DataInput!Q45-AC45)+(DataInput!Q46-AC46))/2)*(A46-A45))/27+S43+T43,0),0),0),0)*$X$5),1) -> 0 | AE45: =DataInput!U45 -> 31 | AF45: =DataInput!S45 -> 4 | AG45: 5.6 | AH45: 25.4
A46: =IF(DataInput!A46<>"",DataInput!A46,"") -> 154700 | B46: =SUM(DataInput!C46,DataInput!Y46)+(DataInput!U46-DataInput!E46) -> 48 | C46: =SUM(DataInput!D46,DataInput!Z46) -> 20 | D46: =DataInput!U46 -> 28 | E46: =SUM(DataInput!F46,DataInput!AB46) -> 0 | F46: =SUM(DataInput!G46,DataInput!AC46) -> 0 | G46: =SUM(DataInput!H46,DataInput!AD46) -> 0 | H46: =DataInput!I46 -> 0 | I46: =SUM(DataInput!J46,DataInput!AF46) -> 0 | J46: =SUM(DataInput!K46,DataInput!AG46) -> 0 | K46: =SUM(DataInput!L46,DataInput!AH46) -> 0 | L46: =SUM(DataInput!M46,DataInput!AI46) -> 0 | M46: =SUM(DataInput!N46,DataInput!AJ46) -> 0 | N46: =SUM(DataInput!O46,DataInput!AK46) -> 0 | O46: =DataInput!P46 -> 0 | Q46: 20 | R46: =DataInput!R46 -> 8 | S46: =DataInput!Y46 -> 0 | T46: =IF(DataInput!U46-DataInput!E46>0,DataInput!U46-DataInput!E46,"") -> 22 | U46: =IF(DataInput!W46-DataInput!I46>0,DataInput!W46-DataInput!I46,"") ->  | W46: 30 | X46: 39 | Y46: -19 | Z46: 0 | AA46: 0 | AB46: =ROUNDDOWN((IF(AA47>0,IFERROR(IF(AVERAGE(DataInput!Q46:Q47)>AVERAGE(AA47,AA46),ROUNDDOWN(((((AA46-Z46)+(AA47-Z47))/2)*(A47-A46))/27+S44+T44,0),IF(((((DataInput!Q47-Z47)+(DataInput!Q46-Z46))/2)*(A47-A46))/27+S44+T44>0,ROUNDDOWN(((((DataInput!Q47-Z46)+(DataInput!Q46-Z46))/2)*(A47-A46))/27+S44+T44,0),0)),0),0)*$X$5),1) -> 0 | AC46: 0 | AD46: =ROUNDDOWN((IF(AC47>0,IFERROR(IF(((((DataInput!Q46-AC46)+(DataInput!Q47-AC47))/2)*(A47-A46))/27+S44+T44>0,ROUNDDOWN(((((DataInput!Q46-AC46)+(DataInput!Q47-AC47))/2)*(A47-A46))/27+S44+T44,0),0),0),0)*$X$5),1) -> 0 | AE46: =DataInput!U46 -> 28 | AF46: =DataInput!S46 -> 4 | AG46: 5.6 | AH46: 22.4
A47: =IF(DataInput!A47<>"",DataInput!A47,"") -> 154725 | B47: =SUM(DataInput!C47,DataInput!Y47)+(DataInput!U47-DataInput!E47) -> 44 | C47: =SUM(DataInput!D47,DataInput!Z47) -> 20 | D47: =DataInput!U47 -> 24 | E47: =SUM(DataInput!F47,DataInput!AB47) -> 0 | F47: =SUM(DataInput!G47,DataInput!AC47) -> 0 | G47: =SUM(DataInput!H47,DataInput!AD47) -> 0 | H47: =DataInput!I47 -> 0 | I47: =SUM(DataInput!J47,DataInput!AF47) -> 0 | J47: =SUM(DataInput!K47,DataInput!AG47) -> 0 | K47: =SUM(DataInput!L47,DataInput!AH47) -> 0 | L47: =SUM(DataInput!M47,DataInput!AI47) -> 0 | M47: =SUM(DataInput!N47,DataInput!AJ47) -> 0 | N47: =SUM(DataInput!O47,DataInput!AK47) -> 0 | O47: =DataInput!P47 -> 0 | Q47: 20 | R47: =DataInput!R47 -> 4 | S47: =DataInput!Y47 -> 0 | T47: =IF(DataInput!U47-DataInput!E47>0,DataInput!U47-DataInput!E47,"") -> 18 | U47: =IF(DataInput!W47-DataInput!I47>0,DataInput!W47-DataInput!I47,"") ->  | W47: 22 | X47: 28.6 | Y47: -8.6 | Z47: 0 | AA47: 0 | AB47: =ROUNDDOWN((IF(AA48>0,IFERROR(IF(AVERAGE(DataInput!Q47:Q48)>AVERAGE(AA48,AA47),ROUNDDOWN(((((AA47-Z47)+(AA48-Z48))/2)*(A48-A47))/27+S45+T45,0),IF(((((DataInput!Q48-Z48)+(DataInput!Q47-Z47))/2)*(A48-A47))/27+S45+T45>0,ROUNDDOWN(((((DataInput!Q48-Z47)+(DataInput!Q47-Z47))/2)*(A48-A47))/27+S45+T45,0),0)),0),0)*$X$5),1) -> 0 | AC47: 0 | AD47: =ROUNDDOWN((IF(AC48>0,IFERROR(IF(((((DataInput!Q47-AC47)+(DataInput!Q48-AC48))/2)*(A48-A47))/27+S45+T45>0,ROUNDDOWN(((((DataInput!Q47-AC47)+(DataInput!Q48-AC48))/2)*(A48-A47))/27+S45+T45,0),0),0),0)*$X$5),1) -> 0 | AE47: =DataInput!U47 -> 24 | AF47: =DataInput!S47 -> 3 | AG47: 4.2 | AH47: 19.8
A48: =IF(DataInput!A48<>"",DataInput!A48,"") -> 154750 | B48: =SUM(DataInput!C48,DataInput!Y48)+(DataInput!U48-DataInput!E48) -> 39 | C48: =SUM(DataInput!D48,DataInput!Z48) -> 19 | D48: =DataInput!U48 -> 20 | E48: =SUM(DataInput!F48,DataInput!AB48) -> 0 | F48: =SUM(DataInput!G48,DataInput!AC48) -> 0 | G48: =SUM(DataInput!H48,DataInput!AD48) -> 0 | H48: =DataInput!I48 -> 0 | I48: =SUM(DataInput!J48,DataInput!AF48) -> 0 | J48: =SUM(DataInput!K48,DataInput!AG48) -> 0 | K48: =SUM(DataInput!L48,DataInput!AH48) -> 0 | L48: =SUM(DataInput!M48,DataInput!AI48) -> 0 | M48: =SUM(DataInput!N48,DataInput!AJ48) -> 0 | N48: =SUM(DataInput!O48,DataInput!AK48) -> 0 | O48: =DataInput!P48 -> 0 | Q48: 19 | R48: =DataInput!R48 -> 2 | S48: =DataInput!Y48 -> 0 | T48: =IF(DataInput!U48-DataInput!E48>0,DataInput!U48-DataInput!E48,"") -> 14 | U48: =IF(DataInput!W48-DataInput!I48>0,DataInput!W48-DataInput!I48,"") ->  | W48: 16 | X48: 20.8 | Y48: -1.8 | Z48: 0 | AA48: 0 | AB48: =ROUNDDOWN((IF(AA49>0,IFERROR(IF(AVERAGE(DataInput!Q48:Q49)>AVERAGE(AA49,AA48),ROUNDDOWN(((((AA48-Z48)+(AA49-Z49))/2)*(A49-A48))/27+S46+T46,0),IF(((((DataInput!Q49-Z49)+(DataInput!Q48-Z48))/2)*(A49-A48))/27+S46+T46>0,ROUNDDOWN(((((DataInput!Q49-Z48)+(DataInput!Q48-Z48))/2)*(A49-A48))/27+S46+T46,0),0)),0),0)*$X$5),1) -> 0 | AC48: 0 | AD48: =ROUNDDOWN((IF(AC49>0,IFERROR(IF(((((DataInput!Q48-AC48)+(DataInput!Q49-AC49))/2)*(A49-A48))/27+S46+T46>0,ROUNDDOWN(((((DataInput!Q48-AC48)+(DataInput!Q49-AC49))/2)*(A49-A48))/27+S46+T46,0),0),0),0)*$X$5),1) -> 0 | AE48: =DataInput!U48 -> 20 | AF48: =DataInput!S48 -> 3 | AG48: 4.2 | AH48: 15.8
A49: =IF(DataInput!A49<>"",DataInput!A49,"") -> 154775 | B49: =SUM(DataInput!C49,DataInput!Y49)+(DataInput!U49-DataInput!E49) -> 35 | C49: =SUM(DataInput!D49,DataInput!Z49) -> 19 | D49: =DataInput!U49 -> 16 | E49: =SUM(DataInput!F49,DataInput!AB49) -> 0 | F49: =SUM(DataInput!G49,DataInput!AC49) -> 0 | G49: =SUM(DataInput!H49,DataInput!AD49) -> 0 | H49: =DataInput!I49 -> 0 | I49: =SUM(DataInput!J49,DataInput!AF49) -> 0 | J49: =SUM(DataInput!K49,DataInput!AG49) -> 0 | K49: =SUM(DataInput!L49,DataInput!AH49) -> 0 | L49: =SUM(DataInput!M49,DataInput!AI49) -> 0 | M49: =SUM(DataInput!N49,DataInput!AJ49) -> 0 | N49: =SUM(DataInput!O49,DataInput!AK49) -> 0 | O49: =DataInput!P49 -> 0 | Q49: 19 | R49: =DataInput!R49 -> 0 | S49: =DataInput!Y49 -> 0 | T49: =IF(DataInput!U49-DataInput!E49>0,DataInput!U49-DataInput!E49,"") -> 11 | U49: =IF(DataInput!W49-DataInput!I49>0,DataInput!W49-DataInput!I49,"") ->  | W49: 11 | X49: 14.3 | Y49: 4.7 | Z49: 0 | AA49: 0 | AB49: =ROUNDDOWN((IF(AA50>0,IFERROR(IF(AVERAGE(DataInput!Q49:Q50)>AVERAGE(AA50,AA49),ROUNDDOWN(((((AA49-Z49)+(AA50-Z50))/2)*(A50-A49))/27+S47+T47,0),IF(((((DataInput!Q50-Z50)+(DataInput!Q49-Z49))/2)*(A50-A49))/27+S47+T47>0,ROUNDDOWN(((((DataInput!Q50-Z49)+(DataInput!Q49-Z49))/2)*(A50-A49))/27+S47+T47,0),0)),0),0)*$X$5),1) -> 0 | AC49: 0 | AD49: =ROUNDDOWN((IF(AC50>0,IFERROR(IF(((((DataInput!Q49-AC49)+(DataInput!Q50-AC50))/2)*(A50-A49))/27+S47+T47>0,ROUNDDOWN(((((DataInput!Q49-AC49)+(DataInput!Q50-AC50))/2)*(A50-A49))/27+S47+T47,0),0),0),0)*$X$5),1) -> 0 | AE49: =DataInput!U49 -> 16 | AF49: =DataInput!S49 -> 2 | AG49: 2.8 | AH49: 13.2
A50: =IF(DataInput!A50<>"",DataInput!A50,"") -> 154800 | B50: =SUM(DataInput!C50,DataInput!Y50)+(DataInput!U50-DataInput!E50) -> 31 | C50: =SUM(DataInput!D50,DataInput!Z50) -> 19 | D50: =DataInput!U50 -> 12 | E50: =SUM(DataInput!F50,DataInput!AB50) -> 0 | F50: =SUM(DataInput!G50,DataInput!AC50) -> 0 | G50: =SUM(DataInput!H50,DataInput!AD50) -> 0 | H50: =DataInput!I50 -> 0 | I50: =SUM(DataInput!J50,DataInput!AF50) -> 0 | J50: =SUM(DataInput!K50,DataInput!AG50) -> 0 | K50: =SUM(DataInput!L50,DataInput!AH50) -> 0 | L50: =SUM(DataInput!M50,DataInput!AI50) -> 0 | M50: =SUM(DataInput!N50,DataInput!AJ50) -> 0 | N50: =SUM(DataInput!O50,DataInput!AK50) -> 0 | O50: =DataInput!P50 -> 0 | Q50: 19 | R50: =DataInput!R50 -> 0 | S50: =DataInput!Y50 -> 0 | T50: =IF(DataInput!U50-DataInput!E50>0,DataInput!U50-DataInput!E50,"") -> 7 | U50: =IF(DataInput!W50-DataInput!I50>0,DataInput!W50-DataInput!I50,"") ->  | W50: 7 | X50: 9.1 | Y50: 9.9 | Z50: 0 | AA50: 0 | AB50: =ROUNDDOWN((IF(AA51>0,IFERROR(IF(AVERAGE(DataInput!Q50:Q51)>AVERAGE(AA51,AA50),ROUNDDOWN(((((AA50-Z50)+(AA51-Z51))/2)*(A51-A50))/27+S48+T48,0),IF(((((DataInput!Q51-Z51)+(DataInput!Q50-Z50))/2)*(A51-A50))/27+S48+T48>0,ROUNDDOWN(((((DataInput!Q51-Z50)+(DataInput!Q50-Z50))/2)*(A51-A50))/27+S48+T48,0),0)),0),0)*$X$5),1) -> 0 | AC50: 0 | AD50: =ROUNDDOWN((IF(AC51>0,IFERROR(IF(((((DataInput!Q50-AC50)+(DataInput!Q51-AC51))/2)*(A51-A50))/27+S48+T48>0,ROUNDDOWN(((((DataInput!Q50-AC50)+(DataInput!Q51-AC51))/2)*(A51-A50))/27+S48+T48,0),0),0),0)*$X$5),1) -> 0 | AE50: =DataInput!U50 -> 12 | AF50: =DataInput!S50 -> 2 | AG50: 2.8 | AH50: 9.2
A51: =IF(DataInput!A51<>"",DataInput!A51,"") -> 154825 | B51: =SUM(DataInput!C51,DataInput!Y51)+(DataInput!U51-DataInput!E51) -> 30 | C51: =SUM(DataInput!D51,DataInput!Z51) -> 19 | D51: =DataInput!U51 -> 11 | E51: =SUM(DataInput!F51,DataInput!AB51) -> 0 | F51: =SUM(DataInput!G51,DataInput!AC51) -> 0 | G51: =SUM(DataInput!H51,DataInput!AD51) -> 0 | H51: =DataInput!I51 -> 0 | I51: =SUM(DataInput!J51,DataInput!AF51) -> 0 | J51: =SUM(DataInput!K51,DataInput!AG51) -> 0 | K51: =SUM(DataInput!L51,DataInput!AH51) -> 0 | L51: =SUM(DataInput!M51,DataInput!AI51) -> 0 | M51: =SUM(DataInput!N51,DataInput!AJ51) -> 0 | N51: =SUM(DataInput!O51,DataInput!AK51) -> 0 | O51: =DataInput!P51 -> 0 | Q51: 19 | R51: =DataInput!R51 -> 0 | S51: =DataInput!Y51 -> 0 | T51: =IF(DataInput!U51-DataInput!E51>0,DataInput!U51-DataInput!E51,"") -> 7 | U51: =IF(DataInput!W51-DataInput!I51>0,DataInput!W51-DataInput!I51,"") ->  | W51: 7 | X51: 9.1 | Y51: 9.9 | Z51: 0 | AA51: 0 | AB51: =ROUNDDOWN((IF(AA52>0,IFERROR(IF(AVERAGE(DataInput!Q51:Q52)>AVERAGE(AA52,AA51),ROUNDDOWN(((((AA51-Z51)+(AA52-Z52))/2)*(A52-A51))/27+S49+T49,0),IF(((((DataInput!Q52-Z52)+(DataInput!Q51-Z51))/2)*(A52-A51))/27+S49+T49>0,ROUNDDOWN(((((DataInput!Q52-Z51)+(DataInput!Q51-Z51))/2)*(A52-A51))/27+S49+T49,0),0)),0),0)*$X$5),1) -> 0 | AC51: 0 | AD51: =ROUNDDOWN((IF(AC52>0,IFERROR(IF(((((DataInput!Q51-AC51)+(DataInput!Q52-AC52))/2)*(A52-A51))/27+S49+T49>0,ROUNDDOWN(((((DataInput!Q51-AC51)+(DataInput!Q52-AC52))/2)*(A52-A51))/27+S49+T49,0),0),0),0)*$X$5),1) -> 0 | AE51: =DataInput!U51 -> 11 | AF51: =DataInput!S51 -> 2 | AG51: 2.8 | AH51: 8.2
A52: =IF(DataInput!A52<>"",DataInput!A52,"") -> 154850 | B52: =SUM(DataInput!C52,DataInput!Y52)+(DataInput!U52-DataInput!E52) -> 32 | C52: =SUM(DataInput!D52,DataInput!Z52) -> 18 | D52: =DataInput!U52 -> 14 | E52: =SUM(DataInput!F52,DataInput!AB52) -> 0 | F52: =SUM(DataInput!G52,DataInput!AC52) -> 0 | G52: =SUM(DataInput!H52,DataInput!AD52) -> 0 | H52: =DataInput!I52 -> 0 | I52: =SUM(DataInput!J52,DataInput!AF52) -> 0 | J52: =SUM(DataInput!K52,DataInput!AG52) -> 0 | K52: =SUM(DataInput!L52,DataInput!AH52) -> 0 | L52: =SUM(DataInput!M52,DataInput!AI52) -> 0 | M52: =SUM(DataInput!N52,DataInput!AJ52) -> 0 | N52: =SUM(DataInput!O52,DataInput!AK52) -> 0 | O52: =DataInput!P52 -> 0 | Q52: 18 | R52: =DataInput!R52 -> 0 | S52: =DataInput!Y52 -> 0 | T52: =IF(DataInput!U52-DataInput!E52>0,DataInput!U52-DataInput!E52,"") -> 9 | U52: =IF(DataInput!W52-DataInput!I52>0,DataInput!W52-DataInput!I52,"") ->  | W52: 9 | X52: 11.7 | Y52: 6.3 | Z52: 0 | AA52: 0 | AB52: =ROUNDDOWN((IF(AA53>0,IFERROR(IF(AVERAGE(DataInput!Q52:Q53)>AVERAGE(AA53,AA52),ROUNDDOWN(((((AA52-Z52)+(AA53-Z53))/2)*(A53-A52))/27+S50+T50,0),IF(((((DataInput!Q53-Z53)+(DataInput!Q52-Z52))/2)*(A53-A52))/27+S50+T50>0,ROUNDDOWN(((((DataInput!Q53-Z52)+(DataInput!Q52-Z52))/2)*(A53-A52))/27+S50+T50,0),0)),0),0)*$X$5),1) -> 0 | AC52: 0 | AD52: =ROUNDDOWN((IF(AC53>0,IFERROR(IF(((((DataInput!Q52-AC52)+(DataInput!Q53-AC53))/2)*(A53-A52))/27+S50+T50>0,ROUNDDOWN(((((DataInput!Q52-AC52)+(DataInput!Q53-AC53))/2)*(A53-A52))/27+S50+T50,0),0),0),0)*$X$5),1) -> 0 | AE52: =DataInput!U52 -> 14 | AF52: =DataInput!S52 -> 3 | AG52: 4.2 | AH52: 9.8
A53: =IF(DataInput!A53<>"",DataInput!A53,"") -> 154875 | B53: =SUM(DataInput!C53,DataInput!Y53)+(DataInput!U53-DataInput!E53) -> 36 | C53: =SUM(DataInput!D53,DataInput!Z53) -> 18 | D53: =DataInput!U53 -> 18 | E53: =SUM(DataInput!F53,DataInput!AB53) -> 0 | F53: =SUM(DataInput!G53,DataInput!AC53) -> 0 | G53: =SUM(DataInput!H53,DataInput!AD53) -> 0 | H53: =DataInput!I53 -> 0 | I53: =SUM(DataInput!J53,DataInput!AF53) -> 0 | J53: =SUM(DataInput!K53,DataInput!AG53) -> 0 | K53: =SUM(DataInput!L53,DataInput!AH53) -> 0 | L53: =SUM(DataInput!M53,DataInput!AI53) -> 0 | M53: =SUM(DataInput!N53,DataInput!AJ53) -> 0 | N53: =SUM(DataInput!O53,DataInput!AK53) -> 0 | O53: =DataInput!P53 -> 0 | Q53: 18 | R53: =DataInput!R53 -> 0 | S53: =DataInput!Y53 -> 0 | T53: =IF(DataInput!U53-DataInput!E53>0,DataInput!U53-DataInput!E53,"") -> 13 | U53: =IF(DataInput!W53-DataInput!I53>0,DataInput!W53-DataInput!I53,"") ->  | W53: 13 | X53: 16.9 | Y53: 1.1 | Z53: 0 | AA53: 0 | AB53: =ROUNDDOWN((IF(AA54>0,IFERROR(IF(AVERAGE(DataInput!Q53:Q54)>AVERAGE(AA54,AA53),ROUNDDOWN(((((AA53-Z53)+(AA54-Z54))/2)*(A54-A53))/27+S51+T51,0),IF(((((DataInput!Q54-Z54)+(DataInput!Q53-Z53))/2)*(A54-A53))/27+S51+T51>0,ROUNDDOWN(((((DataInput!Q54-Z53)+(DataInput!Q53-Z53))/2)*(A54-A53))/27+S51+T51,0),0)),0),0)*$X$5),1) -> 0 | AC53: 0 | AD53: =ROUNDDOWN((IF(AC54>0,IFERROR(IF(((((DataInput!Q53-AC53)+(DataInput!Q54-AC54))/2)*(A54-A53))/27+S51+T51>0,ROUNDDOWN(((((DataInput!Q53-AC53)+(DataInput!Q54-AC54))/2)*(A54-A53))/27+S51+T51,0),0),0),0)*$X$5),1) -> 0 | AE53: =DataInput!U53 -> 18 | AF53: =DataInput!S53 -> 5 | AG53: 7 | AH53: 11
A54: =IF(DataInput!A54<>"",DataInput!A54,"") -> 154900 | B54: =SUM(DataInput!C54,DataInput!Y54)+(DataInput!U54-DataInput!E54) -> 38 | C54: =SUM(DataInput!D54,DataInput!Z54) -> 18 | D54: =DataInput!U54 -> 20 | E54: =SUM(DataInput!F54,DataInput!AB54) -> 0 | F54: =SUM(DataInput!G54,DataInput!AC54) -> 0 | G54: =SUM(DataInput!H54,DataInput!AD54) -> 0 | H54: =DataInput!I54 -> 0 | I54: =SUM(DataInput!J54,DataInput!AF54) -> 0 | J54: =SUM(DataInput!K54,DataInput!AG54) -> 0 | K54: =SUM(DataInput!L54,DataInput!AH54) -> 0 | L54: =SUM(DataInput!M54,DataInput!AI54) -> 0 | M54: =SUM(DataInput!N54,DataInput!AJ54) -> 0 | N54: =SUM(DataInput!O54,DataInput!AK54) -> 0 | O54: =DataInput!P54 -> 0 | Q54: 18 | R54: =DataInput!R54 -> 0 | S54: =DataInput!Y54 -> 0 | T54: =IF(DataInput!U54-DataInput!E54>0,DataInput!U54-DataInput!E54,"") -> 15 | U54: =IF(DataInput!W54-DataInput!I54>0,DataInput!W54-DataInput!I54,"") ->  | W54: 15 | X54: 19.5 | Y54: -1.5 | Z54: 0 | AA54: 0 | AB54: =ROUNDDOWN((IF(AA55>0,IFERROR(IF(AVERAGE(DataInput!Q54:Q55)>AVERAGE(AA55,AA54),ROUNDDOWN(((((AA54-Z54)+(AA55-Z55))/2)*(A55-A54))/27+S52+T52,0),IF(((((DataInput!Q55-Z55)+(DataInput!Q54-Z54))/2)*(A55-A54))/27+S52+T52>0,ROUNDDOWN(((((DataInput!Q55-Z54)+(DataInput!Q54-Z54))/2)*(A55-A54))/27+S52+T52,0),0)),0),0)*$X$5),1) -> 0 | AC54: 0 | AD54: =ROUNDDOWN((IF(AC55>0,IFERROR(IF(((((DataInput!Q54-AC54)+(DataInput!Q55-AC55))/2)*(A55-A54))/27+S52+T52>0,ROUNDDOWN(((((DataInput!Q54-AC54)+(DataInput!Q55-AC55))/2)*(A55-A54))/27+S52+T52,0),0),0),0)*$X$5),1) -> 0 | AE54: =DataInput!U54 -> 20 | AF54: =DataInput!S54 -> 5 | AG54: 7 | AH54: 13
A55: =IF(DataInput!A55<>"",DataInput!A55,"") -> 154925 | B55: =SUM(DataInput!C55,DataInput!Y55)+(DataInput!U55-DataInput!E55) -> 39 | C55: =SUM(DataInput!D55,DataInput!Z55) -> 18 | D55: =DataInput!U55 -> 21 | E55: =SUM(DataInput!F55,DataInput!AB55) -> 0 | F55: =SUM(DataInput!G55,DataInput!AC55) -> 0 | G55: =SUM(DataInput!H55,DataInput!AD55) -> 0 | H55: =DataInput!I55 -> 0 | I55: =SUM(DataInput!J55,DataInput!AF55) -> 0 | J55: =SUM(DataInput!K55,DataInput!AG55) -> 0 | K55: =SUM(DataInput!L55,DataInput!AH55) -> 0 | L55: =SUM(DataInput!M55,DataInput!AI55) -> 0 | M55: =SUM(DataInput!N55,DataInput!AJ55) -> 0 | N55: =SUM(DataInput!O55,DataInput!AK55) -> 0 | O55: =DataInput!P55 -> 0 | Q55: 18 | R55: =DataInput!R55 -> 0 | S55: =DataInput!Y55 -> 0 | T55: =IF(DataInput!U55-DataInput!E55>0,DataInput!U55-DataInput!E55,"") -> 15 | U55: =IF(DataInput!W55-DataInput!I55>0,DataInput!W55-DataInput!I55,"") ->  | W55: 15 | X55: 19.5 | Y55: -1.5 | Z55: 0 | AA55: 0 | AB55: =ROUNDDOWN((IF(AA56>0,IFERROR(IF(AVERAGE(DataInput!Q55:Q56)>AVERAGE(AA56,AA55),ROUNDDOWN(((((AA55-Z55)+(AA56-Z56))/2)*(A56-A55))/27+S53+T53,0),IF(((((DataInput!Q56-Z56)+(DataInput!Q55-Z55))/2)*(A56-A55))/27+S53+T53>0,ROUNDDOWN(((((DataInput!Q56-Z55)+(DataInput!Q55-Z55))/2)*(A56-A55))/27+S53+T53,0),0)),0),0)*$X$5),1) -> 0 | AC55: 0 | AD55: =ROUNDDOWN((IF(AC56>0,IFERROR(IF(((((DataInput!Q55-AC55)+(DataInput!Q56-AC56))/2)*(A56-A55))/27+S53+T53>0,ROUNDDOWN(((((DataInput!Q55-AC55)+(DataInput!Q56-AC56))/2)*(A56-A55))/27+S53+T53,0),0),0),0)*$X$5),1) -> 0 | AE55: =DataInput!U55 -> 21 | AF55: =DataInput!S55 -> 6 | AG55: 8.4 | AH55: 12.6
A56: =IF(DataInput!A56<>"",DataInput!A56,"") -> 154950 | B56: =SUM(DataInput!C56,DataInput!Y56)+(DataInput!U56-DataInput!E56) -> 39 | C56: =SUM(DataInput!D56,DataInput!Z56) -> 17 | D56: =DataInput!U56 -> 22 | E56: =SUM(DataInput!F56,DataInput!AB56) -> 0 | F56: =SUM(DataInput!G56,DataInput!AC56) -> 0 | G56: =SUM(DataInput!H56,DataInput!AD56) -> 0 | H56: =DataInput!I56 -> 0 | I56: =SUM(DataInput!J56,DataInput!AF56) -> 0 | J56: =SUM(DataInput!K56,DataInput!AG56) -> 0 | K56: =SUM(DataInput!L56,DataInput!AH56) -> 0 | L56: =SUM(DataInput!M56,DataInput!AI56) -> 0 | M56: =SUM(DataInput!N56,DataInput!AJ56) -> 0 | N56: =SUM(DataInput!O56,DataInput!AK56) -> 0 | O56: =DataInput!P56 -> 0 | Q56: 17 | R56: =DataInput!R56 -> 0 | S56: =DataInput!Y56 -> 0 | T56: =IF(DataInput!U56-DataInput!E56>0,DataInput!U56-DataInput!E56,"") -> 16 | U56: =IF(DataInput!W56-DataInput!I56>0,DataInput!W56-DataInput!I56,"") ->  | W56: 16 | X56: 20.8 | Y56: -3.8 | Z56: 0 | AA56: 0 | AB56: =ROUNDDOWN((IF(AA57>0,IFERROR(IF(AVERAGE(DataInput!Q56:Q57)>AVERAGE(AA57,AA56),ROUNDDOWN(((((AA56-Z56)+(AA57-Z57))/2)*(A57-A56))/27+S54+T54,0),IF(((((DataInput!Q57-Z57)+(DataInput!Q56-Z56))/2)*(A57-A56))/27+S54+T54>0,ROUNDDOWN(((((DataInput!Q57-Z56)+(DataInput!Q56-Z56))/2)*(A57-A56))/27+S54+T54,0),0)),0),0)*$X$5),1) -> 0 | AC56: 0 | AD56: =ROUNDDOWN((IF(AC57>0,IFERROR(IF(((((DataInput!Q56-AC56)+(DataInput!Q57-AC57))/2)*(A57-A56))/27+S54+T54>0,ROUNDDOWN(((((DataInput!Q56-AC56)+(DataInput!Q57-AC57))/2)*(A57-A56))/27+S54+T54,0),0),0),0)*$X$5),1) -> 0 | AE56: =DataInput!U56 -> 22 | AF56: =DataInput!S56 -> 6 | AG56: 8.4 | AH56: 13.6
A57: =IF(DataInput!A57<>"",DataInput!A57,"") -> 154975 | B57: =SUM(DataInput!C57,DataInput!Y57)+(DataInput!U57-DataInput!E57) -> 42 | C57: =SUM(DataInput!D57,DataInput!Z57) -> 17 | D57: =DataInput!U57 -> 24 | E57: =SUM(DataInput!F57,DataInput!AB57) -> 0 | F57: =SUM(DataInput!G57,DataInput!AC57) -> 0 | G57: =SUM(DataInput!H57,DataInput!AD57) -> 0 | H57: =DataInput!I57 -> 0 | I57: =SUM(DataInput!J57,DataInput!AF57) -> 0 | J57: =SUM(DataInput!K57,DataInput!AG57) -> 0 | K57: =SUM(DataInput!L57,DataInput!AH57) -> 0 | L57: =SUM(DataInput!M57,DataInput!AI57) -> 0 | M57: =SUM(DataInput!N57,DataInput!AJ57) -> 0 | N57: =SUM(DataInput!O57,DataInput!AK57) -> 0 | O57: =DataInput!P57 -> 0 | Q57: 17 | R57: =DataInput!R57 -> 0 | S57: =DataInput!Y57 -> 0 | T57: =IF(DataInput!U57-DataInput!E57>0,DataInput!U57-DataInput!E57,"") -> 19 | U57: =IF(DataInput!W57-DataInput!I57>0,DataInput!W57-DataInput!I57,"") ->  | W57: 19 | X57: 24.7 | Y57: -7.7 | Z57: 0 | AA57: 0 | AB57: =ROUNDDOWN((IF(AA58>0,IFERROR(IF(AVERAGE(DataInput!Q57:Q58)>AVERAGE(AA58,AA57),ROUNDDOWN(((((AA57-Z57)+(AA58-Z58))/2)*(A58-A57))/27+S55+T55,0),IF(((((DataInput!Q58-Z58)+(DataInput!Q57-Z57))/2)*(A58-A57))/27+S55+T55>0,ROUNDDOWN(((((DataInput!Q58-Z57)+(DataInput!Q57-Z57))/2)*(A58-A57))/27+S55+T55,0),0)),0),0)*$X$5),1) -> 0 | AC57: 0 | AD57: =ROUNDDOWN((IF(AC58>0,IFERROR(IF(((((DataInput!Q57-AC57)+(DataInput!Q58-AC58))/2)*(A58-A57))/27+S55+T55>0,ROUNDDOWN(((((DataInput!Q57-AC57)+(DataInput!Q58-AC58))/2)*(A58-A57))/27+S55+T55,0),0),0),0)*$X$5),1) -> 0 | AE57: =DataInput!U57 -> 24 | AF57: =DataInput!S57 -> 7 | AG57: 9.8 | AH57: 14.2
A58: =IF(DataInput!A58<>"",DataInput!A58,"") -> 155000 | B58: =SUM(DataInput!C58,DataInput!Y58)+(DataInput!U58-DataInput!E58) -> 44 | C58: =SUM(DataInput!D58,DataInput!Z58) -> 17 | D58: =DataInput!U58 -> 26 | E58: =SUM(DataInput!F58,DataInput!AB58) -> 0 | F58: =SUM(DataInput!G58,DataInput!AC58) -> 0 | G58: =SUM(DataInput!H58,DataInput!AD58) -> 0 | H58: =DataInput!I58 -> 0 | I58: =SUM(DataInput!J58,DataInput!AF58) -> 0 | J58: =SUM(DataInput!K58,DataInput!AG58) -> 0 | K58: =SUM(DataInput!L58,DataInput!AH58) -> 0 | L58: =SUM(DataInput!M58,DataInput!AI58) -> 0 | M58: =SUM(DataInput!N58,DataInput!AJ58) -> 0 | N58: =SUM(DataInput!O58,DataInput!AK58) -> 0 | O58: =DataInput!P58 -> 0 | Q58: 17 | R58: =DataInput!R58 -> 1 | S58: =DataInput!Y58 -> 0 | T58: =IF(DataInput!U58-DataInput!E58>0,DataInput!U58-DataInput!E58,"") -> 22 | U58: =IF(DataInput!W58-DataInput!I58>0,DataInput!W58-DataInput!I58,"") ->  | W58: 23 | X58: 29.9 | Y58: -12.9 | Z58: 0 | AA58: 0 | AB58: =ROUNDDOWN((IF(AA59>0,IFERROR(IF(AVERAGE(DataInput!Q58:Q59)>AVERAGE(AA59,AA58),ROUNDDOWN(((((AA58-Z58)+(AA59-Z59))/2)*(A59-A58))/27+S56+T56,0),IF(((((DataInput!Q59-Z59)+(DataInput!Q58-Z58))/2)*(A59-A58))/27+S56+T56>0,ROUNDDOWN(((((DataInput!Q59-Z58)+(DataInput!Q58-Z58))/2)*(A59-A58))/27+S56+T56,0),0)),0),0)*$X$5),1) -> 0 | AC58: 0 | AD58: =ROUNDDOWN((IF(AC59>0,IFERROR(IF(((((DataInput!Q58-AC58)+(DataInput!Q59-AC59))/2)*(A59-A58))/27+S56+T56>0,ROUNDDOWN(((((DataInput!Q58-AC58)+(DataInput!Q59-AC59))/2)*(A59-A58))/27+S56+T56,0),0),0),0)*$X$5),1) -> 0 | AE58: =DataInput!U58 -> 26 | AF58: =DataInput!S58 -> 8 | AG58: 11.2 | AH58: 14.8
A59: =IF(DataInput!A59<>"",DataInput!A59,"") -> 155025 | B59: =SUM(DataInput!C59,DataInput!Y59)+(DataInput!U59-DataInput!E59) -> 34 | C59: =SUM(DataInput!D59,DataInput!Z59) -> 13 | D59: =DataInput!U59 -> 21 | E59: =SUM(DataInput!F59,DataInput!AB59) -> 0 | F59: =SUM(DataInput!G59,DataInput!AC59) -> 0 | G59: =SUM(DataInput!H59,DataInput!AD59) -> 0 | H59: =DataInput!I59 -> 0 | I59: =SUM(DataInput!J59,DataInput!AF59) -> 0 | J59: =SUM(DataInput!K59,DataInput!AG59) -> 0 | K59: =SUM(DataInput!L59,DataInput!AH59) -> 0 | L59: =SUM(DataInput!M59,DataInput!AI59) -> 0 | M59: =SUM(DataInput!N59,DataInput!AJ59) -> 0 | N59: =SUM(DataInput!O59,DataInput!AK59) -> 0 | O59: =DataInput!P59 -> 0 | Q59: 13 | R59: =DataInput!R59 -> 4 | S59: =DataInput!Y59 -> 0 | T59: =IF(DataInput!U59-DataInput!E59>0,DataInput!U59-DataInput!E59,"") -> 18 | U59: =IF(DataInput!W59-DataInput!I59>0,DataInput!W59-DataInput!I59,"") ->  | W59: 22 | X59: 28.6 | Y59: -15.6 | Z59: 0 | AA59: 0 | AB59: =ROUNDDOWN((IF(AA60>0,IFERROR(IF(AVERAGE(DataInput!Q59:Q60)>AVERAGE(AA60,AA59),ROUNDDOWN(((((AA59-Z59)+(AA60-Z60))/2)*(A60-A59))/27+S57+T57,0),IF(((((DataInput!Q60-Z60)+(DataInput!Q59-Z59))/2)*(A60-A59))/27+S57+T57>0,ROUNDDOWN(((((DataInput!Q60-Z59)+(DataInput!Q59-Z59))/2)*(A60-A59))/27+S57+T57,0),0)),0),0)*$X$5),1) -> 0 | AC59: 0 | AD59: =ROUNDDOWN((IF(AC60>0,IFERROR(IF(((((DataInput!Q59-AC59)+(DataInput!Q60-AC60))/2)*(A60-A59))/27+S57+T57>0,ROUNDDOWN(((((DataInput!Q59-AC59)+(DataInput!Q60-AC60))/2)*(A60-A59))/27+S57+T57,0),0),0),0)*$X$5),1) -> 0 | AE59: =DataInput!U59 -> 21 | AF59: =DataInput!S59 -> 7 | AG59: 9.8 | AH59: 11.2
A60: =IF(DataInput!A60<>"",DataInput!A60,"") -> 155050 | B60: =SUM(DataInput!C60,DataInput!Y60)+(DataInput!U60-DataInput!E60) -> 23 | C60: =SUM(DataInput!D60,DataInput!Z60) -> 9 | D60: =DataInput!U60 -> 14 | E60: =SUM(DataInput!F60,DataInput!AB60) -> 0 | F60: =SUM(DataInput!G60,DataInput!AC60) -> 0 | G60: =SUM(DataInput!H60,DataInput!AD60) -> 0 | H60: =DataInput!I60 -> 0 | I60: =SUM(DataInput!J60,DataInput!AF60) -> 0 | J60: =SUM(DataInput!K60,DataInput!AG60) -> 0 | K60: =SUM(DataInput!L60,DataInput!AH60) -> 0 | L60: =SUM(DataInput!M60,DataInput!AI60) -> 0 | M60: =SUM(DataInput!N60,DataInput!AJ60) -> 0 | N60: =SUM(DataInput!O60,DataInput!AK60) -> 0 | O60: =DataInput!P60 -> 0 | Q60: 9 | R60: =DataInput!R60 -> 4 | S60: =DataInput!Y60 -> 0 | T60: =IF(DataInput!U60-DataInput!E60>0,DataInput!U60-DataInput!E60,"") -> 12 | U60: =IF(DataInput!W60-DataInput!I60>0,DataInput!W60-DataInput!I60,"") ->  | W60: 16 | X60: 20.8 | Y60: -11.8 | Z60: 0 | AA60: 0 | AB60: =ROUNDDOWN((IF(AA61>0,IFERROR(IF(AVERAGE(DataInput!Q60:Q61)>AVERAGE(AA61,AA60),ROUNDDOWN(((((AA60-Z60)+(AA61-Z61))/2)*(A61-A60))/27+S58+T58,0),IF(((((DataInput!Q61-Z61)+(DataInput!Q60-Z60))/2)*(A61-A60))/27+S58+T58>0,ROUNDDOWN(((((DataInput!Q61-Z60)+(DataInput!Q60-Z60))/2)*(A61-A60))/27+S58+T58,0),0)),0),0)*$X$5),1) -> 0 | AC60: 0 | AD60: =ROUNDDOWN((IF(AC61>0,IFERROR(IF(((((DataInput!Q60-AC60)+(DataInput!Q61-AC61))/2)*(A61-A60))/27+S58+T58>0,ROUNDDOWN(((((DataInput!Q60-AC60)+(DataInput!Q61-AC61))/2)*(A61-A60))/27+S58+T58,0),0),0),0)*$X$5),1) -> 0 | AE60: =DataInput!U60 -> 14 | AF60: =DataInput!S60 -> 4 | AG60: 5.6 | AH60: 8.4
A61: =IF(DataInput!A61<>"",DataInput!A61,"") -> 155075 | B61: =SUM(DataInput!C61,DataInput!Y61)+(DataInput!U61-DataInput!E61) -> 19 | C61: =SUM(DataInput!D61,DataInput!Z61) -> 9 | D61: =DataInput!U61 -> 10 | E61: =SUM(DataInput!F61,DataInput!AB61) -> 0 | F61: =SUM(DataInput!G61,DataInput!AC61) -> 0 | G61: =SUM(DataInput!H61,DataInput!AD61) -> 0 | H61: =DataInput!I61 -> 0 | I61: =SUM(DataInput!J61,DataInput!AF61) -> 0 | J61: =SUM(DataInput!K61,DataInput!AG61) -> 0 | K61: =SUM(DataInput!L61,DataInput!AH61) -> 0 | L61: =SUM(DataInput!M61,DataInput!AI61) -> 0 | M61: =SUM(DataInput!N61,DataInput!AJ61) -> 0 | N61: =SUM(DataInput!O61,DataInput!AK61) -> 0 | O61: =DataInput!P61 -> 0 | Q61: 9 | R61: =DataInput!R61 -> 1 | S61: =DataInput!Y61 -> 0 | T61: =IF(DataInput!U61-DataInput!E61>0,DataInput!U61-DataInput!E61,"") -> 7 | U61: =IF(DataInput!W61-DataInput!I61>0,DataInput!W61-DataInput!I61,"") ->  | W61: 8 | X61: 10.4 | Y61: -1.4 | Z61: 0 | AA61: 0 | AB61: =ROUNDDOWN((IF(AA62>0,IFERROR(IF(AVERAGE(DataInput!Q61:Q62)>AVERAGE(AA62,AA61),ROUNDDOWN(((((AA61-Z61)+(AA62-Z62))/2)*(A62-A61))/27+S59+T59,0),IF(((((DataInput!Q62-Z62)+(DataInput!Q61-Z61))/2)*(A62-A61))/27+S59+T59>0,ROUNDDOWN(((((DataInput!Q62-Z61)+(DataInput!Q61-Z61))/2)*(A62-A61))/27+S59+T59,0),0)),0),0)*$X$5),1) -> 0 | AC61: 0 | AD61: =ROUNDDOWN((IF(AC62>0,IFERROR(IF(((((DataInput!Q61-AC61)+(DataInput!Q62-AC62))/2)*(A62-A61))/27+S59+T59>0,ROUNDDOWN(((((DataInput!Q61-AC61)+(DataInput!Q62-AC62))/2)*(A62-A61))/27+S59+T59,0),0),0),0)*$X$5),1) -> 0 | AE61: =DataInput!U61 -> 10 | AF61: =DataInput!S61 -> 2 | AG61: 2.8 | AH61: 7.2
A62: =IF(DataInput!A62<>"",DataInput!A62,"") -> 155100 | B62: =SUM(DataInput!C62,DataInput!Y62)+(DataInput!U62-DataInput!E62) -> 7 | C62: =SUM(DataInput!D62,DataInput!Z62) -> 4 | D62: =DataInput!U62 -> 3 | E62: =SUM(DataInput!F62,DataInput!AB62) -> 0 | F62: =SUM(DataInput!G62,DataInput!AC62) -> 0 | G62: =SUM(DataInput!H62,DataInput!AD62) -> 0 | H62: =DataInput!I62 -> 0 | I62: =SUM(DataInput!J62,DataInput!AF62) -> 0 | J62: =SUM(DataInput!K62,DataInput!AG62) -> 0 | K62: =SUM(DataInput!L62,DataInput!AH62) -> 0 | L62: =SUM(DataInput!M62,DataInput!AI62) -> 0 | M62: =SUM(DataInput!N62,DataInput!AJ62) -> 0 | N62: =SUM(DataInput!O62,DataInput!AK62) -> 0 | O62: =DataInput!P62 -> 0 | Q62: 4 | R62: =DataInput!R62 -> 0 | S62: =DataInput!Y62 -> 0 | T62: =IF(DataInput!U62-DataInput!E62>0,DataInput!U62-DataInput!E62,"") -> 2 | U62: =IF(DataInput!W62-DataInput!I62>0,DataInput!W62-DataInput!I62,"") ->  | W62: 2 | X62: 2.6 | Y62: 1.4 | Z62: 0 | AA62: 0 | AB62: =ROUNDDOWN((IF(AA63>0,IFERROR(IF(AVERAGE(DataInput!Q62:Q63)>AVERAGE(AA63,AA62),ROUNDDOWN(((((AA62-Z62)+(AA63-Z63))/2)*(A63-A62))/27+S60+T60,0),IF(((((DataInput!Q63-Z63)+(DataInput!Q62-Z62))/2)*(A63-A62))/27+S60+T60>0,ROUNDDOWN(((((DataInput!Q63-Z62)+(DataInput!Q62-Z62))/2)*(A63-A62))/27+S60+T60,0),0)),0),0)*$X$5),1) -> 0 | AC62: 0 | AD62: =ROUNDDOWN((IF(AC63>0,IFERROR(IF(((((DataInput!Q62-AC62)+(DataInput!Q63-AC63))/2)*(A63-A62))/27+S60+T60>0,ROUNDDOWN(((((DataInput!Q62-AC62)+(DataInput!Q63-AC63))/2)*(A63-A62))/27+S60+T60,0),0),0),0)*$X$5),1) -> 0 | AE62: =DataInput!U62 -> 3 | AF62: =DataInput!S62 -> 1 | AG62: 1.4 | AH62: 1.6
A63: =IF(DataInput!A63<>"",DataInput!A63,"") -> 155110
A65: Stage 2
A67: =IF(DataInput!A67<>"",DataInput!A67,"") -> 23rd_Ave_South
A68: =IF(DataInput!A68<>"",DataInput!A68,"") -> 23141675 | B68: =SUM(DataInput!C68,DataInput!Y68)+(DataInput!U68-DataInput!E68) -> 22 | C68: =SUM(DataInput!D68,DataInput!Z68) -> 11 | D68: =DataInput!U68 -> 11 | E68: =SUM(DataInput!F68,DataInput!AB68) -> 0 | F68: =SUM(DataInput!G68,DataInput!AC68) -> 0 | G68: =SUM(DataInput!H68,DataInput!AD68) -> 0 | H68: =DataInput!I68 -> 0 | I68: =SUM(DataInput!J68,DataInput!AF68) -> 0 | J68: =SUM(DataInput!K68,DataInput!AG68) -> 0 | K68: =SUM(DataInput!L68,DataInput!AH68) -> 0 | L68: =SUM(DataInput!M68,DataInput!AI68) -> 0 | M68: =SUM(DataInput!N68,DataInput!AJ68) -> 0 | N68: =SUM(DataInput!O68,DataInput!AK68) -> 0 | O68: =DataInput!P68 -> 0 | Q68: =SUM(C68,E68:G68,I68:L68,N68:P68) -> 11 | R68: =DataInput!R68 -> 0 | S68: =DataInput!Y68 -> 0 | T68: =IF(DataInput!U68-DataInput!E68>0,DataInput!U68-DataInput!E68,"") -> 1 | U68: =IF(DataInput!W68-DataInput!I68>0,DataInput!W68-DataInput!I68,"") ->  | W68: =SUM(R68:V68) -> 1 | X68: =ROUNDUP(($W68*$X$5),1) -> 1.3 | Y68: =ROUNDUP(SUM(Q68-X68),1) -> 9.7 | Z68: 187.9737 | AA68: 1662.5189 | AB68: =ROUNDDOWN((IF(AA69>0,IFERROR(IF(AVERAGE(DataInput!Q68:Q69)>AVERAGE(AA69,AA68),ROUNDDOWN(((((AA68-Z68)+(AA69-Z69))/2)*(A69-A68))/27+S12+T12,0),IF(((((DataInput!Q69-Z69)+(DataInput!Q68-Z68))/2)*(A69-A68))/27+S12+T12>0,ROUNDDOWN(((((DataInput!Q69-Z68)+(DataInput!Q68-Z68))/2)*(A69-A68))/27+S12+T12,0),0)),0),0)*$X$5),1) -> 0 | AC68: 93.5588 | AD68: =ROUNDDOWN((IF(AC69>0,IFERROR(IF(((((DataInput!Q68-AC68)+(DataInput!Q69-AC69))/2)*(A69-A68))/27+S12+T12>0,ROUNDDOWN(((((DataInput!Q68-AC68)+(DataInput!Q69-AC69))/2)*(A69-A68))/27+S12+T12,0),0),0),0)*$X$5),1) -> 0 | AE68: =DataInput!U68 -> 11 | AF68: =DataInput!S68 -> 14 | AG68: =ROUNDUP((AF68*$AG$5),1) -> 19.6 | AH68: =ROUNDUP((AE68-AG68),1) -> -8.6
A69: =IF(DataInput!A69<>"",DataInput!A69,"") -> 23141700 | B69: =SUM(DataInput!C69,DataInput!Y69)+(DataInput!U69-DataInput!E69) -> 34 | C69: =SUM(DataInput!D69,DataInput!Z69) -> 20 | D69: =DataInput!U69 -> 14 | E69: =SUM(DataInput!F69,DataInput!AB69) -> 0 | F69: =SUM(DataInput!G69,DataInput!AC69) -> 0 | G69: =SUM(DataInput!H69,DataInput!AD69) -> 0 | H69: =DataInput!I69 -> 0 | I69: =SUM(DataInput!J69,DataInput!AF69) -> 0 | J69: =SUM(DataInput!K69,DataInput!AG69) -> 0 | K69: =SUM(DataInput!L69,DataInput!AH69) -> 0 | L69: =SUM(DataInput!M69,DataInput!AI69) -> 0 | M69: =SUM(DataInput!N69,DataInput!AJ69) -> 0 | N69: =SUM(DataInput!O69,DataInput!AK69) -> 0 | O69: =DataInput!P69 -> 0 | Q69: =SUM(C69,E69:G69,I69:L69,N69:P69) -> 20 | R69: =DataInput!R69 -> 0 | S69: =DataInput!Y69 -> 0 | T69: =IF(DataInput!U69-DataInput!E69>0,DataInput!U69-DataInput!E69,"") -> 1 | U69: =IF(DataInput!W69-DataInput!I69>0,DataInput!W69-DataInput!I69,"") ->  | W69: =SUM(R69:V69) -> 1 | X69: =ROUNDUP(($W69*$X$5),1) -> 1.3 | Y69: =ROUNDUP(SUM(Q69-X69),1) -> 18.7 | Z69: =Z68 -> 187.9737 | AA69: =AA68 -> 1662.5189 | AB69: =ROUNDDOWN((IF(AA70>0,IFERROR(IF(AVERAGE(DataInput!Q69:Q70)>AVERAGE(AA70,AA69),ROUNDDOWN(((((AA69-Z69)+(AA70-Z70))/2)*(A70-A69))/27+S13+T13,0),IF(((((DataInput!Q70-Z70)+(DataInput!Q69-Z69))/2)*(A70-A69))/27+S13+T13>0,ROUNDDOWN(((((DataInput!Q70-Z69)+(DataInput!Q69-Z69))/2)*(A70-A69))/27+S13+T13,0),0)),0),0)*$X$5),1) -> 0 | AC69: =AC68 -> 93.5588 | AD69: =ROUNDDOWN((IF(AC70>0,IFERROR(IF(((((DataInput!Q69-AC69)+(DataInput!Q70-AC70))/2)*(A70-A69))/27+S13+T13>0,ROUNDDOWN(((((DataInput!Q69-AC69)+(DataInput!Q70-AC70))/2)*(A70-A69))/27+S13+T13,0),0),0),0)*$X$5),1) -> 0 | AE69: =DataInput!U69 -> 14 | AF69: =DataInput!S69 -> 17 | AG69: =ROUNDUP((AF69*$AG$5),1) -> 23.8 | AH69: =ROUNDUP((AE69-AG69),1) -> -9.8
A70: =IF(DataInput!A70<>"",DataInput!A70,"") -> 23141725 | B70: =SUM(DataInput!C70,DataInput!Y70)+(DataInput!U70-DataInput!E70) -> 39 | C70: =SUM(DataInput!D70,DataInput!Z70) -> 23 | D70: =DataInput!U70 -> 16 | E70: =SUM(DataInput!F70,DataInput!AB70) -> 0 | F70: =SUM(DataInput!G70,DataInput!AC70) -> 0 | G70: =SUM(DataInput!H70,DataInput!AD70) -> 0 | H70: =DataInput!I70 -> 0 | I70: =SUM(DataInput!J70,DataInput!AF70) -> 0 | J70: =SUM(DataInput!K70,DataInput!AG70) -> 0 | K70: =SUM(DataInput!L70,DataInput!AH70) -> 0 | L70: =SUM(DataInput!M70,DataInput!AI70) -> 0 | M70: =SUM(DataInput!N70,DataInput!AJ70) -> 0 | N70: =SUM(DataInput!O70,DataInput!AK70) -> 0 | O70: =DataInput!P70 -> 0 | Q70: 23 | R70: =DataInput!R70 -> 3 | S70: =DataInput!Y70 -> 0 | T70: =IF(DataInput!U70-DataInput!E70>0,DataInput!U70-DataInput!E70,"") -> 2 | U70: =IF(DataInput!W70-DataInput!I70>0,DataInput!W70-DataInput!I70,"") ->  | W70: 5 | X70: 6.5 | Y70: 16.5 | Z70: =Z69 -> 187.9737 | AA70: =AA69 -> 1662.5189 | AB70: =ROUNDDOWN((IF(AA71>0,IFERROR(IF(AVERAGE(DataInput!Q70:Q71)>AVERAGE(AA71,AA70),ROUNDDOWN(((((AA70-Z70)+(AA71-Z71))/2)*(A71-A70))/27+S14+T14,0),IF(((((DataInput!Q71-Z71)+(DataInput!Q70-Z70))/2)*(A71-A70))/27+S14+T14>0,ROUNDDOWN(((((DataInput!Q71-Z70)+(DataInput!Q70-Z70))/2)*(A71-A70))/27+S14+T14,0),0)),0),0)*$X$5),1) -> 0 | AC70: =AC69 -> 93.5588 | AD70: =ROUNDDOWN((IF(AC71>0,IFERROR(IF(((((DataInput!Q70-AC70)+(DataInput!Q71-AC71))/2)*(A71-A70))/27+S14+T14>0,ROUNDDOWN(((((DataInput!Q70-AC70)+(DataInput!Q71-AC71))/2)*(A71-A70))/27+S14+T14,0),0),0),0)*$X$5),1) -> 0 | AE70: =DataInput!U70 -> 16 | AF70: =DataInput!S70 -> 19 | AG70: 26.6 | AH70: -10.6
A71: =IF(DataInput!A71<>"",DataInput!A71,"") -> 23141750 | B71: =SUM(DataInput!C71,DataInput!Y71)+(DataInput!U71-DataInput!E71) -> 42 | C71: =SUM(DataInput!D71,DataInput!Z71) -> 24 | D71: =DataInput!U71 -> 18 | E71: =SUM(DataInput!F71,DataInput!AB71) -> 0 | F71: =SUM(DataInput!G71,DataInput!AC71) -> 0 | G71: =SUM(DataInput!H71,DataInput!AD71) -> 0 | H71: =DataInput!I71 -> 0 | I71: =SUM(DataInput!J71,DataInput!AF71) -> 0 | J71: =SUM(DataInput!K71,DataInput!AG71) -> 0 | K71: =SUM(DataInput!L71,DataInput!AH71) -> 0 | L71: =SUM(DataInput!M71,DataInput!AI71) -> 0 | M71: =SUM(DataInput!N71,DataInput!AJ71) -> 0 | N71: =SUM(DataInput!O71,DataInput!AK71) -> 0 | O71: =DataInput!P71 -> 0 | Q71: 24 | R71: =DataInput!R71 -> 8 | S71: =DataInput!Y71 -> 0 | T71: =IF(DataInput!U71-DataInput!E71>0,DataInput!U71-DataInput!E71,"") -> 3 | U71: =IF(DataInput!W71-DataInput!I71>0,DataInput!W71-DataInput!I71,"") ->  | W71: 11 | X71: 14.3 | Y71: 9.7 | Z71: 187.9737 | AA71: 1662.5189 | AB71: =ROUNDDOWN((IF(AA72>0,IFERROR(IF(AVERAGE(DataInput!Q71:Q72)>AVERAGE(AA72,AA71),ROUNDDOWN(((((AA71-Z71)+(AA72-Z72))/2)*(A72-A71))/27+S15+T15,0),IF(((((DataInput!Q72-Z72)+(DataInput!Q71-Z71))/2)*(A72-A71))/27+S15+T15>0,ROUNDDOWN(((((DataInput!Q72-Z71)+(DataInput!Q71-Z71))/2)*(A72-A71))/27+S15+T15,0),0)),0),0)*$X$5),1) -> 0 | AC71: 93.5588 | AD71: =ROUNDDOWN((IF(AC72>0,IFERROR(IF(((((DataInput!Q71-AC71)+(DataInput!Q72-AC72))/2)*(A72-A71))/27+S15+T15>0,ROUNDDOWN(((((DataInput!Q71-AC71)+(DataInput!Q72-AC72))/2)*(A72-A71))/27+S15+T15,0),0),0),0)*$X$5),1) -> 0 | AE71: =DataInput!U71 -> 18 | AF71: =DataInput!S71 -> 21 | AG71: 29.4 | AH71: -11.4
A72: =IF(DataInput!A72<>"",DataInput!A72,"") -> 23141775 | B72: =SUM(DataInput!C72,DataInput!Y72)+(DataInput!U72-DataInput!E72) -> 47 | C72: =SUM(DataInput!D72,DataInput!Z72) -> 28 | D72: =DataInput!U72 -> 19 | E72: =SUM(DataInput!F72,DataInput!AB72) -> 0 | F72: =SUM(DataInput!G72,DataInput!AC72) -> 0 | G72: =SUM(DataInput!H72,DataInput!AD72) -> 0 | H72: =DataInput!I72 -> 0 | I72: =SUM(DataInput!J72,DataInput!AF72) -> 0 | J72: =SUM(DataInput!K72,DataInput!AG72) -> 0 | K72: =SUM(DataInput!L72,DataInput!AH72) -> 0 | L72: =SUM(DataInput!M72,DataInput!AI72) -> 0 | M72: =SUM(DataInput!N72,DataInput!AJ72) -> 0 | N72: =SUM(DataInput!O72,DataInput!AK72) -> 0 | O72: =DataInput!P72 -> 0 | Q72: 28 | R72: =DataInput!R72 -> 15 | S72: =DataInput!Y72 -> 0 | T72: =IF(DataInput!U72-DataInput!E72>0,DataInput!U72-DataInput!E72,"") -> 5 | U72: =IF(DataInput!W72-DataInput!I72>0,DataInput!W72-DataInput!I72,"") ->  | W72: 20 | X72: 26 | Y72: 2 | Z72: 187.9737 | AA72: 1662.5189 | AB72: =ROUNDDOWN((IF(AA73>0,IFERROR(IF(AVERAGE(DataInput!Q72:Q73)>AVERAGE(AA73,AA72),ROUNDDOWN(((((AA72-Z72)+(AA73-Z73))/2)*(A73-A72))/27+S16+T16,0),IF(((((DataInput!Q73-Z73)+(DataInput!Q72-Z72))/2)*(A73-A72))/27+S16+T16>0,ROUNDDOWN(((((DataInput!Q73-Z72)+(DataInput!Q72-Z72))/2)*(A73-A72))/27+S16+T16,0),0)),0),0)*$X$5),1) -> 0 | AC72: 93.5588 | AD72: =ROUNDDOWN((IF(AC73>0,IFERROR(IF(((((DataInput!Q72-AC72)+(DataInput!Q73-AC73))/2)*(A73-A72))/27+S16+T16>0,ROUNDDOWN(((((DataInput!Q72-AC72)+(DataInput!Q73-AC73))/2)*(A73-A72))/27+S16+T16,0),0),0),0)*$X$5),1) -> 0 | AE72: =DataInput!U72 -> 19 | AF72: =DataInput!S72 -> 24 | AG72: 33.6 | AH72: -14.6
A73: =IF(DataInput!A73<>"",DataInput!A73,"") -> 23141800 | B73: =SUM(DataInput!C73,DataInput!Y73)+(DataInput!U73-DataInput!E73) -> 57 | C73: =SUM(DataInput!D73,DataInput!Z73) -> 35 | D73: =DataInput!U73 -> 21 | E73: =SUM(DataInput!F73,DataInput!AB73) -> 0 | F73: =SUM(DataInput!G73,DataInput!AC73) -> 0 | G73: =SUM(DataInput!H73,DataInput!AD73) -> 0 | H73: =DataInput!I73 -> 0 | I73: =SUM(DataInput!J73,DataInput!AF73) -> 0 | J73: =SUM(DataInput!K73,DataInput!AG73) -> 0 | K73: =SUM(DataInput!L73,DataInput!AH73) -> 0 | L73: =SUM(DataInput!M73,DataInput!AI73) -> 0 | M73: =SUM(DataInput!N73,DataInput!AJ73) -> 0 | N73: =SUM(DataInput!O73,DataInput!AK73) -> 0 | O73: =DataInput!P73 -> 0 | Q73: 35 | R73: =DataInput!R73 -> 27 | S73: =DataInput!Y73 -> 0 | T73: =IF(DataInput!U73-DataInput!E73>0,DataInput!U73-DataInput!E73,"") -> 8 | U73: =IF(DataInput!W73-DataInput!I73>0,DataInput!W73-DataInput!I73,"") ->  | W73: 35 | X73: 45.5 | Y73: -10.5 | Z73: 187.9737 | AA73: 1662.5189 | AB73: =ROUNDDOWN((IF(AA74>0,IFERROR(IF(AVERAGE(DataInput!Q73:Q74)>AVERAGE(AA74,AA73),ROUNDDOWN(((((AA73-Z73)+(AA74-Z74))/2)*(A74-A73))/27+S17+T17,0),IF(((((DataInput!Q74-Z74)+(DataInput!Q73-Z73))/2)*(A74-A73))/27+S17+T17>0,ROUNDDOWN(((((DataInput!Q74-Z73)+(DataInput!Q73-Z73))/2)*(A74-A73))/27+S17+T17,0),0)),0),0)*$X$5),1) -> 0 | AC73: 93.5588 | AD73: =ROUNDDOWN((IF(AC74>0,IFERROR(IF(((((DataInput!Q73-AC73)+(DataInput!Q74-AC74))/2)*(A74-A73))/27+S17+T17>0,ROUNDDOWN(((((DataInput!Q73-AC73)+(DataInput!Q74-AC74))/2)*(A74-A73))/27+S17+T17,0),0),0),0)*$X$5),1) -> 0 | AE73: =DataInput!U73 -> 21 | AF73: =DataInput!S73 -> 27 | AG73: 37.8 | AH73: -16.8
A74: =IF(DataInput!A74<>"",DataInput!A74,"") -> 23141825 | B74: =SUM(DataInput!C74,DataInput!Y74)+(DataInput!U74-DataInput!E74) -> 68 | C74: =SUM(DataInput!D74,DataInput!Z74) -> 45 | D74: =DataInput!U74 -> 23 | E74: =SUM(DataInput!F74,DataInput!AB74) -> 0 | F74: =SUM(DataInput!G74,DataInput!AC74) -> 0 | G74: =SUM(DataInput!H74,DataInput!AD74) -> 0 | H74: =DataInput!I74 -> 0 | I74: =SUM(DataInput!J74,DataInput!AF74) -> 0 | J74: =SUM(DataInput!K74,DataInput!AG74) -> 0 | K74: =SUM(DataInput!L74,DataInput!AH74) -> 0 | L74: =SUM(DataInput!M74,DataInput!AI74) -> 0 | M74: =SUM(DataInput!N74,DataInput!AJ74) -> 0 | N74: =SUM(DataInput!O74,DataInput!AK74) -> 0 | O74: =DataInput!P74 -> 0 | Q74: 45 | R74: =DataInput!R74 -> 44 | S74: =DataInput!Y74 -> 0 | T74: =IF(DataInput!U74-DataInput!E74>0,DataInput!U74-DataInput!E74,"") -> 9 | U74: =IF(DataInput!W74-DataInput!I74>0,DataInput!W74-DataInput!I74,"") ->  | W74: 53 | X74: 68.9 | Y74: -23.9 | Z74: 187.9737 | AA74: 1662.5189 | AB74: =ROUNDDOWN((IF(AA75>0,IFERROR(IF(AVERAGE(DataInput!Q74:Q75)>AVERAGE(AA75,AA74),ROUNDDOWN(((((AA74-Z74)+(AA75-Z75))/2)*(A75-A74))/27+S18+T18,0),IF(((((DataInput!Q75-Z75)+(DataInput!Q74-Z74))/2)*(A75-A74))/27+S18+T18>0,ROUNDDOWN(((((DataInput!Q75-Z74)+(DataInput!Q74-Z74))/2)*(A75-A74))/27+S18+T18,0),0)),0),0)*$X$5),1) -> 0 | AC74: 93.5588 | AD74: =ROUNDDOWN((IF(AC75>0,IFERROR(IF(((((DataInput!Q74-AC74)+(DataInput!Q75-AC75))/2)*(A75-A74))/27+S18+T18>0,ROUNDDOWN(((((DataInput!Q74-AC74)+(DataInput!Q75-AC75))/2)*(A75-A74))/27+S18+T18,0),0),0),0)*$X$5),1) -> 0 | AE74: =DataInput!U74 -> 23 | AF74: =DataInput!S74 -> 30 | AG74: 42 | AH74: -19
A75: =IF(DataInput!A75<>"",DataInput!A75,"") -> 23141850 | B75: =SUM(DataInput!C75,DataInput!Y75)+(DataInput!U75-DataInput!E75) -> 82 | C75: =SUM(DataInput!D75,DataInput!Z75) -> 55 | D75: =DataInput!U75 -> 27 | E75: =SUM(DataInput!F75,DataInput!AB75) -> 0 | F75: =SUM(DataInput!G75,DataInput!AC75) -> 0 | G75: =SUM(DataInput!H75,DataInput!AD75) -> 0 | H75: =DataInput!I75 -> 0 | I75: =SUM(DataInput!J75,DataInput!AF75) -> 0 | J75: =SUM(DataInput!K75,DataInput!AG75) -> 0 | K75: =SUM(DataInput!L75,DataInput!AH75) -> 0 | L75: =SUM(DataInput!M75,DataInput!AI75) -> 0 | M75: =SUM(DataInput!N75,DataInput!AJ75) -> 0 | N75: =SUM(DataInput!O75,DataInput!AK75) -> 0 | O75: =DataInput!P75 -> 0 | Q75: 55 | R75: =DataInput!R75 -> 65 | S75: =DataInput!Y75 -> 0 | T75: =IF(DataInput!U75-DataInput!E75>0,DataInput!U75-DataInput!E75,"") -> 11 | U75: =IF(DataInput!W75-DataInput!I75>0,DataInput!W75-DataInput!I75,"") ->  | W75: 76 | X75: 98.8 | Y75: -43.8 | Z75: 187.9737 | AA75: 1662.5189 | AB75: =ROUNDDOWN((IF(AA76>0,IFERROR(IF(AVERAGE(DataInput!Q75:Q76)>AVERAGE(AA76,AA75),ROUNDDOWN(((((AA75-Z75)+(AA76-Z76))/2)*(A76-A75))/27+S19+T19,0),IF(((((DataInput!Q76-Z76)+(DataInput!Q75-Z75))/2)*(A76-A75))/27+S19+T19>0,ROUNDDOWN(((((DataInput!Q76-Z75)+(DataInput!Q75-Z75))/2)*(A76-A75))/27+S19+T19,0),0)),0),0)*$X$5),1) -> 0 | AC75: 93.5588 | AD75: =ROUNDDOWN((IF(AC76>0,IFERROR(IF(((((DataInput!Q75-AC75)+(DataInput!Q76-AC76))/2)*(A76-A75))/27+S19+T19>0,ROUNDDOWN(((((DataInput!Q75-AC75)+(DataInput!Q76-AC76))/2)*(A76-A75))/27+S19+T19,0),0),0),0)*$X$5),1) -> 1.3 | AE75: =DataInput!U75 -> 27 | AF75: =DataInput!S75 -> 33 | AG75: 46.2 | AH75: -19.2
A76: =IF(DataInput!A76<>"",DataInput!A76,"") -> 23141875 | B76: =SUM(DataInput!C76,DataInput!Y76)+(DataInput!U76-DataInput!E76) -> 96 | C76: =SUM(DataInput!D76,DataInput!Z76) -> 65 | D76: =DataInput!U76 -> 31 | E76: =SUM(DataInput!F76,DataInput!AB76) -> 0 | F76: =SUM(DataInput!G76,DataInput!AC76) -> 0 | G76: =SUM(DataInput!H76,DataInput!AD76) -> 0 | H76: =DataInput!I76 -> 0 | I76: =SUM(DataInput!J76,DataInput!AF76) -> 0 | J76: =SUM(DataInput!K76,DataInput!AG76) -> 0 | K76: =SUM(DataInput!L76,DataInput!AH76) -> 0 | L76: =SUM(DataInput!M76,DataInput!AI76) -> 0 | M76: =SUM(DataInput!N76,DataInput!AJ76) -> 0 | N76: =SUM(DataInput!O76,DataInput!AK76) -> 0 | O76: =DataInput!P76 -> 0 | Q76: 65 | R76: =DataInput!R76 -> 91 | S76: =DataInput!Y76 -> 0 | T76: =IF(DataInput!U76-DataInput!E76>0,DataInput!U76-DataInput!E76,"") -> 13 | U76: =IF(DataInput!W76-DataInput!I76>0,DataInput!W76-DataInput!I76,"") ->  | W76: 104 | X76: 135.2 | Y76: -70.2 | Z76: 187.9737 | AA76: 1662.5189 | AB76: =ROUNDDOWN((IF(AA77>0,IFERROR(IF(AVERAGE(DataInput!Q76:Q77)>AVERAGE(AA77,AA76),ROUNDDOWN(((((AA76-Z76)+(AA77-Z77))/2)*(A77-A76))/27+S20+T20,0),IF(((((DataInput!Q77-Z77)+(DataInput!Q76-Z76))/2)*(A77-A76))/27+S20+T20>0,ROUNDDOWN(((((DataInput!Q77-Z76)+(DataInput!Q76-Z76))/2)*(A77-A76))/27+S20+T20,0),0)),0),0)*$X$5),1) -> 0 | AC76: 93.5588 | AD76: =ROUNDDOWN((IF(AC77>0,IFERROR(IF(((((DataInput!Q76-AC76)+(DataInput!Q77-AC77))/2)*(A77-A76))/27+S20+T20>0,ROUNDDOWN(((((DataInput!Q76-AC76)+(DataInput!Q77-AC77))/2)*(A77-A76))/27+S20+T20,0),0),0),0)*$X$5),1) -> 35.1 | AE76: =DataInput!U76 -> 31 | AF76: =DataInput!S76 -> 38 | AG76: 53.2 | AH76: -22.2
A77: =IF(DataInput!A77<>"",DataInput!A77,"") -> 23141900 | B77: =SUM(DataInput!C77,DataInput!Y77)+(DataInput!U77-DataInput!E77) -> 110 | C77: =SUM(DataInput!D77,DataInput!Z77) -> 77 | D77: =DataInput!U77 -> 34 | E77: =SUM(DataInput!F77,DataInput!AB77) -> 0 | F77: =SUM(DataInput!G77,DataInput!AC77) -> 0 | G77: =SUM(DataInput!H77,DataInput!AD77) -> 0 | H77: =DataInput!I77 -> 0 | I77: =SUM(DataInput!J77,DataInput!AF77) -> 0 | J77: =SUM(DataInput!K77,DataInput!AG77) -> 0 | K77: =SUM(DataInput!L77,DataInput!AH77) -> 0 | L77: =SUM(DataInput!M77,DataInput!AI77) -> 0 | M77: =SUM(DataInput!N77,DataInput!AJ77) -> 0 | N77: =SUM(DataInput!O77,DataInput!AK77) -> 0 | O77: =DataInput!P77 -> 0 | Q77: 77 | R77: =DataInput!R77 -> 122 | S77: =DataInput!Y77 -> 0 | T77: =IF(DataInput!U77-DataInput!E77>0,DataInput!U77-DataInput!E77,"") -> 14 | U77: =IF(DataInput!W77-DataInput!I77>0,DataInput!W77-DataInput!I77,"") ->  | W77: 136 | X77: 176.8 | Y77: -99.8 | Z77: 187.9737 | AA77: 1662.5189 | AB77: =ROUNDDOWN((IF(AA78>0,IFERROR(IF(AVERAGE(DataInput!Q77:Q78)>AVERAGE(AA78,AA77),ROUNDDOWN(((((AA77-Z77)+(AA78-Z78))/2)*(A78-A77))/27+S21+T21,0),IF(((((DataInput!Q78-Z78)+(DataInput!Q77-Z77))/2)*(A78-A77))/27+S21+T21>0,ROUNDDOWN(((((DataInput!Q78-Z77)+(DataInput!Q77-Z77))/2)*(A78-A77))/27+S21+T21,0),0)),0),0)*$X$5),1) -> 0 | AC77: 93.5588 | AD77: =ROUNDDOWN((IF(AC78>0,IFERROR(IF(((((DataInput!Q77-AC77)+(DataInput!Q78-AC78))/2)*(A78-A77))/27+S21+T21>0,ROUNDDOWN(((((DataInput!Q77-AC77)+(DataInput!Q78-AC78))/2)*(A78-A77))/27+S21+T21,0),0),0),0)*$X$5),1) -> 75.4 | AE77: =DataInput!U77 -> 34 | AF77: =DataInput!S77 -> 42 | AG77: 58.8 | AH77: -24.8
A78: =IF(DataInput!A78<>"",DataInput!A78,"") -> 23141925 | B78: =SUM(DataInput!C78,DataInput!Y78)+(DataInput!U78-DataInput!E78) -> 126 | C78: =SUM(DataInput!D78,DataInput!Z78) -> 88 | D78: =DataInput!U78 -> 37 | E78: =SUM(DataInput!F78,DataInput!AB78) -> 0 | F78: =SUM(DataInput!G78,DataInput!AC78) -> 0 | G78: =SUM(DataInput!H78,DataInput!AD78) -> 0 | H78: =DataInput!I78 -> 0 | I78: =SUM(DataInput!J78,DataInput!AF78) -> 0 | J78: =SUM(DataInput!K78,DataInput!AG78) -> 0 | K78: =SUM(DataInput!L78,DataInput!AH78) -> 0 | L78: =SUM(DataInput!M78,DataInput!AI78) -> 0 | M78: =SUM(DataInput!N78,DataInput!AJ78) -> 0 | N78: =SUM(DataInput!O78,DataInput!AK78) -> 0 | O78: =DataInput!P78 -> 0 | Q78: 88 | R78: =DataInput!R78 -> 155 | S78: =DataInput!Y78 -> 0 | T78: =IF(DataInput!U78-DataInput!E78>0,DataInput!U78-DataInput!E78,"") -> 16 | U78: =IF(DataInput!W78-DataInput!I78>0,DataInput!W78-DataInput!I78,"") ->  | W78: 171 | X78: 222.3 | Y78: -134.3 | Z78: 187.9737 | AA78: 1662.5189 | AB78: =ROUNDDOWN((IF(AA79>0,IFERROR(IF(AVERAGE(DataInput!Q78:Q79)>AVERAGE(AA79,AA78),ROUNDDOWN(((((AA78-Z78)+(AA79-Z79))/2)*(A79-A78))/27+S22+T22,0),IF(((((DataInput!Q79-Z79)+(DataInput!Q78-Z78))/2)*(A79-A78))/27+S22+T22>0,ROUNDDOWN(((((DataInput!Q79-Z78)+(DataInput!Q78-Z78))/2)*(A79-A78))/27+S22+T22,0),0)),0),0)*$X$5),1) -> 5.2 | AC78: 93.5588 | AD78: =ROUNDDOWN((IF(AC79>0,IFERROR(IF(((((DataInput!Q78-AC78)+(DataInput!Q79-AC79))/2)*(A79-A78))/27+S22+T22>0,ROUNDDOWN(((((DataInput!Q78-AC78)+(DataInput!Q79-AC79))/2)*(A79-A78))/27+S22+T22,0),0),0),0)*$X$5),1) -> 118.3 | AE78: =DataInput!U78 -> 37 | AF78: =DataInput!S78 -> 46 | AG78: 64.4 | AH78: -27.4
A79: =IF(DataInput!A79<>"",DataInput!A79,"") -> 23141950 | B79: =SUM(DataInput!C79,DataInput!Y79)+(DataInput!U79-DataInput!E79) -> 141 | C79: =SUM(DataInput!D79,DataInput!Z79) -> 101 | D79: =DataInput!U79 -> 40 | E79: =SUM(DataInput!F79,DataInput!AB79) -> 0 | F79: =SUM(DataInput!G79,DataInput!AC79) -> 0 | G79: =SUM(DataInput!H79,DataInput!AD79) -> 0 | H79: =DataInput!I79 -> 0 | I79: =SUM(DataInput!J79,DataInput!AF79) -> 0 | J79: =SUM(DataInput!K79,DataInput!AG79) -> 0 | K79: =SUM(DataInput!L79,DataInput!AH79) -> 0 | L79: =SUM(DataInput!M79,DataInput!AI79) -> 0 | M79: =SUM(DataInput!N79,DataInput!AJ79) -> 0 | N79: =SUM(DataInput!O79,DataInput!AK79) -> 0 | O79: =DataInput!P79 -> 0 | Q79: 101 | R79: =DataInput!R79 -> 192 | S79: =DataInput!Y79 -> 0 | T79: =IF(DataInput!U79-DataInput!E79>0,DataInput!U79-DataInput!E79,"") -> 17 | U79: =IF(DataInput!W79-DataInput!I79>0,DataInput!W79-DataInput!I79,"") ->  | W79: 209 | X79: 271.7 | Y79: -170.7 | Z79: 187.9737 | AA79: 1662.5189 | AB79: =ROUNDDOWN((IF(AA80>0,IFERROR(IF(AVERAGE(DataInput!Q79:Q80)>AVERAGE(AA80,AA79),ROUNDDOWN(((((AA79-Z79)+(AA80-Z80))/2)*(A80-A79))/27+S23+T23,0),IF(((((DataInput!Q80-Z80)+(DataInput!Q79-Z79))/2)*(A80-A79))/27+S23+T23>0,ROUNDDOWN(((((DataInput!Q80-Z79)+(DataInput!Q79-Z79))/2)*(A80-A79))/27+S23+T23,0),0)),0),0)*$X$5),1) -> 52 | AC79: 93.5588 | AD79: =ROUNDDOWN((IF(AC80>0,IFERROR(IF(((((DataInput!Q79-AC79)+(DataInput!Q80-AC80))/2)*(A80-A79))/27+S23+T23>0,ROUNDDOWN(((((DataInput!Q79-AC79)+(DataInput!Q80-AC80))/2)*(A80-A79))/27+S23+T23,0),0),0),0)*$X$5),1) -> 165.1 | AE79: =DataInput!U79 -> 40 | AF79: =DataInput!S79 -> 51 | AG79: 71.4 | AH79: -31.4
A80: =IF(DataInput!A80<>"",DataInput!A80,"") -> 23141975 | B80: =SUM(DataInput!C80,DataInput!Y80)+(DataInput!U80-DataInput!E80) -> 156 | C80: =SUM(DataInput!D80,DataInput!Z80) -> 113 | D80: =DataInput!U80 -> 43 | E80: =SUM(DataInput!F80,DataInput!AB80) -> 0 | F80: =SUM(DataInput!G80,DataInput!AC80) -> 0 | G80: =SUM(DataInput!H80,DataInput!AD80) -> 0 | H80: =DataInput!I80 -> 0 | I80: =SUM(DataInput!J80,DataInput!AF80) -> 0 | J80: =SUM(DataInput!K80,DataInput!AG80) -> 0 | K80: =SUM(DataInput!L80,DataInput!AH80) -> 0 | L80: =SUM(DataInput!M80,DataInput!AI80) -> 0 | M80: =SUM(DataInput!N80,DataInput!AJ80) -> 0 | N80: =SUM(DataInput!O80,DataInput!AK80) -> 0 | O80: =DataInput!P80 -> 0 | Q80: 113 | R80: =DataInput!R80 -> 236 | S80: =DataInput!Y80 -> 0 | T80: =IF(DataInput!U80-DataInput!E80>0,DataInput!U80-DataInput!E80,"") -> 17 | U80: =IF(DataInput!W80-DataInput!I80>0,DataInput!W80-DataInput!I80,"") ->  | W80: 253 | X80: 328.9 | Y80: -215.9 | Z80: 187.9737 | AA80: 1662.5189 | AB80: =ROUNDDOWN((IF(AA81>0,IFERROR(IF(AVERAGE(DataInput!Q80:Q81)>AVERAGE(AA81,AA80),ROUNDDOWN(((((AA80-Z80)+(AA81-Z81))/2)*(A81-A80))/27+S24+T24,0),IF(((((DataInput!Q81-Z81)+(DataInput!Q80-Z80))/2)*(A81-A80))/27+S24+T24>0,ROUNDDOWN(((((DataInput!Q81-Z80)+(DataInput!Q80-Z80))/2)*(A81-A80))/27+S24+T24,0),0)),0),0)*$X$5),1) -> 105.3 | AC80: 93.5588 | AD80: =ROUNDDOWN((IF(AC81>0,IFERROR(IF(((((DataInput!Q80-AC80)+(DataInput!Q81-AC81))/2)*(A81-A80))/27+S24+T24>0,ROUNDDOWN(((((DataInput!Q80-AC80)+(DataInput!Q81-AC81))/2)*(A81-A80))/27+S24+T24,0),0),0),0)*$X$5),1) -> 218.4 | AE80: =DataInput!U80 -> 43 | AF80: =DataInput!S80 -> 56 | AG80: 78.4 | AH80: -35.4
A81: =IF(DataInput!A81<>"",DataInput!A81,"") -> 23142000 | B81: =SUM(DataInput!C81,DataInput!Y81)+(DataInput!U81-DataInput!E81) -> 175 | C81: =SUM(DataInput!D81,DataInput!Z81) -> 128 | D81: =DataInput!U81 -> 47 | E81: =SUM(DataInput!F81,DataInput!AB81) -> 0 | F81: =SUM(DataInput!G81,DataInput!AC81) -> 0 | G81: =SUM(DataInput!H81,DataInput!AD81) -> 0 | H81: =DataInput!I81 -> 0 | I81: =SUM(DataInput!J81,DataInput!AF81) -> 0 | J81: =SUM(DataInput!K81,DataInput!AG81) -> 0 | K81: =SUM(DataInput!L81,DataInput!AH81) -> 0 | L81: =SUM(DataInput!M81,DataInput!AI81) -> 0 | M81: =SUM(DataInput!N81,DataInput!AJ81) -> 0 | N81: =SUM(DataInput!O81,DataInput!AK81) -> 0 | O81: =DataInput!P81 -> 0 | Q81: 128 | R81: =DataInput!R81 -> 289 | S81: =DataInput!Y81 -> 0 | T81: =IF(DataInput!U81-DataInput!E81>0,DataInput!U81-DataInput!E81,"") -> 20 | U81: =IF(DataInput!W81-DataInput!I81>0,DataInput!W81-DataInput!I81,"") ->  | W81: 309 | X81: 401.7 | Y81: -273.7 | Z81: 187.9737 | AA81: 1662.5189 | AB81: =ROUNDDOWN((IF(AA82>0,IFERROR(IF(AVERAGE(DataInput!Q81:Q82)>AVERAGE(AA82,AA81),ROUNDDOWN(((((AA81-Z81)+(AA82-Z82))/2)*(A82-A81))/27+S25+T25,0),IF(((((DataInput!Q82-Z82)+(DataInput!Q81-Z81))/2)*(A82-A81))/27+S25+T25>0,ROUNDDOWN(((((DataInput!Q82-Z81)+(DataInput!Q81-Z81))/2)*(A82-A81))/27+S25+T25,0),0)),0),0)*$X$5),1) -> 172.9 | AC81: 93.5588 | AD81: =ROUNDDOWN((IF(AC82>0,IFERROR(IF(((((DataInput!Q81-AC81)+(DataInput!Q82-AC82))/2)*(A82-A81))/27+S25+T25>0,ROUNDDOWN(((((DataInput!Q81-AC81)+(DataInput!Q82-AC82))/2)*(A82-A81))/27+S25+T25,0),0),0),0)*$X$5),1) -> 287.3 | AE81: =DataInput!U81 -> 47 | AF81: =DataInput!S81 -> 61 | AG81: 85.4 | AH81: -38.4
A82: =IF(DataInput!A82<>"",DataInput!A82,"") -> 23142025 | B82: =SUM(DataInput!C82,DataInput!Y82)+(DataInput!U82-DataInput!E82) -> 204 | C82: =SUM(DataInput!D82,DataInput!Z82) -> 153 | D82: =DataInput!U82 -> 51 | E82: =SUM(DataInput!F82,DataInput!AB82) -> 0 | F82: =SUM(DataInput!G82,DataInput!AC82) -> 0 | G82: =SUM(DataInput!H82,DataInput!AD82) -> 0 | H82: =DataInput!I82 -> 0 | I82: =SUM(DataInput!J82,DataInput!AF82) -> 0 | J82: =SUM(DataInput!K82,DataInput!AG82) -> 0 | K82: =SUM(DataInput!L82,DataInput!AH82) -> 0 | L82: =SUM(DataInput!M82,DataInput!AI82) -> 0 | M82: =SUM(DataInput!N82,DataInput!AJ82) -> 0 | N82: =SUM(DataInput!O82,DataInput!AK82) -> 0 | O82: =DataInput!P82 -> 0 | Q82: 153 | R82: =DataInput!R82 -> 348 | S82: =DataInput!Y82 -> 0 | T82: =IF(DataInput!U82-DataInput!E82>0,DataInput!U82-DataInput!E82,"") -> 22 | U82: =IF(DataInput!W82-DataInput!I82>0,DataInput!W82-DataInput!I82,"") ->  | W82: 370 | X82: 481 | Y82: -328 | Z82: 187.9737 | AA82: 1662.5189 | AB82: =ROUNDDOWN((IF(AA83>0,IFERROR(IF(AVERAGE(DataInput!Q82:Q83)>AVERAGE(AA83,AA82),ROUNDDOWN(((((AA82-Z82)+(AA83-Z83))/2)*(A83-A82))/27+S26+T26,0),IF(((((DataInput!Q83-Z83)+(DataInput!Q82-Z82))/2)*(A83-A82))/27+S26+T26>0,ROUNDDOWN(((((DataInput!Q83-Z82)+(DataInput!Q82-Z82))/2)*(A83-A82))/27+S26+T26,0),0)),0),0)*$X$5),1) -> 253.5 | AC82: 93.5588 | AD82: =ROUNDDOWN((IF(AC83>0,IFERROR(IF(((((DataInput!Q82-AC82)+(DataInput!Q83-AC83))/2)*(A83-A82))/27+S26+T26>0,ROUNDDOWN(((((DataInput!Q82-AC82)+(DataInput!Q83-AC83))/2)*(A83-A82))/27+S26+T26,0),0),0),0)*$X$5),1) -> 366.6 | AE82: =DataInput!U82 -> 51 | AF82: =DataInput!S82 -> 67 | AG82: 93.8 | AH82: -42.8
A83: =IF(DataInput!A83<>"",DataInput!A83,"") -> 23142050 | B83: =SUM(DataInput!C83,DataInput!Y83)+(DataInput!U83-DataInput!E83) -> 229 | C83: =SUM(DataInput!D83,DataInput!Z83) -> 173 | D83: =DataInput!U83 -> 56 | E83: =SUM(DataInput!F83,DataInput!AB83) -> 0 | F83: =SUM(DataInput!G83,DataInput!AC83) -> 0 | G83: =SUM(DataInput!H83,DataInput!AD83) -> 0 | H83: =DataInput!I83 -> 0 | I83: =SUM(DataInput!J83,DataInput!AF83) -> 0 | J83: =SUM(DataInput!K83,DataInput!AG83) -> 0 | K83: =SUM(DataInput!L83,DataInput!AH83) -> 0 | L83: =SUM(DataInput!M83,DataInput!AI83) -> 0 | M83: =SUM(DataInput!N83,DataInput!AJ83) -> 0 | N83: =SUM(DataInput!O83,DataInput!AK83) -> 0 | O83: =DataInput!P83 -> 0 | Q83: 173 | R83: =DataInput!R83 -> 424 | S83: =DataInput!Y83 -> 0 | T83: =IF(DataInput!U83-DataInput!E83>0,DataInput!U83-DataInput!E83,"") -> 25 | U83: =IF(DataInput!W83-DataInput!I83>0,DataInput!W83-DataInput!I83,"") ->  | W83: 449 | X83: 583.7 | Y83: -410.7 | Z83: 187.9737 | AA83: 1662.5189 | AB83: =ROUNDDOWN((IF(AA84>0,IFERROR(IF(AVERAGE(DataInput!Q83:Q84)>AVERAGE(AA84,AA83),ROUNDDOWN(((((AA83-Z83)+(AA84-Z84))/2)*(A84-A83))/27+S27+T27,0),IF(((((DataInput!Q84-Z84)+(DataInput!Q83-Z83))/2)*(A84-A83))/27+S27+T27>0,ROUNDDOWN(((((DataInput!Q84-Z83)+(DataInput!Q83-Z83))/2)*(A84-A83))/27+S27+T27,0),0)),0),0)*$X$5),1) -> 361.4 | AC83: 93.5588 | AD83: =ROUNDDOWN((IF(AC84>0,IFERROR(IF(((((DataInput!Q83-AC83)+(DataInput!Q84-AC84))/2)*(A84-A83))/27+S27+T27>0,ROUNDDOWN(((((DataInput!Q83-AC83)+(DataInput!Q84-AC84))/2)*(A84-A83))/27+S27+T27,0),0),0),0)*$X$5),1) -> 474.5 | AE83: =DataInput!U83 -> 56 | AF83: =DataInput!S83 -> 73 | AG83: 102.2 | AH83: -46.2
A84: =IF(DataInput!A84<>"",DataInput!A84,"") -> 23142075 | B84: =SUM(DataInput!C84,DataInput!Y84)+(DataInput!U84-DataInput!E84) -> 195 | C84: =SUM(DataInput!D84,DataInput!Z84) -> 138 | D84: =DataInput!U84 -> 56 | E84: =SUM(DataInput!F84,DataInput!AB84) -> 0 | F84: =SUM(DataInput!G84,DataInput!AC84) -> 0 | G84: =SUM(DataInput!H84,DataInput!AD84) -> 0 | H84: =DataInput!I84 -> 0 | I84: =SUM(DataInput!J84,DataInput!AF84) -> 0 | J84: =SUM(DataInput!K84,DataInput!AG84) -> 0 | K84: =SUM(DataInput!L84,DataInput!AH84) -> 0 | L84: =SUM(DataInput!M84,DataInput!AI84) -> 0 | M84: =SUM(DataInput!N84,DataInput!AJ84) -> 0 | N84: =SUM(DataInput!O84,DataInput!AK84) -> 0 | O84: =DataInput!P84 -> 0 | Q84: 138 | R84: =DataInput!R84 -> 513 | S84: =DataInput!Y84 -> 0 | T84: =IF(DataInput!U84-DataInput!E84>0,DataInput!U84-DataInput!E84,"") -> 30 | U84: =IF(DataInput!W84-DataInput!I84>0,DataInput!W84-DataInput!I84,"") ->  | W84: 543 | X84: 705.9 | Y84: -567.9 | Z84: 187.9737 | AA84: 1662.5189 | AB84: =ROUNDDOWN((IF(AA85>0,IFERROR(IF(AVERAGE(DataInput!Q84:Q85)>AVERAGE(AA85,AA84),ROUNDDOWN(((((AA84-Z84)+(AA85-Z85))/2)*(A85-A84))/27+S28+T28,0),IF(((((DataInput!Q85-Z85)+(DataInput!Q84-Z84))/2)*(A85-A84))/27+S28+T28>0,ROUNDDOWN(((((DataInput!Q85-Z84)+(DataInput!Q84-Z84))/2)*(A85-A84))/27+S28+T28,0),0)),0),0)*$X$5),1) -> 483.6 | AC84: 93.5588 | AD84: =ROUNDDOWN((IF(AC85>0,IFERROR(IF(((((DataInput!Q84-AC84)+(DataInput!Q85-AC85))/2)*(A85-A84))/27+S28+T28>0,ROUNDDOWN(((((DataInput!Q84-AC84)+(DataInput!Q85-AC85))/2)*(A85-A84))/27+S28+T28,0),0),0),0)*$X$5),1) -> 596.7 | AE84: =DataInput!U84 -> 56 | AF84: =DataInput!S84 -> 74 | AG84: 103.6 | AH84: -47.6
A85: =IF(DataInput!A85<>"",DataInput!A85,"") -> 23142100 | B85: =SUM(DataInput!C85,DataInput!Y85)+(DataInput!U85-DataInput!E85) -> 113 | C85: =SUM(DataInput!D85,DataInput!Z85) -> 63 | D85: =DataInput!U85 -> 50 | E85: =SUM(DataInput!F85,DataInput!AB85) -> 0 | F85: =SUM(DataInput!G85,DataInput!AC85) -> 0 | G85: =SUM(DataInput!H85,DataInput!AD85) -> 0 | H85: =DataInput!I85 -> 0 | I85: =SUM(DataInput!J85,DataInput!AF85) -> 0 | J85: =SUM(DataInput!K85,DataInput!AG85) -> 0 | K85: =SUM(DataInput!L85,DataInput!AH85) -> 0 | L85: =SUM(DataInput!M85,DataInput!AI85) -> 0 | M85: =SUM(DataInput!N85,DataInput!AJ85) -> 0 | N85: =SUM(DataInput!O85,DataInput!AK85) -> 0 | O85: =DataInput!P85 -> 0 | Q85: 63 | R85: =DataInput!R85 -> 574 | S85: =DataInput!Y85 -> 0 | T85: =IF(DataInput!U85-DataInput!E85>0,DataInput!U85-DataInput!E85,"") -> 34 | U85: =IF(DataInput!W85-DataInput!I85>0,DataInput!W85-DataInput!I85,"") ->  | W85: 608 | X85: 790.4 | Y85: -727.4 | Z85: 187.9737 | AA85: 1662.5189 | AB85: =ROUNDDOWN((IF(AA86>0,IFERROR(IF(AVERAGE(DataInput!Q85:Q86)>AVERAGE(AA86,AA85),ROUNDDOWN(((((AA85-Z85)+(AA86-Z86))/2)*(A86-A85))/27+S29+T29,0),IF(((((DataInput!Q86-Z86)+(DataInput!Q85-Z85))/2)*(A86-A85))/27+S29+T29>0,ROUNDDOWN(((((DataInput!Q86-Z85)+(DataInput!Q85-Z85))/2)*(A86-A85))/27+S29+T29,0),0)),0),0)*$X$5),1) -> 566.8 | AC85: 93.5588 | AD85: =ROUNDDOWN((IF(AC86>0,IFERROR(IF(((((DataInput!Q85-AC85)+(DataInput!Q86-AC86))/2)*(A86-A85))/27+S29+T29>0,ROUNDDOWN(((((DataInput!Q85-AC85)+(DataInput!Q86-AC86))/2)*(A86-A85))/27+S29+T29,0),0),0),0)*$X$5),1) -> 679.9 | AE85: =DataInput!U85 -> 50 | AF85: =DataInput!S85 -> 65 | AG85: 91 | AH85: -41
A86: =IF(DataInput!A86<>"",DataInput!A86,"") -> 23142125 | B86: =SUM(DataInput!C86,DataInput!Y86)+(DataInput!U86-DataInput!E86) -> 54 | C86: =SUM(DataInput!D86,DataInput!Z86) -> 13 | D86: =DataInput!U86 -> 42 | E86: =SUM(DataInput!F86,DataInput!AB86) -> 0 | F86: =SUM(DataInput!G86,DataInput!AC86) -> 0 | G86: =SUM(DataInput!H86,DataInput!AD86) -> 0 | H86: =DataInput!I86 -> 0 | I86: =SUM(DataInput!J86,DataInput!AF86) -> 0 | J86: =SUM(DataInput!K86,DataInput!AG86) -> 0 | K86: =SUM(DataInput!L86,DataInput!AH86) -> 0 | L86: =SUM(DataInput!M86,DataInput!AI86) -> 0 | M86: =SUM(DataInput!N86,DataInput!AJ86) -> 0 | N86: =SUM(DataInput!O86,DataInput!AK86) -> 0 | O86: =DataInput!P86 -> 0 | Q86: 13 | R86: =DataInput!R86 -> 672 | S86: =DataInput!Y86 -> 0 | T86: =IF(DataInput!U86-DataInput!E86>0,DataInput!U86-DataInput!E86,"") -> 36 | U86: =IF(DataInput!W86-DataInput!I86>0,DataInput!W86-DataInput!I86,"") ->  | W86: 708 | X86: 920.4 | Y86: -907.4 | Z86: 187.9737 | AA86: 1662.5189 | AB86: =ROUNDDOWN((IF(AA87>0,IFERROR(IF(AVERAGE(DataInput!Q86:Q87)>AVERAGE(AA87,AA86),ROUNDDOWN(((((AA86-Z86)+(AA87-Z87))/2)*(A87-A86))/27+S30+T30,0),IF(((((DataInput!Q87-Z87)+(DataInput!Q86-Z86))/2)*(A87-A86))/27+S30+T30>0,ROUNDDOWN(((((DataInput!Q87-Z86)+(DataInput!Q86-Z86))/2)*(A87-A86))/27+S30+T30,0),0)),0),0)*$X$5),1) -> 695.5 | AC86: 93.5588 | AD86: =ROUNDDOWN((IF(AC87>0,IFERROR(IF(((((DataInput!Q86-AC86)+(DataInput!Q87-AC87))/2)*(A87-A86))/27+S30+T30>0,ROUNDDOWN(((((DataInput!Q86-AC86)+(DataInput!Q87-AC87))/2)*(A87-A86))/27+S30+T30,0),0),0),0)*$X$5),1) -> 809.9 | AE86: =DataInput!U86 -> 42 | AF86: =DataInput!S86 -> 54 | AG86: 75.6 | AH86: -33.6
A87: =IF(DataInput!A87<>"",DataInput!A87,"") -> 23142150 | B87: =SUM(DataInput!C87,DataInput!Y87)+(DataInput!U87-DataInput!E87) -> 39 | C87: =SUM(DataInput!D87,DataInput!Z87) -> 0 | D87: =DataInput!U87 -> 39 | E87: =SUM(DataInput!F87,DataInput!AB87) -> 0 | F87: =SUM(DataInput!G87,DataInput!AC87) -> 0 | G87: =SUM(DataInput!H87,DataInput!AD87) -> 0 | H87: =DataInput!I87 -> 0 | I87: =SUM(DataInput!J87,DataInput!AF87) -> 0 | J87: =SUM(DataInput!K87,DataInput!AG87) -> 0 | K87: =SUM(DataInput!L87,DataInput!AH87) -> 0 | L87: =SUM(DataInput!M87,DataInput!AI87) -> 0 | M87: =SUM(DataInput!N87,DataInput!AJ87) -> 0 | N87: =SUM(DataInput!O87,DataInput!AK87) -> 0 | O87: =DataInput!P87 -> 0 | Q87: 0 | R87: =DataInput!R87 -> 818 | S87: =DataInput!Y87 -> 0 | T87: =IF(DataInput!U87-DataInput!E87>0,DataInput!U87-DataInput!E87,"") -> 39 | U87: =IF(DataInput!W87-DataInput!I87>0,DataInput!W87-DataInput!I87,"") ->  | W87: 857 | X87: 1114.1 | Y87: -1114.1 | Z87: 187.9737 | AA87: 1662.5189 | AB87: =ROUNDDOWN((IF(AA88>0,IFERROR(IF(AVERAGE(DataInput!Q87:Q88)>AVERAGE(AA88,AA87),ROUNDDOWN(((((AA87-Z87)+(AA88-Z88))/2)*(A88-A87))/27+S31+T31,0),IF(((((DataInput!Q88-Z88)+(DataInput!Q87-Z87))/2)*(A88-A87))/27+S31+T31>0,ROUNDDOWN(((((DataInput!Q88-Z87)+(DataInput!Q87-Z87))/2)*(A88-A87))/27+S31+T31,0),0)),0),0)*$X$5),1) -> 886.6 | AC87: 93.5588 | AD87: =ROUNDDOWN((IF(AC88>0,IFERROR(IF(((((DataInput!Q87-AC87)+(DataInput!Q88-AC88))/2)*(A88-A87))/27+S31+T31>0,ROUNDDOWN(((((DataInput!Q87-AC87)+(DataInput!Q88-AC88))/2)*(A88-A87))/27+S31+T31,0),0),0),0)*$X$5),1) -> 999.7 | AE87: =DataInput!U87 -> 39 | AF87: =DataInput!S87 -> 47 | AG87: 65.8 | AH87: -26.8
A88: =IF(DataInput!A88<>"",DataInput!A88,"") -> 23142175 | B88: =SUM(DataInput!C88,DataInput!Y88)+(DataInput!U88-DataInput!E88) -> 41 | C88: =SUM(DataInput!D88,DataInput!Z88) -> 0 | D88: =DataInput!U88 -> 41 | E88: =SUM(DataInput!F88,DataInput!AB88) -> 0 | F88: =SUM(DataInput!G88,DataInput!AC88) -> 0 | G88: =SUM(DataInput!H88,DataInput!AD88) -> 0 | H88: =DataInput!I88 -> 0 | I88: =SUM(DataInput!J88,DataInput!AF88) -> 0 | J88: =SUM(DataInput!K88,DataInput!AG88) -> 0 | K88: =SUM(DataInput!L88,DataInput!AH88) -> 0 | L88: =SUM(DataInput!M88,DataInput!AI88) -> 0 | M88: =SUM(DataInput!N88,DataInput!AJ88) -> 0 | N88: =SUM(DataInput!O88,DataInput!AK88) -> 0 | O88: =DataInput!P88 -> 0 | Q88: 0 | R88: =DataInput!R88 -> 1029 | S88: =DataInput!Y88 -> 0 | T88: =IF(DataInput!U88-DataInput!E88>0,DataInput!U88-DataInput!E88,"") -> 41 | U88: =IF(DataInput!W88-DataInput!I88>0,DataInput!W88-DataInput!I88,"") ->  | W88: 1070 | X88: 1391 | Y88: -1391 | Z88: 187.9737 | AA88: 1662.5189 | AB88: =ROUNDDOWN((IF(AA89>0,IFERROR(IF(AVERAGE(DataInput!Q88:Q89)>AVERAGE(AA89,AA88),ROUNDDOWN(((((AA88-Z88)+(AA89-Z89))/2)*(A89-A88))/27+S32+T32,0),IF(((((DataInput!Q89-Z89)+(DataInput!Q88-Z88))/2)*(A89-A88))/27+S32+T32>0,ROUNDDOWN(((((DataInput!Q89-Z88)+(DataInput!Q88-Z88))/2)*(A89-A88))/27+S32+T32,0),0)),0),0)*$X$5),1) -> 0 | AC88: 93.5588 | AD88: =ROUNDDOWN((IF(AC89>0,IFERROR(IF(((((DataInput!Q88-AC88)+(DataInput!Q89-AC89))/2)*(A89-A88))/27+S32+T32>0,ROUNDDOWN(((((DataInput!Q88-AC88)+(DataInput!Q89-AC89))/2)*(A89-A88))/27+S32+T32,0),0),0),0)*$X$5),1) -> 0 | AE88: =DataInput!U88 -> 41 | AF88: =DataInput!S88 -> 40 | AG88: 56 | AH88: -15
A89: =IF(DataInput!A89<>"",DataInput!A89,"") -> 23142200
A91: =IF(DataInput!A91<>"",DataInput!A91,"") -> US_218_North
A92: =IF(DataInput!A92<>"",DataInput!A92,"") -> 24147650 | B92: =SUM(DataInput!C92,DataInput!Y92)+(DataInput!U92-DataInput!E92) -> 14 | C92: =SUM(DataInput!D92,DataInput!Z92) -> 15 | D92: =DataInput!U92 -> 0 | E92: =SUM(DataInput!F92,DataInput!AB92) -> 0 | F92: =SUM(DataInput!G92,DataInput!AC92) -> 0 | G92: =SUM(DataInput!H92,DataInput!AD92) -> 0 | H92: =DataInput!I92 -> 7 | I92: =SUM(DataInput!J92,DataInput!AF92) -> 0 | J92: =SUM(DataInput!K92,DataInput!AG92) -> 0 | K92: =SUM(DataInput!L92,DataInput!AH92) -> 0 | L92: =SUM(DataInput!M92,DataInput!AI92) -> 0 | M92: =SUM(DataInput!N92,DataInput!AJ92) -> 0 | N92: =SUM(DataInput!O92,DataInput!AK145) -> 0 | O92: =DataInput!P92 -> 0 | Q92: =SUM(C92,E92:G92,I92:L92,N92:P92) -> 15 | R92: =DataInput!R92 -> 877 | S92: =DataInput!Y92 -> 0 | T92: =IF(DataInput!U92-DataInput!E92>0,DataInput!U92-DataInput!E92,"") ->  | U92: =IF(DataInput!W92-DataInput!I92>0,DataInput!W92-DataInput!I92,"") -> 139 | W92: =SUM(R92:V92) -> 1016 | X92: =ROUNDUP(($W92*$X$5),1) -> 1320.8 | Y92: =ROUNDUP(SUM(Q92-X92),1) -> -1305.8 | Z92: 407.1929 | AA92: 2858.4524 | AB92: =ROUNDDOWN((IF(AA93>0,IFERROR(IF(AVERAGE(DataInput!Q92:Q93)>AVERAGE(AA93,AA92),ROUNDDOWN(((((AA92-Z92)+(AA93-Z93))/2)*(A93-A92))/27+S12+T12,0),IF(((((DataInput!Q93-Z93)+(DataInput!Q92-Z92))/2)*(A93-A92))/27+S12+T12>0,ROUNDDOWN(((((DataInput!Q93-Z92)+(DataInput!Q92-Z92))/2)*(A93-A92))/27+S12+T12,0),0)),0),0)*$X$5),1) -> 650 | AC92: 202.485 | AD92: =ROUNDDOWN((IF(AC93>0,IFERROR(IF(((((DataInput!Q92-AC92)+(DataInput!Q93-AC93))/2)*(A93-A92))/27+S12+T12>0,ROUNDDOWN(((((DataInput!Q92-AC92)+(DataInput!Q93-AC93))/2)*(A93-A92))/27+S12+T12,0),0),0),0)*$X$5),1) -> 895.7 | AE92: =DataInput!U92 -> 0 | AF92: =DataInput!S92 -> 136 | AG92: =ROUNDUP((AF92*$AG$5),1) -> 190.4 | AH92: =ROUNDUP((AE92-AG92),1) -> -190.4
A93: =IF(DataInput!A93<>"",DataInput!A93,"") -> 24147675 | B93: =SUM(DataInput!C93,DataInput!Y93)+(DataInput!U93-DataInput!E93) -> 167 | C93: =SUM(DataInput!D93,DataInput!Z93) -> 25 | D93: =DataInput!U93 -> 142 | E93: =SUM(DataInput!F93,DataInput!AB93) -> 0 | F93: =SUM(DataInput!G93,DataInput!AC93) -> 0 | G93: =SUM(DataInput!H93,DataInput!AD93) -> 0 | H93: =DataInput!I93 -> 4 | I93: =SUM(DataInput!J93,DataInput!AF93) -> 0 | J93: =SUM(DataInput!K93,DataInput!AG93) -> 0 | K93: =SUM(DataInput!L93,DataInput!AH93) -> 0 | L93: =SUM(DataInput!M93,DataInput!AI93) -> 0 | M93: =SUM(DataInput!N93,DataInput!AJ93) -> 0 | N93: =SUM(DataInput!O93,DataInput!AK146) -> 0 | O93: =DataInput!P93 -> 0 | Q93: =SUM(C93,E93:G93,I93:L93,N93:P93) -> 25 | R93: =DataInput!R93 -> 2407 | S93: =DataInput!Y93 -> 0 | T93: =IF(DataInput!U93-DataInput!E93>0,DataInput!U93-DataInput!E93,"") -> 119 | U93: =IF(DataInput!W93-DataInput!I93>0,DataInput!W93-DataInput!I93,"") -> 160 | W93: =SUM(R93:V93) -> 2686 | X93: =ROUNDUP(($W93*$X$5),1) -> 3491.8 | Y93: =ROUNDUP(SUM(Q93-X93),1) -> -3466.8 | Z93: =Z92 -> 407.1929 | AA93: =AA92 -> 2858.4524 | AB93: =ROUNDDOWN((IF(AA94>0,IFERROR(IF(AVERAGE(DataInput!Q93:Q94)>AVERAGE(AA94,AA93),ROUNDDOWN(((((AA93-Z93)+(AA94-Z94))/2)*(A94-A93))/27+S13+T13,0),IF(((((DataInput!Q94-Z94)+(DataInput!Q93-Z93))/2)*(A94-A93))/27+S13+T13>0,ROUNDDOWN(((((DataInput!Q94-Z93)+(DataInput!Q93-Z93))/2)*(A94-A93))/27+S13+T13,0),0)),0),0)*$X$5),1) -> 2637.7 | AC93: =AC92 -> 202.485 | AD93: =ROUNDDOWN((IF(AC94>0,IFERROR(IF(((((DataInput!Q93-AC93)+(DataInput!Q94-AC94))/2)*(A94-A93))/27+S13+T13>0,ROUNDDOWN(((((DataInput!Q93-AC93)+(DataInput!Q94-AC94))/2)*(A94-A93))/27+S13+T13,0),0),0),0)*$X$5),1) -> 2884.7 | AE93: =DataInput!U93 -> 142 | AF93: =DataInput!S93 -> 183 | AG93: =ROUNDUP((AF93*$AG$5),1) -> 256.2 | AH93: =ROUNDUP((AE93-AG93),1) -> -114.2
A94: =IF(DataInput!A94<>"",DataInput!A94,"") -> 24147700 | B94: =SUM(DataInput!C94,DataInput!Y94)+(DataInput!U94-DataInput!E94) -> 222 | C94: =SUM(DataInput!D94,DataInput!Z94) -> 23 | D94: =DataInput!U94 -> 199 | E94: =SUM(DataInput!F94,DataInput!AB94) -> 0 | F94: =SUM(DataInput!G94,DataInput!AC94) -> 0 | G94: =SUM(DataInput!H94,DataInput!AD94) -> 0 | H94: =DataInput!I94 -> 0 | I94: =SUM(DataInput!J94,DataInput!AF94) -> 0 | J94: =SUM(DataInput!K94,DataInput!AG94) -> 0 | K94: =SUM(DataInput!L94,DataInput!AH94) -> 0 | L94: =SUM(DataInput!M94,DataInput!AI94) -> 0 | M94: =SUM(DataInput!N94,DataInput!AJ94) -> 0 | N94: =SUM(DataInput!O94,DataInput!AK147) -> 0 | O94: =DataInput!P94 -> 0 | Q94: 23 | R94: =DataInput!R94 -> 3438 | S94: =DataInput!Y94 -> 0 | T94: =IF(DataInput!U94-DataInput!E94>0,DataInput!U94-DataInput!E94,"") -> 169 | U94: =IF(DataInput!W94-DataInput!I94>0,DataInput!W94-DataInput!I94,"") -> 100 | W94: 3707 | X94: 4819.1 | Y94: -4796.1 | Z94: =Z93 -> 407.1929 | AA94: =AA93 -> 2858.4524 | AB94: =ROUNDDOWN((IF(AA95>0,IFERROR(IF(AVERAGE(DataInput!Q94:Q95)>AVERAGE(AA95,AA94),ROUNDDOWN(((((AA94-Z94)+(AA95-Z95))/2)*(A95-A94))/27+S14+T14,0),IF(((((DataInput!Q95-Z95)+(DataInput!Q94-Z94))/2)*(A95-A94))/27+S14+T14>0,ROUNDDOWN(((((DataInput!Q95-Z94)+(DataInput!Q94-Z94))/2)*(A95-A94))/27+S14+T14,0),0)),0),0)*$X$5),1) -> 2964 | AC94: =AC93 -> 202.485 | AD94: =ROUNDDOWN((IF(AC95>0,IFERROR(IF(((((DataInput!Q94-AC94)+(DataInput!Q95-AC95))/2)*(A95-A94))/27+S14+T14>0,ROUNDDOWN(((((DataInput!Q94-AC94)+(DataInput!Q95-AC95))/2)*(A95-A94))/27+S14+T14,0),0),0),0)*$X$5),1) -> 4239.3 | AE94: =DataInput!U94 -> 199 | AF94: =DataInput!S94 -> 173 | AG94: 242.2 | AH94: -43.2
A95: =IF(DataInput!A95<>"",DataInput!A95,"") -> 24147725 | B95: =SUM(DataInput!C95,DataInput!Y95)+(DataInput!U95-DataInput!E95) -> 228 | C95: =SUM(DataInput!D95,DataInput!Z95) -> 19 | D95: =DataInput!U95 -> 209 | E95: =SUM(DataInput!F95,DataInput!AB95) -> 0 | F95: =SUM(DataInput!G95,DataInput!AC95) -> 0 | G95: =SUM(DataInput!H95,DataInput!AD95) -> 0 | H95: =DataInput!I95 -> 0 | I95: =SUM(DataInput!J95,DataInput!AF95) -> 0 | J95: =SUM(DataInput!K95,DataInput!AG95) -> 0 | K95: =SUM(DataInput!L95,DataInput!AH95) -> 0 | L95: =SUM(DataInput!M95,DataInput!AI95) -> 0 | M95: =SUM(DataInput!N95,DataInput!AJ95) -> 0 | N95: =SUM(DataInput!O95,DataInput!AK148) -> 0 | O95: =DataInput!P95 -> 0 | Q95: 19 | R95: =DataInput!R95 -> 3702 | S95: =DataInput!Y95 -> 0 | T95: =IF(DataInput!U95-DataInput!E95>0,DataInput!U95-DataInput!E95,"") -> 176 | U95: =IF(DataInput!W95-DataInput!I95>0,DataInput!W95-DataInput!I95,"") -> 78 | W95: 3956 | X95: 5142.8 | Y95: -5123.8 | Z95: 407.1929 | AA95: 2858.4524 | AB95: =ROUNDDOWN((IF(AA96>0,IFERROR(IF(AVERAGE(DataInput!Q95:Q96)>AVERAGE(AA96,AA95),ROUNDDOWN(((((AA95-Z95)+(AA96-Z96))/2)*(A96-A95))/27+S15+T15,0),IF(((((DataInput!Q96-Z96)+(DataInput!Q95-Z95))/2)*(A96-A95))/27+S15+T15>0,ROUNDDOWN(((((DataInput!Q96-Z95)+(DataInput!Q95-Z95))/2)*(A96-A95))/27+S15+T15,0),0)),0),0)*$X$5),1) -> 2977 | AC95: 202.485 | AD95: =ROUNDDOWN((IF(AC96>0,IFERROR(IF(((((DataInput!Q95-AC95)+(DataInput!Q96-AC96))/2)*(A96-A95))/27+S15+T15>0,ROUNDDOWN(((((DataInput!Q95-AC95)+(DataInput!Q96-AC96))/2)*(A96-A95))/27+S15+T15,0),0),0),0)*$X$5),1) -> 4595.5 | AE95: =DataInput!U95 -> 209 | AF95: =DataInput!S95 -> 147 | AG95: 205.8 | AH95: 3.2
A96: =IF(DataInput!A96<>"",DataInput!A96,"") -> 24147750 | B96: =SUM(DataInput!C96,DataInput!Y96)+(DataInput!U96-DataInput!E96) -> 234 | C96: =SUM(DataInput!D96,DataInput!Z96) -> 20 | D96: =DataInput!U96 -> 214 | E96: =SUM(DataInput!F96,DataInput!AB96) -> 0 | F96: =SUM(DataInput!G96,DataInput!AC96) -> 0 | G96: =SUM(DataInput!H96,DataInput!AD96) -> 0 | H96: =DataInput!I96 -> 0 | I96: =SUM(DataInput!J96,DataInput!AF96) -> 0 | J96: =SUM(DataInput!K96,DataInput!AG96) -> 0 | K96: =SUM(DataInput!L96,DataInput!AH96) -> 0 | L96: =SUM(DataInput!M96,DataInput!AI96) -> 0 | M96: =SUM(DataInput!N96,DataInput!AJ96) -> 0 | N96: =SUM(DataInput!O96,DataInput!AK149) -> 0 | O96: =DataInput!P96 -> 0 | Q96: 20 | R96: =DataInput!R96 -> 3648 | S96: =DataInput!Y96 -> 0 | T96: =IF(DataInput!U96-DataInput!E96>0,DataInput!U96-DataInput!E96,"") -> 180 | U96: =IF(DataInput!W96-DataInput!I96>0,DataInput!W96-DataInput!I96,"") -> 63 | W96: 3891 | X96: 5058.3 | Y96: -5038.3 | Z96: 407.1929 | AA96: 2858.4524 | AB96: =ROUNDDOWN((IF(AA97>0,IFERROR(IF(AVERAGE(DataInput!Q96:Q97)>AVERAGE(AA97,AA96),ROUNDDOWN(((((AA96-Z96)+(AA97-Z97))/2)*(A97-A96))/27+S16+T16,0),IF(((((DataInput!Q97-Z97)+(DataInput!Q96-Z96))/2)*(A97-A96))/27+S16+T16>0,ROUNDDOWN(((((DataInput!Q97-Z96)+(DataInput!Q96-Z96))/2)*(A97-A96))/27+S16+T16,0),0)),0),0)*$X$5),1) -> 2978.3 | AC96: 202.485 | AD96: =ROUNDDOWN((IF(AC97>0,IFERROR(IF(((((DataInput!Q96-AC96)+(DataInput!Q97-AC97))/2)*(A97-A96))/27+S16+T16>0,ROUNDDOWN(((((DataInput!Q96-AC96)+(DataInput!Q97-AC97))/2)*(A97-A96))/27+S16+T16,0),0),0),0)*$X$5),1) -> 4526.6 | AE96: =DataInput!U96 -> 214 | AF96: =DataInput!S96 -> 141 | AG96: 197.4 | AH96: 16.6
A97: =IF(DataInput!A97<>"",DataInput!A97,"") -> 24147775 | B97: =SUM(DataInput!C97,DataInput!Y97)+(DataInput!U97-DataInput!E97) -> 237 | C97: =SUM(DataInput!D97,DataInput!Z97) -> 26 | D97: =DataInput!U97 -> 211 | E97: =SUM(DataInput!F97,DataInput!AB97) -> 0 | F97: =SUM(DataInput!G97,DataInput!AC97) -> 0 | G97: =SUM(DataInput!H97,DataInput!AD97) -> 0 | H97: =DataInput!I97 -> 0 | I97: =SUM(DataInput!J97,DataInput!AF97) -> 0 | J97: =SUM(DataInput!K97,DataInput!AG97) -> 0 | K97: =SUM(DataInput!L97,DataInput!AH97) -> 0 | L97: =SUM(DataInput!M97,DataInput!AI97) -> 0 | M97: =SUM(DataInput!N97,DataInput!AJ97) -> 0 | N97: =SUM(DataInput!O97,DataInput!AK150) -> 0 | O97: =DataInput!P97 -> 0 | Q97: 26 | R97: =DataInput!R97 -> 3499 | S97: =DataInput!Y97 -> 0 | T97: =IF(DataInput!U97-DataInput!E97>0,DataInput!U97-DataInput!E97,"") -> 174 | U97: =IF(DataInput!W97-DataInput!I97>0,DataInput!W97-DataInput!I97,"") -> 54 | W97: 3727 | X97: 4845.1 | Y97: -4819.1 | Z97: 407.1929 | AA97: 2858.4524 | AB97: =ROUNDDOWN((IF(AA98>0,IFERROR(IF(AVERAGE(DataInput!Q97:Q98)>AVERAGE(AA98,AA97),ROUNDDOWN(((((AA97-Z97)+(AA98-Z98))/2)*(A98-A97))/27+S17+T17,0),IF(((((DataInput!Q98-Z98)+(DataInput!Q97-Z97))/2)*(A98-A97))/27+S17+T17>0,ROUNDDOWN(((((DataInput!Q98-Z97)+(DataInput!Q97-Z97))/2)*(A98-A97))/27+S17+T17,0),0)),0),0)*$X$5),1) -> 2979.6 | AC97: 202.485 | AD97: =ROUNDDOWN((IF(AC98>0,IFERROR(IF(((((DataInput!Q97-AC97)+(DataInput!Q98-AC98))/2)*(A98-A97))/27+S17+T17>0,ROUNDDOWN(((((DataInput!Q97-AC97)+(DataInput!Q98-AC98))/2)*(A98-A97))/27+S17+T17,0),0),0),0)*$X$5),1) -> 4334.2 | AE97: =DataInput!U97 -> 211 | AF97: =DataInput!S97 -> 140 | AG97: 196 | AH97: 15
A98: =IF(DataInput!A98<>"",DataInput!A98,"") -> 24147800 | B98: =SUM(DataInput!C98,DataInput!Y98)+(DataInput!U98-DataInput!E98) -> 231 | C98: =SUM(DataInput!D98,DataInput!Z98) -> 28 | D98: =DataInput!U98 -> 202 | E98: =SUM(DataInput!F98,DataInput!AB98) -> 0 | F98: =SUM(DataInput!G98,DataInput!AC98) -> 0 | G98: =SUM(DataInput!H98,DataInput!AD98) -> 0 | H98: =DataInput!I98 -> 0 | I98: =SUM(DataInput!J98,DataInput!AF98) -> 0 | J98: =SUM(DataInput!K98,DataInput!AG98) -> 0 | K98: =SUM(DataInput!L98,DataInput!AH98) -> 0 | L98: =SUM(DataInput!M98,DataInput!AI98) -> 0 | M98: =SUM(DataInput!N98,DataInput!AJ98) -> 0 | N98: =SUM(DataInput!O98,DataInput!AK151) -> 0 | O98: =DataInput!P98 -> 0 | Q98: 28 | R98: =DataInput!R98 -> 3404 | S98: =DataInput!Y98 -> 0 | T98: =IF(DataInput!U98-DataInput!E98>0,DataInput!U98-DataInput!E98,"") -> 167 | U98: =IF(DataInput!W98-DataInput!I98>0,DataInput!W98-DataInput!I98,"") -> 54 | W98: 3625 | X98: 4712.5 | Y98: -4684.5 | Z98: 407.1929 | AA98: 2858.4524 | AB98: =ROUNDDOWN((IF(AA99>0,IFERROR(IF(AVERAGE(DataInput!Q98:Q99)>AVERAGE(AA99,AA98),ROUNDDOWN(((((AA98-Z98)+(AA99-Z99))/2)*(A99-A98))/27+S18+T18,0),IF(((((DataInput!Q99-Z99)+(DataInput!Q98-Z98))/2)*(A99-A98))/27+S18+T18>0,ROUNDDOWN(((((DataInput!Q99-Z98)+(DataInput!Q98-Z98))/2)*(A99-A98))/27+S18+T18,0),0)),0),0)*$X$5),1) -> 2979.6 | AC98: 202.485 | AD98: =ROUNDDOWN((IF(AC99>0,IFERROR(IF(((((DataInput!Q98-AC98)+(DataInput!Q99-AC99))/2)*(A99-A98))/27+S18+T18>0,ROUNDDOWN(((((DataInput!Q98-AC98)+(DataInput!Q99-AC99))/2)*(A99-A98))/27+S18+T18,0),0),0),0)*$X$5),1) -> 4210.7 | AE98: =DataInput!U98 -> 202 | AF98: =DataInput!S98 -> 138 | AG98: 193.2 | AH98: 8.9
A99: =IF(DataInput!A99<>"",DataInput!A99,"") -> 24147825 | B99: =SUM(DataInput!C99,DataInput!Y99)+(DataInput!U99-DataInput!E99) -> 231 | C99: =SUM(DataInput!D99,DataInput!Z99) -> 27 | D99: =DataInput!U99 -> 204 | E99: =SUM(DataInput!F99,DataInput!AB99) -> 0 | F99: =SUM(DataInput!G99,DataInput!AC99) -> 0 | G99: =SUM(DataInput!H99,DataInput!AD99) -> 0 | H99: =DataInput!I99 -> 0 | I99: =SUM(DataInput!J99,DataInput!AF99) -> 0 | J99: =SUM(DataInput!K99,DataInput!AG99) -> 0 | K99: =SUM(DataInput!L99,DataInput!AH99) -> 0 | L99: =SUM(DataInput!M99,DataInput!AI99) -> 0 | M99: =SUM(DataInput!N99,DataInput!AJ99) -> 0 | N99: =SUM(DataInput!O99,DataInput!AK152) -> 0 | O99: =DataInput!P99 -> 0 | Q99: 27 | R99: =DataInput!R99 -> 3335 | S99: =DataInput!Y99 -> 0 | T99: =IF(DataInput!U99-DataInput!E99>0,DataInput!U99-DataInput!E99,"") -> 171 | U99: =IF(DataInput!W99-DataInput!I99>0,DataInput!W99-DataInput!I99,"") -> 54 | W99: 3560 | X99: 4628 | Y99: -4601 | Z99: 407.1929 | AA99: 2858.4524 | AB99: =ROUNDDOWN((IF(AA100>0,IFERROR(IF(AVERAGE(DataInput!Q99:Q100)>AVERAGE(AA100,AA99),ROUNDDOWN(((((AA99-Z99)+(AA100-Z100))/2)*(A100-A99))/27+S19+T19,0),IF(((((DataInput!Q100-Z100)+(DataInput!Q99-Z99))/2)*(A100-A99))/27+S19+T19>0,ROUNDDOWN(((((DataInput!Q100-Z99)+(DataInput!Q99-Z99))/2)*(A100-A99))/27+S19+T19,0),0)),0),0)*$X$5),1) -> 2979.6 | AC99: 202.485 | AD99: =ROUNDDOWN((IF(AC100>0,IFERROR(IF(((((DataInput!Q99-AC99)+(DataInput!Q100-AC100))/2)*(A100-A99))/27+S19+T19>0,ROUNDDOWN(((((DataInput!Q99-AC99)+(DataInput!Q100-AC100))/2)*(A100-A99))/27+S19+T19,0),0),0),0)*$X$5),1) -> 4121 | AE99: =DataInput!U99 -> 204 | AF99: =DataInput!S99 -> 135 | AG99: 189 | AH99: 15
A100: =IF(DataInput!A100<>"",DataInput!A100,"") -> 24147850 | B100: =SUM(DataInput!C100,DataInput!Y100)+(DataInput!U100-DataInput!E100) -> 225 | C100: =SUM(DataInput!D100,DataInput!Z100) -> 27 | D100: =DataInput!U100 -> 198 | E100: =SUM(DataInput!F100,DataInput!AB100) -> 0 | F100: =SUM(DataInput!G100,DataInput!AC100) -> 0 | G100: =SUM(DataInput!H100,DataInput!AD100) -> 0 | H100: =DataInput!I100 -> 0 | I100: =SUM(DataInput!J100,DataInput!AF100) -> 0 | J100: =SUM(DataInput!K100,DataInput!AG100) -> 0 | K100: =SUM(DataInput!L100,DataInput!AH100) -> 0 | L100: =SUM(DataInput!M100,DataInput!AI100) -> 0 | M100: =SUM(DataInput!N100,DataInput!AJ100) -> 0 | N100: =SUM(DataInput!O100,DataInput!AK153) -> 0 | O100: =DataInput!P100 -> 0 | Q100: 27 | R100: =DataInput!R100 -> 3244 | S100: =DataInput!Y100 -> 0 | T100: =IF(DataInput!U100-DataInput!E100>0,DataInput!U100-DataInput!E100,"") -> 166 | U100: =IF(DataInput!W100-DataInput!I100>0,DataInput!W100-DataInput!I100,"") -> 53 | W100: 3463 | X100: 4501.9 | Y100: -4474.9 | Z100: 407.1929 | AA100: 2858.4524 | AB100: =ROUNDDOWN((IF(AA101>0,IFERROR(IF(AVERAGE(DataInput!Q100:Q101)>AVERAGE(AA101,AA100),ROUNDDOWN(((((AA100-Z100)+(AA101-Z101))/2)*(A101-A100))/27+S20+T20,0),IF(((((DataInput!Q101-Z101)+(DataInput!Q100-Z100))/2)*(A101-A100))/27+S20+T20>0,ROUNDDOWN(((((DataInput!Q101-Z100)+(DataInput!Q100-Z100))/2)*(A101-A100))/27+S20+T20,0),0)),0),0)*$X$5),1) -> 2979.6 | AC100: 202.485 | AD100: =ROUNDDOWN((IF(AC101>0,IFERROR(IF(((((DataInput!Q100-AC100)+(DataInput!Q101-AC101))/2)*(A101-A100))/27+S20+T20>0,ROUNDDOWN(((((DataInput!Q100-AC100)+(DataInput!Q101-AC101))/2)*(A101-A100))/27+S20+T20,0),0),0),0)*$X$5),1) -> 4002.7 | AE100: =DataInput!U100 -> 198 | AF100: =DataInput!S100 -> 133 | AG100: 186.2 | AH100: 11.8
A101: =IF(DataInput!A101<>"",DataInput!A101,"") -> 24147875 | B101: =SUM(DataInput!C101,DataInput!Y101)+(DataInput!U101-DataInput!E101) -> 234 | C101: =SUM(DataInput!D101,DataInput!Z101) -> 46 | D101: =DataInput!U101 -> 188 | E101: =SUM(DataInput!F101,DataInput!AB101) -> 0 | F101: =SUM(DataInput!G101,DataInput!AC101) -> 0 | G101: =SUM(DataInput!H101,DataInput!AD101) -> 0 | H101: =DataInput!I101 -> 0 | I101: =SUM(DataInput!J101,DataInput!AF101) -> 0 | J101: =SUM(DataInput!K101,DataInput!AG101) -> 0 | K101: =SUM(DataInput!L101,DataInput!AH101) -> 0 | L101: =SUM(DataInput!M101,DataInput!AI101) -> 0 | M101: =SUM(DataInput!N101,DataInput!AJ101) -> 0 | N101: =SUM(DataInput!O101,DataInput!AK154) -> 0 | O101: =DataInput!P101 -> 0 | Q101: 46 | R101: =DataInput!R101 -> 3146 | S101: =DataInput!Y101 -> 0 | T101: =IF(DataInput!U101-DataInput!E101>0,DataInput!U101-DataInput!E101,"") -> 155 | U101: =IF(DataInput!W101-DataInput!I101>0,DataInput!W101-DataInput!I101,"") -> 52 | W101: 3353 | X101: 4358.9 | Y101: -4312.9 | Z101: 407.1929 | AA101: 2858.4524 | AB101: =ROUNDDOWN((IF(AA102>0,IFERROR(IF(AVERAGE(DataInput!Q101:Q102)>AVERAGE(AA102,AA101),ROUNDDOWN(((((AA101-Z101)+(AA102-Z102))/2)*(A102-A101))/27+S21+T21,0),IF(((((DataInput!Q102-Z102)+(DataInput!Q101-Z101))/2)*(A102-A101))/27+S21+T21>0,ROUNDDOWN(((((DataInput!Q102-Z101)+(DataInput!Q101-Z101))/2)*(A102-A101))/27+S21+T21,0),0)),0),0)*$X$5),1) -> 2979.6 | AC101: 202.485 | AD101: =ROUNDDOWN((IF(AC102>0,IFERROR(IF(((((DataInput!Q101-AC101)+(DataInput!Q102-AC102))/2)*(A102-A101))/27+S21+T21>0,ROUNDDOWN(((((DataInput!Q101-AC101)+(DataInput!Q102-AC102))/2)*(A102-A101))/27+S21+T21,0),0),0),0)*$X$5),1) -> 3875.3 | AE101: =DataInput!U101 -> 188 | AF101: =DataInput!S101 -> 132 | AG101: 184.8 | AH101: 3.2
A102: =IF(DataInput!A102<>"",DataInput!A102,"") -> 24147900 | B102: =SUM(DataInput!C102,DataInput!Y102)+(DataInput!U102-DataInput!E102) -> 255 | C102: =SUM(DataInput!D102,DataInput!Z102) -> 76 | D102: =DataInput!U102 -> 179 | E102: =SUM(DataInput!F102,DataInput!AB102) -> 0 | F102: =SUM(DataInput!G102,DataInput!AC102) -> 0 | G102: =SUM(DataInput!H102,DataInput!AD102) -> 0 | H102: =DataInput!I102 -> 0 | I102: =SUM(DataInput!J102,DataInput!AF102) -> 0 | J102: =SUM(DataInput!K102,DataInput!AG102) -> 0 | K102: =SUM(DataInput!L102,DataInput!AH102) -> 0 | L102: =SUM(DataInput!M102,DataInput!AI102) -> 0 | M102: =SUM(DataInput!N102,DataInput!AJ102) -> 0 | N102: =SUM(DataInput!O102,DataInput!AK155) -> 0 | O102: =DataInput!P102 -> 0 | Q102: 76 | R102: =DataInput!R102 -> 3071 | S102: =DataInput!Y102 -> 0 | T102: =IF(DataInput!U102-DataInput!E102>0,DataInput!U102-DataInput!E102,"") -> 142 | U102: =IF(DataInput!W102-DataInput!I102>0,DataInput!W102-DataInput!I102,"") -> 51 | W102: 3264 | X102: 4243.2 | Y102: -4167.2 | Z102: 407.1929 | AA102: 2858.4524 | AB102: =ROUNDDOWN((IF(AA103>0,IFERROR(IF(AVERAGE(DataInput!Q102:Q103)>AVERAGE(AA103,AA102),ROUNDDOWN(((((AA102-Z102)+(AA103-Z103))/2)*(A103-A102))/27+S22+T22,0),IF(((((DataInput!Q103-Z103)+(DataInput!Q102-Z102))/2)*(A103-A102))/27+S22+T22>0,ROUNDDOWN(((((DataInput!Q103-Z102)+(DataInput!Q102-Z102))/2)*(A103-A102))/27+S22+T22,0),0)),0),0)*$X$5),1) -> 2979.6 | AC102: 202.485 | AD102: =ROUNDDOWN((IF(AC103>0,IFERROR(IF(((((DataInput!Q102-AC102)+(DataInput!Q103-AC103))/2)*(A103-A102))/27+S22+T22>0,ROUNDDOWN(((((DataInput!Q102-AC102)+(DataInput!Q103-AC103))/2)*(A103-A102))/27+S22+T22,0),0),0),0)*$X$5),1) -> 3777.8 | AE102: =DataInput!U102 -> 179 | AF102: =DataInput!S102 -> 131 | AG102: 183.4 | AH102: -4.5
A103: =IF(DataInput!A103<>"",DataInput!A103,"") -> 24147925 | B103: =SUM(DataInput!C103,DataInput!Y103)+(DataInput!U103-DataInput!E103) -> 256 | C103: =SUM(DataInput!D103,DataInput!Z103) -> 78 | D103: =DataInput!U103 -> 178 | E103: =SUM(DataInput!F103,DataInput!AB103) -> 0 | F103: =SUM(DataInput!G103,DataInput!AC103) -> 0 | G103: =SUM(DataInput!H103,DataInput!AD103) -> 0 | H103: =DataInput!I103 -> 0 | I103: =SUM(DataInput!J103,DataInput!AF103) -> 0 | J103: =SUM(DataInput!K103,DataInput!AG103) -> 0 | K103: =SUM(DataInput!L103,DataInput!AH103) -> 0 | L103: =SUM(DataInput!M103,DataInput!AI103) -> 0 | M103: =SUM(DataInput!N103,DataInput!AJ103) -> 0 | N103: =SUM(DataInput!O103,DataInput!AK156) -> 0 | O103: =DataInput!P103 -> 0 | Q103: 78 | R103: =DataInput!R103 -> 2965 | S103: =DataInput!Y103 -> 0 | T103: =IF(DataInput!U103-DataInput!E103>0,DataInput!U103-DataInput!E103,"") -> 137 | U103: =IF(DataInput!W103-DataInput!I103>0,DataInput!W103-DataInput!I103,"") -> 48 | W103: 3150 | X103: 4095 | Y103: -4017 | Z103: 407.1929 | AA103: 2858.4524 | AB103: =ROUNDDOWN((IF(AA104>0,IFERROR(IF(AVERAGE(DataInput!Q103:Q104)>AVERAGE(AA104,AA103),ROUNDDOWN(((((AA103-Z103)+(AA104-Z104))/2)*(A104-A103))/27+S23+T23,0),IF(((((DataInput!Q104-Z104)+(DataInput!Q103-Z103))/2)*(A104-A103))/27+S23+T23>0,ROUNDDOWN(((((DataInput!Q104-Z103)+(DataInput!Q103-Z103))/2)*(A104-A103))/27+S23+T23,0),0)),0),0)*$X$5),1) -> 2978.3 | AC103: 202.485 | AD103: =ROUNDDOWN((IF(AC104>0,IFERROR(IF(((((DataInput!Q103-AC103)+(DataInput!Q104-AC104))/2)*(A104-A103))/27+S23+T23>0,ROUNDDOWN(((((DataInput!Q103-AC103)+(DataInput!Q104-AC104))/2)*(A104-A103))/27+S23+T23,0),0),0),0)*$X$5),1) -> 3638.7 | AE103: =DataInput!U103 -> 178 | AF103: =DataInput!S103 -> 130 | AG103: 182 | AH103: -4
A104: =IF(DataInput!A104<>"",DataInput!A104,"") -> 24147950 | B104: =SUM(DataInput!C104,DataInput!Y104)+(DataInput!U104-DataInput!E104) -> 253 | C104: =SUM(DataInput!D104,DataInput!Z104) -> 63 | D104: =DataInput!U104 -> 190 | E104: =SUM(DataInput!F104,DataInput!AB104) -> 0 | F104: =SUM(DataInput!G104,DataInput!AC104) -> 0 | G104: =SUM(DataInput!H104,DataInput!AD104) -> 0 | H104: =DataInput!I104 -> 0 | I104: =SUM(DataInput!J104,DataInput!AF104) -> 0 | J104: =SUM(DataInput!K104,DataInput!AG104) -> 0 | K104: =SUM(DataInput!L104,DataInput!AH104) -> 0 | L104: =SUM(DataInput!M104,DataInput!AI104) -> 0 | M104: =SUM(DataInput!N104,DataInput!AJ104) -> 0 | N104: =SUM(DataInput!O104,DataInput!AK157) -> 0 | O104: =DataInput!P104 -> 0 | Q104: 63 | R104: =DataInput!R104 -> 2857 | S104: =DataInput!Y104 -> 0 | T104: =IF(DataInput!U104-DataInput!E104>0,DataInput!U104-DataInput!E104,"") -> 150 | U104: =IF(DataInput!W104-DataInput!I104>0,DataInput!W104-DataInput!I104,"") -> 44 | W104: 3051 | X104: 3966.3 | Y104: -3903.3 | Z104: 407.1929 | AA104: 2858.4524 | AB104: =ROUNDDOWN((IF(AA105>0,IFERROR(IF(AVERAGE(DataInput!Q104:Q105)>AVERAGE(AA105,AA104),ROUNDDOWN(((((AA104-Z104)+(AA105-Z105))/2)*(A105-A104))/27+S24+T24,0),IF(((((DataInput!Q105-Z105)+(DataInput!Q104-Z104))/2)*(A105-A104))/27+S24+T24>0,ROUNDDOWN(((((DataInput!Q105-Z104)+(DataInput!Q104-Z104))/2)*(A105-A104))/27+S24+T24,0),0)),0),0)*$X$5),1) -> 2974.4 | AC104: 202.485 | AD104: =ROUNDDOWN((IF(AC105>0,IFERROR(IF(((((DataInput!Q104-AC104)+(DataInput!Q105-AC105))/2)*(A105-A104))/27+S24+T24>0,ROUNDDOWN(((((DataInput!Q104-AC104)+(DataInput!Q105-AC105))/2)*(A105-A104))/27+S24+T24,0),0),0),0)*$X$5),1) -> 3493.1 | AE104: =DataInput!U104 -> 190 | AF104: =DataInput!S104 -> 128 | AG104: 179.2 | AH104: 10.8
A105: =IF(DataInput!A105<>"",DataInput!A105,"") -> 24147975 | B105: =SUM(DataInput!C105,DataInput!Y105)+(DataInput!U105-DataInput!E105) -> 245 | C105: =SUM(DataInput!D105,DataInput!Z105) -> 54 | D105: =DataInput!U105 -> 192 | E105: =SUM(DataInput!F105,DataInput!AB105) -> 0 | F105: =SUM(DataInput!G105,DataInput!AC105) -> 0 | G105: =SUM(DataInput!H105,DataInput!AD105) -> 0 | H105: =DataInput!I105 -> 0 | I105: =SUM(DataInput!J105,DataInput!AF105) -> 0 | J105: =SUM(DataInput!K105,DataInput!AG105) -> 0 | K105: =SUM(DataInput!L105,DataInput!AH105) -> 0 | L105: =SUM(DataInput!M105,DataInput!AI105) -> 0 | M105: =SUM(DataInput!N105,DataInput!AJ105) -> 0 | N105: =SUM(DataInput!O105,DataInput!AK158) -> 0 | O105: =DataInput!P105 -> 0 | Q105: 54 | R105: =DataInput!R105 -> 2760 | S105: =DataInput!Y105 -> 0 | T105: =IF(DataInput!U105-DataInput!E105>0,DataInput!U105-DataInput!E105,"") -> 153 | U105: =IF(DataInput!W105-DataInput!I105>0,DataInput!W105-DataInput!I105,"") -> 40 | W105: 2953 | X105: 3838.9 | Y105: -3784.9 | Z105: 407.1929 | AA105: 2858.4524 | AB105: =ROUNDDOWN((IF(AA106>0,IFERROR(IF(AVERAGE(DataInput!Q105:Q106)>AVERAGE(AA106,AA105),ROUNDDOWN(((((AA105-Z105)+(AA106-Z106))/2)*(A106-A105))/27+S25+T25,0),IF(((((DataInput!Q106-Z106)+(DataInput!Q105-Z105))/2)*(A106-A105))/27+S25+T25>0,ROUNDDOWN(((((DataInput!Q106-Z105)+(DataInput!Q105-Z105))/2)*(A106-A105))/27+S25+T25,0),0)),0),0)*$X$5),1) -> 2974.4 | AC105: 202.485 | AD105: =ROUNDDOWN((IF(AC106>0,IFERROR(IF(((((DataInput!Q105-AC105)+(DataInput!Q106-AC106))/2)*(A106-A105))/27+S25+T25>0,ROUNDDOWN(((((DataInput!Q105-AC105)+(DataInput!Q106-AC106))/2)*(A106-A105))/27+S25+T25,0),0),0),0)*$X$5),1) -> 3368.3 | AE105: =DataInput!U105 -> 192 | AF105: =DataInput!S105 -> 127 | AG105: 177.8 | AH105: 14.2
A106: =IF(DataInput!A106<>"",DataInput!A106,"") -> 24148000 | B106: =SUM(DataInput!C106,DataInput!Y106)+(DataInput!U106-DataInput!E106) -> 245 | C106: =SUM(DataInput!D106,DataInput!Z106) -> 51 | D106: =DataInput!U106 -> 194 | E106: =SUM(DataInput!F106,DataInput!AB106) -> 0 | F106: =SUM(DataInput!G106,DataInput!AC106) -> 0 | G106: =SUM(DataInput!H106,DataInput!AD106) -> 0 | H106: =DataInput!I106 -> 0 | I106: =SUM(DataInput!J106,DataInput!AF106) -> 0 | J106: =SUM(DataInput!K106,DataInput!AG106) -> 0 | K106: =SUM(DataInput!L106,DataInput!AH106) -> 0 | L106: =SUM(DataInput!M106,DataInput!AI106) -> 0 | M106: =SUM(DataInput!N106,DataInput!AJ106) -> 0 | N106: =SUM(DataInput!O106,DataInput!AK159) -> 0 | O106: =DataInput!P106 -> 0 | Q106: 51 | R106: =DataInput!R106 -> 2669 | S106: =DataInput!Y106 -> 0 | T106: =IF(DataInput!U106-DataInput!E106>0,DataInput!U106-DataInput!E106,"") -> 155 | U106: =IF(DataInput!W106-DataInput!I106>0,DataInput!W106-DataInput!I106,"") -> 35 | W106: 2859 | X106: 3716.7 | Y106: -3665.7 | Z106: 407.1929 | AA106: 2858.4524 | AB106: =ROUNDDOWN((IF(AA107>0,IFERROR(IF(AVERAGE(DataInput!Q106:Q107)>AVERAGE(AA107,AA106),ROUNDDOWN(((((AA106-Z106)+(AA107-Z107))/2)*(A107-A106))/27+S26+T26,0),IF(((((DataInput!Q107-Z107)+(DataInput!Q106-Z106))/2)*(A107-A106))/27+S26+T26>0,ROUNDDOWN(((((DataInput!Q107-Z106)+(DataInput!Q106-Z106))/2)*(A107-A106))/27+S26+T26,0),0)),0),0)*$X$5),1) -> 2977 | AC106: 202.485 | AD106: =ROUNDDOWN((IF(AC107>0,IFERROR(IF(((((DataInput!Q106-AC106)+(DataInput!Q107-AC107))/2)*(A107-A106))/27+S26+T26>0,ROUNDDOWN(((((DataInput!Q106-AC106)+(DataInput!Q107-AC107))/2)*(A107-A106))/27+S26+T26,0),0),0),0)*$X$5),1) -> 3252.6 | AE106: =DataInput!U106 -> 194 | AF106: =DataInput!S106 -> 126 | AG106: 176.4 | AH106: 17.6
A107: =IF(DataInput!A107<>"",DataInput!A107,"") -> 24148025 | B107: =SUM(DataInput!C107,DataInput!Y107)+(DataInput!U107-DataInput!E107) -> 181 | C107: =SUM(DataInput!D107,DataInput!Z107) -> 36 | D107: =DataInput!U107 -> 145 | E107: =SUM(DataInput!F107,DataInput!AB107) -> 0 | F107: =SUM(DataInput!G107,DataInput!AC107) -> 0 | G107: =SUM(DataInput!H107,DataInput!AD107) -> 0 | H107: =DataInput!I107 -> 0 | I107: =SUM(DataInput!J107,DataInput!AF107) -> 0 | J107: =SUM(DataInput!K107,DataInput!AG107) -> 0 | K107: =SUM(DataInput!L107,DataInput!AH107) -> 0 | L107: =SUM(DataInput!M107,DataInput!AI107) -> 0 | M107: =SUM(DataInput!N107,DataInput!AJ107) -> 0 | N107: =SUM(DataInput!O107,DataInput!AK160) -> 0 | O107: =DataInput!P107 -> 0 | Q107: 36 | R107: =DataInput!R107 -> 2008 | S107: =DataInput!Y107 -> 0 | T107: =IF(DataInput!U107-DataInput!E107>0,DataInput!U107-DataInput!E107,"") -> 117 | U107: =IF(DataInput!W107-DataInput!I107>0,DataInput!W107-DataInput!I107,"") -> 26 | W107: 2151 | X107: 2796.3 | Y107: -2760.3 | Z107: 407.1929 | AA107: 2858.4524 | AB107: =ROUNDDOWN((IF(AA108>0,IFERROR(IF(AVERAGE(DataInput!Q107:Q108)>AVERAGE(AA108,AA107),ROUNDDOWN(((((AA107-Z107)+(AA108-Z108))/2)*(A108-A107))/27+S27+T27,0),IF(((((DataInput!Q108-Z108)+(DataInput!Q107-Z107))/2)*(A108-A107))/27+S27+T27>0,ROUNDDOWN(((((DataInput!Q108-Z107)+(DataInput!Q107-Z107))/2)*(A108-A107))/27+S27+T27,0),0)),0),0)*$X$5),1) -> 2155.4 | AC107: 202.485 | AD107: =ROUNDDOWN((IF(AC108>0,IFERROR(IF(((((DataInput!Q107-AC107)+(DataInput!Q108-AC108))/2)*(A108-A107))/27+S27+T27>0,ROUNDDOWN(((((DataInput!Q107-AC107)+(DataInput!Q108-AC108))/2)*(A108-A107))/27+S27+T27,0),0),0),0)*$X$5),1) -> 2402.4 | AE107: =DataInput!U107 -> 145 | AF107: =DataInput!S107 -> 90 | AG107: 126 | AH107: 19
A108: =IF(DataInput!A108<>"",DataInput!A108,"") -> 24148050 | B108: =SUM(DataInput!C108,DataInput!Y108)+(DataInput!U108-DataInput!E108) -> 116 | C108: =SUM(DataInput!D108,DataInput!Z108) -> 21 | D108: =DataInput!U108 -> 95 | E108: =SUM(DataInput!F108,DataInput!AB108) -> 0 | F108: =SUM(DataInput!G108,DataInput!AC108) -> 0 | G108: =SUM(DataInput!H108,DataInput!AD108) -> 0 | H108: =DataInput!I108 -> 0 | I108: =SUM(DataInput!J108,DataInput!AF108) -> 0 | J108: =SUM(DataInput!K108,DataInput!AG108) -> 0 | K108: =SUM(DataInput!L108,DataInput!AH108) -> 0 | L108: =SUM(DataInput!M108,DataInput!AI108) -> 0 | M108: =SUM(DataInput!N108,DataInput!AJ108) -> 0 | N108: =SUM(DataInput!O108,DataInput!AK161) -> 0 | O108: =DataInput!P108 -> 0 | Q108: 21 | R108: =DataInput!R108 -> 1369 | S108: =DataInput!Y108 -> 0 | T108: =IF(DataInput!U108-DataInput!E108>0,DataInput!U108-DataInput!E108,"") -> 79 | U108: =IF(DataInput!W108-DataInput!I108>0,DataInput!W108-DataInput!I108,"") -> 20 | W108: 1468 | X108: 1908.4 | Y108: -1887.4 | Z108: 407.1929 | AA108: 2858.4524 | AB108: =ROUNDDOWN((IF(AA109>0,IFERROR(IF(AVERAGE(DataInput!Q108:Q109)>AVERAGE(AA109,AA108),ROUNDDOWN(((((AA108-Z108)+(AA109-Z109))/2)*(A109-A108))/27+S28+T28,0),IF(((((DataInput!Q109-Z109)+(DataInput!Q108-Z108))/2)*(A109-A108))/27+S28+T28>0,ROUNDDOWN(((((DataInput!Q109-Z108)+(DataInput!Q108-Z108))/2)*(A109-A108))/27+S28+T28,0),0)),0),0)*$X$5),1) -> 1332.5 | AC108: 202.485 | AD108: =ROUNDDOWN((IF(AC109>0,IFERROR(IF(((((DataInput!Q108-AC108)+(DataInput!Q109-AC109))/2)*(A109-A108))/27+S28+T28>0,ROUNDDOWN(((((DataInput!Q108-AC108)+(DataInput!Q109-AC109))/2)*(A109-A108))/27+S28+T28,0),0),0),0)*$X$5),1) -> 1579.5 | AE108: =DataInput!U108 -> 95 | AF108: =DataInput!S108 -> 54 | AG108: 75.6 | AH108: 19.4
A109: =IF(DataInput!A109<>"",DataInput!A109,"") -> 24148075 | B109: =SUM(DataInput!C109,DataInput!Y109)+(DataInput!U109-DataInput!E109) -> 114 | C109: =SUM(DataInput!D109,DataInput!Z109) -> 19 | D109: =DataInput!U109 -> 95 | E109: =SUM(DataInput!F109,DataInput!AB109) -> 0 | F109: =SUM(DataInput!G109,DataInput!AC109) -> 0 | G109: =SUM(DataInput!H109,DataInput!AD109) -> 0 | H109: =DataInput!I109 -> 0 | I109: =SUM(DataInput!J109,DataInput!AF109) -> 0 | J109: =SUM(DataInput!K109,DataInput!AG109) -> 0 | K109: =SUM(DataInput!L109,DataInput!AH109) -> 0 | L109: =SUM(DataInput!M109,DataInput!AI109) -> 0 | M109: =SUM(DataInput!N109,DataInput!AJ109) -> 0 | N109: =SUM(DataInput!O109,DataInput!AK162) -> 0 | O109: =DataInput!P109 -> 0 | Q109: 19 | R109: =DataInput!R109 -> 1333 | S109: =DataInput!Y109 -> 0 | T109: =IF(DataInput!U109-DataInput!E109>0,DataInput!U109-DataInput!E109,"") -> 79 | U109: =IF(DataInput!W109-DataInput!I109>0,DataInput!W109-DataInput!I109,"") -> 21 | W109: 1433 | X109: 1862.9 | Y109: -1843.9 | Z109: 407.1929 | AA109: 2858.4524 | AB109: =ROUNDDOWN((IF(AA110>0,IFERROR(IF(AVERAGE(DataInput!Q109:Q110)>AVERAGE(AA110,AA109),ROUNDDOWN(((((AA109-Z109)+(AA110-Z110))/2)*(A110-A109))/27+S29+T29,0),IF(((((DataInput!Q110-Z110)+(DataInput!Q109-Z109))/2)*(A110-A109))/27+S29+T29>0,ROUNDDOWN(((((DataInput!Q110-Z109)+(DataInput!Q109-Z109))/2)*(A110-A109))/27+S29+T29,0),0)),0),0)*$X$5),1) -> 1288.3 | AC109: 202.485 | AD109: =ROUNDDOWN((IF(AC110>0,IFERROR(IF(((((DataInput!Q109-AC109)+(DataInput!Q110-AC110))/2)*(A110-A109))/27+S29+T29>0,ROUNDDOWN(((((DataInput!Q109-AC109)+(DataInput!Q110-AC110))/2)*(A110-A109))/27+S29+T29,0),0),0),0)*$X$5),1) -> 1534 | AE109: =DataInput!U109 -> 95 | AF109: =DataInput!S109 -> 54 | AG109: 75.6 | AH109: 19.4
A110: =IF(DataInput!A110<>"",DataInput!A110,"") -> 24148100 | B110: =SUM(DataInput!C110,DataInput!Y110)+(DataInput!U110-DataInput!E110) -> 117 | C110: =SUM(DataInput!D110,DataInput!Z110) -> 20 | D110: =DataInput!U110 -> 97 | E110: =SUM(DataInput!F110,DataInput!AB110) -> 0 | F110: =SUM(DataInput!G110,DataInput!AC110) -> 0 | G110: =SUM(DataInput!H110,DataInput!AD110) -> 0 | H110: =DataInput!I110 -> 0 | I110: =SUM(DataInput!J110,DataInput!AF110) -> 0 | J110: =SUM(DataInput!K110,DataInput!AG110) -> 0 | K110: =SUM(DataInput!L110,DataInput!AH110) -> 0 | L110: =SUM(DataInput!M110,DataInput!AI110) -> 0 | M110: =SUM(DataInput!N110,DataInput!AJ110) -> 0 | N110: =SUM(DataInput!O110,DataInput!AK163) -> 0 | O110: =DataInput!P110 -> 0 | Q110: 20 | R110: =DataInput!R110 -> 1300 | S110: =DataInput!Y110 -> 0 | T110: =IF(DataInput!U110-DataInput!E110>0,DataInput!U110-DataInput!E110,"") -> 78 | U110: =IF(DataInput!W110-DataInput!I110>0,DataInput!W110-DataInput!I110,"") -> 21 | W110: 1399 | X110: 1818.7 | Y110: -1798.7 | Z110: 407.1929 | AA110: 2858.4524 | AB110: =ROUNDDOWN((IF(AA111>0,IFERROR(IF(AVERAGE(DataInput!Q110:Q111)>AVERAGE(AA111,AA110),ROUNDDOWN(((((AA110-Z110)+(AA111-Z111))/2)*(A111-A110))/27+S30+T30,0),IF(((((DataInput!Q111-Z111)+(DataInput!Q110-Z110))/2)*(A111-A110))/27+S30+T30>0,ROUNDDOWN(((((DataInput!Q111-Z110)+(DataInput!Q110-Z110))/2)*(A111-A110))/27+S30+T30,0),0)),0),0)*$X$5),1) -> 1246.7 | AC110: 202.485 | AD110: =ROUNDDOWN((IF(AC111>0,IFERROR(IF(((((DataInput!Q110-AC110)+(DataInput!Q111-AC111))/2)*(A111-A110))/27+S30+T30>0,ROUNDDOWN(((((DataInput!Q110-AC110)+(DataInput!Q111-AC111))/2)*(A111-A110))/27+S30+T30,0),0),0),0)*$X$5),1) -> 1493.7 | AE110: =DataInput!U110 -> 97 | AF110: =DataInput!S110 -> 55 | AG110: 77 | AH110: 20
A111: =IF(DataInput!A111<>"",DataInput!A111,"") -> 24148125 | B111: =SUM(DataInput!C111,DataInput!Y111)+(DataInput!U111-DataInput!E111) -> 119 | C111: =SUM(DataInput!D111,DataInput!Z111) -> 20 | D111: =DataInput!U111 -> 99 | E111: =SUM(DataInput!F111,DataInput!AB111) -> 0 | F111: =SUM(DataInput!G111,DataInput!AC111) -> 0 | G111: =SUM(DataInput!H111,DataInput!AD111) -> 0 | H111: =DataInput!I111 -> 0 | I111: =SUM(DataInput!J111,DataInput!AF111) -> 0 | J111: =SUM(DataInput!K111,DataInput!AG111) -> 0 | K111: =SUM(DataInput!L111,DataInput!AH111) -> 0 | L111: =SUM(DataInput!M111,DataInput!AI111) -> 0 | M111: =SUM(DataInput!N111,DataInput!AJ111) -> 0 | N111: =SUM(DataInput!O111,DataInput!AK164) -> 0 | O111: =DataInput!P111 -> 0 | Q111: 20 | R111: =DataInput!R111 -> 1267 | S111: =DataInput!Y111 -> 0 | T111: =IF(DataInput!U111-DataInput!E111>0,DataInput!U111-DataInput!E111,"") -> 78 | U111: =IF(DataInput!W111-DataInput!I111>0,DataInput!W111-DataInput!I111,"") -> 21 | W111: 1366 | X111: 1775.8 | Y111: -1755.8 | Z111: 407.1929 | AA111: 2858.4524 | AB111: =ROUNDDOWN((IF(AA112>0,IFERROR(IF(AVERAGE(DataInput!Q111:Q112)>AVERAGE(AA112,AA111),ROUNDDOWN(((((AA111-Z111)+(AA112-Z112))/2)*(A112-A111))/27+S31+T31,0),IF(((((DataInput!Q112-Z112)+(DataInput!Q111-Z111))/2)*(A112-A111))/27+S31+T31>0,ROUNDDOWN(((((DataInput!Q112-Z111)+(DataInput!Q111-Z111))/2)*(A112-A111))/27+S31+T31,0),0)),0),0)*$X$5),1) -> 1206.4 | AC111: 202.485 | AD111: =ROUNDDOWN((IF(AC112>0,IFERROR(IF(((((DataInput!Q111-AC111)+(DataInput!Q112-AC112))/2)*(A112-A111))/27+S31+T31>0,ROUNDDOWN(((((DataInput!Q111-AC111)+(DataInput!Q112-AC112))/2)*(A112-A111))/27+S31+T31,0),0),0),0)*$X$5),1) -> 1452.1 | AE111: =DataInput!U111 -> 99 | AF111: =DataInput!S111 -> 56 | AG111: 78.4 | AH111: 20.6
A112: =IF(DataInput!A112<>"",DataInput!A112,"") -> 24148150 | B112: =SUM(DataInput!C112,DataInput!Y112)+(DataInput!U112-DataInput!E112) -> 118 | C112: =SUM(DataInput!D112,DataInput!Z112) -> 19 | D112: =DataInput!U112 -> 99 | E112: =SUM(DataInput!F112,DataInput!AB112) -> 0 | F112: =SUM(DataInput!G112,DataInput!AC112) -> 0 | G112: =SUM(DataInput!H112,DataInput!AD112) -> 0 | H112: =DataInput!I112 -> 0 | I112: =SUM(DataInput!J112,DataInput!AF112) -> 0 | J112: =SUM(DataInput!K112,DataInput!AG112) -> 0 | K112: =SUM(DataInput!L112,DataInput!AH112) -> 0 | L112: =SUM(DataInput!M112,DataInput!AI112) -> 0 | M112: =SUM(DataInput!N112,DataInput!AJ112) -> 0 | N112: =SUM(DataInput!O112,DataInput!AK165) -> 0 | O112: =DataInput!P112 -> 0 | Q112: 19 | R112: =DataInput!R112 -> 1229 | S112: =DataInput!Y112 -> 0 | T112: =IF(DataInput!U112-DataInput!E112>0,DataInput!U112-DataInput!E112,"") -> 79 | U112: =IF(DataInput!W112-DataInput!I112>0,DataInput!W112-DataInput!I112,"") -> 21 | W112: 1329 | X112: 1727.7 | Y112: -1708.7 | Z112: 407.1929 | AA112: 2858.4524 | AB112: =ROUNDDOWN((IF(AA113>0,IFERROR(IF(AVERAGE(DataInput!Q112:Q113)>AVERAGE(AA113,AA112),ROUNDDOWN(((((AA112-Z112)+(AA113-Z113))/2)*(A113-A112))/27+S32+T32,0),IF(((((DataInput!Q113-Z113)+(DataInput!Q112-Z112))/2)*(A113-A112))/27+S32+T32>0,ROUNDDOWN(((((DataInput!Q113-Z112)+(DataInput!Q112-Z112))/2)*(A113-A112))/27+S32+T32,0),0)),0),0)*$X$5),1) -> 1155.7 | AC112: 202.485 | AD112: =ROUNDDOWN((IF(AC113>0,IFERROR(IF(((((DataInput!Q112-AC112)+(DataInput!Q113-AC113))/2)*(A113-A112))/27+S32+T32>0,ROUNDDOWN(((((DataInput!Q112-AC112)+(DataInput!Q113-AC113))/2)*(A113-A112))/27+S32+T32,0),0),0),0)*$X$5),1) -> 1402.7 | AE112: =DataInput!U112 -> 99 | AF112: =DataInput!S112 -> 55 | AG112: 77 | AH112: 22
A113: =IF(DataInput!A113<>"",DataInput!A113,"") -> 24148175 | B113: =SUM(DataInput!C113,DataInput!Y113)+(DataInput!U113-DataInput!E113) -> 118 | C113: =SUM(DataInput!D113,DataInput!Z113) -> 20 | D113: =DataInput!U113 -> 98 | E113: =SUM(DataInput!F113,DataInput!AB113) -> 0 | F113: =SUM(DataInput!G113,DataInput!AC113) -> 0 | G113: =SUM(DataInput!H113,DataInput!AD113) -> 0 | H113: =DataInput!I113 -> 0 | I113: =SUM(DataInput!J113,DataInput!AF113) -> 0 | J113: =SUM(DataInput!K113,DataInput!AG113) -> 0 | K113: =SUM(DataInput!L113,DataInput!AH113) -> 0 | L113: =SUM(DataInput!M113,DataInput!AI113) -> 0 | M113: =SUM(DataInput!N113,DataInput!AJ113) -> 0 | N113: =SUM(DataInput!O113,DataInput!AK166) -> 0 | O113: =DataInput!P113 -> 0 | Q113: 20 | R113: =DataInput!R113 -> 1180 | S113: =DataInput!Y113 -> 0 | T113: =IF(DataInput!U113-DataInput!E113>0,DataInput!U113-DataInput!E113,"") -> 78 | U113: =IF(DataInput!W113-DataInput!I113>0,DataInput!W113-DataInput!I113,"") -> 21 | W113: 1279 | X113: 1662.7 | Y113: -1642.7 | Z113: 407.1929 | AA113: 2858.4524 | AB113: =ROUNDDOWN((IF(AA114>0,IFERROR(IF(AVERAGE(DataInput!Q113:Q114)>AVERAGE(AA114,AA113),ROUNDDOWN(((((AA113-Z113)+(AA114-Z114))/2)*(A114-A113))/27+S33+T33,0),IF(((((DataInput!Q114-Z114)+(DataInput!Q113-Z113))/2)*(A114-A113))/27+S33+T33>0,ROUNDDOWN(((((DataInput!Q114-Z113)+(DataInput!Q113-Z113))/2)*(A114-A113))/27+S33+T33,0),0)),0),0)*$X$5),1) -> 1092 | AC113: 202.485 | AD113: =ROUNDDOWN((IF(AC114>0,IFERROR(IF(((((DataInput!Q113-AC113)+(DataInput!Q114-AC114))/2)*(A114-A113))/27+S33+T33>0,ROUNDDOWN(((((DataInput!Q113-AC113)+(DataInput!Q114-AC114))/2)*(A114-A113))/27+S33+T33,0),0),0),0)*$X$5),1) -> 1339 | AE113: =DataInput!U113 -> 98 | AF113: =DataInput!S113 -> 54 | AG113: 75.6 | AH113: 22.4
A114: =IF(DataInput!A114<>"",DataInput!A114,"") -> 24148200 | B114: =SUM(DataInput!C114,DataInput!Y114)+(DataInput!U114-DataInput!E114) -> 113 | C114: =SUM(DataInput!D114,DataInput!Z114) -> 17 | D114: =DataInput!U114 -> 96 | E114: =SUM(DataInput!F114,DataInput!AB114) -> 0 | F114: =SUM(DataInput!G114,DataInput!AC114) -> 0 | G114: =SUM(DataInput!H114,DataInput!AD114) -> 0 | H114: =DataInput!I114 -> 0 | I114: =SUM(DataInput!J114,DataInput!AF114) -> 0 | J114: =SUM(DataInput!K114,DataInput!AG114) -> 0 | K114: =SUM(DataInput!L114,DataInput!AH114) -> 0 | L114: =SUM(DataInput!M114,DataInput!AI114) -> 0 | M114: =SUM(DataInput!N114,DataInput!AJ114) -> 0 | N114: =SUM(DataInput!O114,DataInput!AK167) -> 0 | O114: =DataInput!P114 -> 0 | Q114: 17 | R114: =DataInput!R114 -> 1123 | S114: =DataInput!Y114 -> 0 | T114: =IF(DataInput!U114-DataInput!E114>0,DataInput!U114-DataInput!E114,"") -> 77 | U114: =IF(DataInput!W114-DataInput!I114>0,DataInput!W114-DataInput!I114,"") -> 21 | W114: 1221 | X114: 1587.3 | Y114: -1570.3 | Z114: 407.1929 | AA114: 2858.4524 | AB114: =ROUNDDOWN((IF(AA115>0,IFERROR(IF(AVERAGE(DataInput!Q114:Q115)>AVERAGE(AA115,AA114),ROUNDDOWN(((((AA114-Z114)+(AA115-Z115))/2)*(A115-A114))/27+S34+T34,0),IF(((((DataInput!Q115-Z115)+(DataInput!Q114-Z114))/2)*(A115-A114))/27+S34+T34>0,ROUNDDOWN(((((DataInput!Q115-Z114)+(DataInput!Q114-Z114))/2)*(A115-A114))/27+S34+T34,0),0)),0),0)*$X$5),1) -> 1017.9 | AC114: 202.485 | AD114: =ROUNDDOWN((IF(AC115>0,IFERROR(IF(((((DataInput!Q114-AC114)+(DataInput!Q115-AC115))/2)*(A115-A114))/27+S34+T34>0,ROUNDDOWN(((((DataInput!Q114-AC114)+(DataInput!Q115-AC115))/2)*(A115-A114))/27+S34+T34,0),0),0),0)*$X$5),1) -> 1264.9 | AE114: =DataInput!U114 -> 96 | AF114: =DataInput!S114 -> 52 | AG114: 72.8 | AH114: 23.2
A115: =IF(DataInput!A115<>"",DataInput!A115,"") -> 24148225 | B115: =SUM(DataInput!C115,DataInput!Y115)+(DataInput!U115-DataInput!E115) -> 105 | C115: =SUM(DataInput!D115,DataInput!Z115) -> 11 | D115: =DataInput!U115 -> 94 | E115: =SUM(DataInput!F115,DataInput!AB115) -> 0 | F115: =SUM(DataInput!G115,DataInput!AC115) -> 0 | G115: =SUM(DataInput!H115,DataInput!AD115) -> 0 | H115: =DataInput!I115 -> 0 | I115: =SUM(DataInput!J115,DataInput!AF115) -> 0 | J115: =SUM(DataInput!K115,DataInput!AG115) -> 0 | K115: =SUM(DataInput!L115,DataInput!AH115) -> 0 | L115: =SUM(DataInput!M115,DataInput!AI115) -> 0 | M115: =SUM(DataInput!N115,DataInput!AJ115) -> 0 | N115: =SUM(DataInput!O115,DataInput!AK168) -> 0 | O115: =DataInput!P115 -> 0 | Q115: 11 | R115: =DataInput!R115 -> 1057 | S115: =DataInput!Y115 -> 0 | T115: =IF(DataInput!U115-DataInput!E115>0,DataInput!U115-DataInput!E115,"") -> 77 | U115: =IF(DataInput!W115-DataInput!I115>0,DataInput!W115-DataInput!I115,"") -> 21 | W115: 1155 | X115: 1501.5 | Y115: -1490.5 | Z115: 407.1929 | AA115: 2858.4524 | AB115: =ROUNDDOWN((IF(AA116>0,IFERROR(IF(AVERAGE(DataInput!Q115:Q116)>AVERAGE(AA116,AA115),ROUNDDOWN(((((AA115-Z115)+(AA116-Z116))/2)*(A116-A115))/27+S35+T35,0),IF(((((DataInput!Q116-Z116)+(DataInput!Q115-Z115))/2)*(A116-A115))/27+S35+T35>0,ROUNDDOWN(((((DataInput!Q116-Z115)+(DataInput!Q115-Z115))/2)*(A116-A115))/27+S35+T35,0),0)),0),0)*$X$5),1) -> 932.1 | AC115: 202.485 | AD115: =ROUNDDOWN((IF(AC116>0,IFERROR(IF(((((DataInput!Q115-AC115)+(DataInput!Q116-AC116))/2)*(A116-A115))/27+S35+T35>0,ROUNDDOWN(((((DataInput!Q115-AC115)+(DataInput!Q116-AC116))/2)*(A116-A115))/27+S35+T35,0),0),0),0)*$X$5),1) -> 1179.1 | AE115: =DataInput!U115 -> 94 | AF115: =DataInput!S115 -> 50 | AG115: 70 | AH115: 24
A116: =IF(DataInput!A116<>"",DataInput!A116,"") -> 24148250 | B116: =SUM(DataInput!C116,DataInput!Y116)+(DataInput!U116-DataInput!E116) -> 101 | C116: =SUM(DataInput!D116,DataInput!Z116) -> 9 | D116: =DataInput!U116 -> 91 | E116: =SUM(DataInput!F116,DataInput!AB116) -> 0 | F116: =SUM(DataInput!G116,DataInput!AC116) -> 0 | G116: =SUM(DataInput!H116,DataInput!AD116) -> 0 | H116: =DataInput!I116 -> 0 | I116: =SUM(DataInput!J116,DataInput!AF116) -> 0 | J116: =SUM(DataInput!K116,DataInput!AG116) -> 0 | K116: =SUM(DataInput!L116,DataInput!AH116) -> 0 | L116: =SUM(DataInput!M116,DataInput!AI116) -> 0 | M116: =SUM(DataInput!N116,DataInput!AJ116) -> 0 | N116: =SUM(DataInput!O116,DataInput!AK169) -> 0 | O116: =DataInput!P116 -> 0 | Q116: 9 | R116: =DataInput!R116 -> 987 | S116: =DataInput!Y116 -> 0 | T116: =IF(DataInput!U116-DataInput!E116>0,DataInput!U116-DataInput!E116,"") -> 75 | U116: =IF(DataInput!W116-DataInput!I116>0,DataInput!W116-DataInput!I116,"") -> 22 | W116: 1084 | X116: 1409.2 | Y116: -1400.2 | Z116: 407.1929 | AA116: 2858.4524 | AB116: =ROUNDDOWN((IF(AA117>0,IFERROR(IF(AVERAGE(DataInput!Q116:Q117)>AVERAGE(AA117,AA116),ROUNDDOWN(((((AA116-Z116)+(AA117-Z117))/2)*(A117-A116))/27+S36+T36,0),IF(((((DataInput!Q117-Z117)+(DataInput!Q116-Z116))/2)*(A117-A116))/27+S36+T36>0,ROUNDDOWN(((((DataInput!Q117-Z116)+(DataInput!Q116-Z116))/2)*(A117-A116))/27+S36+T36,0),0)),0),0)*$X$5),1) -> 843.7 | AC116: 202.485 | AD116: =ROUNDDOWN((IF(AC117>0,IFERROR(IF(((((DataInput!Q116-AC116)+(DataInput!Q117-AC117))/2)*(A117-A116))/27+S36+T36>0,ROUNDDOWN(((((DataInput!Q116-AC116)+(DataInput!Q117-AC117))/2)*(A117-A116))/27+S36+T36,0),0),0),0)*$X$5),1) -> 1090.7 | AE116: =DataInput!U116 -> 91 | AF116: =DataInput!S116 -> 48 | AG116: 67.2 | AH116: 23.8
A117: =IF(DataInput!A117<>"",DataInput!A117,"") -> 24148275 | B117: =SUM(DataInput!C117,DataInput!Y117)+(DataInput!U117-DataInput!E117) -> 94 | C117: =SUM(DataInput!D117,DataInput!Z117) -> 6 | D117: =DataInput!U117 -> 88 | E117: =SUM(DataInput!F117,DataInput!AB117) -> 0 | F117: =SUM(DataInput!G117,DataInput!AC117) -> 0 | G117: =SUM(DataInput!H117,DataInput!AD117) -> 0 | H117: =DataInput!I117 -> 0 | I117: =SUM(DataInput!J117,DataInput!AF117) -> 0 | J117: =SUM(DataInput!K117,DataInput!AG117) -> 0 | K117: =SUM(DataInput!L117,DataInput!AH117) -> 0 | L117: =SUM(DataInput!M117,DataInput!AI117) -> 0 | M117: =SUM(DataInput!N117,DataInput!AJ117) -> 0 | N117: =SUM(DataInput!O117,DataInput!AK170) -> 0 | O117: =DataInput!P117 -> 0 | Q117: 6 | R117: =DataInput!R117 -> 918 | S117: =DataInput!Y117 -> 0 | T117: =IF(DataInput!U117-DataInput!E117>0,DataInput!U117-DataInput!E117,"") -> 73 | U117: =IF(DataInput!W117-DataInput!I117>0,DataInput!W117-DataInput!I117,"") -> 22 | W117: 1013 | X117: 1316.9 | Y117: -1310.9 | Z117: 407.1929 | AA117: 2858.4524 | AB117: =ROUNDDOWN((IF(AA118>0,IFERROR(IF(AVERAGE(DataInput!Q117:Q118)>AVERAGE(AA118,AA117),ROUNDDOWN(((((AA117-Z117)+(AA118-Z118))/2)*(A118-A117))/27+S37+T37,0),IF(((((DataInput!Q118-Z118)+(DataInput!Q117-Z117))/2)*(A118-A117))/27+S37+T37>0,ROUNDDOWN(((((DataInput!Q118-Z117)+(DataInput!Q117-Z117))/2)*(A118-A117))/27+S37+T37,0),0)),0),0)*$X$5),1) -> 754 | AC117: 202.485 | AD117: =ROUNDDOWN((IF(AC118>0,IFERROR(IF(((((DataInput!Q117-AC117)+(DataInput!Q118-AC118))/2)*(A118-A117))/27+S37+T37>0,ROUNDDOWN(((((DataInput!Q117-AC117)+(DataInput!Q118-AC118))/2)*(A118-A117))/27+S37+T37,0),0),0),0)*$X$5),1) -> 1001 | AE117: =DataInput!U117 -> 88 | AF117: =DataInput!S117 -> 46 | AG117: 64.4 | AH117: 23.6
A118: =IF(DataInput!A118<>"",DataInput!A118,"") -> 24148300 | B118: =SUM(DataInput!C118,DataInput!Y118)+(DataInput!U118-DataInput!E118) -> 144 | C118: =SUM(DataInput!D118,DataInput!Z118) -> 19 | D118: =DataInput!U118 -> 125 | E118: =SUM(DataInput!F118,DataInput!AB118) -> 0 | F118: =SUM(DataInput!G118,DataInput!AC118) -> 0 | G118: =SUM(DataInput!H118,DataInput!AD118) -> 0 | H118: =DataInput!I118 -> 0 | I118: =SUM(DataInput!J118,DataInput!AF118) -> 0 | J118: =SUM(DataInput!K118,DataInput!AG118) -> 0 | K118: =SUM(DataInput!L118,DataInput!AH118) -> 0 | L118: =SUM(DataInput!M118,DataInput!AI118) -> 0 | M118: =SUM(DataInput!N118,DataInput!AJ118) -> 0 | N118: =SUM(DataInput!O118,DataInput!AK171) -> 0 | O118: =DataInput!P118 -> 0 | Q118: 19 | R118: =DataInput!R118 -> 1086 | S118: =DataInput!Y118 -> 0 | T118: =IF(DataInput!U118-DataInput!E118>0,DataInput!U118-DataInput!E118,"") -> 99 | U118: =IF(DataInput!W118-DataInput!I118>0,DataInput!W118-DataInput!I118,"") -> 26 | W118: 1211 | X118: 1574.3 | Y118: -1555.3 | Z118: 407.1929 | AA118: 2858.4524 | AB118: =ROUNDDOWN((IF(AA119>0,IFERROR(IF(AVERAGE(DataInput!Q118:Q119)>AVERAGE(AA119,AA118),ROUNDDOWN(((((AA118-Z118)+(AA119-Z119))/2)*(A119-A118))/27+S38+T38,0),IF(((((DataInput!Q119-Z119)+(DataInput!Q118-Z118))/2)*(A119-A118))/27+S38+T38>0,ROUNDDOWN(((((DataInput!Q119-Z118)+(DataInput!Q118-Z118))/2)*(A119-A118))/27+S38+T38,0),0)),0),0)*$X$5),1) -> 972.4 | AC118: 202.485 | AD118: =ROUNDDOWN((IF(AC119>0,IFERROR(IF(((((DataInput!Q118-AC118)+(DataInput!Q119-AC119))/2)*(A119-A118))/27+S38+T38>0,ROUNDDOWN(((((DataInput!Q118-AC118)+(DataInput!Q119-AC119))/2)*(A119-A118))/27+S38+T38,0),0),0),0)*$X$5),1) -> 1219.4 | AE118: =DataInput!U118 -> 125 | AF118: =DataInput!S118 -> 65 | AG118: 91 | AH118: 34
A119: =IF(DataInput!A119<>"",DataInput!A119,"") -> 24148325 | B119: =SUM(DataInput!C119,DataInput!Y119)+(DataInput!U119-DataInput!E119) -> 205 | C119: =SUM(DataInput!D119,DataInput!Z119) -> 42 | D119: =DataInput!U119 -> 163 | E119: =SUM(DataInput!F119,DataInput!AB119) -> 0 | F119: =SUM(DataInput!G119,DataInput!AC119) -> 0 | G119: =SUM(DataInput!H119,DataInput!AD119) -> 0 | H119: =DataInput!I119 -> 0 | I119: =SUM(DataInput!J119,DataInput!AF119) -> 0 | J119: =SUM(DataInput!K119,DataInput!AG119) -> 0 | K119: =SUM(DataInput!L119,DataInput!AH119) -> 0 | L119: =SUM(DataInput!M119,DataInput!AI119) -> 0 | M119: =SUM(DataInput!N119,DataInput!AJ119) -> 0 | N119: =SUM(DataInput!O119,DataInput!AK172) -> 0 | O119: =DataInput!P119 -> 0 | Q119: 42 | R119: =DataInput!R119 -> 1224 | S119: =DataInput!Y119 -> 0 | T119: =IF(DataInput!U119-DataInput!E119>0,DataInput!U119-DataInput!E119,"") -> 124 | U119: =IF(DataInput!W119-DataInput!I119>0,DataInput!W119-DataInput!I119,"") -> 29 | W119: 1377 | X119: 1790.1 | Y119: -1748.1 | Z119: 407.1929 | AA119: 2858.4524 | AB119: =ROUNDDOWN((IF(AA120>0,IFERROR(IF(AVERAGE(DataInput!Q119:Q120)>AVERAGE(AA120,AA119),ROUNDDOWN(((((AA119-Z119)+(AA120-Z120))/2)*(A120-A119))/27+S39+T39,0),IF(((((DataInput!Q120-Z120)+(DataInput!Q119-Z119))/2)*(A120-A119))/27+S39+T39>0,ROUNDDOWN(((((DataInput!Q120-Z119)+(DataInput!Q119-Z119))/2)*(A120-A119))/27+S39+T39,0),0)),0),0)*$X$5),1) -> 1153.1 | AC119: 202.485 | AD119: =ROUNDDOWN((IF(AC120>0,IFERROR(IF(((((DataInput!Q119-AC119)+(DataInput!Q120-AC120))/2)*(A120-A119))/27+S39+T39>0,ROUNDDOWN(((((DataInput!Q119-AC119)+(DataInput!Q120-AC120))/2)*(A120-A119))/27+S39+T39,0),0),0),0)*$X$5),1) -> 1400.1 | AE119: =DataInput!U119 -> 163 | AF119: =DataInput!S119 -> 84 | AG119: 117.6 | AH119: 45.4
A120: =IF(DataInput!A120<>"",DataInput!A120,"") -> 24148350 | B120: =SUM(DataInput!C120,DataInput!Y120)+(DataInput!U120-DataInput!E120) -> 218 | C120: =SUM(DataInput!D120,DataInput!Z120) -> 58 | D120: =DataInput!U120 -> 161 | E120: =SUM(DataInput!F120,DataInput!AB120) -> 0 | F120: =SUM(DataInput!G120,DataInput!AC120) -> 0 | G120: =SUM(DataInput!H120,DataInput!AD120) -> 0 | H120: =DataInput!I120 -> 0 | I120: =SUM(DataInput!J120,DataInput!AF120) -> 0 | J120: =SUM(DataInput!K120,DataInput!AG120) -> 0 | K120: =SUM(DataInput!L120,DataInput!AH120) -> 0 | L120: =SUM(DataInput!M120,DataInput!AI120) -> 0 | M120: =SUM(DataInput!N120,DataInput!AJ120) -> 0 | N120: =SUM(DataInput!O120,DataInput!AK173) -> 0 | O120: =DataInput!P120 -> 0 | Q120: 58 | R120: =DataInput!R120 -> 1105 | S120: =DataInput!Y120 -> 0 | T120: =IF(DataInput!U120-DataInput!E120>0,DataInput!U120-DataInput!E120,"") -> 118 | U120: =IF(DataInput!W120-DataInput!I120>0,DataInput!W120-DataInput!I120,"") -> 30 | W120: 1253 | X120: 1628.9 | Y120: -1570.9 | Z120: 407.1929 | AA120: 2858.4524 | AB120: =ROUNDDOWN((IF(AA121>0,IFERROR(IF(AVERAGE(DataInput!Q120:Q121)>AVERAGE(AA121,AA120),ROUNDDOWN(((((AA120-Z120)+(AA121-Z121))/2)*(A121-A120))/27+S40+T40,0),IF(((((DataInput!Q121-Z121)+(DataInput!Q120-Z120))/2)*(A121-A120))/27+S40+T40>0,ROUNDDOWN(((((DataInput!Q121-Z120)+(DataInput!Q120-Z120))/2)*(A121-A120))/27+S40+T40,0),0)),0),0)*$X$5),1) -> 998.4 | AC120: 202.485 | AD120: =ROUNDDOWN((IF(AC121>0,IFERROR(IF(((((DataInput!Q120-AC120)+(DataInput!Q121-AC121))/2)*(A121-A120))/27+S40+T40>0,ROUNDDOWN(((((DataInput!Q120-AC120)+(DataInput!Q121-AC121))/2)*(A121-A120))/27+S40+T40,0),0),0),0)*$X$5),1) -> 1245.4 | AE120: =DataInput!U120 -> 161 | AF120: =DataInput!S120 -> 83 | AG120: 116.2 | AH120: 44.8
A121: =IF(DataInput!A121<>"",DataInput!A121,"") -> 24148375 | B121: =SUM(DataInput!C121,DataInput!Y121)+(DataInput!U121-DataInput!E121) -> 234 | C121: =SUM(DataInput!D121,DataInput!Z121) -> 73 | D121: =DataInput!U121 -> 160 | E121: =SUM(DataInput!F121,DataInput!AB121) -> 0 | F121: =SUM(DataInput!G121,DataInput!AC121) -> 0 | G121: =SUM(DataInput!H121,DataInput!AD121) -> 0 | H121: =DataInput!I121 -> 0 | I121: =SUM(DataInput!J121,DataInput!AF121) -> 0 | J121: =SUM(DataInput!K121,DataInput!AG121) -> 0 | K121: =SUM(DataInput!L121,DataInput!AH121) -> 0 | L121: =SUM(DataInput!M121,DataInput!AI121) -> 0 | M121: =SUM(DataInput!N121,DataInput!AJ121) -> 0 | N121: =SUM(DataInput!O121,DataInput!AK174) -> 0 | O121: =DataInput!P121 -> 0 | Q121: 73 | R121: =DataInput!R121 -> 997 | S121: =DataInput!Y121 -> 0 | T121: =IF(DataInput!U121-DataInput!E121>0,DataInput!U121-DataInput!E121,"") -> 114 | U121: =IF(DataInput!W121-DataInput!I121>0,DataInput!W121-DataInput!I121,"") -> 30 | W121: 1141 | X121: 1483.3 | Y121: -1410.3 | Z121: 407.1929 | AA121: 2858.4524 | AB121: =ROUNDDOWN((IF(AA122>0,IFERROR(IF(AVERAGE(DataInput!Q121:Q122)>AVERAGE(AA122,AA121),ROUNDDOWN(((((AA121-Z121)+(AA122-Z122))/2)*(A122-A121))/27+S41+T41,0),IF(((((DataInput!Q122-Z122)+(DataInput!Q121-Z121))/2)*(A122-A121))/27+S41+T41>0,ROUNDDOWN(((((DataInput!Q122-Z121)+(DataInput!Q121-Z121))/2)*(A122-A121))/27+S41+T41,0),0)),0),0)*$X$5),1) -> 858 | AC121: 202.485 | AD121: =ROUNDDOWN((IF(AC122>0,IFERROR(IF(((((DataInput!Q121-AC121)+(DataInput!Q122-AC122))/2)*(A122-A121))/27+S41+T41>0,ROUNDDOWN(((((DataInput!Q121-AC121)+(DataInput!Q122-AC122))/2)*(A122-A121))/27+S41+T41,0),0),0),0)*$X$5),1) -> 1103.7 | AE121: =DataInput!U121 -> 160 | AF121: =DataInput!S121 -> 81 | AG121: 113.4 | AH121: 46.6
A122: =IF(DataInput!A122<>"",DataInput!A122,"") -> 24148400 | B122: =SUM(DataInput!C122,DataInput!Y122)+(DataInput!U122-DataInput!E122) -> 248 | C122: =SUM(DataInput!D122,DataInput!Z122) -> 90 | D122: =DataInput!U122 -> 159 | E122: =SUM(DataInput!F122,DataInput!AB122) -> 0 | F122: =SUM(DataInput!G122,DataInput!AC122) -> 0 | G122: =SUM(DataInput!H122,DataInput!AD122) -> 0 | H122: =DataInput!I122 -> 0 | I122: =SUM(DataInput!J122,DataInput!AF122) -> 0 | J122: =SUM(DataInput!K122,DataInput!AG122) -> 0 | K122: =SUM(DataInput!L122,DataInput!AH122) -> 0 | L122: =SUM(DataInput!M122,DataInput!AI122) -> 0 | M122: =SUM(DataInput!N122,DataInput!AJ122) -> 0 | N122: =SUM(DataInput!O122,DataInput!AK175) -> 0 | O122: =DataInput!P122 -> 0 | Q122: 90 | R122: =DataInput!R122 -> 891 | S122: =DataInput!Y122 -> 0 | T122: =IF(DataInput!U122-DataInput!E122>0,DataInput!U122-DataInput!E122,"") -> 109 | U122: =IF(DataInput!W122-DataInput!I122>0,DataInput!W122-DataInput!I122,"") -> 30 | W122: 1030 | X122: 1339 | Y122: -1249 | Z122: 407.1929 | AA122: 2858.4524 | AB122: =ROUNDDOWN((IF(AA123>0,IFERROR(IF(AVERAGE(DataInput!Q122:Q123)>AVERAGE(AA123,AA122),ROUNDDOWN(((((AA122-Z122)+(AA123-Z123))/2)*(A123-A122))/27+S42+T42,0),IF(((((DataInput!Q123-Z123)+(DataInput!Q122-Z122))/2)*(A123-A122))/27+S42+T42>0,ROUNDDOWN(((((DataInput!Q123-Z122)+(DataInput!Q122-Z122))/2)*(A123-A122))/27+S42+T42,0),0)),0),0)*$X$5),1) -> 716.3 | AC122: 202.485 | AD122: =ROUNDDOWN((IF(AC123>0,IFERROR(IF(((((DataInput!Q122-AC122)+(DataInput!Q123-AC123))/2)*(A123-A122))/27+S42+T42>0,ROUNDDOWN(((((DataInput!Q122-AC122)+(DataInput!Q123-AC123))/2)*(A123-A122))/27+S42+T42,0),0),0),0)*$X$5),1) -> 962 | AE122: =DataInput!U122 -> 159 | AF122: =DataInput!S122 -> 80 | AG122: 112 | AH122: 47
A123: =IF(DataInput!A123<>"",DataInput!A123,"") -> 24148425 | B123: =SUM(DataInput!C123,DataInput!Y123)+(DataInput!U123-DataInput!E123) -> 264 | C123: =SUM(DataInput!D123,DataInput!Z123) -> 106 | D123: =DataInput!U123 -> 158 | E123: =SUM(DataInput!F123,DataInput!AB123) -> 0 | F123: =SUM(DataInput!G123,DataInput!AC123) -> 0 | G123: =SUM(DataInput!H123,DataInput!AD123) -> 0 | H123: =DataInput!I123 -> 0 | I123: =SUM(DataInput!J123,DataInput!AF123) -> 0 | J123: =SUM(DataInput!K123,DataInput!AG123) -> 0 | K123: =SUM(DataInput!L123,DataInput!AH123) -> 0 | L123: =SUM(DataInput!M123,DataInput!AI123) -> 0 | M123: =SUM(DataInput!N123,DataInput!AJ123) -> 0 | N123: =SUM(DataInput!O123,DataInput!AK176) -> 0 | O123: =DataInput!P123 -> 0 | Q123: 106 | R123: =DataInput!R123 -> 788 | S123: =DataInput!Y123 -> 0 | T123: =IF(DataInput!U123-DataInput!E123>0,DataInput!U123-DataInput!E123,"") -> 104 | U123: =IF(DataInput!W123-DataInput!I123>0,DataInput!W123-DataInput!I123,"") -> 30 | W123: 922 | X123: 1198.6 | Y123: -1092.6 | Z123: 407.1929 | AA123: 2858.4524 | AB123: =ROUNDDOWN((IF(AA124>0,IFERROR(IF(AVERAGE(DataInput!Q123:Q124)>AVERAGE(AA124,AA123),ROUNDDOWN(((((AA123-Z123)+(AA124-Z124))/2)*(A124-A123))/27+S43+T43,0),IF(((((DataInput!Q124-Z124)+(DataInput!Q123-Z123))/2)*(A124-A123))/27+S43+T43>0,ROUNDDOWN(((((DataInput!Q124-Z123)+(DataInput!Q123-Z123))/2)*(A124-A123))/27+S43+T43,0),0)),0),0)*$X$5),1) -> 577.2 | AC123: 202.485 | AD123: =ROUNDDOWN((IF(AC124>0,IFERROR(IF(((((DataInput!Q123-AC123)+(DataInput!Q124-AC124))/2)*(A124-A123))/27+S43+T43>0,ROUNDDOWN(((((DataInput!Q123-AC123)+(DataInput!Q124-AC124))/2)*(A124-A123))/27+S43+T43,0),0),0),0)*$X$5),1) -> 824.2 | AE123: =DataInput!U123 -> 158 | AF123: =DataInput!S123 -> 79 | AG123: 110.6 | AH123: 47.4
A124: =IF(DataInput!A124<>"",DataInput!A124,"") -> 24148450 | B124: =SUM(DataInput!C124,DataInput!Y124)+(DataInput!U124-DataInput!E124) -> 278 | C124: =SUM(DataInput!D124,DataInput!Z124) -> 122 | D124: =DataInput!U124 -> 157 | E124: =SUM(DataInput!F124,DataInput!AB124) -> 0 | F124: =SUM(DataInput!G124,DataInput!AC124) -> 0 | G124: =SUM(DataInput!H124,DataInput!AD124) -> 0 | H124: =DataInput!I124 -> 0 | I124: =SUM(DataInput!J124,DataInput!AF124) -> 0 | J124: =SUM(DataInput!K124,DataInput!AG124) -> 0 | K124: =SUM(DataInput!L124,DataInput!AH124) -> 0 | L124: =SUM(DataInput!M124,DataInput!AI124) -> 0 | M124: =SUM(DataInput!N124,DataInput!AJ124) -> 0 | N124: =SUM(DataInput!O124,DataInput!AK177) -> 0 | O124: =DataInput!P124 -> 0 | Q124: 122 | R124: =DataInput!R124 -> 687 | S124: =DataInput!Y124 -> 0 | T124: =IF(DataInput!U124-DataInput!E124>0,DataInput!U124-DataInput!E124,"") -> 99 | U124: =IF(DataInput!W124-DataInput!I124>0,DataInput!W124-DataInput!I124,"") -> 30 | W124: 816 | X124: 1060.8 | Y124: -938.8 | Z124: 407.1929 | AA124: 2858.4524 | AB124: =ROUNDDOWN((IF(AA125>0,IFERROR(IF(AVERAGE(DataInput!Q124:Q125)>AVERAGE(AA125,AA124),ROUNDDOWN(((((AA124-Z124)+(AA125-Z125))/2)*(A125-A124))/27+S44+T44,0),IF(((((DataInput!Q125-Z125)+(DataInput!Q124-Z124))/2)*(A125-A124))/27+S44+T44>0,ROUNDDOWN(((((DataInput!Q125-Z124)+(DataInput!Q124-Z124))/2)*(A125-A124))/27+S44+T44,0),0)),0),0)*$X$5),1) -> 440.7 | AC124: 202.485 | AD124: =ROUNDDOWN((IF(AC125>0,IFERROR(IF(((((DataInput!Q124-AC124)+(DataInput!Q125-AC125))/2)*(A125-A124))/27+S44+T44>0,ROUNDDOWN(((((DataInput!Q124-AC124)+(DataInput!Q125-AC125))/2)*(A125-A124))/27+S44+T44,0),0),0),0)*$X$5),1) -> 687.7 | AE124: =DataInput!U124 -> 157 | AF124: =DataInput!S124 -> 78 | AG124: 109.2 | AH124: 47.8
A125: =IF(DataInput!A125<>"",DataInput!A125,"") -> 24148475 | B125: =SUM(DataInput!C125,DataInput!Y125)+(DataInput!U125-DataInput!E125) -> 295 | C125: =SUM(DataInput!D125,DataInput!Z125) -> 139 | D125: =DataInput!U125 -> 155 | E125: =SUM(DataInput!F125,DataInput!AB125) -> 0 | F125: =SUM(DataInput!G125,DataInput!AC125) -> 0 | G125: =SUM(DataInput!H125,DataInput!AD125) -> 0 | H125: =DataInput!I125 -> 0 | I125: =SUM(DataInput!J125,DataInput!AF125) -> 0 | J125: =SUM(DataInput!K125,DataInput!AG125) -> 0 | K125: =SUM(DataInput!L125,DataInput!AH125) -> 0 | L125: =SUM(DataInput!M125,DataInput!AI125) -> 0 | M125: =SUM(DataInput!N125,DataInput!AJ125) -> 0 | N125: =SUM(DataInput!O125,DataInput!AK178) -> 0 | O125: =DataInput!P125 -> 0 | Q125: 139 | R125: =DataInput!R125 -> 586 | S125: =DataInput!Y125 -> 0 | T125: =IF(DataInput!U125-DataInput!E125>0,DataInput!U125-DataInput!E125,"") -> 94 | U125: =IF(DataInput!W125-DataInput!I125>0,DataInput!W125-DataInput!I125,"") -> 29 | W125: 709 | X125: 921.7 | Y125: -782.7 | Z125: 407.1929 | AA125: 2858.4524 | AB125: =ROUNDDOWN((IF(AA126>0,IFERROR(IF(AVERAGE(DataInput!Q125:Q126)>AVERAGE(AA126,AA125),ROUNDDOWN(((((AA125-Z125)+(AA126-Z126))/2)*(A126-A125))/27+S45+T45,0),IF(((((DataInput!Q126-Z126)+(DataInput!Q125-Z125))/2)*(A126-A125))/27+S45+T45>0,ROUNDDOWN(((((DataInput!Q126-Z125)+(DataInput!Q125-Z125))/2)*(A126-A125))/27+S45+T45,0),0)),0),0)*$X$5),1) -> 302.9 | AC125: 202.485 | AD125: =ROUNDDOWN((IF(AC126>0,IFERROR(IF(((((DataInput!Q125-AC125)+(DataInput!Q126-AC126))/2)*(A126-A125))/27+S45+T45>0,ROUNDDOWN(((((DataInput!Q125-AC125)+(DataInput!Q126-AC126))/2)*(A126-A125))/27+S45+T45,0),0),0),0)*$X$5),1) -> 549.9 | AE125: =DataInput!U125 -> 155 | AF125: =DataInput!S125 -> 77 | AG125: 107.8 | AH125: 47.2
A126: =IF(DataInput!A126<>"",DataInput!A126,"") -> 24148500 | B126: =SUM(DataInput!C126,DataInput!Y126)+(DataInput!U126-DataInput!E126) -> 312 | C126: =SUM(DataInput!D126,DataInput!Z126) -> 159 | D126: =DataInput!U126 -> 153 | E126: =SUM(DataInput!F126,DataInput!AB126) -> 0 | F126: =SUM(DataInput!G126,DataInput!AC126) -> 0 | G126: =SUM(DataInput!H126,DataInput!AD126) -> 0 | H126: =DataInput!I126 -> 0 | I126: =SUM(DataInput!J126,DataInput!AF126) -> 0 | J126: =SUM(DataInput!K126,DataInput!AG126) -> 0 | K126: =SUM(DataInput!L126,DataInput!AH126) -> 0 | L126: =SUM(DataInput!M126,DataInput!AI126) -> 0 | M126: =SUM(DataInput!N126,DataInput!AJ126) -> 0 | N126: =SUM(DataInput!O126,DataInput!AK179) -> 0 | O126: =DataInput!P126 -> 0 | Q126: 159 | R126: =DataInput!R126 -> 482 | S126: =DataInput!Y126 -> 0 | T126: =IF(DataInput!U126-DataInput!E126>0,DataInput!U126-DataInput!E126,"") -> 88 | U126: =IF(DataInput!W126-DataInput!I126>0,DataInput!W126-DataInput!I126,"") -> 29 | W126: 599 | X126: 778.7 | Y126: -619.7 | Z126: 407.1929 | AA126: 2858.4524 | AB126: =ROUNDDOWN((IF(AA127>0,IFERROR(IF(AVERAGE(DataInput!Q126:Q127)>AVERAGE(AA127,AA126),ROUNDDOWN(((((AA126-Z126)+(AA127-Z127))/2)*(A127-A126))/27+S46+T46,0),IF(((((DataInput!Q127-Z127)+(DataInput!Q126-Z126))/2)*(A127-A126))/27+S46+T46>0,ROUNDDOWN(((((DataInput!Q127-Z126)+(DataInput!Q126-Z126))/2)*(A127-A126))/27+S46+T46,0),0)),0),0)*$X$5),1) -> 163.8 | AC126: 202.485 | AD126: =ROUNDDOWN((IF(AC127>0,IFERROR(IF(((((DataInput!Q126-AC126)+(DataInput!Q127-AC127))/2)*(A127-A126))/27+S46+T46>0,ROUNDDOWN(((((DataInput!Q126-AC126)+(DataInput!Q127-AC127))/2)*(A127-A126))/27+S46+T46,0),0),0),0)*$X$5),1) -> 409.5 | AE126: =DataInput!U126 -> 153 | AF126: =DataInput!S126 -> 76 | AG126: 106.4 | AH126: 46.6
A127: =IF(DataInput!A127<>"",DataInput!A127,"") -> 24148525 | B127: =SUM(DataInput!C127,DataInput!Y127)+(DataInput!U127-DataInput!E127) -> 328 | C127: =SUM(DataInput!D127,DataInput!Z127) -> 177 | D127: =DataInput!U127 -> 151 | E127: =SUM(DataInput!F127,DataInput!AB127) -> 0 | F127: =SUM(DataInput!G127,DataInput!AC127) -> 0 | G127: =SUM(DataInput!H127,DataInput!AD127) -> 0 | H127: =DataInput!I127 -> 0 | I127: =SUM(DataInput!J127,DataInput!AF127) -> 0 | J127: =SUM(DataInput!K127,DataInput!AG127) -> 0 | K127: =SUM(DataInput!L127,DataInput!AH127) -> 0 | L127: =SUM(DataInput!M127,DataInput!AI127) -> 0 | M127: =SUM(DataInput!N127,DataInput!AJ127) -> 0 | N127: =SUM(DataInput!O127,DataInput!AK180) -> 0 | O127: =DataInput!P127 -> 0 | Q127: 177 | R127: =DataInput!R127 -> 376 | S127: =DataInput!Y127 -> 0 | T127: =IF(DataInput!U127-DataInput!E127>0,DataInput!U127-DataInput!E127,"") -> 81 | U127: =IF(DataInput!W127-DataInput!I127>0,DataInput!W127-DataInput!I127,"") -> 29 | W127: 486 | X127: 631.8 | Y127: -454.8 | Z127: 407.1929 | AA127: 2858.4524 | AB127: =ROUNDDOWN((IF(AA128>0,IFERROR(IF(AVERAGE(DataInput!Q127:Q128)>AVERAGE(AA128,AA127),ROUNDDOWN(((((AA127-Z127)+(AA128-Z128))/2)*(A128-A127))/27+S47+T47,0),IF(((((DataInput!Q128-Z128)+(DataInput!Q127-Z127))/2)*(A128-A127))/27+S47+T47>0,ROUNDDOWN(((((DataInput!Q128-Z127)+(DataInput!Q127-Z127))/2)*(A128-A127))/27+S47+T47,0),0)),0),0)*$X$5),1) -> 20.8 | AC127: 202.485 | AD127: =ROUNDDOWN((IF(AC128>0,IFERROR(IF(((((DataInput!Q127-AC127)+(DataInput!Q128-AC128))/2)*(A128-A127))/27+S47+T47>0,ROUNDDOWN(((((DataInput!Q127-AC127)+(DataInput!Q128-AC128))/2)*(A128-A127))/27+S47+T47,0),0),0),0)*$X$5),1) -> 267.8 | AE127: =DataInput!U127 -> 151 | AF127: =DataInput!S127 -> 74 | AG127: 103.6 | AH127: 47.4
A128: =IF(DataInput!A128<>"",DataInput!A128,"") -> 24148550 | B128: =SUM(DataInput!C128,DataInput!Y128)+(DataInput!U128-DataInput!E128) -> 352 | C128: =SUM(DataInput!D128,DataInput!Z128) -> 204 | D128: =DataInput!U128 -> 149 | E128: =SUM(DataInput!F128,DataInput!AB128) -> 0 | F128: =SUM(DataInput!G128,DataInput!AC128) -> 0 | G128: =SUM(DataInput!H128,DataInput!AD128) -> 0 | H128: =DataInput!I128 -> 0 | I128: =SUM(DataInput!J128,DataInput!AF128) -> 0 | J128: =SUM(DataInput!K128,DataInput!AG128) -> 0 | K128: =SUM(DataInput!L128,DataInput!AH128) -> 0 | L128: =SUM(DataInput!M128,DataInput!AI128) -> 0 | M128: =SUM(DataInput!N128,DataInput!AJ128) -> 0 | N128: =SUM(DataInput!O128,DataInput!AK181) -> 0 | O128: =DataInput!P128 -> 0 | Q128: 204 | R128: =DataInput!R128 -> 276 | S128: =DataInput!Y128 -> 0 | T128: =IF(DataInput!U128-DataInput!E128>0,DataInput!U128-DataInput!E128,"") -> 72 | U128: =IF(DataInput!W128-DataInput!I128>0,DataInput!W128-DataInput!I128,"") -> 29 | W128: 377 | X128: 490.1 | Y128: -286.1 | Z128: 407.1929 | AA128: 2858.4524 | AB128: =ROUNDDOWN((IF(AA129>0,IFERROR(IF(AVERAGE(DataInput!Q128:Q129)>AVERAGE(AA129,AA128),ROUNDDOWN(((((AA128-Z128)+(AA129-Z129))/2)*(A129-A128))/27+S48+T48,0),IF(((((DataInput!Q129-Z129)+(DataInput!Q128-Z128))/2)*(A129-A128))/27+S48+T48>0,ROUNDDOWN(((((DataInput!Q129-Z128)+(DataInput!Q128-Z128))/2)*(A129-A128))/27+S48+T48,0),0)),0),0)*$X$5),1) -> 0 | AC128: 202.485 | AD128: =ROUNDDOWN((IF(AC129>0,IFERROR(IF(((((DataInput!Q128-AC128)+(DataInput!Q129-AC129))/2)*(A129-A128))/27+S48+T48>0,ROUNDDOWN(((((DataInput!Q128-AC128)+(DataInput!Q129-AC129))/2)*(A129-A128))/27+S48+T48,0),0),0),0)*$X$5),1) -> 132.6 | AE128: =DataInput!U128 -> 149 | AF128: =DataInput!S128 -> 73 | AG128: 102.2 | AH128: 46.8
A129: =IF(DataInput!A129<>"",DataInput!A129,"") -> 24148575 | B129: =SUM(DataInput!C129,DataInput!Y129)+(DataInput!U129-DataInput!E129) -> 382 | C129: =SUM(DataInput!D129,DataInput!Z129) -> 235 | D129: =DataInput!U129 -> 147 | E129: =SUM(DataInput!F129,DataInput!AB129) -> 0 | F129: =SUM(DataInput!G129,DataInput!AC129) -> 0 | G129: =SUM(DataInput!H129,DataInput!AD129) -> 0 | H129: =DataInput!I129 -> 0 | I129: =SUM(DataInput!J129,DataInput!AF129) -> 0 | J129: =SUM(DataInput!K129,DataInput!AG129) -> 0 | K129: =SUM(DataInput!L129,DataInput!AH129) -> 0 | L129: =SUM(DataInput!M129,DataInput!AI129) -> 0 | M129: =SUM(DataInput!N129,DataInput!AJ129) -> 0 | N129: =SUM(DataInput!O129,DataInput!AK182) -> 0 | O129: =DataInput!P129 -> 0 | Q129: 235 | R129: =DataInput!R129 -> 189 | S129: =DataInput!Y129 -> 0 | T129: =IF(DataInput!U129-DataInput!E129>0,DataInput!U129-DataInput!E129,"") -> 63 | U129: =IF(DataInput!W129-DataInput!I129>0,DataInput!W129-DataInput!I129,"") -> 29 | W129: 281 | X129: 365.3 | Y129: -130.3 | Z129: 407.1929 | AA129: 2858.4524 | AB129: =ROUNDDOWN((IF(AA130>0,IFERROR(IF(AVERAGE(DataInput!Q129:Q130)>AVERAGE(AA130,AA129),ROUNDDOWN(((((AA129-Z129)+(AA130-Z130))/2)*(A130-A129))/27+S49+T49,0),IF(((((DataInput!Q130-Z130)+(DataInput!Q129-Z129))/2)*(A130-A129))/27+S49+T49>0,ROUNDDOWN(((((DataInput!Q130-Z129)+(DataInput!Q129-Z129))/2)*(A130-A129))/27+S49+T49,0),0)),0),0)*$X$5),1) -> 0 | AC129: 202.485 | AD129: =ROUNDDOWN((IF(AC130>0,IFERROR(IF(((((DataInput!Q129-AC129)+(DataInput!Q130-AC130))/2)*(A130-A129))/27+S49+T49>0,ROUNDDOWN(((((DataInput!Q129-AC129)+(DataInput!Q130-AC130))/2)*(A130-A129))/27+S49+T49,0),0),0),0)*$X$5),1) -> 15.6 | AE129: =DataInput!U129 -> 147 | AF129: =DataInput!S129 -> 72 | AG129: 100.8 | AH129: 46.2
A130: =IF(DataInput!A130<>"",DataInput!A130,"") -> 24148600 | B130: =SUM(DataInput!C130,DataInput!Y130)+(DataInput!U130-DataInput!E130) -> 418 | C130: =SUM(DataInput!D130,DataInput!Z130) -> 273 | D130: =DataInput!U130 -> 146 | E130: =SUM(DataInput!F130,DataInput!AB130) -> 0 | F130: =SUM(DataInput!G130,DataInput!AC130) -> 0 | G130: =SUM(DataInput!H130,DataInput!AD130) -> 0 | H130: =DataInput!I130 -> 0 | I130: =SUM(DataInput!J130,DataInput!AF130) -> 0 | J130: =SUM(DataInput!K130,DataInput!AG130) -> 0 | K130: =SUM(DataInput!L130,DataInput!AH130) -> 0 | L130: =SUM(DataInput!M130,DataInput!AI130) -> 0 | M130: =SUM(DataInput!N130,DataInput!AJ130) -> 0 | N130: =SUM(DataInput!O130,DataInput!AK183) -> 0 | O130: =DataInput!P130 -> 0 | Q130: 273 | R130: =DataInput!R130 -> 118 | S130: =DataInput!Y130 -> 0 | T130: =IF(DataInput!U130-DataInput!E130>0,DataInput!U130-DataInput!E130,"") -> 51 | U130: =IF(DataInput!W130-DataInput!I130>0,DataInput!W130-DataInput!I130,"") -> 29 | W130: 198 | X130: 257.4 | Y130: 15.6 | Z130: 407.1929 | AA130: 2858.4524 | AB130: =ROUNDDOWN((IF(AA131>0,IFERROR(IF(AVERAGE(DataInput!Q130:Q131)>AVERAGE(AA131,AA130),ROUNDDOWN(((((AA130-Z130)+(AA131-Z131))/2)*(A131-A130))/27+S50+T50,0),IF(((((DataInput!Q131-Z131)+(DataInput!Q130-Z130))/2)*(A131-A130))/27+S50+T50>0,ROUNDDOWN(((((DataInput!Q131-Z130)+(DataInput!Q130-Z130))/2)*(A131-A130))/27+S50+T50,0),0)),0),0)*$X$5),1) -> 0 | AC130: 202.485 | AD130: =ROUNDDOWN((IF(AC131>0,IFERROR(IF(((((DataInput!Q130-AC130)+(DataInput!Q131-AC131))/2)*(A131-A130))/27+S50+T50>0,ROUNDDOWN(((((DataInput!Q130-AC130)+(DataInput!Q131-AC131))/2)*(A131-A130))/27+S50+T50,0),0),0),0)*$X$5),1) -> 0 | AE130: =DataInput!U130 -> 146 | AF130: =DataInput!S130 -> 71 | AG130: 99.4 | AH130: 46.6
A131: =IF(DataInput!A131<>"",DataInput!A131,"") -> 24148625 | B131: =SUM(DataInput!C131,DataInput!Y131)+(DataInput!U131-DataInput!E131) -> 470 | C131: =SUM(DataInput!D131,DataInput!Z131) -> 324 | D131: =DataInput!U131 -> 146 | E131: =SUM(DataInput!F131,DataInput!AB131) -> 0 | F131: =SUM(DataInput!G131,DataInput!AC131) -> 0 | G131: =SUM(DataInput!H131,DataInput!AD131) -> 0 | H131: =DataInput!I131 -> 0 | I131: =SUM(DataInput!J131,DataInput!AF131) -> 0 | J131: =SUM(DataInput!K131,DataInput!AG131) -> 0 | K131: =SUM(DataInput!L131,DataInput!AH131) -> 0 | L131: =SUM(DataInput!M131,DataInput!AI131) -> 0 | M131: =SUM(DataInput!N131,DataInput!AJ131) -> 0 | N131: =SUM(DataInput!O131,DataInput!AK184) -> 0 | O131: =DataInput!P131 -> 0 | Q131: 324 | R131: =DataInput!R131 -> 62 | S131: =DataInput!Y131 -> 0 | T131: =IF(DataInput!U131-DataInput!E131>0,DataInput!U131-DataInput!E131,"") -> 37 | U131: =IF(DataInput!W131-DataInput!I131>0,DataInput!W131-DataInput!I131,"") -> 29 | W131: 128 | X131: 166.4 | Y131: 157.6 | Z131: 407.1929 | AA131: 2858.4524 | AB131: =ROUNDDOWN((IF(AA132>0,IFERROR(IF(AVERAGE(DataInput!Q131:Q132)>AVERAGE(AA132,AA131),ROUNDDOWN(((((AA131-Z131)+(AA132-Z132))/2)*(A132-A131))/27+S51+T51,0),IF(((((DataInput!Q132-Z132)+(DataInput!Q131-Z131))/2)*(A132-A131))/27+S51+T51>0,ROUNDDOWN(((((DataInput!Q132-Z131)+(DataInput!Q131-Z131))/2)*(A132-A131))/27+S51+T51,0),0)),0),0)*$X$5),1) -> 0 | AC131: 202.485 | AD131: =ROUNDDOWN((IF(AC132>0,IFERROR(IF(((((DataInput!Q131-AC131)+(DataInput!Q132-AC132))/2)*(A132-A131))/27+S51+T51>0,ROUNDDOWN(((((DataInput!Q131-AC131)+(DataInput!Q132-AC132))/2)*(A132-A131))/27+S51+T51,0),0),0),0)*$X$5),1) -> 0 | AE131: =DataInput!U131 -> 146 | AF131: =DataInput!S131 -> 71 | AG131: 99.4 | AH131: 46.6
A132: =IF(DataInput!A132<>"",DataInput!A132,"") -> 24148650 | B132: =SUM(DataInput!C132,DataInput!Y132)+(DataInput!U132-DataInput!E132) -> 525 | C132: =SUM(DataInput!D132,DataInput!Z132) -> 379 | D132: =DataInput!U132 -> 146 | E132: =SUM(DataInput!F132,DataInput!AB132) -> 0 | F132: =SUM(DataInput!G132,DataInput!AC132) -> 0 | G132: =SUM(DataInput!H132,DataInput!AD132) -> 0 | H132: =DataInput!I132 -> 7 | I132: =SUM(DataInput!J132,DataInput!AF132) -> 0 | J132: =SUM(DataInput!K132,DataInput!AG132) -> 0 | K132: =SUM(DataInput!L132,DataInput!AH132) -> 0 | L132: =SUM(DataInput!M132,DataInput!AI132) -> 0 | M132: =SUM(DataInput!N132,DataInput!AJ132) -> 0 | N132: =SUM(DataInput!O132,DataInput!AK185) -> 0 | O132: =DataInput!P132 -> 0 | Q132: 379 | R132: =DataInput!R132 -> 30 | S132: =DataInput!Y132 -> 0 | T132: =IF(DataInput!U132-DataInput!E132>0,DataInput!U132-DataInput!E132,"") -> 26 | U132: =IF(DataInput!W132-DataInput!I132>0,DataInput!W132-DataInput!I132,"") -> 23 | W132: 79 | X132: 102.7 | Y132: 276.3 | Z132: 407.1929 | AA132: 2858.4524 | AB132: =ROUNDDOWN((IF(AA133>0,IFERROR(IF(AVERAGE(DataInput!Q132:Q133)>AVERAGE(AA133,AA132),ROUNDDOWN(((((AA132-Z132)+(AA133-Z133))/2)*(A133-A132))/27+S52+T52,0),IF(((((DataInput!Q133-Z133)+(DataInput!Q132-Z132))/2)*(A133-A132))/27+S52+T52>0,ROUNDDOWN(((((DataInput!Q133-Z132)+(DataInput!Q132-Z132))/2)*(A133-A132))/27+S52+T52,0),0)),0),0)*$X$5),1) -> 0 | AC132: 202.485 | AD132: =ROUNDDOWN((IF(AC133>0,IFERROR(IF(((((DataInput!Q132-AC132)+(DataInput!Q133-AC133))/2)*(A133-A132))/27+S52+T52>0,ROUNDDOWN(((((DataInput!Q132-AC132)+(DataInput!Q133-AC133))/2)*(A133-A132))/27+S52+T52,0),0),0),0)*$X$5),1) -> 0 | AE132: =DataInput!U132 -> 146 | AF132: =DataInput!S132 -> 71 | AG132: 99.4 | AH132: 46.6
A133: =IF(DataInput!A133<>"",DataInput!A133,"") -> 24148675 | B133: =SUM(DataInput!C133,DataInput!Y133)+(DataInput!U133-DataInput!E133) -> 572 | C133: =SUM(DataInput!D133,DataInput!Z133) -> 427 | D133: =DataInput!U133 -> 145 | E133: =SUM(DataInput!F133,DataInput!AB133) -> 0 | F133: =SUM(DataInput!G133,DataInput!AC133) -> 0 | G133: =SUM(DataInput!H133,DataInput!AD133) -> 0 | H133: =DataInput!I133 -> 20 | I133: =SUM(DataInput!J133,DataInput!AF133) -> 0 | J133: =SUM(DataInput!K133,DataInput!AG133) -> 0 | K133: =SUM(DataInput!L133,DataInput!AH133) -> 0 | L133: =SUM(DataInput!M133,DataInput!AI133) -> 0 | M133: =SUM(DataInput!N133,DataInput!AJ133) -> 0 | N133: =SUM(DataInput!O133,DataInput!AK186) -> 0 | O133: =DataInput!P133 -> 0 | Q133: 427 | R133: =DataInput!R133 -> 15 | S133: =DataInput!Y133 -> 0 | T133: =IF(DataInput!U133-DataInput!E133>0,DataInput!U133-DataInput!E133,"") -> 21 | U133: =IF(DataInput!W133-DataInput!I133>0,DataInput!W133-DataInput!I133,"") -> 10 | W133: 46 | X133: 59.8 | Y133: 367.2 | Z133: 407.1929 | AA133: 2858.4524 | AB133: =ROUNDDOWN((IF(AA134>0,IFERROR(IF(AVERAGE(DataInput!Q133:Q134)>AVERAGE(AA134,AA133),ROUNDDOWN(((((AA133-Z133)+(AA134-Z134))/2)*(A134-A133))/27+S53+T53,0),IF(((((DataInput!Q134-Z134)+(DataInput!Q133-Z133))/2)*(A134-A133))/27+S53+T53>0,ROUNDDOWN(((((DataInput!Q134-Z133)+(DataInput!Q133-Z133))/2)*(A134-A133))/27+S53+T53,0),0)),0),0)*$X$5),1) -> 0 | AC133: 202.485 | AD133: =ROUNDDOWN((IF(AC134>0,IFERROR(IF(((((DataInput!Q133-AC133)+(DataInput!Q134-AC134))/2)*(A134-A133))/27+S53+T53>0,ROUNDDOWN(((((DataInput!Q133-AC133)+(DataInput!Q134-AC134))/2)*(A134-A133))/27+S53+T53,0),0),0),0)*$X$5),1) -> 0 | AE133: =DataInput!U133 -> 145 | AF133: =DataInput!S133 -> 70 | AG133: 98 | AH133: 47
A134: =IF(DataInput!A134<>"",DataInput!A134,"") -> 24148700 | B134: =SUM(DataInput!C134,DataInput!Y134)+(DataInput!U134-DataInput!E134) -> 606 | C134: =SUM(DataInput!D134,DataInput!Z134) -> 463 | D134: =DataInput!U134 -> 143 | E134: =SUM(DataInput!F134,DataInput!AB134) -> 0 | F134: =SUM(DataInput!G134,DataInput!AC134) -> 0 | G134: =SUM(DataInput!H134,DataInput!AD134) -> 0 | H134: =DataInput!I134 -> 29 | I134: =SUM(DataInput!J134,DataInput!AF134) -> 0 | J134: =SUM(DataInput!K134,DataInput!AG134) -> 0 | K134: =SUM(DataInput!L134,DataInput!AH134) -> 0 | L134: =SUM(DataInput!M134,DataInput!AI134) -> 0 | M134: =SUM(DataInput!N134,DataInput!AJ134) -> 0 | N134: =SUM(DataInput!O134,DataInput!AK187) -> 0 | O134: =DataInput!P134 -> 0 | Q134: 463 | R134: =DataInput!R134 -> 5 | S134: =DataInput!Y134 -> 0 | T134: =IF(DataInput!U134-DataInput!E134>0,DataInput!U134-DataInput!E134,"") -> 15 | U134: =IF(DataInput!W134-DataInput!I134>0,DataInput!W134-DataInput!I134,"") -> 1 | W134: 21 | X134: 27.3 | Y134: 435.7 | Z134: 407.1929 | AA134: 2858.4524 | AB134: =ROUNDDOWN((IF(AA135>0,IFERROR(IF(AVERAGE(DataInput!Q134:Q135)>AVERAGE(AA135,AA134),ROUNDDOWN(((((AA134-Z134)+(AA135-Z135))/2)*(A135-A134))/27+S54+T54,0),IF(((((DataInput!Q135-Z135)+(DataInput!Q134-Z134))/2)*(A135-A134))/27+S54+T54>0,ROUNDDOWN(((((DataInput!Q135-Z134)+(DataInput!Q134-Z134))/2)*(A135-A134))/27+S54+T54,0),0)),0),0)*$X$5),1) -> 0 | AC134: 202.485 | AD134: =ROUNDDOWN((IF(AC135>0,IFERROR(IF(((((DataInput!Q134-AC134)+(DataInput!Q135-AC135))/2)*(A135-A134))/27+S54+T54>0,ROUNDDOWN(((((DataInput!Q134-AC134)+(DataInput!Q135-AC135))/2)*(A135-A134))/27+S54+T54,0),0),0),0)*$X$5),1) -> 0 | AE134: =DataInput!U134 -> 143 | AF134: =DataInput!S134 -> 69 | AG134: 96.6 | AH134: 46.4
A135: =IF(DataInput!A135<>"",DataInput!A135,"") -> 24148725 | B135: =SUM(DataInput!C135,DataInput!Y135)+(DataInput!U135-DataInput!E135) -> 632 | C135: =SUM(DataInput!D135,DataInput!Z135) -> 490 | D135: =DataInput!U135 -> 141 | E135: =SUM(DataInput!F135,DataInput!AB135) -> 0 | F135: =SUM(DataInput!G135,DataInput!AC135) -> 0 | G135: =SUM(DataInput!H135,DataInput!AD135) -> 0 | H135: =DataInput!I135 -> 30 | I135: =SUM(DataInput!J135,DataInput!AF135) -> 0 | J135: =SUM(DataInput!K135,DataInput!AG135) -> 0 | K135: =SUM(DataInput!L135,DataInput!AH135) -> 0 | L135: =SUM(DataInput!M135,DataInput!AI135) -> 0 | M135: =SUM(DataInput!N135,DataInput!AJ135) -> 0 | N135: =SUM(DataInput!O135,DataInput!AK188) -> 0 | O135: =DataInput!P135 -> 0 | Q135: 490 | R135: =DataInput!R135 -> 1 | S135: =DataInput!Y135 -> 0 | T135: =IF(DataInput!U135-DataInput!E135>0,DataInput!U135-DataInput!E135,"") -> 9 | U135: =IF(DataInput!W135-DataInput!I135>0,DataInput!W135-DataInput!I135,"") ->  | W135: 10 | X135: 13 | Y135: 477 | Z135: 407.1929 | AA135: 2858.4524 | AB135: =ROUNDDOWN((IF(AA136>0,IFERROR(IF(AVERAGE(DataInput!Q135:Q136)>AVERAGE(AA136,AA135),ROUNDDOWN(((((AA135-Z135)+(AA136-Z136))/2)*(A136-A135))/27+S55+T55,0),IF(((((DataInput!Q136-Z136)+(DataInput!Q135-Z135))/2)*(A136-A135))/27+S55+T55>0,ROUNDDOWN(((((DataInput!Q136-Z135)+(DataInput!Q135-Z135))/2)*(A136-A135))/27+S55+T55,0),0)),0),0)*$X$5),1) -> 0 | AC135: 202.485 | AD135: =ROUNDDOWN((IF(AC136>0,IFERROR(IF(((((DataInput!Q135-AC135)+(DataInput!Q136-AC136))/2)*(A136-A135))/27+S55+T55>0,ROUNDDOWN(((((DataInput!Q135-AC135)+(DataInput!Q136-AC136))/2)*(A136-A135))/27+S55+T55,0),0),0),0)*$X$5),1) -> 0 | AE135: =DataInput!U135 -> 141 | AF135: =DataInput!S135 -> 67 | AG135: 93.8 | AH135: 47.2
A136: =IF(DataInput!A136<>"",DataInput!A136,"") -> 24148750 | B136: =SUM(DataInput!C136,DataInput!Y136)+(DataInput!U136-DataInput!E136) -> 645 | C136: =SUM(DataInput!D136,DataInput!Z136) -> 507 | D136: =DataInput!U136 -> 138 | E136: =SUM(DataInput!F136,DataInput!AB136) -> 0 | F136: =SUM(DataInput!G136,DataInput!AC136) -> 0 | G136: =SUM(DataInput!H136,DataInput!AD136) -> 0 | H136: =DataInput!I136 -> 30 | I136: =SUM(DataInput!J136,DataInput!AF136) -> 0 | J136: =SUM(DataInput!K136,DataInput!AG136) -> 0 | K136: =SUM(DataInput!L136,DataInput!AH136) -> 0 | L136: =SUM(DataInput!M136,DataInput!AI136) -> 0 | M136: =SUM(DataInput!N136,DataInput!AJ136) -> 0 | N136: =SUM(DataInput!O136,DataInput!AK189) -> 0 | O136: =DataInput!P136 -> 0 | Q136: 507 | R136: =DataInput!R136 -> 0 | S136: =DataInput!Y136 -> 0 | T136: =IF(DataInput!U136-DataInput!E136>0,DataInput!U136-DataInput!E136,"") -> 3 | U136: =IF(DataInput!W136-DataInput!I136>0,DataInput!W136-DataInput!I136,"") ->  | W136: 3 | X136: 3.9 | Y136: 503.1 | Z136: 407.1929 | AA136: 2858.4524 | AB136: =ROUNDDOWN((IF(AA137>0,IFERROR(IF(AVERAGE(DataInput!Q136:Q137)>AVERAGE(AA137,AA136),ROUNDDOWN(((((AA136-Z136)+(AA137-Z137))/2)*(A137-A136))/27+S56+T56,0),IF(((((DataInput!Q137-Z137)+(DataInput!Q136-Z136))/2)*(A137-A136))/27+S56+T56>0,ROUNDDOWN(((((DataInput!Q137-Z136)+(DataInput!Q136-Z136))/2)*(A137-A136))/27+S56+T56,0),0)),0),0)*$X$5),1) -> 0 | AC136: 202.485 | AD136: =ROUNDDOWN((IF(AC137>0,IFERROR(IF(((((DataInput!Q136-AC136)+(DataInput!Q137-AC137))/2)*(A137-A136))/27+S56+T56>0,ROUNDDOWN(((((DataInput!Q136-AC136)+(DataInput!Q137-AC137))/2)*(A137-A136))/27+S56+T56,0),0),0),0)*$X$5),1) -> 0 | AE136: =DataInput!U136 -> 138 | AF136: =DataInput!S136 -> 65 | AG136: 91 | AH136: 47
A137: =IF(DataInput!A137<>"",DataInput!A137,"") -> 24148775 | B137: =SUM(DataInput!C137,DataInput!Y137)+(DataInput!U137-DataInput!E137) -> 645 | C137: =SUM(DataInput!D137,DataInput!Z137) -> 512 | D137: =DataInput!U137 -> 134 | E137: =SUM(DataInput!F137,DataInput!AB137) -> 0 | F137: =SUM(DataInput!G137,DataInput!AC137) -> 0 | G137: =SUM(DataInput!H137,DataInput!AD137) -> 0 | H137: =DataInput!I137 -> 30 | I137: =SUM(DataInput!J137,DataInput!AF137) -> 0 | J137: =SUM(DataInput!K137,DataInput!AG137) -> 0 | K137: =SUM(DataInput!L137,DataInput!AH137) -> 0 | L137: =SUM(DataInput!M137,DataInput!AI137) -> 0 | M137: =SUM(DataInput!N137,DataInput!AJ137) -> 0 | N137: =SUM(DataInput!O137,DataInput!AK190) -> 0 | O137: =DataInput!P137 -> 0 | Q137: 512 | R137: =DataInput!R137 -> 0 | S137: =DataInput!Y137 -> 0 | T137: =IF(DataInput!U137-DataInput!E137>0,DataInput!U137-DataInput!E137,"") ->  | U137: =IF(DataInput!W137-DataInput!I137>0,DataInput!W137-DataInput!I137,"") ->  | W137: 0 | X137: 0 | Y137: 512 | Z137: 407.1929 | AA137: 2858.4524 | AB137: =ROUNDDOWN((IF(AA138>0,IFERROR(IF(AVERAGE(DataInput!Q137:Q138)>AVERAGE(AA138,AA137),ROUNDDOWN(((((AA137-Z137)+(AA138-Z138))/2)*(A138-A137))/27+S57+T57,0),IF(((((DataInput!Q138-Z138)+(DataInput!Q137-Z137))/2)*(A138-A137))/27+S57+T57>0,ROUNDDOWN(((((DataInput!Q138-Z137)+(DataInput!Q137-Z137))/2)*(A138-A137))/27+S57+T57,0),0)),0),0)*$X$5),1) -> 0 | AC137: 202.485 | AD137: =ROUNDDOWN((IF(AC138>0,IFERROR(IF(((((DataInput!Q137-AC137)+(DataInput!Q138-AC138))/2)*(A138-A137))/27+S57+T57>0,ROUNDDOWN(((((DataInput!Q137-AC137)+(DataInput!Q138-AC138))/2)*(A138-A137))/27+S57+T57,0),0),0),0)*$X$5),1) -> 0 | AE137: =DataInput!U137 -> 134 | AF137: =DataInput!S137 -> 63 | AG137: 88.2 | AH137: 45.8
A138: =IF(DataInput!A138<>"",DataInput!A138,"") -> 24148800 | B138: =SUM(DataInput!C138,DataInput!Y138)+(DataInput!U138-DataInput!E138) -> 644 | C138: =SUM(DataInput!D138,DataInput!Z138) -> 514 | D138: =DataInput!U138 -> 130 | E138: =SUM(DataInput!F138,DataInput!AB138) -> 0 | F138: =SUM(DataInput!G138,DataInput!AC138) -> 0 | G138: =SUM(DataInput!H138,DataInput!AD138) -> 0 | H138: =DataInput!I138 -> 30 | I138: =SUM(DataInput!J138,DataInput!AF138) -> 0 | J138: =SUM(DataInput!K138,DataInput!AG138) -> 0 | K138: =SUM(DataInput!L138,DataInput!AH138) -> 0 | L138: =SUM(DataInput!M138,DataInput!AI138) -> 0 | M138: =SUM(DataInput!N138,DataInput!AJ138) -> 0 | N138: =SUM(DataInput!O138,DataInput!AK191) -> 0 | O138: =DataInput!P138 -> 0 | Q138: 514 | R138: =DataInput!R138 -> 0 | S138: =DataInput!Y138 -> 0 | T138: =IF(DataInput!U138-DataInput!E138>0,DataInput!U138-DataInput!E138,"") ->  | U138: =IF(DataInput!W138-DataInput!I138>0,DataInput!W138-DataInput!I138,"") ->  | W138: 0 | X138: 0 | Y138: 514 | Z138: 407.1929 | AA138: 2858.4524 | AB138: =ROUNDDOWN((IF(AA139>0,IFERROR(IF(AVERAGE(DataInput!Q138:Q139)>AVERAGE(AA139,AA138),ROUNDDOWN(((((AA138-Z138)+(AA139-Z139))/2)*(A139-A138))/27+S58+T58,0),IF(((((DataInput!Q139-Z139)+(DataInput!Q138-Z138))/2)*(A139-A138))/27+S58+T58>0,ROUNDDOWN(((((DataInput!Q139-Z138)+(DataInput!Q138-Z138))/2)*(A139-A138))/27+S58+T58,0),0)),0),0)*$X$5),1) -> 0 | AC138: 202.485 | AD138: =ROUNDDOWN((IF(AC139>0,IFERROR(IF(((((DataInput!Q138-AC138)+(DataInput!Q139-AC139))/2)*(A139-A138))/27+S58+T58>0,ROUNDDOWN(((((DataInput!Q138-AC138)+(DataInput!Q139-AC139))/2)*(A139-A138))/27+S58+T58,0),0),0),0)*$X$5),1) -> 0 | AE138: =DataInput!U138 -> 130 | AF138: =DataInput!S138 -> 61 | AG138: 85.4 | AH138: 44.6
A139: =IF(DataInput!A139<>"",DataInput!A139,"") -> 24148825 | B139: =SUM(DataInput!C139,DataInput!Y139)+(DataInput!U139-DataInput!E139) -> 648 | C139: =SUM(DataInput!D139,DataInput!Z139) -> 522 | D139: =DataInput!U139 -> 127 | E139: =SUM(DataInput!F139,DataInput!AB139) -> 0 | F139: =SUM(DataInput!G139,DataInput!AC139) -> 0 | G139: =SUM(DataInput!H139,DataInput!AD139) -> 0 | H139: =DataInput!I139 -> 30 | I139: =SUM(DataInput!J139,DataInput!AF139) -> 0 | J139: =SUM(DataInput!K139,DataInput!AG139) -> 0 | K139: =SUM(DataInput!L139,DataInput!AH139) -> 0 | L139: =SUM(DataInput!M139,DataInput!AI139) -> 0 | M139: =SUM(DataInput!N139,DataInput!AJ139) -> 0 | N139: =SUM(DataInput!O139,DataInput!AK192) -> 0 | O139: =DataInput!P139 -> 0 | Q139: 522 | R139: =DataInput!R139 -> 0 | S139: =DataInput!Y139 -> 0 | T139: =IF(DataInput!U139-DataInput!E139>0,DataInput!U139-DataInput!E139,"") ->  | U139: =IF(DataInput!W139-DataInput!I139>0,DataInput!W139-DataInput!I139,"") ->  | W139: 0 | X139: 0 | Y139: 522 | Z139: 407.1929 | AA139: 2858.4524 | AB139: =ROUNDDOWN((IF(AA140>0,IFERROR(IF(AVERAGE(DataInput!Q139:Q140)>AVERAGE(AA140,AA139),ROUNDDOWN(((((AA139-Z139)+(AA140-Z140))/2)*(A140-A139))/27+S59+T59,0),IF(((((DataInput!Q140-Z140)+(DataInput!Q139-Z139))/2)*(A140-A139))/27+S59+T59>0,ROUNDDOWN(((((DataInput!Q140-Z139)+(DataInput!Q139-Z139))/2)*(A140-A139))/27+S59+T59,0),0)),0),0)*$X$5),1) -> 0 | AC139: 202.485 | AD139: =ROUNDDOWN((IF(AC140>0,IFERROR(IF(((((DataInput!Q139-AC139)+(DataInput!Q140-AC140))/2)*(A140-A139))/27+S59+T59>0,ROUNDDOWN(((((DataInput!Q139-AC139)+(DataInput!Q140-AC140))/2)*(A140-A139))/27+S59+T59,0),0),0),0)*$X$5),1) -> 0 | AE139: =DataInput!U139 -> 127 | AF139: =DataInput!S139 -> 60 | AG139: 84 | AH139: 43
A140: =IF(DataInput!A140<>"",DataInput!A140,"") -> 24148850 | B140: =SUM(DataInput!C140,DataInput!Y140)+(DataInput!U140-DataInput!E140) -> 658 | C140: =SUM(DataInput!D140,DataInput!Z140) -> 534 | D140: =DataInput!U140 -> 123 | E140: =SUM(DataInput!F140,DataInput!AB140) -> 0 | F140: =SUM(DataInput!G140,DataInput!AC140) -> 0 | G140: =SUM(DataInput!H140,DataInput!AD140) -> 0 | H140: =DataInput!I140 -> 30 | I140: =SUM(DataInput!J140,DataInput!AF140) -> 0 | J140: =SUM(DataInput!K140,DataInput!AG140) -> 0 | K140: =SUM(DataInput!L140,DataInput!AH140) -> 0 | L140: =SUM(DataInput!M140,DataInput!AI140) -> 0 | M140: =SUM(DataInput!N140,DataInput!AJ140) -> 0 | N140: =SUM(DataInput!O140,DataInput!AK193) -> 0 | O140: =DataInput!P140 -> 0 | Q140: 534 | R140: =DataInput!R140 -> 0 | S140: =DataInput!Y140 -> 0 | T140: =IF(DataInput!U140-DataInput!E140>0,DataInput!U140-DataInput!E140,"") ->  | U140: =IF(DataInput!W140-DataInput!I140>0,DataInput!W140-DataInput!I140,"") ->  | W140: 0 | X140: 0 | Y140: 534 | Z140: 407.1929 | AA140: 2858.4524 | AB140: =ROUNDDOWN((IF(AA141>0,IFERROR(IF(AVERAGE(DataInput!Q140:Q141)>AVERAGE(AA141,AA140),ROUNDDOWN(((((AA140-Z140)+(AA141-Z141))/2)*(A141-A140))/27+S60+T60,0),IF(((((DataInput!Q141-Z141)+(DataInput!Q140-Z140))/2)*(A141-A140))/27+S60+T60>0,ROUNDDOWN(((((DataInput!Q141-Z140)+(DataInput!Q140-Z140))/2)*(A141-A140))/27+S60+T60,0),0)),0),0)*$X$5),1) -> 0 | AC140: 202.485 | AD140: =ROUNDDOWN((IF(AC141>0,IFERROR(IF(((((DataInput!Q140-AC140)+(DataInput!Q141-AC141))/2)*(A141-A140))/27+S60+T60>0,ROUNDDOWN(((((DataInput!Q140-AC140)+(DataInput!Q141-AC141))/2)*(A141-A140))/27+S60+T60,0),0),0),0)*$X$5),1) -> 0 | AE140: =DataInput!U140 -> 123 | AF140: =DataInput!S140 -> 59 | AG140: 82.6 | AH140: 40.4
A141: =IF(DataInput!A141<>"",DataInput!A141,"") -> 24148875 | B141: =SUM(DataInput!C141,DataInput!Y141)+(DataInput!U141-DataInput!E141) -> 677 | C141: =SUM(DataInput!D141,DataInput!Z141) -> 555 | D141: =DataInput!U141 -> 121 | E141: =SUM(DataInput!F141,DataInput!AB141) -> 0 | F141: =SUM(DataInput!G141,DataInput!AC141) -> 0 | G141: =SUM(DataInput!H141,DataInput!AD141) -> 0 | H141: =DataInput!I141 -> 30 | I141: =SUM(DataInput!J141,DataInput!AF141) -> 0 | J141: =SUM(DataInput!K141,DataInput!AG141) -> 0 | K141: =SUM(DataInput!L141,DataInput!AH141) -> 0 | L141: =SUM(DataInput!M141,DataInput!AI141) -> 0 | M141: =SUM(DataInput!N141,DataInput!AJ141) -> 0 | N141: =SUM(DataInput!O141,DataInput!AK194) -> 0 | O141: =DataInput!P141 -> 0 | Q141: 555 | R141: =DataInput!R141 -> 0 | S141: =DataInput!Y141 -> 0 | T141: =IF(DataInput!U141-DataInput!E141>0,DataInput!U141-DataInput!E141,"") -> 1 | U141: =IF(DataInput!W141-DataInput!I141>0,DataInput!W141-DataInput!I141,"") ->  | W141: 1 | X141: 1.3 | Y141: 553.7 | Z141: 407.1929 | AA141: 2858.4524 | AB141: =ROUNDDOWN((IF(AA142>0,IFERROR(IF(AVERAGE(DataInput!Q141:Q142)>AVERAGE(AA142,AA141),ROUNDDOWN(((((AA141-Z141)+(AA142-Z142))/2)*(A142-A141))/27+S61+T61,0),IF(((((DataInput!Q142-Z142)+(DataInput!Q141-Z141))/2)*(A142-A141))/27+S61+T61>0,ROUNDDOWN(((((DataInput!Q142-Z141)+(DataInput!Q141-Z141))/2)*(A142-A141))/27+S61+T61,0),0)),0),0)*$X$5),1) -> 0 | AC141: 202.485 | AD141: =ROUNDDOWN((IF(AC142>0,IFERROR(IF(((((DataInput!Q141-AC141)+(DataInput!Q142-AC142))/2)*(A142-A141))/27+S61+T61>0,ROUNDDOWN(((((DataInput!Q141-AC141)+(DataInput!Q142-AC142))/2)*(A142-A141))/27+S61+T61,0),0),0),0)*$X$5),1) -> 0 | AE141: =DataInput!U141 -> 121 | AF141: =DataInput!S141 -> 58 | AG141: 81.2 | AH141: 39.8
A142: =IF(DataInput!A142<>"",DataInput!A142,"") -> 24148900 | B142: =SUM(DataInput!C142,DataInput!Y142)+(DataInput!U142-DataInput!E142) -> 700 | C142: =SUM(DataInput!D142,DataInput!Z142) -> 583 | D142: =DataInput!U142 -> 118 | E142: =SUM(DataInput!F142,DataInput!AB142) -> 0 | F142: =SUM(DataInput!G142,DataInput!AC142) -> 0 | G142: =SUM(DataInput!H142,DataInput!AD142) -> 0 | H142: =DataInput!I142 -> 30 | I142: =SUM(DataInput!J142,DataInput!AF142) -> 0 | J142: =SUM(DataInput!K142,DataInput!AG142) -> 0 | K142: =SUM(DataInput!L142,DataInput!AH142) -> 0 | L142: =SUM(DataInput!M142,DataInput!AI142) -> 0 | M142: =SUM(DataInput!N142,DataInput!AJ142) -> 0 | N142: =SUM(DataInput!O142,DataInput!AK195) -> 0 | O142: =DataInput!P142 -> 0 | Q142: 583 | R142: =DataInput!R142 -> 0 | S142: =DataInput!Y142 -> 0 | T142: =IF(DataInput!U142-DataInput!E142>0,DataInput!U142-DataInput!E142,"") ->  | U142: =IF(DataInput!W142-DataInput!I142>0,DataInput!W142-DataInput!I142,"") ->  | W142: 0 | X142: 0 | Y142: 583 | Z142: 407.1929 | AA142: 2858.4524 | AB142: =ROUNDDOWN((IF(AA143>0,IFERROR(IF(AVERAGE(DataInput!Q142:Q143)>AVERAGE(AA143,AA142),ROUNDDOWN(((((AA142-Z142)+(AA143-Z143))/2)*(A143-A142))/27+S62+T62,0),IF(((((DataInput!Q143-Z143)+(DataInput!Q142-Z142))/2)*(A143-A142))/27+S62+T62>0,ROUNDDOWN(((((DataInput!Q143-Z142)+(DataInput!Q142-Z142))/2)*(A143-A142))/27+S62+T62,0),0)),0),0)*$X$5),1) -> 0 | AC142: 202.485 | AD142: =ROUNDDOWN((IF(AC143>0,IFERROR(IF(((((DataInput!Q142-AC142)+(DataInput!Q143-AC143))/2)*(A143-A142))/27+S62+T62>0,ROUNDDOWN(((((DataInput!Q142-AC142)+(DataInput!Q143-AC143))/2)*(A143-A142))/27+S62+T62,0),0),0),0)*$X$5),1) -> 0 | AE142: =DataInput!U142 -> 118 | AF142: =DataInput!S142 -> 57 | AG142: 79.8 | AH142: 38.2
A143: =IF(DataInput!A143<>"",DataInput!A143,"") -> 24148925 | B143: =SUM(DataInput!C143,DataInput!Y143)+(DataInput!U143-DataInput!E143) -> 723 | C143: =SUM(DataInput!D143,DataInput!Z143) -> 609 | D143: =DataInput!U143 -> 113 | E143: =SUM(DataInput!F143,DataInput!AB143) -> 0 | F143: =SUM(DataInput!G143,DataInput!AC143) -> 0 | G143: =SUM(DataInput!H143,DataInput!AD143) -> 0 | H143: =DataInput!I143 -> 30 | I143: =SUM(DataInput!J143,DataInput!AF143) -> 0 | J143: =SUM(DataInput!K143,DataInput!AG143) -> 0 | K143: =SUM(DataInput!L143,DataInput!AH143) -> 0 | L143: =SUM(DataInput!M143,DataInput!AI143) -> 0 | M143: =SUM(DataInput!N143,DataInput!AJ143) -> 0 | N143: =SUM(DataInput!O143,DataInput!AK196) -> 0 | O143: =DataInput!P143 -> 0 | Q143: 609 | R143: =DataInput!R143 -> 0 | S143: =DataInput!Y143 -> 0 | T143: =IF(DataInput!U143-DataInput!E143>0,DataInput!U143-DataInput!E143,"") -> 1 | U143: =IF(DataInput!W143-DataInput!I143>0,DataInput!W143-DataInput!I143,"") ->  | W143: 1 | X143: 1.3 | Y143: 607.7 | Z143: 407.1929 | AA143: 2858.4524 | AB143: =ROUNDDOWN((IF(AA144>0,IFERROR(IF(AVERAGE(DataInput!Q143:Q144)>AVERAGE(AA144,AA143),ROUNDDOWN(((((AA143-Z143)+(AA144-Z144))/2)*(A144-A143))/27+S63+T63,0),IF(((((DataInput!Q144-Z144)+(DataInput!Q143-Z143))/2)*(A144-A143))/27+S63+T63>0,ROUNDDOWN(((((DataInput!Q144-Z143)+(DataInput!Q143-Z143))/2)*(A144-A143))/27+S63+T63,0),0)),0),0)*$X$5),1) -> 0 | AC143: 202.485 | AD143: =ROUNDDOWN((IF(AC144>0,IFERROR(IF(((((DataInput!Q143-AC143)+(DataInput!Q144-AC144))/2)*(A144-A143))/27+S63+T63>0,ROUNDDOWN(((((DataInput!Q143-AC143)+(DataInput!Q144-AC144))/2)*(A144-A143))/27+S63+T63,0),0),0),0)*$X$5),1) -> 0 | AE143: =DataInput!U143 -> 113 | AF143: =DataInput!S143 -> 56 | AG143: 78.4 | AH143: 34.6
A144: =IF(DataInput!A144<>"",DataInput!A144,"") -> 24148950 | B144: =SUM(DataInput!C144,DataInput!Y144)+(DataInput!U144-DataInput!E144) -> 747 | C144: =SUM(DataInput!D144,DataInput!Z144) -> 636 | D144: =DataInput!U144 -> 111 | E144: =SUM(DataInput!F144,DataInput!AB144) -> 0 | F144: =SUM(DataInput!G144,DataInput!AC144) -> 0 | G144: =SUM(DataInput!H144,DataInput!AD144) -> 0 | H144: =DataInput!I144 -> 30 | I144: =SUM(DataInput!J144,DataInput!AF144) -> 0 | J144: =SUM(DataInput!K144,DataInput!AG144) -> 0 | K144: =SUM(DataInput!L144,DataInput!AH144) -> 0 | L144: =SUM(DataInput!M144,DataInput!AI144) -> 0 | M144: =SUM(DataInput!N144,DataInput!AJ144) -> 0 | N144: =SUM(DataInput!O144,DataInput!AK197) -> 0 | O144: =DataInput!P144 -> 0 | Q144: 636 | R144: =DataInput!R144 -> 0 | S144: =DataInput!Y144 -> 0 | T144: =IF(DataInput!U144-DataInput!E144>0,DataInput!U144-DataInput!E144,"") ->  | U144: =IF(DataInput!W144-DataInput!I144>0,DataInput!W144-DataInput!I144,"") ->  | W144: 0 | X144: 0 | Y144: 636 | Z144: 407.1929 | AA144: 2858.4524 | AB144: =ROUNDDOWN((IF(AA145>0,IFERROR(IF(AVERAGE(DataInput!Q144:Q145)>AVERAGE(AA145,AA144),ROUNDDOWN(((((AA144-Z144)+(AA145-Z145))/2)*(A145-A144))/27+S64+T64,0),IF(((((DataInput!Q145-Z145)+(DataInput!Q144-Z144))/2)*(A145-A144))/27+S64+T64>0,ROUNDDOWN(((((DataInput!Q145-Z144)+(DataInput!Q144-Z144))/2)*(A145-A144))/27+S64+T64,0),0)),0),0)*$X$5),1) -> 0 | AC144: 202.485 | AD144: =ROUNDDOWN((IF(AC145>0,IFERROR(IF(((((DataInput!Q144-AC144)+(DataInput!Q145-AC145))/2)*(A145-A144))/27+S64+T64>0,ROUNDDOWN(((((DataInput!Q144-AC144)+(DataInput!Q145-AC145))/2)*(A145-A144))/27+S64+T64,0),0),0),0)*$X$5),1) -> 0 | AE144: =DataInput!U144 -> 111 | AF144: =DataInput!S144 -> 55 | AG144: 77 | AH144: 34
A145: =IF(DataInput!A145<>"",DataInput!A145,"") -> 24148975 | B145: =SUM(DataInput!C145,DataInput!Y145)+(DataInput!U145-DataInput!E145) -> 782 | C145: =SUM(DataInput!D145,DataInput!Z145) -> 668 | D145: =DataInput!U145 -> 113 | E145: =SUM(DataInput!F145,DataInput!AB145) -> 0 | F145: =SUM(DataInput!G145,DataInput!AC145) -> 0 | G145: =SUM(DataInput!H145,DataInput!AD145) -> 0 | H145: =DataInput!I145 -> 30 | I145: =SUM(DataInput!J145,DataInput!AF145) -> 0 | J145: =SUM(DataInput!K145,DataInput!AG145) -> 0 | K145: =SUM(DataInput!L145,DataInput!AH145) -> 0 | L145: =SUM(DataInput!M145,DataInput!AI145) -> 0 | M145: =SUM(DataInput!N145,DataInput!AJ145) -> 0 | N145: =SUM(DataInput!O145,DataInput!AK198) -> 0 | O145: =DataInput!P145 -> 0 | Q145: 668 | R145: =DataInput!R145 -> 0 | S145: =DataInput!Y145 -> 0 | T145: =IF(DataInput!U145-DataInput!E145>0,DataInput!U145-DataInput!E145,"") -> 1 | U145: =IF(DataInput!W145-DataInput!I145>0,DataInput!W145-DataInput!I145,"") ->  | W145: 1 | X145: 1.3 | Y145: 666.7 | Z145: 407.1929 | AA145: 2858.4524 | AB145: =ROUNDDOWN((IF(AA146>0,IFERROR(IF(AVERAGE(DataInput!Q145:Q146)>AVERAGE(AA146,AA145),ROUNDDOWN(((((AA145-Z145)+(AA146-Z146))/2)*(A146-A145))/27+S65+T65,0),IF(((((DataInput!Q146-Z146)+(DataInput!Q145-Z145))/2)*(A146-A145))/27+S65+T65>0,ROUNDDOWN(((((DataInput!Q146-Z145)+(DataInput!Q145-Z145))/2)*(A146-A145))/27+S65+T65,0),0)),0),0)*$X$5),1) -> 0 | AC145: 202.485 | AD145: =ROUNDDOWN((IF(AC146>0,IFERROR(IF(((((DataInput!Q145-AC145)+(DataInput!Q146-AC146))/2)*(A146-A145))/27+S65+T65>0,ROUNDDOWN(((((DataInput!Q145-AC145)+(DataInput!Q146-AC146))/2)*(A146-A145))/27+S65+T65,0),0),0),0)*$X$5),1) -> 0 | AE145: =DataInput!U145 -> 113 | AF145: =DataInput!S145 -> 55 | AG145: 77 | AH145: 36
A146: =IF(DataInput!A146<>"",DataInput!A146,"") -> 24149000 | B146: =SUM(DataInput!C146,DataInput!Y146)+(DataInput!U146-DataInput!E146) -> 820 | C146: =SUM(DataInput!D146,DataInput!Z146) -> 709 | D146: =DataInput!U146 -> 111 | E146: =SUM(DataInput!F146,DataInput!AB146) -> 0 | F146: =SUM(DataInput!G146,DataInput!AC146) -> 0 | G146: =SUM(DataInput!H146,DataInput!AD146) -> 0 | H146: =DataInput!I146 -> 30 | I146: =SUM(DataInput!J146,DataInput!AF146) -> 0 | J146: =SUM(DataInput!K146,DataInput!AG146) -> 0 | K146: =SUM(DataInput!L146,DataInput!AH146) -> 0 | L146: =SUM(DataInput!M146,DataInput!AI146) -> 0 | M146: =SUM(DataInput!N146,DataInput!AJ146) -> 0 | N146: =SUM(DataInput!O146,DataInput!AK199) -> 0 | O146: =DataInput!P146 -> 0 | Q146: 709 | R146: =DataInput!R146 -> 0 | S146: =DataInput!Y146 -> 0 | T146: =IF(DataInput!U146-DataInput!E146>0,DataInput!U146-DataInput!E146,"") ->  | U146: =IF(DataInput!W146-DataInput!I146>0,DataInput!W146-DataInput!I146,"") ->  | W146: 0 | X146: 0 | Y146: 709 | Z146: 407.1929 | AA146: 2858.4524 | AB146: =ROUNDDOWN((IF(AA147>0,IFERROR(IF(AVERAGE(DataInput!Q146:Q147)>AVERAGE(AA147,AA146),ROUNDDOWN(((((AA146-Z146)+(AA147-Z147))/2)*(A147-A146))/27+S66+T66,0),IF(((((DataInput!Q147-Z147)+(DataInput!Q146-Z146))/2)*(A147-A146))/27+S66+T66>0,ROUNDDOWN(((((DataInput!Q147-Z146)+(DataInput!Q146-Z146))/2)*(A147-A146))/27+S66+T66,0),0)),0),0)*$X$5),1) -> 0 | AC146: 202.485 | AD146: =ROUNDDOWN((IF(AC147>0,IFERROR(IF(((((DataInput!Q146-AC146)+(DataInput!Q147-AC147))/2)*(A147-A146))/27+S66+T66>0,ROUNDDOWN(((((DataInput!Q146-AC146)+(DataInput!Q147-AC147))/2)*(A147-A146))/27+S66+T66,0),0),0),0)*$X$5),1) -> 0 | AE146: =DataInput!U146 -> 111 | AF146: =DataInput!S146 -> 54 | AG146: 75.6 | AH146: 35.4
A147: =IF(DataInput!A147<>"",DataInput!A147,"") -> 24149025 | B147: =SUM(DataInput!C147,DataInput!Y147)+(DataInput!U147-DataInput!E147) -> 861 | C147: =SUM(DataInput!D147,DataInput!Z147) -> 751 | D147: =DataInput!U147 -> 110 | E147: =SUM(DataInput!F147,DataInput!AB147) -> 0 | F147: =SUM(DataInput!G147,DataInput!AC147) -> 0 | G147: =SUM(DataInput!H147,DataInput!AD147) -> 0 | H147: =DataInput!I147 -> 30 | I147: =SUM(DataInput!J147,DataInput!AF147) -> 0 | J147: =SUM(DataInput!K147,DataInput!AG147) -> 0 | K147: =SUM(DataInput!L147,DataInput!AH147) -> 0 | L147: =SUM(DataInput!M147,DataInput!AI147) -> 0 | M147: =SUM(DataInput!N147,DataInput!AJ147) -> 0 | N147: =SUM(DataInput!O147,DataInput!AK200) -> 0 | O147: =DataInput!P147 -> 0 | Q147: 751 | R147: =DataInput!R147 -> 0 | S147: =DataInput!Y147 -> 0 | T147: =IF(DataInput!U147-DataInput!E147>0,DataInput!U147-DataInput!E147,"") ->  | U147: =IF(DataInput!W147-DataInput!I147>0,DataInput!W147-DataInput!I147,"") ->  | W147: 0 | X147: 0 | Y147: 751 | Z147: 407.1929 | AA147: 2858.4524 | AB147: =ROUNDDOWN((IF(AA148>0,IFERROR(IF(AVERAGE(DataInput!Q147:Q148)>AVERAGE(AA148,AA147),ROUNDDOWN(((((AA147-Z147)+(AA148-Z148))/2)*(A148-A147))/27+S67+T67,0),IF(((((DataInput!Q148-Z148)+(DataInput!Q147-Z147))/2)*(A148-A147))/27+S67+T67>0,ROUNDDOWN(((((DataInput!Q148-Z147)+(DataInput!Q147-Z147))/2)*(A148-A147))/27+S67+T67,0),0)),0),0)*$X$5),1) -> 0 | AC147: 202.485 | AD147: =ROUNDDOWN((IF(AC148>0,IFERROR(IF(((((DataInput!Q147-AC147)+(DataInput!Q148-AC148))/2)*(A148-A147))/27+S67+T67>0,ROUNDDOWN(((((DataInput!Q147-AC147)+(DataInput!Q148-AC148))/2)*(A148-A147))/27+S67+T67,0),0),0),0)*$X$5),1) -> 0 | AE147: =DataInput!U147 -> 110 | AF147: =DataInput!S147 -> 53 | AG147: 74.2 | AH147: 35.8
A148: =IF(DataInput!A148<>"",DataInput!A148,"") -> 24149050 | B148: =SUM(DataInput!C148,DataInput!Y148)+(DataInput!U148-DataInput!E148) -> 916 | C148: =SUM(DataInput!D148,DataInput!Z148) -> 806 | D148: =DataInput!U148 -> 111 | E148: =SUM(DataInput!F148,DataInput!AB148) -> 0 | F148: =SUM(DataInput!G148,DataInput!AC148) -> 0 | G148: =SUM(DataInput!H148,DataInput!AD148) -> 0 | H148: =DataInput!I148 -> 30 | I148: =SUM(DataInput!J148,DataInput!AF148) -> 0 | J148: =SUM(DataInput!K148,DataInput!AG148) -> 0 | K148: =SUM(DataInput!L148,DataInput!AH148) -> 0 | L148: =SUM(DataInput!M148,DataInput!AI148) -> 0 | M148: =SUM(DataInput!N148,DataInput!AJ148) -> 0 | N148: =SUM(DataInput!O148,DataInput!AK201) -> 0 | O148: =DataInput!P148 -> 0 | Q148: 806 | R148: =DataInput!R148 -> 0 | S148: =DataInput!Y148 -> 0 | T148: =IF(DataInput!U148-DataInput!E148>0,DataInput!U148-DataInput!E148,"") ->  | U148: =IF(DataInput!W148-DataInput!I148>0,DataInput!W148-DataInput!I148,"") ->  | W148: 0 | X148: 0 | Y148: 806 | Z148: 407.1929 | AA148: 2858.4524 | AB148: =ROUNDDOWN((IF(AA149>0,IFERROR(IF(AVERAGE(DataInput!Q148:Q149)>AVERAGE(AA149,AA148),ROUNDDOWN(((((AA148-Z148)+(AA149-Z149))/2)*(A149-A148))/27+S68+T68,0),IF(((((DataInput!Q149-Z149)+(DataInput!Q148-Z148))/2)*(A149-A148))/27+S68+T68>0,ROUNDDOWN(((((DataInput!Q149-Z148)+(DataInput!Q148-Z148))/2)*(A149-A148))/27+S68+T68,0),0)),0),0)*$X$5),1) -> 0 | AC148: 202.485 | AD148: =ROUNDDOWN((IF(AC149>0,IFERROR(IF(((((DataInput!Q148-AC148)+(DataInput!Q149-AC149))/2)*(A149-A148))/27+S68+T68>0,ROUNDDOWN(((((DataInput!Q148-AC148)+(DataInput!Q149-AC149))/2)*(A149-A148))/27+S68+T68,0),0),0),0)*$X$5),1) -> 0 | AE148: =DataInput!U148 -> 111 | AF148: =DataInput!S148 -> 54 | AG148: 75.6 | AH148: 35.4
A149: =IF(DataInput!A149<>"",DataInput!A149,"") -> 24149075 | B149: =SUM(DataInput!C149,DataInput!Y149)+(DataInput!U149-DataInput!E149) -> 989 | C149: =SUM(DataInput!D149,DataInput!Z149) -> 875 | D149: =DataInput!U149 -> 114 | E149: =SUM(DataInput!F149,DataInput!AB149) -> 0 | F149: =SUM(DataInput!G149,DataInput!AC149) -> 0 | G149: =SUM(DataInput!H149,DataInput!AD149) -> 0 | H149: =DataInput!I149 -> 29 | I149: =SUM(DataInput!J149,DataInput!AF149) -> 0 | J149: =SUM(DataInput!K149,DataInput!AG149) -> 0 | K149: =SUM(DataInput!L149,DataInput!AH149) -> 0 | L149: =SUM(DataInput!M149,DataInput!AI149) -> 0 | M149: =SUM(DataInput!N149,DataInput!AJ149) -> 0 | N149: =SUM(DataInput!O149,DataInput!AK202) -> 0 | O149: =DataInput!P149 -> 0 | Q149: 875 | R149: =DataInput!R149 -> 0 | S149: =DataInput!Y149 -> 0 | T149: =IF(DataInput!U149-DataInput!E149>0,DataInput!U149-DataInput!E149,"") ->  | U149: =IF(DataInput!W149-DataInput!I149>0,DataInput!W149-DataInput!I149,"") ->  | W149: 0 | X149: 0 | Y149: 875 | Z149: 407.1929 | AA149: 2858.4524 | AB149: =ROUNDDOWN((IF(AA150>0,IFERROR(IF(AVERAGE(DataInput!Q149:Q150)>AVERAGE(AA150,AA149),ROUNDDOWN(((((AA149-Z149)+(AA150-Z150))/2)*(A150-A149))/27+S69+T69,0),IF(((((DataInput!Q150-Z150)+(DataInput!Q149-Z149))/2)*(A150-A149))/27+S69+T69>0,ROUNDDOWN(((((DataInput!Q150-Z149)+(DataInput!Q149-Z149))/2)*(A150-A149))/27+S69+T69,0),0)),0),0)*$X$5),1) -> 0 | AC149: 202.485 | AD149: =ROUNDDOWN((IF(AC150>0,IFERROR(IF(((((DataInput!Q149-AC149)+(DataInput!Q150-AC150))/2)*(A150-A149))/27+S69+T69>0,ROUNDDOWN(((((DataInput!Q149-AC149)+(DataInput!Q150-AC150))/2)*(A150-A149))/27+S69+T69,0),0),0),0)*$X$5),1) -> 0 | AE149: =DataInput!U149 -> 114 | AF149: =DataInput!S149 -> 56 | AG149: 78.4 | AH149: 35.6
A150: =IF(DataInput!A150<>"",DataInput!A150,"") -> 24149100 | B150: =SUM(DataInput!C150,DataInput!Y150)+(DataInput!U150-DataInput!E150) -> 1057 | C150: =SUM(DataInput!D150,DataInput!Z150) -> 940 | D150: =DataInput!U150 -> 117 | E150: =SUM(DataInput!F150,DataInput!AB150) -> 0 | F150: =SUM(DataInput!G150,DataInput!AC150) -> 0 | G150: =SUM(DataInput!H150,DataInput!AD150) -> 0 | H150: =DataInput!I150 -> 29 | I150: =SUM(DataInput!J150,DataInput!AF150) -> 0 | J150: =SUM(DataInput!K150,DataInput!AG150) -> 0 | K150: =SUM(DataInput!L150,DataInput!AH150) -> 0 | L150: =SUM(DataInput!M150,DataInput!AI150) -> 0 | M150: =SUM(DataInput!N150,DataInput!AJ150) -> 0 | N150: =SUM(DataInput!O150,DataInput!AK203) -> 0 | O150: =DataInput!P150 -> 0 | Q150: 940 | R150: =DataInput!R150 -> 0 | S150: =DataInput!Y150 -> 0 | T150: =IF(DataInput!U150-DataInput!E150>0,DataInput!U150-DataInput!E150,"") ->  | U150: =IF(DataInput!W150-DataInput!I150>0,DataInput!W150-DataInput!I150,"") ->  | W150: 0 | X150: 0 | Y150: 940 | Z150: 407.1929 | AA150: 2858.4524 | AB150: =ROUNDDOWN((IF(AA151>0,IFERROR(IF(AVERAGE(DataInput!Q150:Q151)>AVERAGE(AA151,AA150),ROUNDDOWN(((((AA150-Z150)+(AA151-Z151))/2)*(A151-A150))/27+S70+T70,0),IF(((((DataInput!Q151-Z151)+(DataInput!Q150-Z150))/2)*(A151-A150))/27+S70+T70>0,ROUNDDOWN(((((DataInput!Q151-Z150)+(DataInput!Q150-Z150))/2)*(A151-A150))/27+S70+T70,0),0)),0),0)*$X$5),1) -> 0 | AC150: 202.485 | AD150: =ROUNDDOWN((IF(AC151>0,IFERROR(IF(((((DataInput!Q150-AC150)+(DataInput!Q151-AC151))/2)*(A151-A150))/27+S70+T70>0,ROUNDDOWN(((((DataInput!Q150-AC150)+(DataInput!Q151-AC151))/2)*(A151-A150))/27+S70+T70,0),0),0),0)*$X$5),1) -> 0 | AE150: =DataInput!U150 -> 117 | AF150: =DataInput!S150 -> 58 | AG150: 81.2 | AH150: 35.8
A151: =IF(DataInput!A151<>"",DataInput!A151,"") -> 24149125 | B151: =SUM(DataInput!C151,DataInput!Y151)+(DataInput!U151-DataInput!E151) -> 1125 | C151: =SUM(DataInput!D151,DataInput!Z151) -> 1006 | D151: =DataInput!U151 -> 119 | E151: =SUM(DataInput!F151,DataInput!AB151) -> 0 | F151: =SUM(DataInput!G151,DataInput!AC151) -> 0 | G151: =SUM(DataInput!H151,DataInput!AD151) -> 0 | H151: =DataInput!I151 -> 29 | I151: =SUM(DataInput!J151,DataInput!AF151) -> 0 | J151: =SUM(DataInput!K151,DataInput!AG151) -> 0 | K151: =SUM(DataInput!L151,DataInput!AH151) -> 0 | L151: =SUM(DataInput!M151,DataInput!AI151) -> 0 | M151: =SUM(DataInput!N151,DataInput!AJ151) -> 0 | N151: =SUM(DataInput!O151,DataInput!AK204) -> 0 | O151: =DataInput!P151 -> 0 | Q151: 1006 | R151: =DataInput!R151 -> 0 | S151: =DataInput!Y151 -> 0 | T151: =IF(DataInput!U151-DataInput!E151>0,DataInput!U151-DataInput!E151,"") -> 1 | U151: =IF(DataInput!W151-DataInput!I151>0,DataInput!W151-DataInput!I151,"") ->  | W151: 1 | X151: 1.3 | Y151: 1004.7 | Z151: 407.1929 | AA151: 2858.4524 | AB151: =ROUNDDOWN((IF(AA152>0,IFERROR(IF(AVERAGE(DataInput!Q151:Q152)>AVERAGE(AA152,AA151),ROUNDDOWN(((((AA151-Z151)+(AA152-Z152))/2)*(A152-A151))/27+S71+T71,0),IF(((((DataInput!Q152-Z152)+(DataInput!Q151-Z151))/2)*(A152-A151))/27+S71+T71>0,ROUNDDOWN(((((DataInput!Q152-Z151)+(DataInput!Q151-Z151))/2)*(A152-A151))/27+S71+T71,0),0)),0),0)*$X$5),1) -> 0 | AC151: 202.485 | AD151: =ROUNDDOWN((IF(AC152>0,IFERROR(IF(((((DataInput!Q151-AC151)+(DataInput!Q152-AC152))/2)*(A152-A151))/27+S71+T71>0,ROUNDDOWN(((((DataInput!Q151-AC151)+(DataInput!Q152-AC152))/2)*(A152-A151))/27+S71+T71,0),0),0),0)*$X$5),1) -> 0 | AE151: =DataInput!U151 -> 119 | AF151: =DataInput!S151 -> 60 | AG151: 84 | AH151: 35
A152: =IF(DataInput!A152<>"",DataInput!A152,"") -> 24149150 | B152: =SUM(DataInput!C152,DataInput!Y152)+(DataInput!U152-DataInput!E152) -> 1194 | C152: =SUM(DataInput!D152,DataInput!Z152) -> 1072 | D152: =DataInput!U152 -> 122 | E152: =SUM(DataInput!F152,DataInput!AB152) -> 0 | F152: =SUM(DataInput!G152,DataInput!AC152) -> 0 | G152: =SUM(DataInput!H152,DataInput!AD152) -> 0 | H152: =DataInput!I152 -> 29 | I152: =SUM(DataInput!J152,DataInput!AF152) -> 0 | J152: =SUM(DataInput!K152,DataInput!AG152) -> 0 | K152: =SUM(DataInput!L152,DataInput!AH152) -> 0 | L152: =SUM(DataInput!M152,DataInput!AI152) -> 0 | M152: =SUM(DataInput!N152,DataInput!AJ152) -> 0 | N152: =SUM(DataInput!O152,DataInput!AK205) -> 0 | O152: =DataInput!P152 -> 0 | Q152: 1072 | R152: =DataInput!R152 -> 0 | S152: =DataInput!Y152 -> 0 | T152: =IF(DataInput!U152-DataInput!E152>0,DataInput!U152-DataInput!E152,"") -> 1 | U152: =IF(DataInput!W152-DataInput!I152>0,DataInput!W152-DataInput!I152,"") ->  | W152: 1 | X152: 1.3 | Y152: 1070.7 | Z152: 407.1929 | AA152: 2858.4524 | AB152: =ROUNDDOWN((IF(AA153>0,IFERROR(IF(AVERAGE(DataInput!Q152:Q153)>AVERAGE(AA153,AA152),ROUNDDOWN(((((AA152-Z152)+(AA153-Z153))/2)*(A153-A152))/27+S72+T72,0),IF(((((DataInput!Q153-Z153)+(DataInput!Q152-Z152))/2)*(A153-A152))/27+S72+T72>0,ROUNDDOWN(((((DataInput!Q153-Z152)+(DataInput!Q152-Z152))/2)*(A153-A152))/27+S72+T72,0),0)),0),0)*$X$5),1) -> 0 | AC152: 202.485 | AD152: =ROUNDDOWN((IF(AC153>0,IFERROR(IF(((((DataInput!Q152-AC152)+(DataInput!Q153-AC153))/2)*(A153-A152))/27+S72+T72>0,ROUNDDOWN(((((DataInput!Q152-AC152)+(DataInput!Q153-AC153))/2)*(A153-A152))/27+S72+T72,0),0),0),0)*$X$5),1) -> 0 | AE152: =DataInput!U152 -> 122 | AF152: =DataInput!S152 -> 62 | AG152: 86.8 | AH152: 35.2
A153: =IF(DataInput!A153<>"",DataInput!A153,"") -> 24149175 | B153: =SUM(DataInput!C153,DataInput!Y153)+(DataInput!U153-DataInput!E153) -> 1256 | C153: =SUM(DataInput!D153,DataInput!Z153) -> 1131 | D153: =DataInput!U153 -> 125 | E153: =SUM(DataInput!F153,DataInput!AB153) -> 0 | F153: =SUM(DataInput!G153,DataInput!AC153) -> 0 | G153: =SUM(DataInput!H153,DataInput!AD153) -> 0 | H153: =DataInput!I153 -> 29 | I153: =SUM(DataInput!J153,DataInput!AF153) -> 0 | J153: =SUM(DataInput!K153,DataInput!AG153) -> 0 | K153: =SUM(DataInput!L153,DataInput!AH153) -> 0 | L153: =SUM(DataInput!M153,DataInput!AI153) -> 0 | M153: =SUM(DataInput!N153,DataInput!AJ153) -> 0 | N153: =SUM(DataInput!O153,DataInput!AK206) -> 0 | O153: =DataInput!P153 -> 0 | Q153: 1131 | R153: =DataInput!R153 -> 0 | S153: =DataInput!Y153 -> 0 | T153: =IF(DataInput!U153-DataInput!E153>0,DataInput!U153-DataInput!E153,"") ->  | U153: =IF(DataInput!W153-DataInput!I153>0,DataInput!W153-DataInput!I153,"") ->  | W153: 0 | X153: 0 | Y153: 1131 | Z153: 407.1929 | AA153: 2858.4524 | AB153: =ROUNDDOWN((IF(AA154>0,IFERROR(IF(AVERAGE(DataInput!Q153:Q154)>AVERAGE(AA154,AA153),ROUNDDOWN(((((AA153-Z153)+(AA154-Z154))/2)*(A154-A153))/27+S73+T73,0),IF(((((DataInput!Q154-Z154)+(DataInput!Q153-Z153))/2)*(A154-A153))/27+S73+T73>0,ROUNDDOWN(((((DataInput!Q154-Z153)+(DataInput!Q153-Z153))/2)*(A154-A153))/27+S73+T73,0),0)),0),0)*$X$5),1) -> 0 | AC153: 202.485 | AD153: =ROUNDDOWN((IF(AC154>0,IFERROR(IF(((((DataInput!Q153-AC153)+(DataInput!Q154-AC154))/2)*(A154-A153))/27+S73+T73>0,ROUNDDOWN(((((DataInput!Q153-AC153)+(DataInput!Q154-AC154))/2)*(A154-A153))/27+S73+T73,0),0),0),0)*$X$5),1) -> 0 | AE153: =DataInput!U153 -> 125 | AF153: =DataInput!S153 -> 64 | AG153: 89.6 | AH153: 35.4
A154: =IF(DataInput!A154<>"",DataInput!A154,"") -> 24149200 | B154: =SUM(DataInput!C154,DataInput!Y154)+(DataInput!U154-DataInput!E154) -> 1309 | C154: =SUM(DataInput!D154,DataInput!Z154) -> 1183 | D154: =DataInput!U154 -> 126 | E154: =SUM(DataInput!F154,DataInput!AB154) -> 0 | F154: =SUM(DataInput!G154,DataInput!AC154) -> 0 | G154: =SUM(DataInput!H154,DataInput!AD154) -> 0 | H154: =DataInput!I154 -> 29 | I154: =SUM(DataInput!J154,DataInput!AF154) -> 0 | J154: =SUM(DataInput!K154,DataInput!AG154) -> 0 | K154: =SUM(DataInput!L154,DataInput!AH154) -> 0 | L154: =SUM(DataInput!M154,DataInput!AI154) -> 0 | M154: =SUM(DataInput!N154,DataInput!AJ154) -> 0 | N154: =SUM(DataInput!O154,DataInput!AK207) -> 0 | O154: =DataInput!P154 -> 0 | Q154: 1183 | R154: =DataInput!R154 -> 0 | S154: =DataInput!Y154 -> 0 | T154: =IF(DataInput!U154-DataInput!E154>0,DataInput!U154-DataInput!E154,"") ->  | U154: =IF(DataInput!W154-DataInput!I154>0,DataInput!W154-DataInput!I154,"") ->  | W154: 0 | X154: 0 | Y154: 1183 | Z154: 407.1929 | AA154: 2858.4524 | AB154: =ROUNDDOWN((IF(AA155>0,IFERROR(IF(AVERAGE(DataInput!Q154:Q155)>AVERAGE(AA155,AA154),ROUNDDOWN(((((AA154-Z154)+(AA155-Z155))/2)*(A155-A154))/27+S74+T74,0),IF(((((DataInput!Q155-Z155)+(DataInput!Q154-Z154))/2)*(A155-A154))/27+S74+T74>0,ROUNDDOWN(((((DataInput!Q155-Z154)+(DataInput!Q154-Z154))/2)*(A155-A154))/27+S74+T74,0),0)),0),0)*$X$5),1) -> 0 | AC154: 202.485 | AD154: =ROUNDDOWN((IF(AC155>0,IFERROR(IF(((((DataInput!Q154-AC154)+(DataInput!Q155-AC155))/2)*(A155-A154))/27+S74+T74>0,ROUNDDOWN(((((DataInput!Q154-AC154)+(DataInput!Q155-AC155))/2)*(A155-A154))/27+S74+T74,0),0),0),0)*$X$5),1) -> 0 | AE154: =DataInput!U154 -> 126 | AF154: =DataInput!S154 -> 65 | AG154: 91 | AH154: 35
A155: =IF(DataInput!A155<>"",DataInput!A155,"") -> 24149225 | B155: =SUM(DataInput!C155,DataInput!Y155)+(DataInput!U155-DataInput!E155) -> 1354 | C155: =SUM(DataInput!D155,DataInput!Z155) -> 1227 | D155: =DataInput!U155 -> 127 | E155: =SUM(DataInput!F155,DataInput!AB155) -> 0 | F155: =SUM(DataInput!G155,DataInput!AC155) -> 0 | G155: =SUM(DataInput!H155,DataInput!AD155) -> 0 | H155: =DataInput!I155 -> 29 | I155: =SUM(DataInput!J155,DataInput!AF155) -> 0 | J155: =SUM(DataInput!K155,DataInput!AG155) -> 0 | K155: =SUM(DataInput!L155,DataInput!AH155) -> 0 | L155: =SUM(DataInput!M155,DataInput!AI155) -> 0 | M155: =SUM(DataInput!N155,DataInput!AJ155) -> 0 | N155: =SUM(DataInput!O155,DataInput!AK208) -> 0 | O155: =DataInput!P155 -> 0 | Q155: 1227 | R155: =DataInput!R155 -> 0 | S155: =DataInput!Y155 -> 0 | T155: =IF(DataInput!U155-DataInput!E155>0,DataInput!U155-DataInput!E155,"") ->  | U155: =IF(DataInput!W155-DataInput!I155>0,DataInput!W155-DataInput!I155,"") ->  | W155: 0 | X155: 0 | Y155: 1227 | Z155: 407.1929 | AA155: 2858.4524 | AB155: =ROUNDDOWN((IF(AA156>0,IFERROR(IF(AVERAGE(DataInput!Q155:Q156)>AVERAGE(AA156,AA155),ROUNDDOWN(((((AA155-Z155)+(AA156-Z156))/2)*(A156-A155))/27+S75+T75,0),IF(((((DataInput!Q156-Z156)+(DataInput!Q155-Z155))/2)*(A156-A155))/27+S75+T75>0,ROUNDDOWN(((((DataInput!Q156-Z155)+(DataInput!Q155-Z155))/2)*(A156-A155))/27+S75+T75,0),0)),0),0)*$X$5),1) -> 0 | AC155: 202.485 | AD155: =ROUNDDOWN((IF(AC156>0,IFERROR(IF(((((DataInput!Q155-AC155)+(DataInput!Q156-AC156))/2)*(A156-A155))/27+S75+T75>0,ROUNDDOWN(((((DataInput!Q155-AC155)+(DataInput!Q156-AC156))/2)*(A156-A155))/27+S75+T75,0),0),0),0)*$X$5),1) -> 0 | AE155: =DataInput!U155 -> 127 | AF155: =DataInput!S155 -> 66 | AG155: 92.4 | AH155: 34.6
A156: =IF(DataInput!A156<>"",DataInput!A156,"") -> 24149250 | B156: =SUM(DataInput!C156,DataInput!Y156)+(DataInput!U156-DataInput!E156) -> 1396 | C156: =SUM(DataInput!D156,DataInput!Z156) -> 1265 | D156: =DataInput!U156 -> 131 | E156: =SUM(DataInput!F156,DataInput!AB156) -> 0 | F156: =SUM(DataInput!G156,DataInput!AC156) -> 0 | G156: =SUM(DataInput!H156,DataInput!AD156) -> 0 | H156: =DataInput!I156 -> 29 | I156: =SUM(DataInput!J156,DataInput!AF156) -> 0 | J156: =SUM(DataInput!K156,DataInput!AG156) -> 0 | K156: =SUM(DataInput!L156,DataInput!AH156) -> 0 | L156: =SUM(DataInput!M156,DataInput!AI156) -> 0 | M156: =SUM(DataInput!N156,DataInput!AJ156) -> 0 | N156: =SUM(DataInput!O156,DataInput!AK209) -> 0 | O156: =DataInput!P156 -> 0 | Q156: 1265 | R156: =DataInput!R156 -> 0 | S156: =DataInput!Y156 -> 0 | T156: =IF(DataInput!U156-DataInput!E156>0,DataInput!U156-DataInput!E156,"") -> 1 | U156: =IF(DataInput!W156-DataInput!I156>0,DataInput!W156-DataInput!I156,"") ->  | W156: 1 | X156: 1.3 | Y156: 1263.7 | Z156: 407.1929 | AA156: 2858.4524 | AB156: =ROUNDDOWN((IF(AA157>0,IFERROR(IF(AVERAGE(DataInput!Q156:Q157)>AVERAGE(AA157,AA156),ROUNDDOWN(((((AA156-Z156)+(AA157-Z157))/2)*(A157-A156))/27+S76+T76,0),IF(((((DataInput!Q157-Z157)+(DataInput!Q156-Z156))/2)*(A157-A156))/27+S76+T76>0,ROUNDDOWN(((((DataInput!Q157-Z156)+(DataInput!Q156-Z156))/2)*(A157-A156))/27+S76+T76,0),0)),0),0)*$X$5),1) -> 0 | AC156: 202.485 | AD156: =ROUNDDOWN((IF(AC157>0,IFERROR(IF(((((DataInput!Q156-AC156)+(DataInput!Q157-AC157))/2)*(A157-A156))/27+S76+T76>0,ROUNDDOWN(((((DataInput!Q156-AC156)+(DataInput!Q157-AC157))/2)*(A157-A156))/27+S76+T76,0),0),0),0)*$X$5),1) -> 0 | AE156: =DataInput!U156 -> 131 | AF156: =DataInput!S156 -> 68 | AG156: 95.2 | AH156: 35.8
A157: =IF(DataInput!A157<>"",DataInput!A157,"") -> 24149275 | B157: =SUM(DataInput!C157,DataInput!Y157)+(DataInput!U157-DataInput!E157) -> 1426 | C157: =SUM(DataInput!D157,DataInput!Z157) -> 1295 | D157: =DataInput!U157 -> 132 | E157: =SUM(DataInput!F157,DataInput!AB157) -> 0 | F157: =SUM(DataInput!G157,DataInput!AC157) -> 0 | G157: =SUM(DataInput!H157,DataInput!AD157) -> 0 | H157: =DataInput!I157 -> 29 | I157: =SUM(DataInput!J157,DataInput!AF157) -> 0 | J157: =SUM(DataInput!K157,DataInput!AG157) -> 0 | K157: =SUM(DataInput!L157,DataInput!AH157) -> 0 | L157: =SUM(DataInput!M157,DataInput!AI157) -> 0 | M157: =SUM(DataInput!N157,DataInput!AJ157) -> 0 | N157: =SUM(DataInput!O157,DataInput!AK210) -> 0 | O157: =DataInput!P157 -> 0 | Q157: =SUM(C157,E157:G157,I157:L157,N157:P157) -> 1295 | R157: =DataInput!R157 -> 0 | S157: =DataInput!Y157 -> 0 | T157: =IF(DataInput!U157-DataInput!E157>0,DataInput!U157-DataInput!E157,"") ->  | U157: =IF(DataInput!W157-DataInput!I157>0,DataInput!W157-DataInput!I157,"") ->  | W157: =SUM(R157:V157) -> 0 | X157: =ROUNDUP(($W157*$X$5),1) -> 0 | Y157: =ROUNDUP(SUM(Q157-X157),1) -> 1295 | Z157: 407.1929 | AA157: 2858.4524 | AB157: =ROUNDDOWN((IF(AA158>0,IFERROR(IF(AVERAGE(DataInput!Q157:Q158)>AVERAGE(AA158,AA157),ROUNDDOWN(((((AA157-Z157)+(AA158-Z158))/2)*(A158-A157))/27+S77+T77,0),IF(((((DataInput!Q158-Z158)+(DataInput!Q157-Z157))/2)*(A158-A157))/27+S77+T77>0,ROUNDDOWN(((((DataInput!Q158-Z157)+(DataInput!Q157-Z157))/2)*(A158-A157))/27+S77+T77,0),0)),0),0)*$X$5),1) -> 0 | AC157: 202.485 | AD157: =ROUNDDOWN((IF(AC158>0,IFERROR(IF(((((DataInput!Q157-AC157)+(DataInput!Q158-AC158))/2)*(A158-A157))/27+S77+T77>0,ROUNDDOWN(((((DataInput!Q157-AC157)+(DataInput!Q158-AC158))/2)*(A158-A157))/27+S77+T77,0),0),0),0)*$X$5),1) -> 0 | AE157: =DataInput!U157 -> 132 | AF157: =DataInput!S157 -> 69 | AG157: =ROUNDUP((AF157*$AG$5),1) -> 96.6 | AH157: =ROUNDUP((AE157-AG157),1) -> 35.4
A158: =IF(DataInput!A158<>"",DataInput!A158,"") -> 24149300 | B158: =SUM(DataInput!C158,DataInput!Y158)+(DataInput!U158-DataInput!E158) -> 1427 | C158: =SUM(DataInput!D158,DataInput!Z158) -> 1295 | D158: =DataInput!U158 -> 131 | E158: =SUM(DataInput!F158,DataInput!AB158) -> 0 | F158: =SUM(DataInput!G158,DataInput!AC158) -> 0 | G158: =SUM(DataInput!H158,DataInput!AD158) -> 0 | H158: =DataInput!I158 -> 30 | I158: =SUM(DataInput!J158,DataInput!AF158) -> 0 | J158: =SUM(DataInput!K158,DataInput!AG158) -> 0 | K158: =SUM(DataInput!L158,DataInput!AH158) -> 0 | L158: =SUM(DataInput!M158,DataInput!AI158) -> 0 | M158: =SUM(DataInput!N158,DataInput!AJ158) -> 0 | N158: =SUM(DataInput!O158,DataInput!AK211) -> 0 | O158: =DataInput!P158 -> 0 | Q158: 1295 | R158: =DataInput!R158 -> 0 | S158: =DataInput!Y158 -> 0 | T158: =IF(DataInput!U158-DataInput!E158>0,DataInput!U158-DataInput!E158,"") -> 1 | U158: =IF(DataInput!W158-DataInput!I158>0,DataInput!W158-DataInput!I158,"") ->  | W158: 1 | X158: 1.3 | Y158: 1293.7 | Z158: =Z157 -> 407.1929 | AA158: =AA157 -> 2858.4524 | AB158: =ROUNDDOWN((IF(AA159>0,IFERROR(IF(AVERAGE(DataInput!Q158:Q159)>AVERAGE(AA159,AA158),ROUNDDOWN(((((AA158-Z158)+(AA159-Z159))/2)*(A159-A158))/27+S78+T78,0),IF(((((DataInput!Q159-Z159)+(DataInput!Q158-Z158))/2)*(A159-A158))/27+S78+T78>0,ROUNDDOWN(((((DataInput!Q159-Z158)+(DataInput!Q158-Z158))/2)*(A159-A158))/27+S78+T78,0),0)),0),0)*$X$5),1) -> 0 | AC158: =AC157 -> 202.485 | AD158: =ROUNDDOWN((IF(AC159>0,IFERROR(IF(((((DataInput!Q158-AC158)+(DataInput!Q159-AC159))/2)*(A159-A158))/27+S78+T78>0,ROUNDDOWN(((((DataInput!Q158-AC158)+(DataInput!Q159-AC159))/2)*(A159-A158))/27+S78+T78,0),0),0),0)*$X$5),1) -> 0 | AE158: =DataInput!U158 -> 131 | AF158: =DataInput!S158 -> 69 | AG158: 96.6 | AH158: 34.4
A159: =IF(DataInput!A159<>"",DataInput!A159,"") -> 24149325 | B159: =SUM(DataInput!C159,DataInput!Y159)+(DataInput!U159-DataInput!E159) -> 1400 | C159: =SUM(DataInput!D159,DataInput!Z159) -> 1268 | D159: =DataInput!U159 -> 131 | E159: =SUM(DataInput!F159,DataInput!AB159) -> 0 | F159: =SUM(DataInput!G159,DataInput!AC159) -> 0 | G159: =SUM(DataInput!H159,DataInput!AD159) -> 0 | H159: =DataInput!I159 -> 30 | I159: =SUM(DataInput!J159,DataInput!AF159) -> 0 | J159: =SUM(DataInput!K159,DataInput!AG159) -> 0 | K159: =SUM(DataInput!L159,DataInput!AH159) -> 0 | L159: =SUM(DataInput!M159,DataInput!AI159) -> 0 | M159: =SUM(DataInput!N159,DataInput!AJ159) -> 0 | N159: =SUM(DataInput!O159,DataInput!AK212) -> 0 | O159: =DataInput!P159 -> 0 | Q159: 1268 | R159: =DataInput!R159 -> 0 | S159: =DataInput!Y159 -> 0 | T159: =IF(DataInput!U159-DataInput!E159>0,DataInput!U159-DataInput!E159,"") -> 1 | U159: =IF(DataInput!W159-DataInput!I159>0,DataInput!W159-DataInput!I159,"") ->  | W159: 1 | X159: 1.3 | Y159: 1266.7 | Z159: 407.1929 | AA159: 2858.4524 | AB159: =ROUNDDOWN((IF(AA160>0,IFERROR(IF(AVERAGE(DataInput!Q159:Q160)>AVERAGE(AA160,AA159),ROUNDDOWN(((((AA159-Z159)+(AA160-Z160))/2)*(A160-A159))/27+S79+T79,0),IF(((((DataInput!Q160-Z160)+(DataInput!Q159-Z159))/2)*(A160-A159))/27+S79+T79>0,ROUNDDOWN(((((DataInput!Q160-Z159)+(DataInput!Q159-Z159))/2)*(A160-A159))/27+S79+T79,0),0)),0),0)*$X$5),1) -> 0 | AC159: 202.485 | AD159: =ROUNDDOWN((IF(AC160>0,IFERROR(IF(((((DataInput!Q159-AC159)+(DataInput!Q160-AC160))/2)*(A160-A159))/27+S79+T79>0,ROUNDDOWN(((((DataInput!Q159-AC159)+(DataInput!Q160-AC160))/2)*(A160-A159))/27+S79+T79,0),0),0),0)*$X$5),1) -> 0 | AE159: =DataInput!U159 -> 131 | AF159: =DataInput!S159 -> 68 | AG159: 95.2 | AH159: 35.8
A160: =IF(DataInput!A160<>"",DataInput!A160,"") -> 24149350 | B160: =SUM(DataInput!C160,DataInput!Y160)+(DataInput!U160-DataInput!E160) -> 1368 | C160: =SUM(DataInput!D160,DataInput!Z160) -> 1238 | D160: =DataInput!U160 -> 130 | E160: =SUM(DataInput!F160,DataInput!AB160) -> 0 | F160: =SUM(DataInput!G160,DataInput!AC160) -> 0 | G160: =SUM(DataInput!H160,DataInput!AD160) -> 0 | H160: =DataInput!I160 -> 30 | I160: =SUM(DataInput!J160,DataInput!AF160) -> 0 | J160: =SUM(DataInput!K160,DataInput!AG160) -> 0 | K160: =SUM(DataInput!L160,DataInput!AH160) -> 0 | L160: =SUM(DataInput!M160,DataInput!AI160) -> 0 | M160: =SUM(DataInput!N160,DataInput!AJ160) -> 0 | N160: =SUM(DataInput!O160,DataInput!AK213) -> 0 | O160: =DataInput!P160 -> 0 | Q160: 1238 | R160: =DataInput!R160 -> 0 | S160: =DataInput!Y160 -> 0 | T160: =IF(DataInput!U160-DataInput!E160>0,DataInput!U160-DataInput!E160,"") ->  | U160: =IF(DataInput!W160-DataInput!I160>0,DataInput!W160-DataInput!I160,"") ->  | W160: 0 | X160: 0 | Y160: 1238 | Z160: 407.1929 | AA160: 2858.4524 | AB160: =ROUNDDOWN((IF(AA161>0,IFERROR(IF(AVERAGE(DataInput!Q160:Q161)>AVERAGE(AA161,AA160),ROUNDDOWN(((((AA160-Z160)+(AA161-Z161))/2)*(A161-A160))/27+S80+T80,0),IF(((((DataInput!Q161-Z161)+(DataInput!Q160-Z160))/2)*(A161-A160))/27+S80+T80>0,ROUNDDOWN(((((DataInput!Q161-Z160)+(DataInput!Q160-Z160))/2)*(A161-A160))/27+S80+T80,0),0)),0),0)*$X$5),1) -> 0 | AC160: 202.485 | AD160: =ROUNDDOWN((IF(AC161>0,IFERROR(IF(((((DataInput!Q160-AC160)+(DataInput!Q161-AC161))/2)*(A161-A160))/27+S80+T80>0,ROUNDDOWN(((((DataInput!Q160-AC160)+(DataInput!Q161-AC161))/2)*(A161-A160))/27+S80+T80,0),0),0),0)*$X$5),1) -> 0 | AE160: =DataInput!U160 -> 130 | AF160: =DataInput!S160 -> 67 | AG160: 93.8 | AH160: 36.2
A161: =IF(DataInput!A161<>"",DataInput!A161,"") -> 24149375 | B161: =SUM(DataInput!C161,DataInput!Y161)+(DataInput!U161-DataInput!E161) -> 1345 | C161: =SUM(DataInput!D161,DataInput!Z161) -> 1214 | D161: =DataInput!U161 -> 130 | E161: =SUM(DataInput!F161,DataInput!AB161) -> 0 | F161: =SUM(DataInput!G161,DataInput!AC161) -> 0 | G161: =SUM(DataInput!H161,DataInput!AD161) -> 0 | H161: =DataInput!I161 -> 30 | I161: =SUM(DataInput!J161,DataInput!AF161) -> 0 | J161: =SUM(DataInput!K161,DataInput!AG161) -> 0 | K161: =SUM(DataInput!L161,DataInput!AH161) -> 0 | L161: =SUM(DataInput!M161,DataInput!AI161) -> 0 | M161: =SUM(DataInput!N161,DataInput!AJ161) -> 0 | N161: =SUM(DataInput!O161,DataInput!AK214) -> 0 | O161: =DataInput!P161 -> 0 | Q161: 1214 | R161: =DataInput!R161 -> 0 | S161: =DataInput!Y161 -> 0 | T161: =IF(DataInput!U161-DataInput!E161>0,DataInput!U161-DataInput!E161,"") -> 1 | U161: =IF(DataInput!W161-DataInput!I161>0,DataInput!W161-DataInput!I161,"") ->  | W161: 1 | X161: 1.3 | Y161: 1212.7 | Z161: 407.1929 | AA161: 2858.4524 | AB161: =ROUNDDOWN((IF(AA162>0,IFERROR(IF(AVERAGE(DataInput!Q161:Q162)>AVERAGE(AA162,AA161),ROUNDDOWN(((((AA161-Z161)+(AA162-Z162))/2)*(A162-A161))/27+S81+T81,0),IF(((((DataInput!Q162-Z162)+(DataInput!Q161-Z161))/2)*(A162-A161))/27+S81+T81>0,ROUNDDOWN(((((DataInput!Q162-Z161)+(DataInput!Q161-Z161))/2)*(A162-A161))/27+S81+T81,0),0)),0),0)*$X$5),1) -> 0 | AC161: 202.485 | AD161: =ROUNDDOWN((IF(AC162>0,IFERROR(IF(((((DataInput!Q161-AC161)+(DataInput!Q162-AC162))/2)*(A162-A161))/27+S81+T81>0,ROUNDDOWN(((((DataInput!Q161-AC161)+(DataInput!Q162-AC162))/2)*(A162-A161))/27+S81+T81,0),0),0),0)*$X$5),1) -> 0 | AE161: =DataInput!U161 -> 130 | AF161: =DataInput!S161 -> 66 | AG161: 92.4 | AH161: 37.6
A162: =IF(DataInput!A162<>"",DataInput!A162,"") -> 24149400 | B162: =SUM(DataInput!C162,DataInput!Y162)+(DataInput!U162-DataInput!E162) -> 1316 | C162: =SUM(DataInput!D162,DataInput!Z162) -> 1187 | D162: =DataInput!U162 -> 129 | E162: =SUM(DataInput!F162,DataInput!AB162) -> 0 | F162: =SUM(DataInput!G162,DataInput!AC162) -> 0 | G162: =SUM(DataInput!H162,DataInput!AD162) -> 0 | H162: =DataInput!I162 -> 29 | I162: =SUM(DataInput!J162,DataInput!AF162) -> 0 | J162: =SUM(DataInput!K162,DataInput!AG162) -> 0 | K162: =SUM(DataInput!L162,DataInput!AH162) -> 0 | L162: =SUM(DataInput!M162,DataInput!AI162) -> 0 | M162: =SUM(DataInput!N162,DataInput!AJ162) -> 0 | N162: =SUM(DataInput!O162,DataInput!AK215) -> 0 | O162: =DataInput!P162 -> 0 | Q162: 1187 | R162: =DataInput!R162 -> 0 | S162: =DataInput!Y162 -> 0 | T162: =IF(DataInput!U162-DataInput!E162>0,DataInput!U162-DataInput!E162,"") -> 1 | U162: =IF(DataInput!W162-DataInput!I162>0,DataInput!W162-DataInput!I162,"") ->  | W162: 1 | X162: 1.3 | Y162: 1185.7 | Z162: 407.1929 | AA162: 2858.4524 | AB162: =ROUNDDOWN((IF(AA163>0,IFERROR(IF(AVERAGE(DataInput!Q162:Q163)>AVERAGE(AA163,AA162),ROUNDDOWN(((((AA162-Z162)+(AA163-Z163))/2)*(A163-A162))/27+S82+T82,0),IF(((((DataInput!Q163-Z163)+(DataInput!Q162-Z162))/2)*(A163-A162))/27+S82+T82>0,ROUNDDOWN(((((DataInput!Q163-Z162)+(DataInput!Q162-Z162))/2)*(A163-A162))/27+S82+T82,0),0)),0),0)*$X$5),1) -> 0 | AC162: 202.485 | AD162: =ROUNDDOWN((IF(AC163>0,IFERROR(IF(((((DataInput!Q162-AC162)+(DataInput!Q163-AC163))/2)*(A163-A162))/27+S82+T82>0,ROUNDDOWN(((((DataInput!Q162-AC162)+(DataInput!Q163-AC163))/2)*(A163-A162))/27+S82+T82,0),0),0),0)*$X$5),1) -> 0 | AE162: =DataInput!U162 -> 129 | AF162: =DataInput!S162 -> 65 | AG162: 91 | AH162: 38
A163: =IF(DataInput!A163<>"",DataInput!A163,"") -> 24149425 | B163: =SUM(DataInput!C163,DataInput!Y163)+(DataInput!U163-DataInput!E163) -> 1282 | C163: =SUM(DataInput!D163,DataInput!Z163) -> 1156 | D163: =DataInput!U163 -> 126 | E163: =SUM(DataInput!F163,DataInput!AB163) -> 0 | F163: =SUM(DataInput!G163,DataInput!AC163) -> 0 | G163: =SUM(DataInput!H163,DataInput!AD163) -> 0 | H163: =DataInput!I163 -> 29 | I163: =SUM(DataInput!J163,DataInput!AF163) -> 0 | J163: =SUM(DataInput!K163,DataInput!AG163) -> 0 | K163: =SUM(DataInput!L163,DataInput!AH163) -> 0 | L163: =SUM(DataInput!M163,DataInput!AI163) -> 0 | M163: =SUM(DataInput!N163,DataInput!AJ163) -> 0 | N163: =SUM(DataInput!O163,DataInput!AK216) -> 0 | O163: =DataInput!P163 -> 0 | Q163: 1156 | R163: =DataInput!R163 -> 0 | S163: =DataInput!Y163 -> 0 | T163: =IF(DataInput!U163-DataInput!E163>0,DataInput!U163-DataInput!E163,"") ->  | U163: =IF(DataInput!W163-DataInput!I163>0,DataInput!W163-DataInput!I163,"") ->  | W163: 0 | X163: 0 | Y163: 1156 | Z163: 407.1929 | AA163: 2858.4524 | AB163: =ROUNDDOWN((IF(AA164>0,IFERROR(IF(AVERAGE(DataInput!Q163:Q164)>AVERAGE(AA164,AA163),ROUNDDOWN(((((AA163-Z163)+(AA164-Z164))/2)*(A164-A163))/27+S83+T83,0),IF(((((DataInput!Q164-Z164)+(DataInput!Q163-Z163))/2)*(A164-A163))/27+S83+T83>0,ROUNDDOWN(((((DataInput!Q164-Z163)+(DataInput!Q163-Z163))/2)*(A164-A163))/27+S83+T83,0),0)),0),0)*$X$5),1) -> 0 | AC163: 202.485 | AD163: =ROUNDDOWN((IF(AC164>0,IFERROR(IF(((((DataInput!Q163-AC163)+(DataInput!Q164-AC164))/2)*(A164-A163))/27+S83+T83>0,ROUNDDOWN(((((DataInput!Q163-AC163)+(DataInput!Q164-AC164))/2)*(A164-A163))/27+S83+T83,0),0),0),0)*$X$5),1) -> 0 | AE163: =DataInput!U163 -> 126 | AF163: =DataInput!S163 -> 64 | AG163: 89.6 | AH163: 36.4
A164: =IF(DataInput!A164<>"",DataInput!A164,"") -> 24149450 | B164: =SUM(DataInput!C164,DataInput!Y164)+(DataInput!U164-DataInput!E164) -> 1245 | C164: =SUM(DataInput!D164,DataInput!Z164) -> 1121 | D164: =DataInput!U164 -> 124 | E164: =SUM(DataInput!F164,DataInput!AB164) -> 0 | F164: =SUM(DataInput!G164,DataInput!AC164) -> 0 | G164: =SUM(DataInput!H164,DataInput!AD164) -> 0 | H164: =DataInput!I164 -> 29 | I164: =SUM(DataInput!J164,DataInput!AF164) -> 0 | J164: =SUM(DataInput!K164,DataInput!AG164) -> 0 | K164: =SUM(DataInput!L164,DataInput!AH164) -> 0 | L164: =SUM(DataInput!M164,DataInput!AI164) -> 0 | M164: =SUM(DataInput!N164,DataInput!AJ164) -> 0 | N164: =SUM(DataInput!O164,DataInput!AK217) -> 0 | O164: =DataInput!P164 -> 0 | Q164: 1121 | R164: =DataInput!R164 -> 0 | S164: =DataInput!Y164 -> 0 | T164: =IF(DataInput!U164-DataInput!E164>0,DataInput!U164-DataInput!E164,"") ->  | U164: =IF(DataInput!W164-DataInput!I164>0,DataInput!W164-DataInput!I164,"") ->  | W164: 0 | X164: 0 | Y164: 1121 | Z164: 407.1929 | AA164: 2858.4524 | AB164: =ROUNDDOWN((IF(AA165>0,IFERROR(IF(AVERAGE(DataInput!Q164:Q165)>AVERAGE(AA165,AA164),ROUNDDOWN(((((AA164-Z164)+(AA165-Z165))/2)*(A165-A164))/27+S84+T84,0),IF(((((DataInput!Q165-Z165)+(DataInput!Q164-Z164))/2)*(A165-A164))/27+S84+T84>0,ROUNDDOWN(((((DataInput!Q165-Z164)+(DataInput!Q164-Z164))/2)*(A165-A164))/27+S84+T84,0),0)),0),0)*$X$5),1) -> 0 | AC164: 202.485 | AD164: =ROUNDDOWN((IF(AC165>0,IFERROR(IF(((((DataInput!Q164-AC164)+(DataInput!Q165-AC165))/2)*(A165-A164))/27+S84+T84>0,ROUNDDOWN(((((DataInput!Q164-AC164)+(DataInput!Q165-AC165))/2)*(A165-A164))/27+S84+T84,0),0),0),0)*$X$5),1) -> 0 | AE164: =DataInput!U164 -> 124 | AF164: =DataInput!S164 -> 62 | AG164: 86.8 | AH164: 37.2
